Workbook

Sheet Getting Started
B15: Follow this guide to get started. This is a one-time setup. | H15: Test if Docmo is working on this device. | N15: You must enable macros. | T15: You must trust this folder, and reopen this workbook. | AA15: You must trust this folder, and reopen this workbook. | AG15: Reopen this workbook. | AM15: All done!
T16: Docmo can only run from a "trusted" location. | AA16: Docmo can only run from a "trusted" location. | AG16: Saving is not necessary.
AM17: Now that we're all setup, let's get to work!
B19: (Click the Docmo icon to restart at any point in this process.) | H19: Yes, it's working! | N19: How do I enable macros?
H20: It showed an error about a MACRO. | N20: They're enabled! | AA20: Navigate:
B21: Start. | H21: It showed ANOTHER error. | AA21: File › Options (bottom left) › Trust Center (left) › Trust Center Settings › Trusted Locations (top left) › Add New Location › Browse | AG21: Go back to trusted locations.
AA22: If you get the error message below, you must check the box circled in red. | AG22: Success! Go back and test Docmo.
T23: Do it manually.
T24: Location is trusted! | AA24: Go back.
AA25: Location is trusted!

Sheet Exh. D

Sheet User Notes (hidden)
A1: Ctrl+G only works on New Allocations.
A2: Ctrl+G doesn't toggle empty cells. Only cells with a zero value.
A3: Sponsor can be free-form entry or selected from dropdown list.

Sheet Ref
H1: Raw Fund | I1: Friendly Fund | M1: Sponsor | O1: Industry | P1: ID | R1: Deal | S1: Sponsor | T1: Industry
H2: NXT CAPITAL SLF IV FUNDING, LLC | I2: SLF IV | M2: A&M CAPITAL PARTNERS | O2: Aerospace & Defense | P2: 1 | R2: test1 | S2: a | T2: Energy: Electricity
D3: Table Color Coding | H3: NXT CAPITAL FUNDING I, LLC | I3: NXT CAPITAL FUNDING I, LLC | K3: Add sponsors to those queried from EIM. | M3: AMERICAN CAPITAL, LTD. | O3: Automotive | P3: 2 | R3: test2 | S3: d | T3: Hotel, Gaming & Leisure
D4: Blue are code-managed | H4: NXT | I4: NXT CAPITAL, LLC | K4: *Discuss internally before modifying. | M4: AMERICAN CAPITAL, LTD. | O4: Banking/Finance/Insurance/RE | P4: 3
D5: Green are user-managed. | H5: NXT CAPITAL, LLC | I5: NXT CAPITAL, LLC | K5: Additional Sponsors | M5: APAX PARTNERS | O5: Beverage, Food & Tobacco | P5: 4
H6: NXT CAPITAL CLO 2015-1, LLC | I6: NXT CLO 2015-1 | K6: Test Sponsor 1 | M6: ARLINGTON CAPITAL PARTNERS | O6: Capital Equipment | P6: 5
H7: NXT CAPITAL CLO 2017-1, LLC | I7: NXT CLO 2017-1 | K7: Test Sponsor 2 | M7: AUDAX PRIVATE EQUITY | O7: Chemicals, Plastics, & Rubber | P7: 6
H8: NXT CAPITAL CLO 2017-2, LLC | I8: NXT CLO 2017-2 | M8: AUDAX PRIVATE EQUITY | O8: Construction & Building | P8: 7
A9: Saved Allocations Root Directory | H9: NXT CAPITAL SENIOR LOAN FUND A | I9: SLF I (A) | M9: BAIN CAPITAL DOUBLE IMPACT | O9: Consumer goods: Durable | P9: 8
A10: S:\Asset Management\Consolidated Hypo\Allocations | H10: NXT CAPITAL SENIOR LOAN FUND B | I10: SLF I (B) | M10: CAPSTREET | O10: Consumer goods: Non-durable | P10: 9
H11: NXT CAPITAL SENIOR LOAN FUND II, LP | I11: SLF II | M11: CAPSTREET | O11: Containers, Packaging & Glass | P11: 10
A12: Command | H12: NXT CAPITAL SLF II FUNDING, LLC | I12: SLF II | M12: CDPQ | O12: Energy: Electricity | P12: 11
H13: NXT CAPITAL SENIOR LOAN FUND III LP | I13: SLF III | M13: CDPQ | O13: Energy: Oil & Gas | P13: 12
H14: NXT CAPITAL SLF III FUNDING, LLC | I14: SLF III | M14: CENTEROAK PARTNERS | O14: Environmental Industries | P14: 13
A15: Fund | B15: Standard Commitment | C15: Specific Commitment | D15: Protective Advances | E15: Total Commitment | F15: Principal Balance | H15: NXT CAPITAL SENIOR LOAN FUND IV, LP | I15: SLF IV | M15: CI CAPITAL PARTNERS | O15: Forest Products & Paper | P15: 14
A16: SMA-AF JAP | B16: 900000000 | D16: 45000000 | E16: =SUMIF(tbl_ExistingData[Fund],tbl_Funds[[#This Row],[Fund]],tbl_ExistingData[Total Commitment]) -> 0 | F16: =SUMIFS(tbl_ExistingData[Principal Balance],tbl_ExistingData[Paid Off Date],"",tbl_ExistingData[Fund],tbl_Funds[[#This Row],[Fund]]) -> 0 | H16: NXT CAPITAL SENIOR LOAN FUND V, LP | I16: SLF V | M16: CITIC CAPITAL INTERNATIONAL PARTNER III, L.P. | O16: Healthcare & Pharmaceuticals | P16: 15
A17: SMA-AF US | B17: 100000000 | D17: 5000000 | E17: =SUMIF(tbl_ExistingData[Fund],tbl_Funds[[#This Row],[Fund]],tbl_ExistingData[Total Commitment]) -> 0 | F17: =SUMIFS(tbl_ExistingData[Principal Balance],tbl_ExistingData[Paid Off Date],"",tbl_ExistingData[Fund],tbl_Funds[[#This Row],[Fund]]) -> 0 | H17: NXT CAPITAL SLF V FUNDING, LLC | I17: SLF V | M17: COBEPA | O17: High Tech Industries | P17: 16
A18: SMA-CH | B18: 400000000 | D18: 20000000 | E18: =SUMIF(tbl_ExistingData[Fund],tbl_Funds[[#This Row],[Fund]],tbl_ExistingData[Total Commitment]) -> 0 | F18: =SUMIFS(tbl_ExistingData[Principal Balance],tbl_ExistingData[Paid Off Date],"",tbl_ExistingData[Fund],tbl_Funds[[#This Row],[Fund]]) -> 0 | H18: NXT CAPITAL SENIOR LOAN FUND VI (L) LP, | I18: SLF VI L | M18: CORTEC GROUP FUND VI, L.P. | O18: Hotel, Gaming & Leisure | P18: 17
A19: SLF I | B19: 500000000 | D19: 0 | E19: =SUMIF(tbl_ExistingData[Fund],tbl_Funds[[#This Row],[Fund]],tbl_ExistingData[Total Commitment]) -> 0 | F19: =SUMIFS(tbl_ExistingData[Principal Balance],tbl_ExistingData[Paid Off Date],"",tbl_ExistingData[Fund],tbl_Funds[[#This Row],[Fund]]) -> 0 | H19: PDL US HOLDINGS LP (AIMCO) | I19: SMA-A | M19: CORTEC GROUP FUND VI, L.P. | O19: Media: Adv., Print & Publishing | P19: 18
A20: SMA-SC | B20: 360000000 | C20: 99566495.46 | D20: =VLOOKUP(tbl_Funds[[#This Row],[Fund]],tblGrossCommitments[[Fund]:[Gross Commitment]],2,0) * 0.05 -> 14464458.23 | E20: =SUMIF(tbl_ExistingData[Fund],tbl_Funds[[#This Row],[Fund]],tbl_ExistingData[Total Commitment]) -> 0 | F20: =SUMIFS(tbl_ExistingData[Principal Balance],tbl_ExistingData[Paid Off Date],"",tbl_ExistingData[Fund],tbl_Funds[[#This Row],[Fund]]) -> 0 | H20: GLOBAL INVESTMENT FUND I | I20: SMA-AF JAP | M20: COURT SQUARE CAPITAL PARTNERS | O20: Media: Broadcasting/Subscrip. | P20: 19
A21: SMA-SC NT | B21: 113500000 | D21: 5500000 | E21: =SUMIF(tbl_ExistingData[Fund],tbl_Funds[[#This Row],[Fund]],tbl_ExistingData[Total Commitment]) -> 0 | F21: =SUMIFS(tbl_ExistingData[Principal Balance],tbl_ExistingData[Paid Off Date],"",tbl_ExistingData[Fund],tbl_Funds[[#This Row],[Fund]]) -> 0 | H21: AMERICAN FAMILY LIFE ASSURANCE COMP | I21: SMA-AF US | M21: COURT SQUARE CAPITAL PARTNERS | O21: Media: Diversified & Production | P21: 20
A22: SMA-VG | B22: 100000000 | D22: 5000000 | E22: =SUMIF(tbl_ExistingData[Fund],tbl_Funds[[#This Row],[Fund]],tbl_ExistingData[Total Commitment]) -> 0 | F22: =SUMIFS(tbl_ExistingData[Principal Balance],tbl_ExistingData[Paid Off Date],"",tbl_ExistingData[Fund],tbl_Funds[[#This Row],[Fund]]) -> 0 | H22: NXT STEPSTONE CC FUNDING, LLC | I22: SMA-CC | M22: FIRST ATLANTIC CAPITAL, LTD. | O22: Metals & Mining | P22: 21
H23: NXT STEPSTONE CC, LLC | I23: SMA-CC | M23: FLEXPOINT FORD, LLC | O23: Retail | P23: 22
H24: Chubb | I24: SMA-CH | M24: FRAZIER HEALTHCARE VENTURES | O24: Services: Business | P24: 23
A25: Date | B25: Fund | C25: Gross Commitment | H25: PACIFIC INDEMNITY COMPANY | I25: SMA-CH | M25: FRONTENAC COMPANY | O25: Services: Consumer | P25: 24
A26: 20191231 | B26: SMA-SC | C26: 289289164.5 | H26: SC NXT CAPITAL PVT DBT FUND LP A | I26: SMA-SC | M26: FRONTENAC COMPANY | O26: Sovereign & Public Finance | P26: 25
A27: 20191231 | B27: SMA-SC NT | C27: 72328498.63 | H27: SC NXT CAP PVT DEBT OFFSHORE SP A | I27: SMA-SC NT | M27: GENSTAR CAPITAL LLC | O27: Telecommunications | P27: 26
H28: NXT CAPITAL CORPORATE FINANCE D-E INVESTMENTS, LLC | M28: GRAHAM PARTNERS | O28: Transportation: Cargo | P28: 27
H29: NXT CAPITAL CORPORATE FINANCE INVESTMENTS, LLC | M29: GRAHAM PARTNERS | O29: Transportation: Consumer | P29: 28
H30: NXT CAPITAL SLF VI FUNDING (L), LLC | I30: SLF VI L | M30: GREAT POINT PARTNERS, LLC | O30: Utilities: Electric | P30: 29
H31: NXT CAPITAL SLF VI FUNDING (UL), LLC | I31: SLF VI UL | M31: GREAT POINT PARTNERS, LLC | O31: Utilities: Oil & Gas | P31: 30
M32: GRIDIRON CAPITAL, LLC | O32: Utilities: Water | P32: 31
M33: GRYPHON INVESTORS, INC | O33: Wholesale | P33: 32
M34: HARVEST PARTNERS, LP
M35: INVERNESS GRAHAM
M36: JUGGERNAUT CAPITAL PARTNERS
M37: JUGGERNAUT CAPITAL PARTNERS
M38: JZ PARTNERS
M39: JZ PARTNERS
M40: LEEDS EQUITY EQUITY PARTNERS, LLC
M41: L-SQUARED CAPITAL
M42: MAY RIVER CAPITAL
M43: MAY RIVER CAPITAL
M44: NEW HARBOR CAPITAL, LLC
M45: NORWEST EQUITY PARTNERS
M46: OAK HILL CAPITAL
M47: OLYMPUS PARTNERS
M48: OMERS PRIVATE EQUITY
M49: PAMPLONA TMTI, L.P.
M50: PEAK ROCK CAPITAL
M51: PFINGSTEN
M52: PFINGSTEN
M53: PROVIDENCE EQUITY PARTNERS
M54: PROVIDENCE EQUITY PARTNERS
M55: PRUDENTIAL CAPITAL PARTNERS
M56: PRUDENTIAL CAPITAL PARTNERS
M57: REVELSTOKE CAPITAL
M58: RIDGEMONT EQUITY PARTNERS
M59: ROARK CAPITAL GROUP
M60: ROARK CAPITAL GROUP
M61: SEIDLER EQUITY PARTNERS
M62: SENTINEL CAPITAL PARTNERS, LLC
M63: TAILWIND CAPITAL
M64: TAILWIND CAPITAL
M65: THE RIVERSIDE COMPANY
M66: THE RIVERSIDE COMPANY
M67: TRINITY HUNT PARTNERS IV, L.P.
M68: TRIVE CAPITAL
M69: TRUE WIND CAPITAL
M70: TRUE WIND CAPITAL
M71: WARBURG PINCUS
M72: WINDJAMMER CAPITAL INVESTORS, LLC
M73: WINDJAMMER CAPITAL INVESTORS, LLC

Sheet Original Commitments (hidden)
A1: SMA-SC | F1: SMA-SC NT
A2: Borrower Name | B2: Tranche | C2: Commitment Amount | D2: Date Closed | F2: Borrower Name | G2: Tranche | H2: Commitment Amount | I2: Date Closed
A3: ECM Industries | B3: Revolver | C3: 452368.77 | D3: 2020-01-03 | F3: Oliver Printing & Packaging | G3: Delayed Draw | H3: 500000 | I3: 2020-01-09
A4: ECM Industries | B4: Term Loan A | C4: 2547631.23 | D4: 2020-01-03 | F4: OptConnect, LLC | G4: Revolver | H4: 96153.85 | I4: 2020-01-16
A5: EFC International | B5: Revolver | C5: 514138.82 | D5: 2020-02-07 | F5: OptConnect, LLC | G5: Term Loan A | H5: 903846.15 | I5: 2020-01-16
A6: EFC International | B6: Term Loan A | C6: 3485861.18 | D6: 2020-02-07 | F6: ICP Group | G6: Term Loan C | H6: 240318.42 | I6: 2020-01-18
A7: Mr. Greens | B7: Term Loan A | C7: 1000000 | D7: 2020-02-07 | F7: Lazer Spot, Inc. | G7: Revolver | H7: 156250 | I7: 2020-02-05
A8: Winzer Corporation | B8: Term Loan B | C8: 1000000 | D8: 2020-02-28 | F8: Lazer Spot, Inc. | G8: Term Loan A | H8: 765625 | I8: 2020-02-05
A9: Pacur | B9: Revolver | C9: 360000 | D9: 2020-03-02 | F9: Lazer Spot, Inc. | G9: Delayed Draw | H9: 78125 | I9: 2020-02-05
A10: Pacur | B10: Term Loan A | C10: 2100000 | D10: 2020-03-02 | F10: ECM Industries | G10: Revolver | H10: 150789.59 | I10: 2020-02-06
A11: Pacur | B11: Delayed Draw | C11: 540000 | D11: 2020-03-02 | F11: ECM Industries | G11: Term Loan A | H11: 849210.41 | I11: 2020-02-06
A12: Pugh Lubricants | B12: Term Loan A | C12: 1500000 | D12: 2020-03-02 | F12: TractManager | G12: Incremental Term Loan | H12: 38590.05 | I12: 2020-03-23
A13: HungerRush | B13: Revolver (CRS + Revention) | C13: 468750 | D13: 2020-03-18 | F13: Mr. Greens | G13: Term Loan B | H13: 14374.34 | I13: 2020-03-31
A14: HungerRush | B14: Term Loan A (CRS + Revention) | C14: 781250 | D14: 2020-03-18 | F14: Nuvei Technologies | G14: Term Loan A | H14: 105713.74 | I14: 2020-04-02
A15: Madison Safety and Flow LLC | B15: Revolver | C15: 375000 | D15: 2020-03-18 | F15: Mr. Greens | G15: Term Loan C | H15: 65530.47 | I15: 2020-08-12
A16: Madison Safety and Flow LLC | B16: Term Loan A | C16: 2625000 | D16: 2020-03-18
A17: TractManager | B17: Incremental Term Loan | C17: 77272.87 | D17: 2020-03-23
A18: Mr. Greens | B18: Term Loan B | C18: 28777.07 | D18: 2020-03-31
A19: Nuvei Technologies | B19: Term Loan A | C19: 317141.22 | D19: 2020-04-02
A20: Consolidated Label | B20: Revolver | C20: 675675.68 | D20: 2020-07-15
A21: Consolidated Label | B21: Term Loan A | C21: 4324324.32 | D21: 2020-07-15
A22: Painters Supply | B22: Term Loan | C22: 3000000 | D22: 2020-08-03
A23: Mr. Greens | B23: Term Loan C | C23: 131155.27 | D23: 2020-08-12
A24: Medbio | B24: Revolver | C24: 456521.74 | D24: 2020-08-31
A25: Medbio | B25: Term Loan A | C25: 3043478.26 | D25: 2020-08-31
A26: MB2 | B26: Delayed Draw | C26: 2000000 | D26: 2020-08-31
A27: Louisiana Fish Fry | B27: Term Loan A | C27: 3000000 | D27: 2020-09-24
A28: HemaSource | B28: Term Loan B | C28: 1369047.63 | D28: 2020-09-24
A29: Monroe Engineering | B29: Revolver | C29: 2577319.59 | D29: 2020-10-01
A30: Monroe Engineering | B30: Term Loan A | C30: 9922680.41 | D30: 2020-10-01
A31: Refresh Mental Health | B31: Term Loan A | C31: 2622950.82 | D31: 2020-10-09
A32: Refresh Mental Health | B32: Delayed Draw | C32: 2688524.59 | D32: 2020-10-09
A33: Refresh Mental Health | B33: Delayed Draw | C33: 2688524.59 | D33: 2020-10-09
A34: Hub Pen | B34: Term Loan A | C34: 119847.85 | D34: 2020-10-16
A35: SupplyOne | B35: Term Loan C | C35: 4500000 | D35: 2020-10-27
A36: Resonetics | B36: Term Loan B | C36: 5500000 | D36: 2020-11-02
A37: TeamVantage | B37: Revolver | C37: 1797752.81 | D37: 2020-10-30
A38: TeamVantage | B38: Term Loan A | C38: 8202247.19 | D38: 2020-10-30
A39: Lazer Spot, Inc. | B39: Term Loan A | C39: 1120000 | D39: 2020-11-04
A40: Lazer Spot, Inc. | B40: Delayed Draw #2 | C40: 2880000 | D40: 2020-11-04
A41: GSM Outdoors | B41: Revolver | C41: 2602744.67 | D41: 2020-11-16
A42: GSM Outdoors | B42: Term Loan A | C42: 14049276.67 | D42: 2020-11-16
A43: GSM Outdoors | B43: Delayed Draw | C43: 2347978.66 | D43: 2020-11-16
A44: Holley DPB | B44: Term Loan A | C44: 5000000 | D44: 2020-11-23
A45: Mobile Communications America | B45: Term Loan B | C45: 3750000 | D45: 2020-12-02
A46: Smile Brands | B46: Revolver | C46: 200000 | D46: 2020-12-03
A47: Smile Brands | B47: Term Loan B | C47: 3900000 | D47: 2020-12-03
A48: Smile Brands | B48: Delayed Draw | C48: 900000 | D48: 2020-12-03
A49: SavATree | B49: Term Loan A | C49: 4009090.91 | D49: 2020-12-09
A50: SavATree | B50: Delayed Draw | C50: 2990909.09 | D50: 2020-12-09
A51: Phoenix Rehab | B51: Term Loan B | C51: 192000 | D51: 2020-12-11
A52: Resource Label Group | B52: Term Loan B | C52: 624904.51 | D52: 2020-12-18
A53: Resource Label Group | B53: Delayed Draw | C53: 624904.51 | D53: 2020-12-18
A54: Sunvair | B54: Term Loan B | C54: 8096688.24 | D54: 2020-12-23
A55: Sunvair | B55: Term Loan C | C55: 1903311.76 | D55: 2020-12-23
A56: Presco - WF Add-on | B56: Term Loan B | C56: 3500000 | D56: 2020-12-30
A57: Shipley's Donuts | B57: Revolver | C57: 1041666.67 | D57: 2020-12-30
A58: Shipley's Donuts | B58: Term Loan A | C58: 9375000 | D58: 2020-12-30
A59: Shipley's Donuts | B59: Delayed Draw | C59: 1041666.67 | D59: 2020-12-30
A60: Shipley's Donuts | B60: Delayed Draw | C60: 1041666.66 | D60: 2020-12-30
A61: Monroe Engineering | B61: Term Loan B | C61: 2448453.61 | D61: 2020-12-31
A62: Resource Label Group | B62: Term Loan A | C62: 400160.97 | D62: 2021-01-06
A63: Solmetex | B63: Revolver | C63: 454545.45 | D63: 2021-01-22
A64: Solmetex | B64: Term Loan A | C64: 2545454.55 | D64: 2021-01-22
A65: GSM Outdoors - TruGlo Add-on | B65: Term Loan A | C65: 3500000 | D65: 2021-01-25
A66: Thrive | B66: Revolver | C66: 192307.69 | D66: 2021-02-04
A67: Thrive | B67: Term Loan A | C67: 2250000 | D67: 2021-02-04
A68: Thrive | B68: Delayed Draw | C68: 557692.31 | D68: 2021-02-04
A69: Painters Supply & Equipment | B69: Term Loan A | C69: 1000000 | D69: 2021-02-10
A70: Total Access Urgent Care | B70: Revolver | C70: 732206.87 | D70: 2021-02-12
A71: Total Access Urgent Care | B71: Term Loan A | C71: 12103379.41 | D71: 2021-02-12
A72: Total Access Urgent Care | B72: Delayed Draw | C72: 1464413.72 | D72: 2021-02-12
A73: TPC Wire & Cable Corp. | B73: Revolver | C73: 1200000 | D73: 2021-02-16
A74: TPC Wire & Cable Corp. | B74: Term Loan A | C74: 8400000 | D74: 2021-02-16
A75: TPC Wire & Cable Corp. | B75: Delayed Draw | C75: 2400000 | D75: 2021-02-16

Sheet Protective Advances (hidden)
A1: SMA | B1: Borrower Name | C1: Tranche | D1: Commitment Amount | E1: Date Closed
A2: SMA-SC | B2: TractManager | C2: Incremental Term Loan | D2: 77272.87 | E2: 2020-03-23
A3: SMA-SC | B3: Mr. Greens | C3: Term Loan B | D3: 28777.07 | E3: 2020-03-31
A4: SMA-SC NT | B4: TractManager | C4: Incremental Term Loan | D4: 38590.05 | E4: 2020-03-23
A5: SMA-SC NT | B5: Mr. Greens | C5: Term Loan B | D5: 14374.34 | E5: 2020-03-31
A6: SMA-CH | B6: Mr. Greens | C6: Term Loan B | D6: 46759.19 | E6: 2020-03-31
A7: SMA-CH | B7: America's Auto Auction | C7: Term Loan B | D7: 163005.51 | E7: 2020-05-20
A8: SMA-CC | B8: Mr. Greens | C8: Term Loan B | D8: 46759.19 | E8: 2020-03-31
A9: SMA-AF US | B9: Mr. Greens | C9: Term Loan B | D9: 8995.79 | E9: 2020-03-31
A10: SMA-AF JP | B10: Mr. Greens | C10: Term Loan B | D10: 44978.97 | E10: 2020-03-31
A11: SMA-AF JP | B11: America's Auto Auction | C11: Term Loan B | D11: 179717.7 | E11: 2020-05-20
A12: SMA-SC | B12: Mr. Greens | C12: Term Loan C | D12: 131155.27 | E12: 2020-08-12
A13: SMA-SC NT | B13: Mr. Greens | C13: Term Loan C | D13: 65530.47 | E13: 2020-08-12
A14: SMA-CC | B14: Mr. Greens | C14: Term Loan C | D14: 213115.53 | E14: 2020-08-12
A15: SMA-AF US | B15: Mr. Greens | C15: Term Loan C | D15: 40995.85 | E15: 2020-08-12
A16: SMA-AF JP | B16: Mr. Greens | C16: Term Loan C | D16: 204979.25 | E16: 2020-08-12
A17: SMA-CH | B17: Mr. Greens | C17: Term Loan C | D17: 213115.53 | E17: 2020-08-12
A18: SMA-CH | B18: Phoenix Rehab | D18: 364800 | E18: 2020-12-11
A19: SMA-SC | B19: TractManager | C19: Incremental Term Loan | D19: 77272.87 | E19: 2020-03-23
A20: SMA-SC | B20: Mr. Greens | C20: Term Loan B | D20: 28777.07 | E20: 2020-03-31
A21: SMA-SC | B21: Mr. Greens | C21: Term Loan C | D21: 131155.27 | E21: 2020-08-12
A22: SMA-SC | B22: Hub Pen | C22: Term Loan A | D22: 119847.85 | E22: 2020-10-16
A23: SMA-SC | B23: Phoenix Rehab | C23: Term Loan B | D23: 192000 | E23: 2020-12-11

Sheet Leverage (Current) (hidden)
A1: Facility ID | B1: Investor | C1: Net Senior Leverage | D1: Open Market Purchase
A2: 0000017124 | B2: SMA-CH | C2: 4.15
A3: 0000017106 | B3: SMA-CH | C3: 4.15
A4: 0000016178 | B4: SMA-CH | C4: 3.897742747
A5: 0000018801 | B5: SMA-CH | C5: 6.480366177
A6: 0000018819 | B6: SMA-CH | C6: 6.480366177
A7: 0000020308 | B7: SMA-CH | C7: 6.013199707
A8: 0000020287 | B8: SMA-CH | C8: 6.013199707
A9: 0000020293 | B9: SMA-CH | C9: 6.013199707
A10: 0000020007 | B10: SMA-CH | C10: 4.866330602
A11: 0000018248 | B11: SMA-CH | C11: 4.84
A12: 0000018232 | B12: SMA-CH | C12: 4.84
A13: 0000018189 | B13: SMA-CH | C13: 4.780369524
A14: 0000018196 | B14: SMA-CH | C14: 4.780369524
A15: 0000018683 | B15: SMA-CH | C15: 4.929983965
A16: 0000018692 | B16: SMA-CH | C16: 4.929983965
A17: 0000020743 | B17: SMA-CH | C17: 4.26
A18: 0000020737 | B18: SMA-CH | C18: 4.26
A19: 0000020752 | B19: SMA-CH | C19: 4.26
A20: 0000019014 | B20: SMA-CH | C20: 4.07
A21: 0000019004 | B21: SMA-CH | C21: 4.07
A22: 0000020871 | B22: SMA-CH | C22: 4.153938843
A23: 0000018593 | B23: SMA-CH | C23: 2.685642227
A24: 0000018608 | B24: SMA-CH | C24: 2.685642227
A25: 0000019148 | B25: SMA-CH | C25: 2.01
A26: 0000019132 | B26: SMA-CH | C26: 2.01
A27: 0000016594 | B27: SMA-CH | C27: 4.59
A28: 0000021264 | B28: SMA-CH | C28: 3.909082252
A29: 0000015253 | B29: SMA-CH | C29: 3.264285605
A30: 0000015262 | B30: SMA-CH | C30: 3.264285605
A31: 0000018773 | B31: SMA-CH | C31: 3.33
A32: 0000018654 | B32: SMA-CH | C32: 3.33
A33: 0000018767 | B33: SMA-CH | C33: 3.33
A34: 0000018024 | B34: SMA-CH | C34: 3.94
A35: 0000018037 | B35: SMA-CH | C35: 3.94
A36: 0000017016 | B36: SMA-CH | C36: 3.37
A37: 0000021652 | B37: SMA-CH | C37: 4.404114692
A38: 0000021668 | B38: SMA-CH | C38: 4.404114692
A39: 0000020955 | B39: SMA-CH | C39: 3.78838475
A40: 0000020948 | B40: SMA-CH | C40: 3.78838475
A41: 0000020979 | B41: SMA-CH | C41: 3.78838475
A42: 0000020961 | B42: SMA-CH | C42: 3.78838475
A43: 0000020932 | B43: SMA-CH | C43: 3.78838475
A44: 0000019847 | B44: SMA-CH | C44: 3.24
A45: 0000019834 | B45: SMA-CH | C45: 3.24
A46: 0000019824 | B46: SMA-CH | C46: 3.24
A47: 0000020411 | B47: SMA-CH | C47: 5.196015194
A48: 0000020405 | B48: SMA-CH | C48: 5.196015194
A49: 0000019968 | B49: SMA-CH | C49: 5.313367951
A50: 0000019981 | B50: SMA-CH | C50: 5.313367951
A51: 0000019975 | B51: SMA-CH | C51: 5.313367951
A52: 0000020022 | B52: SMA-CH | C52: 5.08
A53: 0000020038 | B53: SMA-CH | C53: 5.08
A54: 0000018574 | B54: SMA-CH | C54: 4.51
A55: 0000018587 | B55: SMA-CH | C55: 4.51
A56: 0000020662 | B56: SMA-CH | C56: 4.407883607
A57: 0000020678 | B57: SMA-CH | C57: 4.407883607
A58: 0000019636 | B58: SMA-CH | C58: 4.19
A59: 0000019629 | B59: SMA-CH | C59: 4.19
A60: 0000019611 | B60: SMA-CH | C60: 4.19
A61: 0000020482 | B61: SMA-CH | C61: 4.41
A62: 0000020501 | B62: SMA-CH | C62: 4.41
A63: 0000020498 | B63: SMA-CH | C63: 4.41
A64: 0000018484 | B64: SMA-CH | C64: 4.390421149
A65: 0000018497 | B65: SMA-CH | C65: 4.390421149
A66: 0000018549 | B66: SMA-CH | C66: 3.65
A67: 0000018556 | B67: SMA-CH | C67: 3.65
A68: 0000019071 | B68: SMA-CH | C68: 3.88
A69: 0000019065 | B69: SMA-CH | C69: 3.88
A70: 0000018947 | B70: SMA-CH | C70: 4.49
A71: 0000018953 | B71: SMA-CH | C71: 4.49
A72: 0000021578 | B72: SMA-CH | C72: 2.991358298
A73: 0000021553 | B73: SMA-CH | C73: 2.991358298
A74: 0000021585 | B74: SMA-CH | C74: 2.991358298
A75: 0000021727 | B75: SMA-CH | C75: 4.26
A76: 0000021817 | B76: SMA-CH | C76: 3.729646138
A77: 0000021804 | B77: SMA-CH | C77: 3.729646138
A78: 0000021796 | B78: SMA-CH | C78: 3.729646138
A79: 0000021832 | B79: SMA-CH | C79: 6.05
A80: 0000021848 | B80: SMA-CH | C80: 6.05
A81: 0000021823 | B81: SMA-CH | C81: 6.05
A82: 0000022786 | B82: SMA-CH | C82: 5.354295351
A83: 0000022779 | B83: SMA-CH | C83: 5.354295351
A84: 0000022732 | B84: SMA-CH | C84: 4.650179666
A85: 0000022748 | B85: SMA-CH | C85: 4.650179666
A86: 0000022813 | B86: SMA-CH | C86: 4.944500997
A87: 0000022822 | B87: SMA-CH | C87: 4.944500997
A88: 0000023083 | B88: SMA-CH | C88: 3.931713991
A89: 0000023077 | B89: SMA-CH | C89: 3.931713991
A90: 0000023129 | B90: SMA-CH | C90: 4.148497381
A91: 0000023136 | B91: SMA-CH | C91: 4.148497381
A92: 0000023111 | B92: SMA-CH | C92: 4.148497381
A93: 0000023015 | B93: SMA-CH | C93: 3.949308432
A94: 0000023105 | B94: SMA-CH | C94: 3.949308432
A95: 0000023452 | B95: SMA-CH | C95: 5.46
A96: 0000023468 | B96: SMA-CH | C96: 5.46
A97: 0000023475 | B97: SMA-CH | C97: 5.46
A98: 0000023533 | B98: SMA-CH | C98: 4.26
A99: 0000016576 | B99: SMA-CH | C99: 4.59
A100: 0000024036 | B100: SMA-CH | C100: 2.685642227
A101: 0000024098 | B101: SMA-CH | C101: 4.84
A102: 0000024082 | B102: SMA-CH | C102: 4.84
A103: 0000024101 | B103: SMA-CH | C103: 4.84
A104: 0000024134 | B104: SMA-CH | C104: 4.03
A105: 0000024126 | B105: SMA-CH | C105: 4.03
A106: 0000024144 | B106: SMA-CH | C106: 4.03
A107: 0000024262 | B107: SMA-CH | C107: 4.13
A108: 0000024253 | B108: SMA-CH | C108: 4.13
A109: 0000024216 | B109: SMA-CH | C109: 5.07
A110: 0000024209 | B110: SMA-CH | C110: 5.07
A111: 0000024188 | B111: SMA-CH | C111: 4.31
A112: 0000024172 | B112: SMA-CH | C112: 4.31
A113: 0000024306 | B113: SMA-CH | C113: 4.14
A114: 0000024285 | B114: SMA-CH | C114: 4.14
A115: 0000024291 | B115: SMA-CH | C115: 4.14
A116: 0000024352 | B116: SMA-CH | C116: 3.46
A117: 0000024343 | B117: SMA-CH | C117: 3.46
A118: 0000024465 | B118: SMA-CH | C118: 3
A119: 0000024471 | B119: SMA-CH | C119: 3
A120: 0000024613 | B120: SMA-CH | C120: 5.15
A121: 0000024607 | B121: SMA-CH | C121: 5.15
A122: 0000024594 | B122: SMA-CH | C122: 5.15
A123: 0000024651 | B123: SMA-CH | C123: 3.73
A124: 0000024645 | B124: SMA-CH | C124: 3.73
A125: 0000024774 | B125: SMA-CH | C125: 5.42
A126: 0000024784 | B126: SMA-CH | C126: 5.42
A127: 0000024802 | B127: SMA-CH | C127: 5.354295351
A128: 0000024915 | B128: SMA-CH | C128: 4.6
A129: 0000024954 | B129: SMA-CH | C129: 3.949308432
A130: 0000025057 | B130: SMA-CH | C130: 6.013199707
A131: 0000025072 | B131: SMA-CH | C131: 3.897742747
A132: 0000025162 | B132: SMA-CH | C132: 3.949308432
A133: 0000025417 | B133: SMA-CH | C133: 3.13
A134: 0000025404 | B134: SMA-CH | C134: 3.13
A135: 0000025365 | B135: SMA-CH | C135: 6.480366177
A136: 0000025507 | B136: SMA-CH | C136: 3.65
A137: 0000025551 | B137: SMA-CH | C137: 4
A138: 0000025569 | B138: SMA-CH | C138: 4
A139: 0000025545 | B139: SMA-CH | C139: 4.51
A140: 0000025584 | B140: SMA-CH | C140: 4.84
A141: 0000025697 | B141: SMA-CH | C141: 4.41
A142: 0000025684 | B142: SMA-CH | C142: 4.41
A143: 0000025594 | B143: SMA-CH | C143: 5.07
A144: 0000025628 | B144: SMA-CH | C144: 4.92
A145: 0000025635 | B145: SMA-CH | C145: 4.92
A146: 0000025641 | B146: SMA-CH | C146: 4.92
A147: 0000025725 | B147: SMA-CH | C147: 4.19
A148: 0000025731 | B148: SMA-CH | C148: 4.19
A149: 0000025749 | B149: SMA-CH | C149: 3.989203004
A150: 0000025756 | B150: SMA-CH | C150: 3.989203004
A151: 0000025764 | B151: SMA-CH | C151: 3.78838475
A152: 0000025815 | B152: SMA-CH | C152: 3.75
A153: 0000025774 | B153: SMA-CH | C153: 3.75
A154: 0000025864 | B154: SMA-CH | C154: 3.247863248
A155: 0000025854 | B155: SMA-CH | C155: 4.03
A156: 0000025905 | B156: SMA-CH | C156: 2.966273923
A157: 0000025929 | B157: SMA-CH | C157: 2.966273923
A158: 0000025911 | B158: SMA-CH | C158: 2.966273923
A159: 0000025936 | B159: SMA-CH | C159: 2.966273923
A160: 0000025944 | B160: SMA-CH | C160: 3.13
A161: 0000025883 | B161: SMA-CH | C161: 3.900515536
A162: 0000025892 | B162: SMA-CH | C162: 3.900515536
A163: 0000025877 | B163: SMA-CH | C163: 3.900515536
A164: 0000026034 | B164: SMA-CH | C164: 2.213892307
A165: 0000026137 | B165: SMA-CH | C165: 3.36
A166: 0000026124 | B166: SMA-CH | C166: 3.36
A167: 0000026143 | B167: SMA-CH | C167: 3.36
A168: 0000026091 | B168: SMA-CH | C168: 4.94
A169: 0000026106 | B169: SMA-CH | C169: 4.94
A170: 0000026114 | B170: SMA-CH | C170: 4.94
A171: 0000026175 | B171: SMA-CH | C171: 4.5
A172: 0000026168 | B172: SMA-CH | C172: 4.5
A173: 0000026152 | B173: SMA-CH | C173: 4.5
A174: 16929 | B174: SMA-AF US | C174: 5.56
A175: 16905 | B175: SMA-AF US | C175: 5.56
A176: 16911 | B176: SMA-AF US | C176: 5.56
A177: 16793 | B177: SMA-AF US | C177: 3.83
A178: 16808 | B178: SMA-AF US | C178: 3.83
A179: 16954 | B179: SMA-AF US | C179: 4.49
A180: 16967 | B180: SMA-AF US | C180: 4.49
A181: 17199 | B181: SMA-AF US | C181: 3.24
A182: 17181 | B182: SMA-AF US | C182: 3.24
A183: 17214 | B183: SMA-AF US | C183: 4.09
A184: 17265 | B184: SMA-AF US | C184: 4.62
A185: 17271 | B185: SMA-AF US | C185: 4.62
A186: 17258 | B186: SMA-AF US | C186: 3.72
A187: 17323 | B187: SMA-AF US | C187: 3.14
A188: 17332 | B188: SMA-AF US | C188: 3.14
A189: 17379 | B189: SMA-AF US | C189: 3.67
A190: 17355 | B190: SMA-AF US | C190: 3.67
A191: 17438 | B191: SMA-AF US | C191: 3.96
A192: 17451 | B192: SMA-AF US | C192: 3.96
A193: 17445 | B193: SMA-AF US | C193: 3.96
A194: 19251 | B194: SMA-AF US | C194: 4.158342302
A195: 19276 | B195: SMA-AF US | C195: 4.158342302
A196: 17715 | B196: SMA-AF US | C196: 4.17
A197: 17708 | B197: SMA-AF US | C197: 4.17
A198: 17754 | B198: SMA-AF US | C198: 4.03
A199: 17721 | B199: SMA-AF US | C199: 4.03
A200: 17898 | B200: SMA-AF US | C200: 4.19
... 298 more rows

Sheet Portfolio Allocations (hidden)
A1: Controls
A5: Details
B7: Deal Name | D7: n/a
B8: Description | D8: n/a
B9: Net Senior Leverage | D9: n/a
B10: Protective Advances | D10: n/a
B11: Open Market | D11: n/a
B12: Sponsor | D12: =IFERROR(VLOOKUP(dName,tblListOfDeals[],2,0),"n/a") -> n/a
B13: Industry | D13: =IFERROR(VLOOKUP(dName,tblListOfDeals[],3,0),"n/a") -> n/a
B14: Target Date | D14: n/a
A16: Allocations
D18: Revolver | F18: Term Loan | H18: DDTL | J18: DDTL 2 | L18: Totals | N18: Cur. Pro Rata % | P18: Inc. Pro Rata %
B19: NXT | D19: Unfunded | F19: Unfunded | H19: Unfunded | J19: Unfunded | N19: =IFERROR(L85/L90,"-") -> - | P19: =IFERROR(L19/$L$36,"-") -> -
A20: =L20 -> 0 | B20: SLF I | D20: =IF($L20>0,"Unfunded",0) -> 0 | F20: =IF(L20>0,IF($P$35>0.75,$P$35,0.85),0) -> 0 | H20: =IF($L20>0,"Unfunded",0) -> 0 | J20: 0 | N20: =IFERROR(L106/$L$132,"-") -> - | P20: -
A21: 0 | B21: Potential SLF V | D21: 0 | F21: =IF(L21>0,IF($P$35>0.75,$P$35,0.75),0) -> 0 | H21: 0 | J21: 0 | N21: =IFERROR(L118/$L$133,"-") -> - | P21: -
A22: 0 | B22: Potential SLF VI L | D22: 0 | F22: 0 | H22: 0 | J22: 0 | N22: =IFERROR(L121/$L$133,"-") -> - | P22: -
A23: =L23 -> 0 | B23: Potential SLF VI UL | D23: 0 | F23: 0 | H23: 0 | J23: 0 | N23: =IFERROR(L124/$L$133,"-") -> - | P23: -
B24: Potential SLF VII | D24: 0 | F24: 0 | H24: 0 | J24: 0 | N24: =IFERROR(L127/$L$133,"-") -> - | P24: -
B25: Potential SLF VIII | D25: 0 | F25: 0 | H25: 0 | J25: 0 | N25: =IFERROR(L130/$L$133,"-") -> - | P25: -
A26: =L26 -> 0 | B26: SMA-A | D26: 0 | F26: 0 | H26: 0 | J26: 0 | N26: =IFERROR(L92/$L$133,"-") -> - | P26: -
A27: 0 | B27: SMA-SC | D27: 0 | F27: 0 | H27: 0 | J27: 0 | N27: =IFERROR((L100+L101)/$L$133,"-") -> - | P27: -
A28: 0 | B28: SMA-SC NT | D28: 0 | F28: 0 | H28: 0 | J28: 0 | N28: =IFERROR((L102+L103)/$L$133,"-") -> - | P28: -
A29: 0 | B29: SMA-AF | D29: 0 | F29: 0 | H29: 0 | J29: 0 | N29: =IFERROR((L95+L98)/$L$133,"-") -> - | P29: - | R29: Aflac Distribution
A30: 0 | B30: SMA-CH | D30: 0 | F30: 0 | H30: 0 | J30: 0 | N30: =IFERROR(L99/$L$133,"-") -> - | P30: - | R30: AF-US | T30: =1/6 -> 0.1666666667
A31: 0 | B31: SMA-CC | D31: 0 | F31: 0 | H31: 0 | J31: 0 | N31: =IFERROR(L104/$L$133,"-") -> - | P31: - | R31: AF-JAP | T31: =1-T30 -> 0.8333333333
B32: SMA-VG | D32: 0 | F32: 0 | H32: 0 | J32: 0 | N32: =IFERROR(L105/$L$133,"-") -> - | P32: -
B33: SMA-2 | D33: 0 | F33: 0 | H33: 0 | J33: 0 | N33: =IFERROR(L131/$L$133,"-") -> - | P33: -
B34: SMA-3 | D34: 0 | F34: 0 | H34: 0 | J34: 0 | N34: =IFERROR(L132/$L$133,"-") -> - | P34: -
B35: NXT Underwrite | D35: 0 | F35: 0 | H35: 0 | J35: 0 | L35: =SUM(D35:J35) -> 0 | P35: =IFERROR(F35/L35,0) -> 0
B36: NXT Hold | D36: =IFERROR(D35/$L$35,0)*$L$36 -> 0 | F36: =IFERROR(F35/$L$35,0)*$L$36 -> 0 | H36: =IFERROR(H35/$L$35,0)*$L$36 -> 0 | J36: =IFERROR(J35/L$35,0)*L$36 -> 0 | L36: 0 | N36: =L36-SUM(L19:L34) -> 0 | P36: =IFERROR(F36/L36,0) -> 0
B37: Unfunded | D37: =IFERROR(D36/(SUM($D$36:$K$36)-$F$36),0) -> 0 | F37: 0 | H37: =IFERROR(H36/(SUM($D$36:$K$36)-$F$36),0) -> 0 | J37: =IFERROR(J36/(SUM($D$36:$K$36)-$F$36),0) -> 0 | N37: To Allocate | P37: Funded
A39: Hypo Results
B41: SLF I | D41: =_xlfn.CONCAT("Passing ", COUNTIF(SummaryKaiser[Pass/Fail],"Pass"), "; Failing ", COUNTIF(SummaryKaiser[Pass/Fail],"Fail"), " (", _xlfn.TEXTJOIN(", ",TRUE,IF(SummaryKaiser[Pass/Fail]="Fail",SummaryKaiser[Constraint],"")),")" ) -> Passing 4; Failing 0 ()
B42: SMA-SC | D42: =_xlfn.CONCAT("Passing ", COUNTIF(SummarySwiss[Pass/Fail],"Pass"), "; Failing ", COUNTIF(SummarySwiss[Pass/Fail],"Fail"), " (", _xlfn.TEXTJOIN(", ",TRUE,IF(SummarySwiss[Pass/Fail]="Fail",SummarySwiss[Constraint],"")),")" ) -> Passing 0; Failing 1 (Max Commitment)
B43: SMA-SC NT | D43: =_xlfn.CONCAT("Passing ", COUNTIF(SummarySwissNT[Pass/Fail],"Pass"), "; Failing ", COUNTIF(SummarySwissNT[Pass/Fail],"Fail"), " (", _xlfn.TEXTJOIN(", ",TRUE,IF(SummarySwissNT[Pass/Fail]="Fail",SummarySwissNT[Constraint],"")),")" ) -> Passing 1; Failing 0 ()
B44: SMA-AF US | D44: =_xlfn.CONCAT("Passing ", COUNTIF(SummaryAFUS[Pass/Fail],"Pass"), "; Failing ", COUNTIF(SummaryAFUS[Pass/Fail],"Fail"), " (", _xlfn.TEXTJOIN(", ",TRUE,IF(SummaryAFUS[Pass/Fail]="Fail",SummaryAFUS[Constraint],"")),")" ) -> Passing 9; Failing 0 ()
B45: SMA-AF JAP | D45: =_xlfn.CONCAT("Passing ", COUNTIF(SummaryAFJAP[Pass/Fail],"Pass"), "; Failing ", COUNTIF(SummaryAFJAP[Pass/Fail],"Fail"), " (", _xlfn.TEXTJOIN(", ",TRUE,IF(SummaryAFJAP[Pass/Fail]="Fail",SummaryAFJAP[Constraint],"")),")" ) -> Passing 9; Failing 0 ()
B46: SMA-CH | D46: =_xlfn.CONCAT("Passing ", COUNTIF(SummaryChubb[Pass/Fail],"Pass"), "; Failing ", COUNTIF(SummaryChubb[Pass/Fail],"Fail"), " (", _xlfn.TEXTJOIN(", ",TRUE,IF(SummaryChubb[Pass/Fail]="Fail",SummaryChubb[Constraint],"")),")" ) -> Passing 8; Failing 0 ()
B47: SMA-CC | D47: -
B48: Results current as of: | D48: Not yet submitted to hypo.
A50: Portfolio Allocations Report
B52: Credit Facility | R52: Fees
D54: =D18 -> Revolver | F54: =F18 -> Term Loan | H54: =H18 -> DDTL | J54: =J18 -> DDTL 2 | L54: Totals | N54: Funded | P54: Unfunded | T54: Fee | V54: $ Amt
B55: NXT | D55: =($L55-$F55)*IF(D19="Unfunded",D$37,D19) -> 0 | F55: =$F$36-SUM(IF(LEFT($B56:$B72,1)="*",0,F56:F72)) -> 0 | H55: =($L55-$F55)*IF(H19="Unfunded",H$37,H19) -> 0 | J55: =($L55-$F55)*IF(J19="Unfunded",J$37,J19) -> 0 | L55: =L19 -> 0 | N55: =IFERROR(F55/SUM(D55:K55),"n/a") -> n/a | P55: =IFERROR(1-N55,"n/a") -> n/a | R55: Closing | T55: 0 | V55: =+T55*$L$19 -> 0
A56: =L56 -> 0 | B56: SLF I | D56: 0 | F56: =L56*IF(F20="Unfunded",$F$37,F20) -> 0 | H56: 0 | J56: 0 | L56: 0 | N56: =IFERROR(F56/SUM(D56:K56),"n/a") -> n/a | P56: =IFERROR(1-N56,"n/a") -> n/a | R56: Structuring | T56: 0 | V56: =+T56*$L$36 -> 0
A57: 0 | B57: Potential SLF V | D57: 0 | F57: 0 | H57: 0 | J57: 0 | L57: 0 | N57: n/a | P57: n/a | R57: Agency | T57: 0 | V57: =T57*$L$35 -> 0
A58: 0 | B58: Potential SLF VI L | D58: 0 | F58: 0 | H58: 0 | J58: 0 | L58: 0 | N58: n/a | P58: n/a | R58: NXT Fees | V58: =SUM(V55:V57) -> 0
A59: =L59 -> 0 | B59: Potential SLF VI UL | D59: 0 | F59: 0 | H59: 0 | J59: 0 | L59: 0 | N59: n/a | P59: n/a
B60: Potential SLF VII | D60: 0 | F60: 0 | H60: 0 | J60: 0 | L60: 0 | N60: n/a | P60: n/a
B61: Potential SLF VIII | D61: 0 | F61: 0 | H61: 0 | J61: 0 | L61: 0 | N61: n/a | P61: n/a | R61: ="Issues" & IF(SUMPRODUCT(1*(R62:R75<>""))=0," (none)","") -> Issues (none)
A62: =L62 -> 0 | B62: SMA-A | D62: 0 | F62: 0 | H62: 0 | J62: 0 | L62: 0 | N62: n/a | P62: n/a | R62: =IF(SUMPRODUCT(1*(D56:L57>D$55:L$55))>0,"SLF I and SLF V can neither have commitments greater than NXT's.","") -> 
A63: 0 | B63: SMA-SC | D63: 0 | F63: 0 | H63: 0 | J63: 0 | L63: 0 | N63: n/a | P63: n/a
A64: 0 | B64: SMA-SC NT | D64: 0 | F64: 0 | H64: 0 | J64: 0 | L64: 0 | N64: n/a | P64: n/a
A65: =A67 -> 0 | B65: *SMA-AF US | D65: 0 | F65: =$L65*IF(F29="Unfunded",F$37,F29) -> 0 | H65: 0 | J65: =(L65-$F65)*IF(J29="Unfunded",J$37,J29) -> 0 | L65: =$L$29*AFUS_Portion -> 0 | N65: n/a | P65: n/a
A66: =A67 -> 0 | B66: *SMA-AF JAP | D66: =($L66-$F66)*IF(D29="Unfunded",D$37,D29) -> 0 | F66: =$L66*IF(F29="Unfunded",F$37,F29) -> 0 | H66: =($L66-$F66)*IF(H29="Unfunded",H$37,H29) -> 0 | J66: =(L66-$F66)*IF(J30="Unfunded",J$37,J30) -> 0 | L66: =L$67-$L$65 -> 0 | N66: n/a | P66: n/a
A67: 0 | B67: SMA-AF | D67: =SUM(D65:D66) -> 0 | F67: =SUM(F65:F66) -> 0 | H67: =SUM(H65:H66) -> 0 | J67: =SUM(J65:J66) -> 0 | L67: =L29 -> 0 | N67: n/a | P67: n/a
A68: 0 | B68: SMA-CH | D68: =($L68-$F68)*IF(D30="Unfunded",D$37,D30) -> 0 | F68: =L68*IF(F30="Unfunded",$F$37,F30) -> 0 | H68: =($L68-$F68)*IF(H30="Unfunded",H$37,H30) -> 0 | J68: =($L68-$F68)*IF(J30="Unfunded",J$37,J30) -> 0 | L68: 0 | N68: n/a | P68: n/a
A69: 0 | B69: SMA-CC | D69: =($L69-$F69)*IF(D31="Unfunded",D$37,D31) -> 0 | F69: =L69*IF(F31="Unfunded",$F$37,F31) -> 0 | H69: =($L69-$F69)*IF(H31="Unfunded",H$37,H31) -> 0 | J69: =($L69-$F69)*IF(J31="Unfunded",J$37,J31) -> 0 | L69: 0 | N69: n/a | P69: n/a
B70: SMA-VG | D70: =($L70-$F70)*IF(D32="Unfunded",D$37,D32) -> 0 | F70: =L70*IF(F32="Unfunded",$F$37,F32) -> 0 | H70: =($L70-$F70)*IF(H32="Unfunded",H$37,H32) -> 0 | J70: =($L70-$F70)*IF(J32="Unfunded",J$37,J32) -> 0 | L70: 0 | N70: n/a | P70: n/a
B71: SMA-2 | D71: =($L71-$F71)*IF(D33="Unfunded",D$37,D33) -> 0 | F71: =L71*IF(F33="Unfunded",$F$37,F33) -> 0 | H71: =($L71-$F71)*IF(H33="Unfunded",H$37,H33) -> 0 | J71: =($L71-$F71)*IF(J33="Unfunded",J$37,J33) -> 0 | L71: 0 | N71: n/a | P71: n/a
B72: SMA-3 | D72: =($L72-$F72)*IF(D34="Unfunded",D$37,D34) -> 0 | F72: =L72*IF(F34="Unfunded",$F$37,F34) -> 0 | H72: =($L72-$F72)*IF(H34="Unfunded",H$37,H34) -> 0 | J72: =($L72-$F72)*IF(J34="Unfunded",J$37,J34) -> 0 | L72: 0 | N72: n/a | P72: n/a
B73: NXT and Affiliates | D73: =SUM(IF(LEFT($B55:$B72,1)="*",0,D55:D72)) -> 0 | F73: =SUM(IF(LEFT($B55:$B72,1)="*",0,F55:F72)) -> 0 | H73: =SUM(IF(LEFT($B55:$B72,1)="*",0,H55:H72)) -> 0 | J73: =SUM(IF(LEFT($B55:$B72,1)="*",0,J55:J72)) -> 0 | L73: =SUM(IF(LEFT($B55:$B72,1)="*",0,L55:L72)) -> 0 | N73: n/a | P73: n/a
B74: Balance to Syndicate | D74: =D75-D73 -> 0 | F74: =F75-F73 -> 0 | H74: =H75-H73 -> 0 | J74: =J75-J73 -> 0 | L74: =SUM(D74:K74) -> 0 | N74: n/a | P74: n/a
B75: NXT Underwrite | D75: =D35 -> 0 | F75: =F35 -> 0 | H75: =H35 -> 0 | J75: =J35 -> 0 | L75: =SUM(D75:K75) -> 0 | N75: n/a | P75: n/a
A80: Pro Forma
B82: Current Commitments | N82: Incremental Commitments | X82: Pro Forma
D84: =D54 -> Revolver | F84: =F54 -> Term Loan | H84: =H54 -> DDTL | J84: =J54 -> DDTL 2 | L84: Totals | N84: =D84 -> Revolver | P84: =F84 -> Term Loan | R84: =H84 -> DDTL | T84: =J84 -> DDTL 2 | V84: Totals | X84: =N84 -> Revolver | Z84: =P84 -> Term Loan | AB84: =R84 -> DDTL | AD84: =T84 -> DDTL 2 | AF84: Totals
B85: NXT CAPITAL, LLC | D85: =SUMIFS($C$158:$C$368, $A$158:$A$368, $B85, $B$158:$B$368, D$84) -> 0 | F85: =SUMIFS($C$158:$C$368, $A$158:$A$368, $B85, $B$158:$B$368, F$84) -> 0 | H85: =SUMIFS($C$158:$C$368, $A$158:$A$368, $B85, $B$158:$B$368, H$84) -> 0 | J85: =SUMIFS($C$158:$C$368, $A$158:$A$368, $B85, $B$158:$B$368, J$84) -> 0 | L85: =SUM(D85:K85) -> 0 | N85: =IF(ISNUMBER(D19),D19,0)*$V$85 -> 0 | P85: =IF(ISNUMBER(F19),F19,0)*$V$85 -> 0 | R85: =IF(ISNUMBER(H19),H19,0)*$V$85 -> 0 | T85: =IF(ISNUMBER(J19),J19,0)*$V$85 -> 0 | V85: =L19 -> 0 | X85: =N85+D85 -> 0 | Z85: =P85+F85 -> 0 | AB85: =R85+H85 -> 0 | AD85: =T85+J85 -> 0 | AF85: =SUM(X85:AE85) -> 0
B86: NXT CLO 2015-1 | D86: =SUMIFS($C$158:$C$368, $A$158:$A$368, $B86, $B$158:$B$368, D$84) -> 0 | F86: =SUMIFS($C$158:$C$368, $A$158:$A$368, $B86, $B$158:$B$368, F$84) -> 0 | H86: =SUMIFS($C$158:$C$368, $A$158:$A$368, $B86, $B$158:$B$368, H$84) -> 0 | J86: =SUMIFS($C$158:$C$368, $A$158:$A$368, $B86, $B$158:$B$368, J$84) -> 0 | L86: 0 | V86: =SUM(N86:U86) -> 0 | X86: =N86+D86 -> 0 | Z86: 0 | AB86: 0 | AD86: 0 | AF86: =SUM(X86:AE86) -> 0
B87: NXT CLO 2017-1 | D87: =SUMIFS($C$158:$C$368, $A$158:$A$368, $B87, $B$158:$B$368, D$84) -> 0 | F87: =SUMIFS($C$158:$C$368, $A$158:$A$368, $B87, $B$158:$B$368, F$84) -> 0 | H87: =SUMIFS($C$158:$C$368, $A$158:$A$368, $B87, $B$158:$B$368, H$84) -> 0 | J87: =SUMIFS($C$158:$C$368, $A$158:$A$368, $B87, $B$158:$B$368, J$84) -> 0 | L87: 0 | V87: 0 | X87: 0 | Z87: 0 | AB87: 0 | AD87: 0 | AF87: 0
B88: NXT CLO 2017-2 | D88: =SUMIFS($C$158:$C$368, $A$158:$A$368, $B88, $B$158:$B$368, D$84) -> 0 | F88: =SUMIFS($C$158:$C$368, $A$158:$A$368, $B88, $B$158:$B$368, F$84) -> 0 | H88: =SUMIFS($C$158:$C$368, $A$158:$A$368, $B88, $B$158:$B$368, H$84) -> 0 | J88: =SUMIFS($C$158:$C$368, $A$158:$A$368, $B88, $B$158:$B$368, J$84) -> 0 | L88: 0 | V88: 0 | X88: 0 | Z88: 0 | AB88: 0 | AD88: 0 | AF88: 0
B89: NXT CLO 2020-1 | D89: =SUMIFS($C$158:$C$368, $A$158:$A$368, $B89, $B$158:$B$368, D$84) -> 0 | F89: =SUMIFS($C$158:$C$368, $A$158:$A$368, $B89, $B$158:$B$368, F$84) -> 0 | H89: =SUMIFS($C$158:$C$368, $A$158:$A$368, $B89, $B$158:$B$368, H$84) -> 0 | J89: =SUMIFS($C$158:$C$368, $A$158:$A$368, $B89, $B$158:$B$368, J$84) -> 0 | L89: 0 | V89: 0 | X89: 0 | Z89: 0 | AB89: 0 | AD89: 0 | AF89: 0
B90: Subtotal NXT Balance Sheet | D90: =SUM(D85:D89) -> 0 | F90: =SUM(F85:F89) -> 0 | H90: =SUM(H85:H89) -> 0 | J90: =SUM(J85:J89) -> 0 | L90: =SUM(L85:L89) -> 0 | N90: =D55 -> 0 | P90: =F55 -> 0 | R90: =H55 -> 0 | T90: =J55 -> 0 | V90: =SUM(N90:U90) -> 0 | X90: =SUM(X85:X89) -> 0 | Z90: =SUM(Z85:Z89) -> 0 | AB90: =SUM(AB85:AB89) -> 0 | AD90: =SUM(AD85:AD89) -> 0 | AF90: =SUM(X90:AE90) -> 0
A92: =AF92 -> 0 | B92: SMA-A | D92: =SUMIFS($C$158:$C$368, $A$158:$A$368, $B92, $B$158:$B$368, D$84) -> 0 | F92: =SUMIFS($C$158:$C$368, $A$158:$A$368, $B92, $B$158:$B$368, F$84) -> 0 | H92: =SUMIFS($C$158:$C$368, $A$158:$A$368, $B92, $B$158:$B$368, H$84) -> 0 | J92: =SUMIFS($C$158:$C$368, $A$158:$A$368, $B92, $B$158:$B$368, J$84) -> 0 | L92: =SUM(D92:K92) -> 0 | N92: =D62 -> 0 | P92: =F62 -> 0 | R92: =H62 -> 0 | T92: =J62 -> 0 | V92: =SUM(N92:U92) -> 0 | X92: 0 | Z92: 0 | AB92: 0 | AD92: 0 | AF92: 0
A93: =A95 -> 0 | B93: *SMA-AF US, Commitment | L93: 0 | N93: =IF(AND($L$93=0,$L$96<5000000),0,D65) -> 0 | P93: =IF(AND($L$93=0,$L$96<5000000),0,F65) -> 0 | R93: =IF(AND($L$93=0,$L$96<5000000),0,H65) -> 0 | T93: =IF(AND($L$93=0,$L$96<5000000),0,J65) -> 0 | V93: 0 | X93: 0 | Z93: 0 | AB93: 0 | AD93: 0 | AF93: 0
A94: =A95 -> 0 | B94: *SMA-AF US, Crosstrade | L94: 0 | N94: 0 | P94: 0 | R94: 0 | T94: 0 | V94: 0 | X94: 0 | Z94: 0 | AB94: 0 | AD94: 0 | AF94: 0
A95: =AF95 -> 0 | B95: SMA-AF US | D95: =SUMIFS($C$158:$C$368, $A$158:$A$368, $B95, $B$158:$B$368, D$84) -> 0 | F95: =SUMIFS($C$158:$C$368, $A$158:$A$368, $B95, $B$158:$B$368, F$84) -> 0 | H95: =SUMIFS($C$158:$C$368, $A$158:$A$368, $B95, $B$158:$B$368, H$84) -> 0 | J95: =SUMIFS($C$158:$C$368, $A$158:$A$368, $B95, $B$158:$B$368, J$84) -> 0 | L95: 0 | N95: =SUM(N93:N94) -> 0 | P95: =SUM(P93:P94) -> 0 | R95: =SUM(R93:R94) -> 0 | T95: =SUM(T93:T94) -> 0 | V95: 0 | X95: 0 | Z95: 0 | AB95: 0 | AD95: 0 | AF95: 0
A96: =A98 -> 0 | B96: *SMA-AF JAP, Commitment | L96: 0 | N96: =IF(AND($L$93=0,$L$96<5000000),SUM(D65:D66),D66) -> 0 | P96: =IF(AND($L$93=0,$L$96<5000000),SUM(F65:F66),F66) -> 0 | R96: =IF(AND($L$93=0,$L$96<5000000),SUM(H65:H66),H66) -> 0 | T96: =IF(AND($L$93=0,$L$96<5000000),SUM(J65:J66),J66) -> 0 | V96: 0 | X96: 0 | Z96: 0 | AB96: 0 | AD96: 0 | AF96: 0
A97: =A98 -> 0 | B97: *SMA-AF JAP, Crosstrade | L97: 0 | N97: 0 | P97: 0 | R97: 0 | T97: 0 | V97: 0 | X97: 0 | Z97: 0 | AB97: 0 | AD97: 0 | AF97: 0
A98: 0 | B98: SMA-AF JAP | D98: =SUMIFS($C$158:$C$368, $A$158:$A$368, $B98, $B$158:$B$368, D$84) -> 0 | F98: =SUMIFS($C$158:$C$368, $A$158:$A$368, $B98, $B$158:$B$368, F$84) -> 0 | H98: =SUMIFS($C$158:$C$368, $A$158:$A$368, $B98, $B$158:$B$368, H$84) -> 0 | J98: =SUMIFS($C$158:$C$368, $A$158:$A$368, $B98, $B$158:$B$368, J$84) -> 0 | L98: 0 | N98: =SUM(N96:N97) -> 0 | P98: =SUM(P96:P97) -> 0 | R98: =SUM(R96:R97) -> 0 | T98: =SUM(T96:T97) -> 0 | V98: 0 | X98: 0 | Z98: 0 | AB98: 0 | AD98: 0 | AF98: 0
A99: 0 | B99: SMA-CH | D99: 0 | F99: 0 | H99: 0 | J99: 0 | L99: 0 | N99: =D68 -> 0 | P99: =F68 -> 0 | R99: =H68 -> 0 | T99: =J68 -> 0 | V99: 0 | X99: 0 | Z99: 0 | AB99: 0 | AD99: 0 | AF99: 0
A100: 0 | B100: SMA-SC | D100: 0 | F100: 0 | H100: 0 | J100: 0 | L100: 0 | N100: =D63 -> 0 | P100: =F63 -> 0 | R100: =H63 -> 0 | T100: =J63 -> 0 | V100: 0 | X100: 0 | Z100: 0 | AB100: 0 | AD100: 0 | AF100: 0
A101: 0 | B101: SMA-SC C | D101: 0 | F101: 0 | H101: 0 | J101: 0 | L101: 0 | N101: 0 | P101: 0 | R101: 0 | T101: 0 | V101: 0 | X101: 0 | Z101: 0 | AB101: 0 | AD101: 0 | AF101: 0
A102: 0 | B102: SMA-SC NT | D102: 0 | F102: 0 | H102: 0 | J102: 0 | L102: 0 | N102: =D64 -> 0 | P102: =F64 -> 0 | R102: =H64 -> 0 | T102: =J64 -> 0 | V102: 0 | X102: 0 | Z102: 0 | AB102: 0 | AD102: 0 | AF102: 0
A103: 0 | B103: SMA-SC NT C | D103: 0 | F103: 0 | H103: 0 | J103: 0 | L103: 0 | N103: 0 | P103: 0 | R103: 0 | T103: 0 | V103: 0 | X103: 0 | Z103: 0 | AB103: 0 | AD103: 0 | AF103: 0
A104: 0 | B104: SMA-CC | D104: 0 | F104: 0 | H104: 0 | J104: 0 | L104: 0 | N104: =D69 -> 0 | P104: =F69 -> 0 | R104: =H69 -> 0 | T104: =J69 -> 0 | V104: 0 | X104: 0 | Z104: 0 | AB104: 0 | AD104: 0 | AF104: =SUM(X104:AE104) -> 0
B105: SMA-VG | D105: 0 | F105: 0 | H105: 0 | J105: 0 | L105: =SUM(D105:K105) -> 0 | N105: =D70 -> 0 | P105: =F70 -> 0 | R105: =H70 -> 0 | T105: =J70 -> 0 | V105: =SUM(N105:U105) -> 0 | X105: =N105+D105 -> 0 | Z105: =P105+F105 -> 0 | AB105: =R105+H105 -> 0 | AD105: =T105+J105 -> 0 | AF105: =SUM(X105:AE105) -> 0
A106: 0 | B106: SLF I | D106: =SUMIFS($C$158:$C$368, $A$158:$A$368, $B106 & " *", $B$158:$B$368, D$84) -> 0 | F106: =SUMIFS($C$158:$C$368, $A$158:$A$368, $B106 & " *", $B$158:$B$368, F$84) -> 0 | H106: =SUMIFS($C$158:$C$368, $A$158:$A$368, $B106 & " *", $B$158:$B$368, H$84) -> 0 | J106: =SUMIFS($C$158:$C$368, $A$158:$A$368, $B106 & " *", $B$158:$B$368, J$84) -> 0 | L106: 0 | N106: =D56 -> 0 | P106: =F56 -> 0 | R106: =H56 -> 0 | T106: =J56 -> 0 | V106: 0 | X106: 0 | Z106: 0 | AB106: 0 | AD106: 0 | AF106: 0
B107: *SLF II, Commitment | L107: 0 | N107: =D50 -> 0 | P107: =F50 -> 0 | R107: =H50 -> 0 | T107: =J50 -> 0 | V107: 0 | X107: =N107+D107 -> 0 | Z107: =P107+F107 -> 0 | AB107: =R107+H107 -> 0 | AD107: =T107+J107 -> 0 | AF107: 0
B108: *SLF II, Crosstrade | L108: 0 | N108: 0 | P108: 0 | R108: 0 | T108: 0 | V108: 0 | X108: 0 | Z108: 0 | AB108: 0 | AD108: 0 | AF108: 0
A109: 0 | B109: SLF II | D109: =SUMIFS($C$158:$C$368, $A$158:$A$368, $B109, $B$158:$B$368, D$84) -> 0 | F109: =SUMIFS($C$158:$C$368, $A$158:$A$368, $B109, $B$158:$B$368, F$84) -> 0 | H109: =SUMIFS($C$158:$C$368, $A$158:$A$368, $B109, $B$158:$B$368, H$84) -> 0 | J109: =SUMIFS($C$158:$C$368, $A$158:$A$368, $B109, $B$158:$B$368, J$84) -> 0 | L109: 0 | N109: =SUM(N107:N108) -> 0 | P109: =SUM(P107:P108) -> 0 | R109: =SUM(R107:R108) -> 0 | T109: =SUM(T107:T108) -> 0 | V109: 0 | X109: =N109+D109 -> 0 | Z109: 0 | AB109: 0 | AD109: =T109+J109 -> 0 | AF109: 0
B110: *SLF III, Commitment | L110: =SUM(D110:K110) -> 0 | N110: =D53 -> 0 | P110: =F53 -> 0 | R110: =H53 -> 0 | T110: =J53 -> 0 | V110: =SUM(N110:U110) -> 0 | X110: =N110+D110 -> 0 | Z110: =P110+F110 -> 0 | AB110: =R110+H110 -> 0 | AD110: =T110+J110 -> 0 | AF110: =SUM(X110:AE110) -> 0
B111: *SLF III, Crosstrade | L111: 0 | N111: 0 | P111: 0 | R111: 0 | T111: 0 | V111: 0 | X111: 0 | Z111: 0 | AB111: 0 | AD111: 0 | AF111: 0
A112: 0 | B112: SLF III | D112: =SUMIFS($C$158:$C$368, $A$158:$A$368, $B112, $B$158:$B$368, D$84) -> 0 | F112: =SUMIFS($C$158:$C$368, $A$158:$A$368, $B112, $B$158:$B$368, F$84) -> 0 | H112: =SUMIFS($C$158:$C$368, $A$158:$A$368, $B112, $B$158:$B$368, H$84) -> 0 | J112: =SUMIFS($C$158:$C$368, $A$158:$A$368, $B112, $B$158:$B$368, J$84) -> 0 | L112: 0 | N112: =SUM(N110:N111) -> 0 | P112: =SUM(P110:P111) -> 0 | R112: =SUM(R110:R111) -> 0 | T112: =SUM(T110:T111) -> 0 | V112: 0 | X112: 0 | Z112: 0 | AB112: 0 | AD112: 0 | AF112: 0
B113: *SLF IV, Commitment | L113: =SUM(D113:K113) -> 0 | N113: =D56 -> 0 | P113: =F56 -> 0 | R113: =H56 -> 0 | T113: =J56 -> 0 | V113: =SUM(N113:U113) -> 0 | X113: 0 | Z113: 0 | AB113: 0 | AD113: 0 | AF113: =SUM(X113:AE113) -> 0
B114: *SLF IV, Crosstrade | L114: 0 | N114: 0 | P114: 0 | R114: 0 | T114: 0 | V114: 0 | X114: 0 | Z114: 0 | AB114: 0 | AD114: 0 | AF114: 0
A115: 0 | B115: SLF IV | D115: =SUMIFS($C$158:$C$368, $A$158:$A$368, $B115, $B$158:$B$368, D$84) -> 0 | F115: =SUMIFS($C$158:$C$368, $A$158:$A$368, $B115, $B$158:$B$368, F$84) -> 0 | H115: =SUMIFS($C$158:$C$368, $A$158:$A$368, $B115, $B$158:$B$368, H$84) -> 0 | J115: =SUMIFS($C$158:$C$368, $A$158:$A$368, $B115, $B$158:$B$368, J$84) -> 0 | L115: 0 | N115: =SUM(N113:N114) -> 0 | P115: =SUM(P113:P114) -> 0 | R115: =SUM(R113:R114) -> 0 | T115: =SUM(T113:T114) -> 0 | V115: 0 | X115: 0 | Z115: 0 | AB115: 0 | AD115: 0 | AF115: 0
B116: *SLF V, Commitment | L116: 0 | N116: =D57 -> 0 | P116: =F57 -> 0 | R116: =H57 -> 0 | T116: =J57 -> 0 | V116: 0 | X116: 0 | Z116: 0 | AB116: 0 | AD116: 0 | AF116: 0
B117: *SLF V, Crosstrade | L117: 0 | N117: 0 | P117: 0 | R117: 0 | T117: 0 | V117: 0 | X117: 0 | Z117: 0 | AB117: 0 | AD117: 0 | AF117: 0
B118: SLF V | D118: =SUMIFS($C$158:$C$368, $A$158:$A$368, $B118, $B$158:$B$368, D$84) -> 0 | F118: =SUMIFS($C$158:$C$368, $A$158:$A$368, $B118, $B$158:$B$368, F$84) -> 0 | H118: =SUMIFS($C$158:$C$368, $A$158:$A$368, $B118, $B$158:$B$368, H$84) -> 0 | J118: =SUMIFS($C$158:$C$368, $A$158:$A$368, $B118, $B$158:$B$368, J$84) -> 0 | L118: 0 | N118: =SUM(N116:N117) -> 0 | P118: =SUM(P116:P117) -> 0 | R118: =SUM(R116:R117) -> 0 | T118: =SUM(T116:T117) -> 0 | V118: 0 | X118: 0 | Z118: 0 | AB118: 0 | AD118: 0 | AF118: 0
A119: =A121 -> 0 | B119: *SLF VI L, Commitment | L119: 0 | N119: =D58 -> 0 | P119: =F58 -> 0 | R119: =H58 -> 0 | T119: =J58 -> 0 | V119: 0 | X119: 0 | Z119: 0 | AB119: 0 | AD119: 0 | AF119: 0
A120: =A121 -> 0 | B120: *SLF VI L, Crosstrade | L120: 0 | N120: 0 | P120: 0 | R120: 0 | T120: 0 | V120: 0 | X120: 0 | Z120: 0 | AB120: 0 | AD120: 0 | AF120: 0
A121: =AF121 -> 0 | B121: SLF VI L | D121: =SUMIFS($C$158:$C$368, $A$158:$A$368, $B121, $B$158:$B$368, D$84) -> 0 | F121: =SUMIFS($C$158:$C$368, $A$158:$A$368, $B121, $B$158:$B$368, F$84) -> 0 | H121: =SUMIFS($C$158:$C$368, $A$158:$A$368, $B121, $B$158:$B$368, H$84) -> 0 | J121: =SUMIFS($C$158:$C$368, $A$158:$A$368, $B121, $B$158:$B$368, J$84) -> 0 | L121: 0 | N121: =SUM(N119:N120) -> 0 | P121: =SUM(P119:P120) -> 0 | R121: =SUM(R119:R120) -> 0 | T121: =SUM(T119:T120) -> 0 | V121: 0 | X121: 0 | Z121: 0 | AB121: 0 | AD121: 0 | AF121: 0
A122: =AF124 -> 0 | B122: *SLF VI UL, Commitment | L122: 0 | N122: =D59 -> 0 | P122: =F59 -> 0 | R122: =H59 -> 0 | T122: =J59 -> 0 | V122: 0 | X122: 0 | Z122: 0 | AB122: 0 | AD122: 0 | AF122: 0
A123: =AF124 -> 0 | B123: *SLF VI UL, Crosstrade | L123: 0 | N123: 0 | P123: 0 | R123: 0 | T123: 0 | V123: 0 | X123: 0 | Z123: 0 | AB123: 0 | AD123: 0 | AF123: 0
A124: 0 | B124: SLF VI UL | D124: =SUMIFS($C$158:$C$368, $A$158:$A$368, $B124, $B$158:$B$368, D$84) -> 0 | F124: =SUMIFS($C$158:$C$368, $A$158:$A$368, $B124, $B$158:$B$368, F$84) -> 0 | H124: =SUMIFS($C$158:$C$368, $A$158:$A$368, $B124, $B$158:$B$368, H$84) -> 0 | J124: =SUMIFS($C$158:$C$368, $A$158:$A$368, $B124, $B$158:$B$368, J$84) -> 0 | L124: 0 | N124: =SUM(N122:N123) -> 0 | P124: =SUM(P122:P123) -> 0 | R124: =SUM(R122:R123) -> 0 | T124: =SUM(T122:T123) -> 0 | V124: 0 | X124: 0 | Z124: 0 | AB124: 0 | AD124: 0 | AF124: 0
B125: *SLF VII, Commitment | L125: 0 | N125: =D60 -> 0 | P125: =F60 -> 0 | R125: =H60 -> 0 | T125: =J60 -> 0 | V125: 0 | X125: 0 | Z125: 0 | AB125: 0 | AD125: 0 | AF125: 0
B126: *SLF VII, Crosstrade | L126: 0 | N126: 0 | P126: 0 | R126: 0 | T126: 0 | V126: 0 | X126: 0 | Z126: 0 | AB126: 0 | AD126: 0 | AF126: 0
B127: SLF VII | D127: =SUMIFS($C$158:$C$368, $A$158:$A$368, $B127, $B$158:$B$368, D$84) -> 0 | F127: =SUMIFS($C$158:$C$368, $A$158:$A$368, $B127, $B$158:$B$368, F$84) -> 0 | H127: =SUMIFS($C$158:$C$368, $A$158:$A$368, $B127, $B$158:$B$368, H$84) -> 0 | J127: =SUMIFS($C$158:$C$368, $A$158:$A$368, $B127, $B$158:$B$368, J$84) -> 0 | L127: 0 | N127: =SUM(N125:N126) -> 0 | P127: =SUM(P125:P126) -> 0 | R127: =SUM(R125:R126) -> 0 | T127: =SUM(T125:T126) -> 0 | V127: 0 | X127: 0 | Z127: 0 | AB127: 0 | AD127: 0 | AF127: 0
B128: *SLF VIII, Commitment | L128: 0 | N128: =D61 -> 0 | P128: =F61 -> 0 | R128: =H61 -> 0 | T128: =J61 -> 0 | V128: 0 | X128: 0 | Z128: 0 | AB128: 0 | AD128: 0 | AF128: 0
B129: *SLF VIII, Crosstrade | L129: 0 | N129: 0 | P129: 0 | R129: 0 | T129: 0 | V129: 0 | X129: 0 | Z129: 0 | AB129: 0 | AD129: 0 | AF129: 0
B130: SLF VIII | D130: =SUMIFS($C$158:$C$368, $A$158:$A$368, $B130, $B$158:$B$368, D$84) -> 0 | F130: =SUMIFS($C$158:$C$368, $A$158:$A$368, $B130, $B$158:$B$368, F$84) -> 0 | H130: =SUMIFS($C$158:$C$368, $A$158:$A$368, $B130, $B$158:$B$368, H$84) -> 0 | J130: =SUMIFS($C$158:$C$368, $A$158:$A$368, $B130, $B$158:$B$368, J$84) -> 0 | L130: 0 | N130: =SUM(N128:N129) -> 0 | P130: =SUM(P128:P129) -> 0 | R130: =SUM(R128:R129) -> 0 | T130: =SUM(T128:T129) -> 0 | V130: 0 | X130: 0 | Z130: 0 | AB130: 0 | AD130: 0 | AF130: 0
B131: SMA-2 | D131: =SUMIFS($C$158:$C$368, $A$158:$A$368, $B131, $B$158:$B$368, D$84) -> 0 | F131: =SUMIFS($C$158:$C$368, $A$158:$A$368, $B131, $B$158:$B$368, F$84) -> 0 | H131: =SUMIFS($C$158:$C$368, $A$158:$A$368, $B131, $B$158:$B$368, H$84) -> 0 | J131: =SUMIFS($C$158:$C$368, $A$158:$A$368, $B131, $B$158:$B$368, J$84) -> 0 | L131: 0 | N131: =D71 -> 0 | P131: =F71 -> 0 | R131: =H71 -> 0 | T131: =J71 -> 0 | V131: 0 | X131: 0 | Z131: 0 | AB131: 0 | AD131: 0 | AF131: 0
B132: SMA-3 | D132: =SUMIFS($C$158:$C$368, $A$158:$A$368, $B132, $B$158:$B$368, D$84) -> 0 | F132: =SUMIFS($C$158:$C$368, $A$158:$A$368, $B132, $B$158:$B$368, F$84) -> 0 | H132: =SUMIFS($C$158:$C$368, $A$158:$A$368, $B132, $B$158:$B$368, H$84) -> 0 | J132: =SUMIFS($C$158:$C$368, $A$158:$A$368, $B132, $B$158:$B$368, J$84) -> 0 | L132: 0 | N132: =D72 -> 0 | P132: =F72 -> 0 | R132: =H72 -> 0 | T132: =J72 -> 0 | V132: 0 | X132: 0 | Z132: 0 | AB132: 0 | AD132: 0 | AF132: 0
B133: Subtotal Sidecars | D133: =SUM(D92:D132) -> 0 | F133: =SUM(F92:F132) -> 0 | H133: =SUM(H92:H132) -> 0 | J133: =SUM(J92:J132) -> 0 | L133: =SUM(D133:K133) -> 0 | N133: =SUMPRODUCT( 1*(LEFT($B$92:$B$132,1)<>"*"), N92:N132) -> 0 | P133: =SUMPRODUCT( 1*(LEFT($B$92:$B$132,1)<>"*"), P92:P132) -> 0 | R133: =SUMPRODUCT( 1*(LEFT($B$92:$B$132,1)<>"*"), R92:R132) -> 0 | T133: =SUMPRODUCT( 1*(LEFT($B$92:$B$132,1)<>"*"), T92:T132) -> 0 | V133: 0 | X133: =SUMPRODUCT( 1*(LEFT($B$92:$B$132,1)<>"*"), X92:X132) -> 0 | Z133: =SUMPRODUCT( 1*(LEFT($B$92:$B$132,1)<>"*"), Z92:Z132) -> 0 | AB133: =SUMPRODUCT( 1*(LEFT($B$92:$B$132,1)<>"*"), AB92:AB132) -> 0 | AD133: =SUMPRODUCT( 1*(LEFT($B$92:$B$132,1)<>"*"), AD92:AD132) -> 0 | AF133: 0
B134: Total | D134: =D133+D90 -> 0 | F134: =F133+F90 -> 0 | H134: =H133+H90 -> 0 | J134: =J133+J90 -> 0 | L134: =L133+L90 -> 0 | N134: =N133+N90 -> 0 | P134: =P133+P90 -> 0 | R134: =R133+R90 -> 0 | T134: =T133+T90 -> 0 | V134: =V133+V90 -> 0 | X134: =X133+X90 -> 0 | Z134: =Z133+Z90 -> 0 | AB134: =AB133+AB90 -> 0 | AD134: =AD133+AD90 -> 0 | AF134: =AF133+AF90 -> 0
A156: Current Commitment Data
A157: Fund | B157: Tranche | C157: Commitment

Sheet New Allocations (hidden)
A1: Controls
A5: Details
B7: Deal Name | D7: n/a
B8: Description | D8: n/a
B9: Net Senior Leverage | D9: n/a
B10: Sponsor | D10: n/a
B11: Industry | D11: n/a
B12: Target Date | D12: n/a
A14: Allocations
D16: Revolver | F16: Term Loan | H16: DDTL | J16: DDTL 2 | L16: Totals
B17: NXT | D17: Unfunded | F17: Unfunded | H17: Unfunded | J17: Unfunded
A18: =L18 -> 0 | B18: SLF I | D18: =IF($L18>0,"Unfunded",0) -> 0 | F18: =IF(L18>0,IF($P$32>0.75,$P$32,0.85),0) -> 0 | H18: =IF($L18>0,"Unfunded",0) -> 0 | J18: =IF($L18>0,"Unfunded",0) -> 0
A19: 0 | B19: Potential SLF VI L | D19: 0 | F19: =IF(L19>0,IF($P$32>0.75,$P$32,0.75),0) -> 0 | H19: 0 | J19: 0
A20: =L20 -> 0 | B20: Potential SLF VI UL | D20: 0 | F20: 0 | H20: 0 | J20: 0
B21: Potential SLF VII | D21: 0 | F21: 0 | H21: 0 | J21: 0
B22: Potential SLF VIII | D22: 0 | F22: 0 | H22: 0 | J22: 0
A23: =L23 -> 0 | B23: SMA-A | D23: 0 | F23: 0 | H23: 0 | J23: 0
A24: 0 | B24: SMA-SC | D24: 0 | F24: 0 | H24: 0 | J24: 0
A25: 0 | B25: SMA-SC NT | D25: 0 | F25: 0 | H25: 0 | J25: 0
A26: 0 | B26: SMA-AF | D26: 0 | F26: 0 | H26: 0 | J26: 0 | N26: Aflac Distribution
A27: 0 | B27: SMA-CH | D27: 0 | F27: 0 | H27: 0 | J27: 0 | N27: AF-US | P27: =1/6 -> 0.1666666667
A28: 0 | B28: SMA-CC | D28: 0 | F28: 0 | H28: 0 | J28: 0 | N28: AF-JAP | P28: =1-P27 -> 0.8333333333
B29: SMA-VG | D29: 0 | F29: 0 | H29: 0 | J29: 0
B30: SMA-2 | D30: 0 | F30: 0 | H30: 0 | J30: 0
B31: SMA-3 | D31: 0 | F31: 0 | H31: 0 | J31: 0
B32: NXT Underwrite | D32: 0 | F32: 0 | H32: 0 | J32: 0 | L32: =SUM(D32:K32) -> 0 | P32: =IFERROR(F32/L32,0) -> 0
B33: NXT Hold | D33: =IFERROR(D32/$L$32,0)*$L$33 -> 0 | F33: =IFERROR(F32/$L$32,0)*$L$33 -> 0 | H33: =IFERROR(H32/$L$32,0)*$L$33 -> 0 | J33: =IFERROR(J32/$L$32,0)*$L$33 -> 0 | L33: 0 | N33: =L33-SUM(L17:L31) -> 0 | P33: =IFERROR(F33/L33,0) -> 0
B34: Unfunded | D34: =IFERROR(D33/(SUM($D$33:$K$33)-$F$33),0) -> 0 | F34: 0 | H34: =IFERROR(H33/(SUM($D$33:$K$33)-$F$33),0) -> 0 | J34: =IFERROR(J33/(SUM($D$33:$K$33)-$F$33),0) -> 0 | N34: To Allocate | P34: Funded
N35: ="Pro Rata without SLF I: " & TEXT(IFERROR((F71-F53)/(L71-L53),"-"),"0.00%") -> Pro Rata without SLF I: -
A36: Hypo Results
B38: SLF I | D38: =_xlfn.CONCAT("Passing ", COUNTIF(SummaryKaiser[Pass/Fail],"Pass"), "; Failing ", COUNTIF(SummaryKaiser[Pass/Fail],"Fail"), " (", _xlfn.TEXTJOIN(", ",TRUE,IF(SummaryKaiser[Pass/Fail]="Fail",SummaryKaiser[Constraint],"")),")" ) -> Passing 4; Failing 0 ()
B39: SMA-SC | D39: =_xlfn.CONCAT("Passing ", COUNTIF(SummarySwiss[Pass/Fail],"Pass"), "; Failing ", COUNTIF(SummarySwiss[Pass/Fail],"Fail"), " (", _xlfn.TEXTJOIN(", ",TRUE,IF(SummarySwiss[Pass/Fail]="Fail",SummarySwiss[Constraint],"")),")" ) -> Passing 0; Failing 1 (Max Commitment)
B40: SMA-SC NT | D40: =_xlfn.CONCAT("Passing ", COUNTIF(SummarySwissNT[Pass/Fail],"Pass"), "; Failing ", COUNTIF(SummarySwissNT[Pass/Fail],"Fail"), " (", _xlfn.TEXTJOIN(", ",TRUE,IF(SummarySwissNT[Pass/Fail]="Fail",SummarySwissNT[Constraint],"")),")" ) -> Passing 1; Failing 0 ()
B41: SMA-AF US | D41: =_xlfn.CONCAT("Passing ", COUNTIF(SummaryAFUS[Pass/Fail],"Pass"), "; Failing ", COUNTIF(SummaryAFUS[Pass/Fail],"Fail"), " (", _xlfn.TEXTJOIN(", ",TRUE,IF(SummaryAFUS[Pass/Fail]="Fail",SummaryAFUS[Constraint],"")),")" ) -> Passing 9; Failing 0 ()
B42: SMA-AF JAP | D42: =_xlfn.CONCAT("Passing ", COUNTIF(SummaryAFJAP[Pass/Fail],"Pass"), "; Failing ", COUNTIF(SummaryAFJAP[Pass/Fail],"Fail"), " (", _xlfn.TEXTJOIN(", ",TRUE,IF(SummaryAFJAP[Pass/Fail]="Fail",SummaryAFJAP[Constraint],"")),")" ) -> Passing 9; Failing 0 ()
B43: SMA-CH | D43: =_xlfn.CONCAT("Passing ", COUNTIF(SummaryChubb[Pass/Fail],"Pass"), "; Failing ", COUNTIF(SummaryChubb[Pass/Fail],"Fail"), " (", _xlfn.TEXTJOIN(", ",TRUE,IF(SummaryChubb[Pass/Fail]="Fail",SummaryChubb[Constraint],"")),")" ) -> Passing 8; Failing 0 ()
B44: SMA-CC | D44: -
B45: Results current as of: | D45: Not yet submitted to hypo.
A47: New Allocations Report
B49: Credit Facility | R49: Fees
D51: Revolver | F51: Term Loan | H51: DDTL | J51: DDTL 2 | L51: Totals | N51: Funded | P51: Unfunded | T51: Fee | V51: $ Amt
B52: NXT | D52: =($L52-$F52)*IF(D17="Unfunded",D$34,D17) -> 0 | F52: =$F$33-SUM(IF(LEFT($B53:$B68,1)="*",0,F53:F68)) -> 0 | H52: =($L52-$F52)*IF(H17="Unfunded",H$34,H17) -> 0 | J52: =($L52-$F52)*IF(J17="Unfunded",J$34,J17) -> 0 | L52: =L17 -> 0 | N52: =IFERROR(F52/SUM(D52:K52),"n/a") -> n/a | P52: =IFERROR(1-N52,"n/a") -> n/a | R52: Closing | T52: 0 | V52: =+T52*$L$17 -> 0
A53: =L53 -> 0 | B53: SLF I | D53: 0 | F53: =L53*IF(F18="Unfunded",$F$34,F18) -> 0 | H53: 0 | J53: 0 | L53: 0 | N53: =IFERROR(F53/SUM(D53:K53),"n/a") -> n/a | P53: =IFERROR(1-N53,"n/a") -> n/a | R53: Structuring | T53: 0 | V53: =+T53*$L$33 -> 0
A54: =L54 -> 0 | B54: Potential SLF VI L | D54: 0 | F54: 0 | H54: 0 | J54: 0 | L54: 0 | N54: n/a | P54: n/a | R54: Agency | T54: 0 | V54: =T54*$L$32 -> 0
A55: =L55 -> 0 | B55: Potential SLF VI UL | D55: 0 | F55: 0 | H55: 0 | J55: 0 | L55: 0 | N55: n/a | P55: n/a | R55: NXT Fees | V55: =SUM(V52:V54) -> 0
B56: Potential SLF VII | D56: 0 | F56: 0 | H56: 0 | J56: 0 | L56: 0 | N56: n/a | P56: n/a
B57: Potential SLF VIII | D57: 0 | F57: 0 | H57: 0 | J57: 0 | L57: 0 | N57: n/a | P57: n/a
A58: =L58 -> 0 | B58: SMA-A | D58: 0 | F58: 0 | H58: 0 | J58: 0 | L58: 0 | N58: n/a | P58: n/a | R58: ="Issues" & IF(SUMPRODUCT(1*(R59:R72<>""))=0," (none)","") -> Issues (none)
A59: 0 | B59: SMA-SC | D59: 0 | F59: 0 | H59: 0 | J59: 0 | L59: 0 | N59: n/a | P59: n/a | R59: =IF(SUMPRODUCT(1*(D53:L53>D$52:L$52))>0,"SLF I and SLF V can neither have commitments greater than NXT's.","") -> 
A60: 0 | B60: SMA-SC NT | D60: 0 | F60: 0 | H60: 0 | J60: 0 | L60: 0 | N60: n/a | P60: n/a
A61: 0 | B61: *SMA-AF US | D61: 0 | F61: =$L61*IF(F26="Unfunded",F$34,F26) -> 0 | H61: 0 | J61: 0 | L61: =$L$26*AFUS_Portion -> 0 | N61: n/a | P61: n/a
A62: 0 | B62: *SMA-AF JAP | D62: =($L62-$F62)*IF(D26="Unfunded",D$34,D26) -> 0 | F62: =$L62*IF(F26="Unfunded",F$34,F26) -> 0 | H62: =($L62-$F62)*IF(H26="Unfunded",H$34,H26) -> 0 | J62: =($L62-$F62)*IF(J26="Unfunded",J$34,J26) -> 0 | L62: =L$63-$L$61 -> 0 | N62: n/a | P62: n/a
A63: 0 | B63: SMA-AF | D63: =SUM(D61:D62) -> 0 | F63: =SUM(F61:F62) -> 0 | H63: =SUM(H61:H62) -> 0 | J63: =SUM(J61:J62) -> 0 | L63: =L26 -> 0 | N63: n/a | P63: n/a
A64: 0 | B64: SMA-CH | D64: =($L64-$F64)*IF(D27="Unfunded",D$34,D27) -> 0 | F64: =L64*IF(F27="Unfunded",$F$34,F27) -> 0 | H64: =($L64-$F64)*IF(H27="Unfunded",H$34,H27) -> 0 | J64: =($L64-$F64)*IF(J27="Unfunded",J$34,J27) -> 0 | L64: 0 | N64: n/a | P64: n/a
A65: 0 | B65: SMA-CC | D65: =($L65-$F65)*IF(D28="Unfunded",D$34,D28) -> 0 | F65: =L65*IF(F28="Unfunded",$F$34,F28) -> 0 | H65: =($L65-$F65)*IF(H28="Unfunded",H$34,H28) -> 0 | J65: =($L65-$F65)*IF(J28="Unfunded",J$34,J28) -> 0 | L65: 0 | N65: n/a | P65: n/a
B66: SMA-VG | D66: =($L66-$F66)*IF(D29="Unfunded",D$34,D29) -> 0 | F66: =L66*IF(F29="Unfunded",$F$34,F29) -> 0 | H66: =($L66-$F66)*IF(H29="Unfunded",H$34,H29) -> 0 | J66: =($L66-$F66)*IF(J29="Unfunded",J$34,J29) -> 0 | L66: 0 | N66: n/a | P66: n/a
B67: SMA-2 | D67: =($L67-$F67)*IF(D30="Unfunded",D$34,D30) -> 0 | F67: =L67*IF(F30="Unfunded",$F$34,F30) -> 0 | H67: =($L67-$F67)*IF(H30="Unfunded",H$34,H30) -> 0 | J67: =($L67-$F67)*IF(J30="Unfunded",J$34,J30) -> 0 | L67: 0 | N67: n/a | P67: n/a
B68: SMA-3 | D68: =($L68-$F68)*IF(D31="Unfunded",D$34,D31) -> 0 | F68: =L68*IF(F31="Unfunded",$F$34,F31) -> 0 | H68: =($L68-$F68)*IF(H31="Unfunded",H$34,H31) -> 0 | J68: =($L68-$F68)*IF(J31="Unfunded",J$34,J31) -> 0 | L68: 0 | N68: n/a | P68: n/a
B69: NXT and Affiliates | D69: =SUMPRODUCT( 1*(LEFT($B$52:$B$68,1)<>"*"), D52:D68) -> 0 | F69: =SUMPRODUCT( 1*(LEFT($B$52:$B$68,1)<>"*"), F52:F68) -> 0 | H69: =SUMPRODUCT( 1*(LEFT($B$52:$B$68,1)<>"*"), H52:H68) -> 0 | J69: =SUMPRODUCT( 1*(LEFT($B$52:$B$68,1)<>"*"), J52:J68) -> 0 | L69: =SUM(IF(LEFT($B52:$B68,1)="*",0,L52:L68)) -> 0 | N69: n/a | P69: n/a
B70: Balance to Syndicate | D70: =D71-D69 -> 0 | F70: =F71-F69 -> 0 | H70: =H71-H69 -> 0 | J70: =J71-J69 -> 0 | L70: =SUM(D70:K70) -> 0 | N70: n/a | P70: n/a
B71: NXT Underwrite | D71: =D32 -> 0 | F71: =F32 -> 0 | H71: =H32 -> 0 | J71: =J32 -> 0 | L71: =SUM(D71:K71) -> 0 | N71: n/a | P71: n/a

Sheet Hypo Pipeline
A1: Hypothetical Pipeline
A4: Exclude? | B4: Fund | C4: Deal Name | D4: Description | E4: Tranche | F4: Target Date | G4: Total Commitment | H4: Principal Balance | I4: Net Senior Leverage | J4: Protective Advances | K4: Sponsor | L4: Moody's Industry | M4: Open Market Purchase (Y)
B5: SMA-CH | C5: Supply One | E5: Term Loan | F5: 2021-03-10 | G5: 2611277.25 | H5: 2611277.25 | I5: 3.65 | J5: N | K5: WELLSPRING CAPITAL MANAGEMENT | L5: Containers, Packaging & Glass | M5: N
B6: SMA-CH | C6: Tyto | E6: Revolver | F6: 2021-03-19 | G6: 400000 | H6: 0 | I6: 3.8 | J6: N | K6: ARLINGTON CAPITAL PARTNERS | L6: Aerospace & Defense | M6: N
B7: SMA-CH | C7: Tyto | E7: Term Loan | F7: 2021-03-19 | G7: 4600000 | H7: 4600000 | I7: 3.8 | J7: N | K7: ARLINGTON CAPITAL PARTNERS | L7: Aerospace & Defense | M7: N
B8: SMA-CH | C8: Foundation Partners Group | E8: Term Loan | F8: 2021-03-03 | G8: 2250000 | H8: 2181800 | I8: 5 | J8: N | K8: Access | L8: Services: Consumer | M8: N
B9: SMA-CH | C9: Foundation Partners Group | E9: Revolver | F9: 2021-03-03 | G9: 150000 | H9: 0 | I9: 5 | J9: N | K9: Access | L9: Services: Consumer | M9: N
B10: SMA-CH | C10: Foundation Partners Group | E10: DDTL | F10: 2021-03-03 | G10: 600000 | H10: 0 | I10: 5 | J10: N | K10: Access | L10: Services: Consumer | M10: N
B11: SMA-CH | C11: Powerline Systems | E11: Term Loan | F11: 2021-03-31 | G11: 978750 | H11: 978750 | I11: 3.24 | J11: N | K11: TA ASSOCIATES | L11: HIGH TECH INDUSTRIES | M11: N
B12: SMA-CH | C12: Powerline Systems | E12: Revolver | F12: 2021-03-31 | G12: 21250 | H12: 0 | I12: 3.24 | J12: N | K12: TA ASSOCIATES | L12: HIGH TECH INDUSTRIES | M12: N
B13: SMA-CH | C13: Lakeview Farms | G13: 10000000 | H13: 7500000 | I13: 5
B14: SMA-CH | C14: Louisiana | G14: 9000000 | H14: 6750000 | I14: 5
B15: SMA-CH | C15: TranSystem | F15: 2021-03-19 | G15: 5000000 | H15: 3750000 | I15: 4.25
B16: SMA-CH | C16: Desserts Holdings | E16: Revolver | F16: 2021-03-31 | G16: 380000 | H16: 0 | I16: 5 | J16: N | K16: GRYPHON INVESTORS, INC | L16: Beverage, Food & Tobacco | M16: N
B17: SMA-CH | C17: Desserts Holdings | E17: Term Loan | F17: 2021-03-31 | G17: 4620000 | H17: 4620000 | I17: 5 | J17: N | K17: GRYPHON INVESTORS, INC | L17: Beverage, Food & Tobacco | M17: N
B18: SMA-CH | C18: Leixir | F18: 2021-03-31 | G18: 10000000 | H18: 7500000 | I18: 4.3
B19: SMA-CH | C19: HomeCare | F19: 2021-03-19 | G19: 5000000 | H19: 5000000 | I19: 4.5
B20: SMA-SC | C20: SupplyOne | G20: 3819218
B21: SMA-SC | C21: Tyto | G21: 10000000
B22: SMA-SC | C22: NxGen | G22: 1500000
B23: SMA-SC | C23: Presco | G23: 5000000
B24: SMA-SC | C24: Zone Mechanical | G24: 15000000
B25: SMA-SC | C25: Lakeview Farms | G25: 15000000
B26: SMA-SC | C26: Louisiana Fish Fry | G26: 15000000
B27: SMA-SC | C27: TranSystem | G27: 15000000
B28: SMA-SC | C28: Desserts Holdings | G28: 20000000
B29: SMA-SC | C29: HomeCare Assistance | G29: 12000000
B30: SMA-SC | C30: AFC Industries | G30: 15000000
B31: SMA-SC NT | C31: Sunvair, Inc. | G31: 1500000
B32: SMA-SC NT | C32: Presco | G32: 1000000
B33: SMA-SC NT | C33: Monroe Engineering | G33: 685567
B34: SMA-SC NT | C34: Shipleys | G34: 1500000
B35: SMA-SC NT | C35: Solemetex | G35: 1500000
B36: SMA-SC NT | C36: GSM | G36: 500000
B37: SMA-SC NT | C37: Thrive | G37: 1000000

Sheet HFS
A1: Held for Sale
A2: Updated: | B2: 2020-03-02
A4: Fund | B4: Facility ID | C4: Deal Name | D4: Tranche | E4: Total Commitment | F4: Principal Balance | G4: Net Senior Leverage | H4: Sponsor | I4: Moody's Industry
G5: =IFERROR(MAX( --INDEX(tbl_NSL[#All], SUMPRODUCT( 1* (tbl_HFS[[#This Row],[Fund]] & TEXT( tbl_HFS[[#This Row],[Facility ID]],"0000000000") = tbl_NSL[Investor] & TEXT(tbl_NSL[Facility ID],"0000000000")), ROW(tbl_NSL[Investor]) ), MATCH(tbl_ExistingData[[#Headers],[Net Senior Leverage]], tbl_NSL[#Headers],0)) ),0) -> 0

Sheet Active Portfolio
A1: Active Portfolio
A2: Updated: | B2: 2020-02-28 | H2: Blue fields are to be manually updated. Changes are preserved locally in a background worksheet.
A4: Fund | B4: Facility ID | C4: Deal Name | D4: Tranche | E4: Closed Date | F4: Total Commitment | G4: Principal Balance | H4: Net Senior Leverage | I4: Sponsor | J4: Moodys Industry | K4: Open Market Purchase (Y) | L4: Paid Off Date
H5: =IFERROR(MAX( --INDEX(tbl_NSL[#All], SUMPRODUCT( 1* (tbl_ExistingData[[#This Row],[Fund]] & TEXT( tbl_ExistingData[[#This Row],[Facility ID]],"0000000000") = tbl_NSL[Investor] & TEXT(tbl_NSL[Facility ID],"0000000000")), ROW(tbl_NSL[Investor]) ), MATCH(tbl_ExistingData[[#Headers],[Net Senior Leverage]], tbl_NSL[#Headers],0)) ),0) -> 0 | K5: =IFERROR(INDEX(tbl_NSL[], MATCH(tbl_ExistingData[[#This Row],[Fund]] & tbl_ExistingData[[#This Row],[Facility ID]], tbl_NSL[Investor] & tbl_NSL[Facility ID],0), MATCH("Open Market Purchase", tbl_NSL[#Headers],0)),"") -> 

Sheet Paid Off (hidden)
A1: Fund | B1: Facility ID | C1: Deal Name | D1: Tranche | E1: Closed Date | F1: Total Commitment | G1: Principal Balance | H1: Net Senior Leverage | I1: Sponsor | J1: Moodys Industry | K1: Open Market Purchase (Y/N) | L1: Paid Off Date

Sheet Tests (Chubb)
A1: Tests: | B1: SMA-CH
A3: SMA Commitment | B3: =VLOOKUP(Fund,tbl_Funds[[Fund]:[Principal Balance]],2,0) -> 400000000
A5: Max Commitment
A7: Bucket
A8: Commitment | B8: =Commitment -> 400000000
A9: Protective Advances Holdback | B9: =_xlfn.XLOOKUP(Fund,tbl_Funds[Fund],tbl_Funds[Protective Advances]) -> 20000000
A10: Bucket Subtotal | B10: =B8-B9 -> 380000000
A11: Available | B11: =B10-B15 -> 324388722.8
A13: Existing Portfolio | B13: =SUMIFS(tbl_ExistingData[Total Commitment],tbl_ExistingData[Fund],Fund,tbl_ExistingData[Paid Off Date],"=") -> 0
A14: Hypo Pipeline | B14: =SUMIFS(tbl_HypoPipeline[Total Commitment],tbl_HypoPipeline[Fund],Fund,tbl_HypoPipeline[Exclude?],"") -> 55611277.25
A15: Final Test Total | B15: =B14+B13 -> 55611277.25
A17: Protective Advances
A18: Portfolio | B18: =SUMIF(tbl_ProtectiveAdvances[SMA],Fund,tbl_ProtectiveAdvances[Commitment Amount]) -> 787680.23
A19: Hypo | B19: =SUMIFS(tbl_HypoPipeline[Total Commitment],tbl_HypoPipeline[Fund],Fund,tbl_HypoPipeline[Protective Advances],"Y") -> 0
A22: Unfunded Commitment
A23: The sum of Portfolio and Pipeline values (Revolver Commitments + DDTL Commitments - DDTL Principal) must be < 20% of total SMA Commitment.
A25: Bucket | B25: =Commitment*0.2 -> 80000000
A26: Available | B26: =B25-B40 -> 78448750
A28: Existing Portfolio
A29: Total Revolver Commitment in Program | B29: =SUMIFS(tbl_ExistingData[Total Commitment],tbl_ExistingData[Tranche],"*evolv*",tbl_ExistingData[Fund],Fund) -> 0
A30: Total DDTL Commitment in Program | B30: =SUM(SUMIFS(tbl_ExistingData[Total Commitment],tbl_ExistingData[Tranche],{"*Delayed Draw*","*DDTL*"},tbl_ExistingData[Fund],Fund,tbl_ExistingData[Paid Off Date],"=")) -> 0
A31: Total DDTL Principal in Program | B31: =SUM(SUMIFS(tbl_ExistingData[Principal Balance],tbl_ExistingData[Tranche],{"*Delayed Draw*","*DDTL*"},tbl_ExistingData[Fund],Fund,tbl_ExistingData[Paid Off Date],"=")) -> 0
A32: Existing Portfolio Subtotal | B32: =B29+B30-B31 -> 0
A34: Hypo Pipeline
A35: Total Revolver Commitment in Pipeline | B35: =SUMIFS(tbl_HypoPipeline[Total Commitment], tbl_HypoPipeline[Tranche], "*evolv*", tbl_HypoPipeline[Fund], Fund,tbl_HypoPipeline[Exclude?],"") -> 951250
A36: Total DDTL Commitment in Pipeline | B36: =SUM(SUMIFS(tbl_HypoPipeline[Total Commitment],tbl_HypoPipeline[Tranche],{"*Delayed Draw*","*DDTL*"},tbl_HypoPipeline[Fund],Fund,tbl_HypoPipeline[Exclude?],"")) -> 600000
A37: Total DDTL Principal in Pipeline | B37: =SUM(SUMIFS(tbl_HypoPipeline[Principal Balance],tbl_HypoPipeline[Tranche],{"*Delayed Draw*","*DDTL*"},tbl_HypoPipeline[Fund],Fund,tbl_HypoPipeline[Exclude?],"")) -> 0
A38: Hypo Pipeline Subtotal | B38: =B35+B36-B37 -> 1551250
A40: Final Test Total | B40: =B38+B32 -> 1551250
A42: Net Senior Leverage 4.50x
A43: (Original Net Senior Leverage > 4.50) < 30% * SMA Commitment Amount
A45: Bucket | B45: =Commitment*0.3 -> 120000000
A46: Available | B46: =B45-B50 -> 93000000
A48: Existing Portfolio | B48: =SUMIFS(tbl_ExistingData[Total Commitment], tbl_ExistingData[Net Senior Leverage], ">4.5", tbl_ExistingData[Fund], Fund, tbl_ExistingData[Paid Off Date], "=") -> 0 | D48: =IF(COUNTIFS(tbl_ExistingData[Fund],Fund,tbl_ExistingData[Net Senior Leverage],0)>0,"There exist [" & COUNTIFS(tbl_ExistingData[Fund],Fund,tbl_ExistingData[Net Senior Leverage],0) & "] " & Fund & " deals in the Active Portfolio with a Net Senior Leverage of 0.","") -> 
A49: Hypo Pipeline | B49: =SUMIFS(tbl_HypoPipeline[Total Commitment], tbl_HypoPipeline[Net Senior Leverage], ">4.5", tbl_HypoPipeline[Fund], Fund,tbl_HypoPipeline[Exclude?],"") -> 27000000
A50: Final Test Total | B50: =B49+B48 -> 27000000
A52: Open Market
A53: All Commitments Secondary Market < 5% * SMA Commitment Amount
A55: Bucket | B55: =Commitment*0.05 -> 20000000
A56: Available | B56: =B55-B60 -> 20000000
A58: Existing Portfolio | B58: =SUMIFS(tbl_ExistingData[Total Commitment],tbl_ExistingData[Open Market Purchase (Y)], "Y",tbl_ExistingData[Fund],Fund, tbl_ExistingData[Paid Off Date], "=") -> 0
A59: Hypo Pipeline | B59: =SUMIFS(tbl_HypoPipeline[Total Commitment],tbl_HypoPipeline[Open Market Purchase (Y)], "Y",tbl_HypoPipeline[Fund],Fund,tbl_HypoPipeline[Exclude?],"") -> 0
A60: Final Test Total | B60: =B59+B58 -> 0
A62: Industry Tests
A63: Maximum aggregate exposure of 25%, 20% and 15% of SMA Commitment for largest three industries.
A65: Largest Bucket | B65: =Commitment*0.25 -> 100000000 | D65: Moody's Industry | E65: Existing Portfolio | F65: Pipeline | G65: Existing + Pipeline
A66: Available | B66: =B65-B71 -> 95000000 | D66: Aerospace & Defense | E66: =SUMIFS(tbl_ExistingData[Total Commitment], tbl_ExistingData[Moodys Industry], tbl_IndustryChubb[[#This Row],[Moody''s Industry]] & "*", tbl_ExistingData[Fund], Fund, tbl_ExistingData[Paid Off Date], "=") -> 0 | F66: =SUMIFS(tbl_HypoPipeline[Total Commitment], tbl_HypoPipeline[Moody''s Industry], tbl_IndustryChubb[[#This Row],[Moody''s Industry]] & "*", tbl_HypoPipeline[Fund], Fund,tbl_HypoPipeline[Exclude?],"") + SUMIFS(tbl_HFS[Total Commitment],tbl_HFS[Moody''s Industry],tbl_IndustryChubb[[#This Row],[Moody''s Industry]],tbl_HFS[Fund],Fund) -> 5000000 | G66: =tbl_IndustryChubb[[#This Row],[Existing Portfolio]]+tbl_IndustryChubb[[#This Row],[Pipeline]] -> 5000000
D67: Automotive | E67: =SUMIFS(tbl_ExistingData[Total Commitment], tbl_ExistingData[Moodys Industry], tbl_IndustryChubb[[#This Row],[Moody''s Industry]] & "*", tbl_ExistingData[Fund], Fund, tbl_ExistingData[Paid Off Date], "=") -> 0 | F67: =SUMIFS(tbl_HypoPipeline[Total Commitment], tbl_HypoPipeline[Moody''s Industry], tbl_IndustryChubb[[#This Row],[Moody''s Industry]] & "*", tbl_HypoPipeline[Fund], Fund,tbl_HypoPipeline[Exclude?],"") + SUMIFS(tbl_HFS[Total Commitment],tbl_HFS[Moody''s Industry],tbl_IndustryChubb[[#This Row],[Moody''s Industry]],tbl_HFS[Fund],Fund) -> 0 | G67: =tbl_IndustryChubb[[#This Row],[Existing Portfolio]]+tbl_IndustryChubb[[#This Row],[Pipeline]] -> 0
A68: =INDEX(tbl_IndustryChubb[],MATCH(B71,tbl_IndustryChubb[Existing + Pipeline],0),1) -> Aerospace & Defense | D68: Banking, Finance, Insurance & Real Estate | E68: =SUMIFS(tbl_ExistingData[Total Commitment], tbl_ExistingData[Moodys Industry], tbl_IndustryChubb[[#This Row],[Moody''s Industry]] & "*", tbl_ExistingData[Fund], Fund, tbl_ExistingData[Paid Off Date], "=") -> 0 | F68: =SUMIFS(tbl_HypoPipeline[Total Commitment], tbl_HypoPipeline[Moody''s Industry], tbl_IndustryChubb[[#This Row],[Moody''s Industry]] & "*", tbl_HypoPipeline[Fund], Fund,tbl_HypoPipeline[Exclude?],"") + SUMIFS(tbl_HFS[Total Commitment],tbl_HFS[Moody''s Industry],tbl_IndustryChubb[[#This Row],[Moody''s Industry]],tbl_HFS[Fund],Fund) -> 0 | G68: =tbl_IndustryChubb[[#This Row],[Existing Portfolio]]+tbl_IndustryChubb[[#This Row],[Pipeline]] -> 0
A69: Existing Portfolio Component | B69: =INDEX(tbl_IndustryChubb[],MATCH(B71,tbl_IndustryChubb[Existing + Pipeline],0),2) -> 0 | D69: Beverage, Food & Tobacco | E69: =SUMIFS(tbl_ExistingData[Total Commitment], tbl_ExistingData[Moodys Industry], tbl_IndustryChubb[[#This Row],[Moody''s Industry]] & "*", tbl_ExistingData[Fund], Fund, tbl_ExistingData[Paid Off Date], "=") -> 0 | F69: =SUMIFS(tbl_HypoPipeline[Total Commitment], tbl_HypoPipeline[Moody''s Industry], tbl_IndustryChubb[[#This Row],[Moody''s Industry]] & "*", tbl_HypoPipeline[Fund], Fund,tbl_HypoPipeline[Exclude?],"") + SUMIFS(tbl_HFS[Total Commitment],tbl_HFS[Moody''s Industry],tbl_IndustryChubb[[#This Row],[Moody''s Industry]],tbl_HFS[Fund],Fund) -> 5000000 | G69: =tbl_IndustryChubb[[#This Row],[Existing Portfolio]]+tbl_IndustryChubb[[#This Row],[Pipeline]] -> 5000000
A70: Hypo Pipeline Component | B70: =INDEX(tbl_IndustryChubb[],MATCH(B71,tbl_IndustryChubb[Existing + Pipeline],0),3) -> 5000000 | D70: Capital Equipment | E70: =SUMIFS(tbl_ExistingData[Total Commitment], tbl_ExistingData[Moodys Industry], tbl_IndustryChubb[[#This Row],[Moody''s Industry]] & "*", tbl_ExistingData[Fund], Fund, tbl_ExistingData[Paid Off Date], "=") -> 0 | F70: =SUMIFS(tbl_HypoPipeline[Total Commitment], tbl_HypoPipeline[Moody''s Industry], tbl_IndustryChubb[[#This Row],[Moody''s Industry]] & "*", tbl_HypoPipeline[Fund], Fund,tbl_HypoPipeline[Exclude?],"") + SUMIFS(tbl_HFS[Total Commitment],tbl_HFS[Moody''s Industry],tbl_IndustryChubb[[#This Row],[Moody''s Industry]],tbl_HFS[Fund],Fund) -> 0 | G70: =tbl_IndustryChubb[[#This Row],[Existing Portfolio]]+tbl_IndustryChubb[[#This Row],[Pipeline]] -> 0
A71: Aggregate Exposure | B71: =LARGE(tbl_IndustryChubb[Existing + Pipeline],1) -> 5000000 | D71: Chemicals, Plastics & Rubber | E71: =SUMIFS(tbl_ExistingData[Total Commitment], tbl_ExistingData[Moodys Industry], tbl_IndustryChubb[[#This Row],[Moody''s Industry]] & "*", tbl_ExistingData[Fund], Fund, tbl_ExistingData[Paid Off Date], "=") -> 0 | F71: =SUMIFS(tbl_HypoPipeline[Total Commitment], tbl_HypoPipeline[Moody''s Industry], tbl_IndustryChubb[[#This Row],[Moody''s Industry]] & "*", tbl_HypoPipeline[Fund], Fund,tbl_HypoPipeline[Exclude?],"") + SUMIFS(tbl_HFS[Total Commitment],tbl_HFS[Moody''s Industry],tbl_IndustryChubb[[#This Row],[Moody''s Industry]],tbl_HFS[Fund],Fund) -> 0 | G71: =tbl_IndustryChubb[[#This Row],[Existing Portfolio]]+tbl_IndustryChubb[[#This Row],[Pipeline]] -> 0
D72: Construction & Building | E72: =SUMIFS(tbl_ExistingData[Total Commitment], tbl_ExistingData[Moodys Industry], tbl_IndustryChubb[[#This Row],[Moody''s Industry]] & "*", tbl_ExistingData[Fund], Fund, tbl_ExistingData[Paid Off Date], "=") -> 0 | F72: =SUMIFS(tbl_HypoPipeline[Total Commitment], tbl_HypoPipeline[Moody''s Industry], tbl_IndustryChubb[[#This Row],[Moody''s Industry]] & "*", tbl_HypoPipeline[Fund], Fund,tbl_HypoPipeline[Exclude?],"") + SUMIFS(tbl_HFS[Total Commitment],tbl_HFS[Moody''s Industry],tbl_IndustryChubb[[#This Row],[Moody''s Industry]],tbl_HFS[Fund],Fund) -> 0 | G72: =tbl_IndustryChubb[[#This Row],[Existing Portfolio]]+tbl_IndustryChubb[[#This Row],[Pipeline]] -> 0
D73: Consumer goods: Durable | E73: =SUMIFS(tbl_ExistingData[Total Commitment], tbl_ExistingData[Moodys Industry], tbl_IndustryChubb[[#This Row],[Moody''s Industry]] & "*", tbl_ExistingData[Fund], Fund, tbl_ExistingData[Paid Off Date], "=") -> 0 | F73: =SUMIFS(tbl_HypoPipeline[Total Commitment], tbl_HypoPipeline[Moody''s Industry], tbl_IndustryChubb[[#This Row],[Moody''s Industry]] & "*", tbl_HypoPipeline[Fund], Fund,tbl_HypoPipeline[Exclude?],"") + SUMIFS(tbl_HFS[Total Commitment],tbl_HFS[Moody''s Industry],tbl_IndustryChubb[[#This Row],[Moody''s Industry]],tbl_HFS[Fund],Fund) -> 0 | G73: =tbl_IndustryChubb[[#This Row],[Existing Portfolio]]+tbl_IndustryChubb[[#This Row],[Pipeline]] -> 0
A74: 2nd Largest Bucket | B74: =Commitment*0.2 -> 80000000 | D74: Consumer goods: Non-durable | E74: =SUMIFS(tbl_ExistingData[Total Commitment], tbl_ExistingData[Moodys Industry], tbl_IndustryChubb[[#This Row],[Moody''s Industry]] & "*", tbl_ExistingData[Fund], Fund, tbl_ExistingData[Paid Off Date], "=") -> 0 | F74: =SUMIFS(tbl_HypoPipeline[Total Commitment], tbl_HypoPipeline[Moody''s Industry], tbl_IndustryChubb[[#This Row],[Moody''s Industry]] & "*", tbl_HypoPipeline[Fund], Fund,tbl_HypoPipeline[Exclude?],"") + SUMIFS(tbl_HFS[Total Commitment],tbl_HFS[Moody''s Industry],tbl_IndustryChubb[[#This Row],[Moody''s Industry]],tbl_HFS[Fund],Fund) -> 0 | G74: =tbl_IndustryChubb[[#This Row],[Existing Portfolio]]+tbl_IndustryChubb[[#This Row],[Pipeline]] -> 0
A75: Available | B75: =B74-B80 -> 75000000 | D75: Containers, Packaging & Glass | E75: =SUMIFS(tbl_ExistingData[Total Commitment], tbl_ExistingData[Moodys Industry], tbl_IndustryChubb[[#This Row],[Moody''s Industry]] & "*", tbl_ExistingData[Fund], Fund, tbl_ExistingData[Paid Off Date], "=") -> 0 | F75: =SUMIFS(tbl_HypoPipeline[Total Commitment], tbl_HypoPipeline[Moody''s Industry], tbl_IndustryChubb[[#This Row],[Moody''s Industry]] & "*", tbl_HypoPipeline[Fund], Fund,tbl_HypoPipeline[Exclude?],"") + SUMIFS(tbl_HFS[Total Commitment],tbl_HFS[Moody''s Industry],tbl_IndustryChubb[[#This Row],[Moody''s Industry]],tbl_HFS[Fund],Fund) -> 2611277.25 | G75: =tbl_IndustryChubb[[#This Row],[Existing Portfolio]]+tbl_IndustryChubb[[#This Row],[Pipeline]] -> 2611277.25
D76: Energy: Electricity | E76: =SUMIFS(tbl_ExistingData[Total Commitment], tbl_ExistingData[Moodys Industry], tbl_IndustryChubb[[#This Row],[Moody''s Industry]] & "*", tbl_ExistingData[Fund], Fund, tbl_ExistingData[Paid Off Date], "=") -> 0 | F76: =SUMIFS(tbl_HypoPipeline[Total Commitment], tbl_HypoPipeline[Moody''s Industry], tbl_IndustryChubb[[#This Row],[Moody''s Industry]] & "*", tbl_HypoPipeline[Fund], Fund,tbl_HypoPipeline[Exclude?],"") + SUMIFS(tbl_HFS[Total Commitment],tbl_HFS[Moody''s Industry],tbl_IndustryChubb[[#This Row],[Moody''s Industry]],tbl_HFS[Fund],Fund) -> 0 | G76: =tbl_IndustryChubb[[#This Row],[Existing Portfolio]]+tbl_IndustryChubb[[#This Row],[Pipeline]] -> 0
A77: =INDEX(tbl_IndustryChubb[],MATCH(B80,tbl_IndustryChubb[Existing + Pipeline],0),1) -> Aerospace & Defense | D77: Energy: Oil & Gas | E77: =SUMIFS(tbl_ExistingData[Total Commitment], tbl_ExistingData[Moodys Industry], tbl_IndustryChubb[[#This Row],[Moody''s Industry]] & "*", tbl_ExistingData[Fund], Fund, tbl_ExistingData[Paid Off Date], "=") -> 0 | F77: =SUMIFS(tbl_HypoPipeline[Total Commitment], tbl_HypoPipeline[Moody''s Industry], tbl_IndustryChubb[[#This Row],[Moody''s Industry]] & "*", tbl_HypoPipeline[Fund], Fund,tbl_HypoPipeline[Exclude?],"") + SUMIFS(tbl_HFS[Total Commitment],tbl_HFS[Moody''s Industry],tbl_IndustryChubb[[#This Row],[Moody''s Industry]],tbl_HFS[Fund],Fund) -> 0 | G77: =tbl_IndustryChubb[[#This Row],[Existing Portfolio]]+tbl_IndustryChubb[[#This Row],[Pipeline]] -> 0
A78: Existing Portfolio | B78: =INDEX(tbl_IndustryChubb[],MATCH(B80,tbl_IndustryChubb[Existing + Pipeline],0),2) -> 0 | D78: Environmental Industries | E78: =SUMIFS(tbl_ExistingData[Total Commitment], tbl_ExistingData[Moodys Industry], tbl_IndustryChubb[[#This Row],[Moody''s Industry]] & "*", tbl_ExistingData[Fund], Fund, tbl_ExistingData[Paid Off Date], "=") -> 0 | F78: =SUMIFS(tbl_HypoPipeline[Total Commitment], tbl_HypoPipeline[Moody''s Industry], tbl_IndustryChubb[[#This Row],[Moody''s Industry]] & "*", tbl_HypoPipeline[Fund], Fund,tbl_HypoPipeline[Exclude?],"") + SUMIFS(tbl_HFS[Total Commitment],tbl_HFS[Moody''s Industry],tbl_IndustryChubb[[#This Row],[Moody''s Industry]],tbl_HFS[Fund],Fund) -> 0 | G78: =tbl_IndustryChubb[[#This Row],[Existing Portfolio]]+tbl_IndustryChubb[[#This Row],[Pipeline]] -> 0
A79: Hypo Pipeline | B79: =INDEX(tbl_IndustryChubb[],MATCH(B80,tbl_IndustryChubb[Existing + Pipeline],0),3) -> 5000000 | D79: Forest Products & Paper | E79: =SUMIFS(tbl_ExistingData[Total Commitment], tbl_ExistingData[Moodys Industry], tbl_IndustryChubb[[#This Row],[Moody''s Industry]] & "*", tbl_ExistingData[Fund], Fund, tbl_ExistingData[Paid Off Date], "=") -> 0 | F79: =SUMIFS(tbl_HypoPipeline[Total Commitment], tbl_HypoPipeline[Moody''s Industry], tbl_IndustryChubb[[#This Row],[Moody''s Industry]] & "*", tbl_HypoPipeline[Fund], Fund,tbl_HypoPipeline[Exclude?],"") + SUMIFS(tbl_HFS[Total Commitment],tbl_HFS[Moody''s Industry],tbl_IndustryChubb[[#This Row],[Moody''s Industry]],tbl_HFS[Fund],Fund) -> 0 | G79: =tbl_IndustryChubb[[#This Row],[Existing Portfolio]]+tbl_IndustryChubb[[#This Row],[Pipeline]] -> 0
A80: Aggregate Exposure | B80: =LARGE(tbl_IndustryChubb[Existing + Pipeline],2) -> 5000000 | D80: Healthcare & Pharmaceuticals | E80: =SUMIFS(tbl_ExistingData[Total Commitment], tbl_ExistingData[Moodys Industry], tbl_IndustryChubb[[#This Row],[Moody''s Industry]] & "*", tbl_ExistingData[Fund], Fund, tbl_ExistingData[Paid Off Date], "=") -> 0 | F80: =SUMIFS(tbl_HypoPipeline[Total Commitment], tbl_HypoPipeline[Moody''s Industry], tbl_IndustryChubb[[#This Row],[Moody''s Industry]] & "*", tbl_HypoPipeline[Fund], Fund,tbl_HypoPipeline[Exclude?],"") + SUMIFS(tbl_HFS[Total Commitment],tbl_HFS[Moody''s Industry],tbl_IndustryChubb[[#This Row],[Moody''s Industry]],tbl_HFS[Fund],Fund) -> 0 | G80: =tbl_IndustryChubb[[#This Row],[Existing Portfolio]]+tbl_IndustryChubb[[#This Row],[Pipeline]] -> 0
D81: High Tech Industries | E81: =SUMIFS(tbl_ExistingData[Total Commitment], tbl_ExistingData[Moodys Industry], tbl_IndustryChubb[[#This Row],[Moody''s Industry]] & "*", tbl_ExistingData[Fund], Fund, tbl_ExistingData[Paid Off Date], "=") -> 0 | F81: =SUMIFS(tbl_HypoPipeline[Total Commitment], tbl_HypoPipeline[Moody''s Industry], tbl_IndustryChubb[[#This Row],[Moody''s Industry]] & "*", tbl_HypoPipeline[Fund], Fund,tbl_HypoPipeline[Exclude?],"") + SUMIFS(tbl_HFS[Total Commitment],tbl_HFS[Moody''s Industry],tbl_IndustryChubb[[#This Row],[Moody''s Industry]],tbl_HFS[Fund],Fund) -> 1000000 | G81: =tbl_IndustryChubb[[#This Row],[Existing Portfolio]]+tbl_IndustryChubb[[#This Row],[Pipeline]] -> 1000000
D82: Hotel, Gaming & Leisure | E82: =SUMIFS(tbl_ExistingData[Total Commitment], tbl_ExistingData[Moodys Industry], tbl_IndustryChubb[[#This Row],[Moody''s Industry]] & "*", tbl_ExistingData[Fund], Fund, tbl_ExistingData[Paid Off Date], "=") -> 0 | F82: =SUMIFS(tbl_HypoPipeline[Total Commitment], tbl_HypoPipeline[Moody''s Industry], tbl_IndustryChubb[[#This Row],[Moody''s Industry]] & "*", tbl_HypoPipeline[Fund], Fund,tbl_HypoPipeline[Exclude?],"") + SUMIFS(tbl_HFS[Total Commitment],tbl_HFS[Moody''s Industry],tbl_IndustryChubb[[#This Row],[Moody''s Industry]],tbl_HFS[Fund],Fund) -> 0 | G82: =tbl_IndustryChubb[[#This Row],[Existing Portfolio]]+tbl_IndustryChubb[[#This Row],[Pipeline]] -> 0
A83: Any Other Bucket | B83: =Commitment*0.15 -> 60000000 | D83: Media: Advertising, Printing & Publishing | E83: =SUMIFS(tbl_ExistingData[Total Commitment], tbl_ExistingData[Moodys Industry], tbl_IndustryChubb[[#This Row],[Moody''s Industry]] & "*", tbl_ExistingData[Fund], Fund, tbl_ExistingData[Paid Off Date], "=") -> 0 | F83: =SUMIFS(tbl_HypoPipeline[Total Commitment], tbl_HypoPipeline[Moody''s Industry], tbl_IndustryChubb[[#This Row],[Moody''s Industry]] & "*", tbl_HypoPipeline[Fund], Fund,tbl_HypoPipeline[Exclude?],"") + SUMIFS(tbl_HFS[Total Commitment],tbl_HFS[Moody''s Industry],tbl_IndustryChubb[[#This Row],[Moody''s Industry]],tbl_HFS[Fund],Fund) -> 0 | G83: =tbl_IndustryChubb[[#This Row],[Existing Portfolio]]+tbl_IndustryChubb[[#This Row],[Pipeline]] -> 0
A84: Available | B84: =B83-B89 -> 57000000 | D84: Media: Broadcasting & Subscription | E84: =SUMIFS(tbl_ExistingData[Total Commitment], tbl_ExistingData[Moodys Industry], tbl_IndustryChubb[[#This Row],[Moody''s Industry]] & "*", tbl_ExistingData[Fund], Fund, tbl_ExistingData[Paid Off Date], "=") -> 0 | F84: =SUMIFS(tbl_HypoPipeline[Total Commitment], tbl_HypoPipeline[Moody''s Industry], tbl_IndustryChubb[[#This Row],[Moody''s Industry]] & "*", tbl_HypoPipeline[Fund], Fund,tbl_HypoPipeline[Exclude?],"") + SUMIFS(tbl_HFS[Total Commitment],tbl_HFS[Moody''s Industry],tbl_IndustryChubb[[#This Row],[Moody''s Industry]],tbl_HFS[Fund],Fund) -> 0 | G84: =tbl_IndustryChubb[[#This Row],[Existing Portfolio]]+tbl_IndustryChubb[[#This Row],[Pipeline]] -> 0
D85: Media: Diversified & Production | E85: =SUMIFS(tbl_ExistingData[Total Commitment], tbl_ExistingData[Moodys Industry], tbl_IndustryChubb[[#This Row],[Moody''s Industry]] & "*", tbl_ExistingData[Fund], Fund, tbl_ExistingData[Paid Off Date], "=") -> 0 | F85: =SUMIFS(tbl_HypoPipeline[Total Commitment], tbl_HypoPipeline[Moody''s Industry], tbl_IndustryChubb[[#This Row],[Moody''s Industry]] & "*", tbl_HypoPipeline[Fund], Fund,tbl_HypoPipeline[Exclude?],"") + SUMIFS(tbl_HFS[Total Commitment],tbl_HFS[Moody''s Industry],tbl_IndustryChubb[[#This Row],[Moody''s Industry]],tbl_HFS[Fund],Fund) -> 0 | G85: =tbl_IndustryChubb[[#This Row],[Existing Portfolio]]+tbl_IndustryChubb[[#This Row],[Pipeline]] -> 0
A86: =INDEX(tbl_IndustryChubb[],MATCH(B89,tbl_IndustryChubb[Existing + Pipeline],0),1) -> Services: Consumer | D86: Metals & Mining | E86: =SUMIFS(tbl_ExistingData[Total Commitment], tbl_ExistingData[Moodys Industry], tbl_IndustryChubb[[#This Row],[Moody''s Industry]] & "*", tbl_ExistingData[Fund], Fund, tbl_ExistingData[Paid Off Date], "=") -> 0 | F86: =SUMIFS(tbl_HypoPipeline[Total Commitment], tbl_HypoPipeline[Moody''s Industry], tbl_IndustryChubb[[#This Row],[Moody''s Industry]] & "*", tbl_HypoPipeline[Fund], Fund,tbl_HypoPipeline[Exclude?],"") + SUMIFS(tbl_HFS[Total Commitment],tbl_HFS[Moody''s Industry],tbl_IndustryChubb[[#This Row],[Moody''s Industry]],tbl_HFS[Fund],Fund) -> 0 | G86: =tbl_IndustryChubb[[#This Row],[Existing Portfolio]]+tbl_IndustryChubb[[#This Row],[Pipeline]] -> 0
A87: Existing Portfolio | B87: =INDEX(tbl_IndustryChubb[],MATCH(B89,tbl_IndustryChubb[Existing + Pipeline],0),2) -> 0 | D87: Retail | E87: =SUMIFS(tbl_ExistingData[Total Commitment], tbl_ExistingData[Moodys Industry], tbl_IndustryChubb[[#This Row],[Moody''s Industry]] & "*", tbl_ExistingData[Fund], Fund, tbl_ExistingData[Paid Off Date], "=") -> 0 | F87: =SUMIFS(tbl_HypoPipeline[Total Commitment], tbl_HypoPipeline[Moody''s Industry], tbl_IndustryChubb[[#This Row],[Moody''s Industry]] & "*", tbl_HypoPipeline[Fund], Fund,tbl_HypoPipeline[Exclude?],"") + SUMIFS(tbl_HFS[Total Commitment],tbl_HFS[Moody''s Industry],tbl_IndustryChubb[[#This Row],[Moody''s Industry]],tbl_HFS[Fund],Fund) -> 0 | G87: =tbl_IndustryChubb[[#This Row],[Existing Portfolio]]+tbl_IndustryChubb[[#This Row],[Pipeline]] -> 0
A88: Hypo Pipeline | B88: =INDEX(tbl_IndustryChubb[],MATCH(B89,tbl_IndustryChubb[Existing + Pipeline],0),3) -> 3000000 | D88: Services: Business | E88: =SUMIFS(tbl_ExistingData[Total Commitment], tbl_ExistingData[Moodys Industry], tbl_IndustryChubb[[#This Row],[Moody''s Industry]] & "*", tbl_ExistingData[Fund], Fund, tbl_ExistingData[Paid Off Date], "=") -> 0 | F88: =SUMIFS(tbl_HypoPipeline[Total Commitment], tbl_HypoPipeline[Moody''s Industry], tbl_IndustryChubb[[#This Row],[Moody''s Industry]] & "*", tbl_HypoPipeline[Fund], Fund,tbl_HypoPipeline[Exclude?],"") + SUMIFS(tbl_HFS[Total Commitment],tbl_HFS[Moody''s Industry],tbl_IndustryChubb[[#This Row],[Moody''s Industry]],tbl_HFS[Fund],Fund) -> 0 | G88: =tbl_IndustryChubb[[#This Row],[Existing Portfolio]]+tbl_IndustryChubb[[#This Row],[Pipeline]] -> 0
A89: Aggregate Exposure | B89: =LARGE(tbl_IndustryChubb[Existing + Pipeline],3) -> 3000000 | D89: Services: Consumer | E89: =SUMIFS(tbl_ExistingData[Total Commitment], tbl_ExistingData[Moodys Industry], tbl_IndustryChubb[[#This Row],[Moody''s Industry]] & "*", tbl_ExistingData[Fund], Fund, tbl_ExistingData[Paid Off Date], "=") -> 0 | F89: =SUMIFS(tbl_HypoPipeline[Total Commitment], tbl_HypoPipeline[Moody''s Industry], tbl_IndustryChubb[[#This Row],[Moody''s Industry]] & "*", tbl_HypoPipeline[Fund], Fund,tbl_HypoPipeline[Exclude?],"") + SUMIFS(tbl_HFS[Total Commitment],tbl_HFS[Moody''s Industry],tbl_IndustryChubb[[#This Row],[Moody''s Industry]],tbl_HFS[Fund],Fund) -> 3000000 | G89: =tbl_IndustryChubb[[#This Row],[Existing Portfolio]]+tbl_IndustryChubb[[#This Row],[Pipeline]] -> 3000000
D90: Sovereign & Public Finance | E90: =SUMIFS(tbl_ExistingData[Total Commitment], tbl_ExistingData[Moodys Industry], tbl_IndustryChubb[[#This Row],[Moody''s Industry]] & "*", tbl_ExistingData[Fund], Fund, tbl_ExistingData[Paid Off Date], "=") -> 0 | F90: =SUMIFS(tbl_HypoPipeline[Total Commitment], tbl_HypoPipeline[Moody''s Industry], tbl_IndustryChubb[[#This Row],[Moody''s Industry]] & "*", tbl_HypoPipeline[Fund], Fund,tbl_HypoPipeline[Exclude?],"") + SUMIFS(tbl_HFS[Total Commitment],tbl_HFS[Moody''s Industry],tbl_IndustryChubb[[#This Row],[Moody''s Industry]],tbl_HFS[Fund],Fund) -> 0 | G90: =tbl_IndustryChubb[[#This Row],[Existing Portfolio]]+tbl_IndustryChubb[[#This Row],[Pipeline]] -> 0
D91: Telecommunications | E91: =SUMIFS(tbl_ExistingData[Total Commitment], tbl_ExistingData[Moodys Industry], tbl_IndustryChubb[[#This Row],[Moody''s Industry]] & "*", tbl_ExistingData[Fund], Fund, tbl_ExistingData[Paid Off Date], "=") -> 0 | F91: =SUMIFS(tbl_HypoPipeline[Total Commitment], tbl_HypoPipeline[Moody''s Industry], tbl_IndustryChubb[[#This Row],[Moody''s Industry]] & "*", tbl_HypoPipeline[Fund], Fund,tbl_HypoPipeline[Exclude?],"") + SUMIFS(tbl_HFS[Total Commitment],tbl_HFS[Moody''s Industry],tbl_IndustryChubb[[#This Row],[Moody''s Industry]],tbl_HFS[Fund],Fund) -> 0 | G91: =tbl_IndustryChubb[[#This Row],[Existing Portfolio]]+tbl_IndustryChubb[[#This Row],[Pipeline]] -> 0
D92: Transportation: Cargo | E92: =SUMIFS(tbl_ExistingData[Total Commitment], tbl_ExistingData[Moodys Industry], tbl_IndustryChubb[[#This Row],[Moody''s Industry]] & "*", tbl_ExistingData[Fund], Fund, tbl_ExistingData[Paid Off Date], "=") -> 0 | F92: =SUMIFS(tbl_HypoPipeline[Total Commitment], tbl_HypoPipeline[Moody''s Industry], tbl_IndustryChubb[[#This Row],[Moody''s Industry]] & "*", tbl_HypoPipeline[Fund], Fund,tbl_HypoPipeline[Exclude?],"") + SUMIFS(tbl_HFS[Total Commitment],tbl_HFS[Moody''s Industry],tbl_IndustryChubb[[#This Row],[Moody''s Industry]],tbl_HFS[Fund],Fund) -> 0 | G92: =tbl_IndustryChubb[[#This Row],[Existing Portfolio]]+tbl_IndustryChubb[[#This Row],[Pipeline]] -> 0
D93: Transportation: Consumer | E93: =SUMIFS(tbl_ExistingData[Total Commitment], tbl_ExistingData[Moodys Industry], tbl_IndustryChubb[[#This Row],[Moody''s Industry]] & "*", tbl_ExistingData[Fund], Fund, tbl_ExistingData[Paid Off Date], "=") -> 0 | F93: =SUMIFS(tbl_HypoPipeline[Total Commitment], tbl_HypoPipeline[Moody''s Industry], tbl_IndustryChubb[[#This Row],[Moody''s Industry]] & "*", tbl_HypoPipeline[Fund], Fund,tbl_HypoPipeline[Exclude?],"") + SUMIFS(tbl_HFS[Total Commitment],tbl_HFS[Moody''s Industry],tbl_IndustryChubb[[#This Row],[Moody''s Industry]],tbl_HFS[Fund],Fund) -> 0 | G93: =tbl_IndustryChubb[[#This Row],[Existing Portfolio]]+tbl_IndustryChubb[[#This Row],[Pipeline]] -> 0
D94: Utilities: Electric | E94: =SUMIFS(tbl_ExistingData[Total Commitment], tbl_ExistingData[Moodys Industry], tbl_IndustryChubb[[#This Row],[Moody''s Industry]] & "*", tbl_ExistingData[Fund], Fund, tbl_ExistingData[Paid Off Date], "=") -> 0 | F94: =SUMIFS(tbl_HypoPipeline[Total Commitment], tbl_HypoPipeline[Moody''s Industry], tbl_IndustryChubb[[#This Row],[Moody''s Industry]] & "*", tbl_HypoPipeline[Fund], Fund,tbl_HypoPipeline[Exclude?],"") + SUMIFS(tbl_HFS[Total Commitment],tbl_HFS[Moody''s Industry],tbl_IndustryChubb[[#This Row],[Moody''s Industry]],tbl_HFS[Fund],Fund) -> 0 | G94: =tbl_IndustryChubb[[#This Row],[Existing Portfolio]]+tbl_IndustryChubb[[#This Row],[Pipeline]] -> 0
D95: Utilities: Oil & Gas | E95: =SUMIFS(tbl_ExistingData[Total Commitment], tbl_ExistingData[Moodys Industry], tbl_IndustryChubb[[#This Row],[Moody''s Industry]] & "*", tbl_ExistingData[Fund], Fund, tbl_ExistingData[Paid Off Date], "=") -> 0 | F95: =SUMIFS(tbl_HypoPipeline[Total Commitment], tbl_HypoPipeline[Moody''s Industry], tbl_IndustryChubb[[#This Row],[Moody''s Industry]] & "*", tbl_HypoPipeline[Fund], Fund,tbl_HypoPipeline[Exclude?],"") + SUMIFS(tbl_HFS[Total Commitment],tbl_HFS[Moody''s Industry],tbl_IndustryChubb[[#This Row],[Moody''s Industry]],tbl_HFS[Fund],Fund) -> 0 | G95: =tbl_IndustryChubb[[#This Row],[Existing Portfolio]]+tbl_IndustryChubb[[#This Row],[Pipeline]] -> 0
D96: Utilities: Water | E96: =SUMIFS(tbl_ExistingData[Total Commitment], tbl_ExistingData[Moodys Industry], tbl_IndustryChubb[[#This Row],[Moody''s Industry]] & "*", tbl_ExistingData[Fund], Fund, tbl_ExistingData[Paid Off Date], "=") -> 0 | F96: =SUMIFS(tbl_HypoPipeline[Total Commitment], tbl_HypoPipeline[Moody''s Industry], tbl_IndustryChubb[[#This Row],[Moody''s Industry]] & "*", tbl_HypoPipeline[Fund], Fund,tbl_HypoPipeline[Exclude?],"") + SUMIFS(tbl_HFS[Total Commitment],tbl_HFS[Moody''s Industry],tbl_IndustryChubb[[#This Row],[Moody''s Industry]],tbl_HFS[Fund],Fund) -> 0 | G96: =tbl_IndustryChubb[[#This Row],[Existing Portfolio]]+tbl_IndustryChubb[[#This Row],[Pipeline]] -> 0
D97: Wholesale | E97: =SUMIFS(tbl_ExistingData[Total Commitment], tbl_ExistingData[Moodys Industry], tbl_IndustryChubb[[#This Row],[Moody''s Industry]] & "*", tbl_ExistingData[Fund], Fund, tbl_ExistingData[Paid Off Date], "=") -> 0 | F97: =SUMIFS(tbl_HypoPipeline[Total Commitment], tbl_HypoPipeline[Moody''s Industry], tbl_IndustryChubb[[#This Row],[Moody''s Industry]] & "*", tbl_HypoPipeline[Fund], Fund,tbl_HypoPipeline[Exclude?],"") + SUMIFS(tbl_HFS[Total Commitment],tbl_HFS[Moody''s Industry],tbl_IndustryChubb[[#This Row],[Moody''s Industry]],tbl_HFS[Fund],Fund) -> 0 | G97: =tbl_IndustryChubb[[#This Row],[Existing Portfolio]]+tbl_IndustryChubb[[#This Row],[Pipeline]] -> 0
A100: Restricted Issuer
A101: The fund is prohibited from participating with any listed issuers.
A103: Bucket | B103: 0 | D103: Restricted Issuer | E103: Website
A104: Available | B104: =B103-B108 -> 0 | D104: Heartland Dental LLC | E104: https://www.heartland.com/
D105: Bay Club Co/The | E105: https://www.bayclubs.com/
A106: Matching Deals in Hypo | B106: =SUMPRODUCT(COUNTIF(tbl_RestrictedIssuersChubb[Restricted Issuer],tbl_HypoPipeline[Deal Name])) -> 0 | D106: GenesisCare | E106: https://www.genesiscare.com/au/
A107: Matching Deals in Portfolio | B107: =SUMPRODUCT(COUNTIF(tbl_RestrictedIssuersChubb[Restricted Issuer],tbl_ExistingData[Deal Name])) -> 0 | D107: Exact Software | E107: https://www.exact.com/
A108: Total Matches | B108: =SUM(B106:B107) -> 0 | D108: Arnott's Biscuits Limited | E108: https://www.arnotts.com/
D109: Viridor Waste Management Ltd | E109: https://www.viridor.co.uk/
D110: Roompot Services BV | E110: https://www.roompot.com/
D111: 1-800 Contacts Inc | E111: https://www.1800contacts.com/
D112: PetVet Care Centers LLC | E112: https://www.petvetcarecenters.com

Sheet Tests (AF-US)
A1: Tests: | B1: SMA-AF US
A3: SMA Commitment | B3: =VLOOKUP(Fund,tbl_Funds[[Fund]:[Principal Balance]],2,0) -> 100000000
A5: Max Commitment
A7: Bucket
A8: Commitment | B8: =Commitment -> 100000000
A9: Protective Advances Holdback | B9: =_xlfn.XLOOKUP(Fund,tbl_Funds[Fund],tbl_Funds[Protective Advances]) -> 5000000
A10: Bucket Subtotal | B10: =B8-B9 -> 95000000
A11: Available | B11: =B10-B15 -> 95000000
A13: Existing Portfolio | B13: =SUMIFS(tbl_ExistingData[Total Commitment],tbl_ExistingData[Fund],Fund, tbl_ExistingData[Paid Off Date], "=") -> 0
A14: Hypo Pipeline | B14: =SUMIFS(tbl_HypoPipeline[Total Commitment],tbl_HypoPipeline[Fund],Fund,tbl_HypoPipeline[Exclude?],"") -> 0
A15: Final Test Total | B15: =B14+B13 -> 0
A17: Protective Advances
A18: Portfolio | B18: =SUMIF(tbl_ProtectiveAdvances[SMA],Fund,tbl_ProtectiveAdvances[Commitment Amount]) -> 49991.64
A19: Hypo | B19: =SUMIFS(tbl_HypoPipeline[Total Commitment],tbl_HypoPipeline[Fund],Fund,tbl_HypoPipeline[Protective Advances],"Y") -> 0
A22: Unfunded Commitment
A23: The sum of Portfolio and Pipeline values (Revolver Commitments + DDTL Commitments - DDTL Principal) must be < 15% of total SMA Commitment.
A25: Bucket | B25: =Commitment*0.15 -> 15000000
A26: Available | B26: =B25-B40 -> 15000000
A28: Existing Portfolio
A29: Total Revolver Commitment in Program | B29: =SUMIFS(tbl_ExistingData[Total Commitment],tbl_ExistingData[Tranche],"*evolv*",tbl_ExistingData[Fund],Fund, tbl_ExistingData[Paid Off Date], "=") -> 0
A30: Total DDTL Commitment in Program | B30: =SUM(SUMIFS(tbl_ExistingData[Total Commitment],tbl_ExistingData[Tranche],{"*Delayed Draw*","*DDTL*"},tbl_ExistingData[Fund],Fund, tbl_ExistingData[Paid Off Date], "=")) -> 0
A31: Total DDTL Principal in Program | B31: =SUM(SUMIFS(tbl_ExistingData[Principal Balance],tbl_ExistingData[Tranche],{"*Delayed Draw*","*DDTL*"},tbl_ExistingData[Fund],Fund, tbl_ExistingData[Paid Off Date], "=")) -> 0
A32: Existing Portfolio Subtotal | B32: =B29+B30-B31 -> 0
A34: Hypo Pipeline
A35: Total Revolver Commitment in Pipeline | B35: =SUMIFS(tbl_HypoPipeline[Total Commitment], tbl_HypoPipeline[Tranche], "*evolv*", tbl_HypoPipeline[Fund], Fund,tbl_HypoPipeline[Exclude?],"") -> 0
A36: Total DDTL Commitment in Pipeline | B36: =SUM(SUMIFS(tbl_HypoPipeline[Total Commitment],tbl_HypoPipeline[Tranche],{"*Delayed Draw*","*DDTL*"},tbl_HypoPipeline[Fund],Fund,tbl_HypoPipeline[Exclude?],"")) -> 0
A37: Total DDTL Principal in Pipeline | B37: =SUM(SUMIFS(tbl_HypoPipeline[Principal Balance],tbl_HypoPipeline[Tranche],{"*Delayed Draw*","*DDTL*"},tbl_HypoPipeline[Fund],Fund,tbl_HypoPipeline[Exclude?],"")) -> 0
A38: Hypo Pipeline Subtotal | B38: =B35+B36-B37 -> 0
A40: Final Test Total | B40: =B38+B32 -> 0
A42: Net Senior Leverage 4.75x
A43: (Original Net Senior Leverage > 4.75) < 30% * SMA Commitment Amount
A45: Bucket | B45: =Commitment*0.3 -> 30000000
A46: Available | B46: =B45-B50 -> 30000000
A48: Existing Portfolio | B48: =SUMIFS(tbl_ExistingData[Total Commitment], tbl_ExistingData[Net Senior Leverage], ">4.75", tbl_ExistingData[Fund], Fund, tbl_ExistingData[Paid Off Date], "=") -> 0 | D48: =IF(COUNTIFS(tbl_ExistingData[Fund],Fund,tbl_ExistingData[Net Senior Leverage],0)>0,"There exist [" & COUNTIFS(tbl_ExistingData[Fund],Fund,tbl_ExistingData[Net Senior Leverage],0) & "] " & Fund & " deals in the Active Portfolio with a Net Senior Leverage of 0.","") -> 
A49: Hypo Pipeline | B49: =SUMIFS(tbl_HypoPipeline[Total Commitment], tbl_HypoPipeline[Net Senior Leverage], ">4.75", tbl_HypoPipeline[Fund], Fund,tbl_HypoPipeline[Exclude?],"") -> 0
A50: Final Test Total | B50: =B49+B48 -> 0
A52: Net Senior Leverage 5.50x
A53: (Original Net Senior Leverage > 5.50) < 10% * SMA Commitment Amount
A55: Bucket | B55: =Commitment*0.1 -> 10000000
A56: Available | B56: =B55-B60 -> 10000000
A58: Existing Portfolio | B58: =SUMIFS(tbl_ExistingData[Total Commitment], tbl_ExistingData[Net Senior Leverage], ">5.5", tbl_ExistingData[Fund], Fund, tbl_ExistingData[Paid Off Date], "=") -> 0 | D58: =IF(COUNTIFS(tbl_ExistingData[Fund],Fund,tbl_ExistingData[Net Senior Leverage],0)>0,"There exist [" & COUNTIFS(tbl_ExistingData[Fund],Fund,tbl_ExistingData[Net Senior Leverage],0) & "] " & Fund & " deals in the Active Portfolio with a Net Senior Leverage of 0.","") -> 
A59: Hypo Pipeline | B59: =SUMIFS(tbl_HypoPipeline[Total Commitment], tbl_HypoPipeline[Net Senior Leverage], ">5.5", tbl_HypoPipeline[Fund], Fund,tbl_HypoPipeline[Exclude?],"") -> 0
A60: Final Test Total | B60: =B59+B58 -> 0
A62: Open Market
A63: All Commitments Secondary Market < 5% * SMA Commitment Amount
A65: Bucket | B65: =Commitment*0.05 -> 5000000
A66: Available | B66: =B65-B70 -> 5000000
A68: Existing Portfolio | B68: =SUMIFS(tbl_ExistingData[Total Commitment],tbl_ExistingData[Open Market Purchase (Y)], "Y",tbl_ExistingData[Fund],Fund, tbl_ExistingData[Paid Off Date], "=") -> 0
A69: Hypo Pipeline | B69: =SUMIFS(tbl_HypoPipeline[Total Commitment],tbl_HypoPipeline[Open Market Purchase (Y)], "Y",tbl_HypoPipeline[Fund],Fund,tbl_HypoPipeline[Exclude?],"") -> 0
A70: Final Test Total | B70: =B69+B68 -> 0
A72: Industry Tests
A73: Maximum aggregate exposure of 25%, 20% and 15% of SMA Commitment for largest three industries.
A75: Largest Bucket | B75: =Commitment*0.25 -> 25000000 | D75: Moody's Industry | E75: Existing | F75: Pipeline | G75: Existing + Pipeline
A76: Available | B76: =B75-B81 -> 25000000 | D76: Aerospace & Defense | E76: =SUMIFS(tbl_ExistingData[Total Commitment], tbl_ExistingData[Moodys Industry], tbl_IndustryAFUS[[#This Row],[Moody''s Industry]] & "*", tbl_ExistingData[Fund], Fund, tbl_ExistingData[Paid Off Date], "=") -> 0 | F76: =SUMIFS(tbl_HypoPipeline[Total Commitment], tbl_HypoPipeline[Moody''s Industry], tbl_IndustryAFUS[[#This Row],[Moody''s Industry]] & "*", tbl_HypoPipeline[Fund], Fund,tbl_HypoPipeline[Exclude?],"") + SUMIFS(tbl_HFS[Total Commitment],tbl_HFS[Moody''s Industry],tbl_IndustryAFUS[[#This Row],[Moody''s Industry]],tbl_HFS[Fund],Fund) -> 0 | G76: =tbl_IndustryAFUS[[#This Row],[Existing]]+tbl_IndustryAFUS[[#This Row],[Pipeline]] -> 0
D77: Automotive | E77: =SUMIFS(tbl_ExistingData[Total Commitment], tbl_ExistingData[Moodys Industry], tbl_IndustryAFUS[[#This Row],[Moody''s Industry]] & "*", tbl_ExistingData[Fund], Fund, tbl_ExistingData[Paid Off Date], "=") -> 0 | F77: =SUMIFS(tbl_HypoPipeline[Total Commitment], tbl_HypoPipeline[Moody''s Industry], tbl_IndustryAFUS[[#This Row],[Moody''s Industry]] & "*", tbl_HypoPipeline[Fund], Fund,tbl_HypoPipeline[Exclude?],"") + SUMIFS(tbl_HFS[Total Commitment],tbl_HFS[Moody''s Industry],tbl_IndustryAFUS[[#This Row],[Moody''s Industry]],tbl_HFS[Fund],Fund) -> 0 | G77: =tbl_IndustryAFUS[[#This Row],[Existing]]+tbl_IndustryAFUS[[#This Row],[Pipeline]] -> 0
A78: =INDEX(tbl_IndustryAFUS[],MATCH(B81,tbl_IndustryAFUS[Existing + Pipeline],0),1) -> Aerospace & Defense | D78: Banking, Finance, Insurance & Real Estate | E78: =SUMIFS(tbl_ExistingData[Total Commitment], tbl_ExistingData[Moodys Industry], tbl_IndustryAFUS[[#This Row],[Moody''s Industry]] & "*", tbl_ExistingData[Fund], Fund, tbl_ExistingData[Paid Off Date], "=") -> 0 | F78: =SUMIFS(tbl_HypoPipeline[Total Commitment], tbl_HypoPipeline[Moody''s Industry], tbl_IndustryAFUS[[#This Row],[Moody''s Industry]] & "*", tbl_HypoPipeline[Fund], Fund,tbl_HypoPipeline[Exclude?],"") + SUMIFS(tbl_HFS[Total Commitment],tbl_HFS[Moody''s Industry],tbl_IndustryAFUS[[#This Row],[Moody''s Industry]],tbl_HFS[Fund],Fund) -> 0 | G78: =tbl_IndustryAFUS[[#This Row],[Existing]]+tbl_IndustryAFUS[[#This Row],[Pipeline]] -> 0
A79: Existing Portfolio Component | B79: =INDEX(tbl_IndustryAFUS[],MATCH(B81,tbl_IndustryAFUS[Existing + Pipeline],0),2) -> 0 | D79: Beverage, Food & Tobacco | E79: =SUMIFS(tbl_ExistingData[Total Commitment], tbl_ExistingData[Moodys Industry], tbl_IndustryAFUS[[#This Row],[Moody''s Industry]] & "*", tbl_ExistingData[Fund], Fund, tbl_ExistingData[Paid Off Date], "=") -> 0 | F79: =SUMIFS(tbl_HypoPipeline[Total Commitment], tbl_HypoPipeline[Moody''s Industry], tbl_IndustryAFUS[[#This Row],[Moody''s Industry]] & "*", tbl_HypoPipeline[Fund], Fund,tbl_HypoPipeline[Exclude?],"") + SUMIFS(tbl_HFS[Total Commitment],tbl_HFS[Moody''s Industry],tbl_IndustryAFUS[[#This Row],[Moody''s Industry]],tbl_HFS[Fund],Fund) -> 0 | G79: =tbl_IndustryAFUS[[#This Row],[Existing]]+tbl_IndustryAFUS[[#This Row],[Pipeline]] -> 0
A80: Hypo Pipeline Component | B80: =INDEX(tbl_IndustryAFUS[],MATCH(B81,tbl_IndustryAFUS[Existing + Pipeline],0),3) -> 0 | D80: Capital Equipment | E80: =SUMIFS(tbl_ExistingData[Total Commitment], tbl_ExistingData[Moodys Industry], tbl_IndustryAFUS[[#This Row],[Moody''s Industry]] & "*", tbl_ExistingData[Fund], Fund, tbl_ExistingData[Paid Off Date], "=") -> 0 | F80: =SUMIFS(tbl_HypoPipeline[Total Commitment], tbl_HypoPipeline[Moody''s Industry], tbl_IndustryAFUS[[#This Row],[Moody''s Industry]] & "*", tbl_HypoPipeline[Fund], Fund,tbl_HypoPipeline[Exclude?],"") + SUMIFS(tbl_HFS[Total Commitment],tbl_HFS[Moody''s Industry],tbl_IndustryAFUS[[#This Row],[Moody''s Industry]],tbl_HFS[Fund],Fund) -> 0 | G80: =tbl_IndustryAFUS[[#This Row],[Existing]]+tbl_IndustryAFUS[[#This Row],[Pipeline]] -> 0
A81: Aggregate Exposure | B81: =LARGE(tbl_IndustryAFUS[Existing + Pipeline],1) -> 0 | D81: Chemicals, Plastics & Rubber | E81: =SUMIFS(tbl_ExistingData[Total Commitment], tbl_ExistingData[Moodys Industry], tbl_IndustryAFUS[[#This Row],[Moody''s Industry]] & "*", tbl_ExistingData[Fund], Fund, tbl_ExistingData[Paid Off Date], "=") -> 0 | F81: =SUMIFS(tbl_HypoPipeline[Total Commitment], tbl_HypoPipeline[Moody''s Industry], tbl_IndustryAFUS[[#This Row],[Moody''s Industry]] & "*", tbl_HypoPipeline[Fund], Fund,tbl_HypoPipeline[Exclude?],"") + SUMIFS(tbl_HFS[Total Commitment],tbl_HFS[Moody''s Industry],tbl_IndustryAFUS[[#This Row],[Moody''s Industry]],tbl_HFS[Fund],Fund) -> 0 | G81: =tbl_IndustryAFUS[[#This Row],[Existing]]+tbl_IndustryAFUS[[#This Row],[Pipeline]] -> 0
D82: Construction & Building | E82: =SUMIFS(tbl_ExistingData[Total Commitment], tbl_ExistingData[Moodys Industry], tbl_IndustryAFUS[[#This Row],[Moody''s Industry]] & "*", tbl_ExistingData[Fund], Fund, tbl_ExistingData[Paid Off Date], "=") -> 0 | F82: =SUMIFS(tbl_HypoPipeline[Total Commitment], tbl_HypoPipeline[Moody''s Industry], tbl_IndustryAFUS[[#This Row],[Moody''s Industry]] & "*", tbl_HypoPipeline[Fund], Fund,tbl_HypoPipeline[Exclude?],"") + SUMIFS(tbl_HFS[Total Commitment],tbl_HFS[Moody''s Industry],tbl_IndustryAFUS[[#This Row],[Moody''s Industry]],tbl_HFS[Fund],Fund) -> 0 | G82: =tbl_IndustryAFUS[[#This Row],[Existing]]+tbl_IndustryAFUS[[#This Row],[Pipeline]] -> 0
D83: Consumer goods: Durable | E83: =SUMIFS(tbl_ExistingData[Total Commitment], tbl_ExistingData[Moodys Industry], tbl_IndustryAFUS[[#This Row],[Moody''s Industry]] & "*", tbl_ExistingData[Fund], Fund, tbl_ExistingData[Paid Off Date], "=") -> 0 | F83: =SUMIFS(tbl_HypoPipeline[Total Commitment], tbl_HypoPipeline[Moody''s Industry], tbl_IndustryAFUS[[#This Row],[Moody''s Industry]] & "*", tbl_HypoPipeline[Fund], Fund,tbl_HypoPipeline[Exclude?],"") + SUMIFS(tbl_HFS[Total Commitment],tbl_HFS[Moody''s Industry],tbl_IndustryAFUS[[#This Row],[Moody''s Industry]],tbl_HFS[Fund],Fund) -> 0 | G83: =tbl_IndustryAFUS[[#This Row],[Existing]]+tbl_IndustryAFUS[[#This Row],[Pipeline]] -> 0
A84: 2nd Largest Bucket | B84: =Commitment*0.2 -> 20000000 | D84: Consumer goods: Non-durable | E84: =SUMIFS(tbl_ExistingData[Total Commitment], tbl_ExistingData[Moodys Industry], tbl_IndustryAFUS[[#This Row],[Moody''s Industry]] & "*", tbl_ExistingData[Fund], Fund, tbl_ExistingData[Paid Off Date], "=") -> 0 | F84: =SUMIFS(tbl_HypoPipeline[Total Commitment], tbl_HypoPipeline[Moody''s Industry], tbl_IndustryAFUS[[#This Row],[Moody''s Industry]] & "*", tbl_HypoPipeline[Fund], Fund,tbl_HypoPipeline[Exclude?],"") + SUMIFS(tbl_HFS[Total Commitment],tbl_HFS[Moody''s Industry],tbl_IndustryAFUS[[#This Row],[Moody''s Industry]],tbl_HFS[Fund],Fund) -> 0 | G84: =tbl_IndustryAFUS[[#This Row],[Existing]]+tbl_IndustryAFUS[[#This Row],[Pipeline]] -> 0
A85: Available | B85: =B84-B90 -> 20000000 | D85: Containers, Packaging & Glass | E85: =SUMIFS(tbl_ExistingData[Total Commitment], tbl_ExistingData[Moodys Industry], tbl_IndustryAFUS[[#This Row],[Moody''s Industry]] & "*", tbl_ExistingData[Fund], Fund, tbl_ExistingData[Paid Off Date], "=") -> 0 | F85: =SUMIFS(tbl_HypoPipeline[Total Commitment], tbl_HypoPipeline[Moody''s Industry], tbl_IndustryAFUS[[#This Row],[Moody''s Industry]] & "*", tbl_HypoPipeline[Fund], Fund,tbl_HypoPipeline[Exclude?],"") + SUMIFS(tbl_HFS[Total Commitment],tbl_HFS[Moody''s Industry],tbl_IndustryAFUS[[#This Row],[Moody''s Industry]],tbl_HFS[Fund],Fund) -> 0 | G85: =tbl_IndustryAFUS[[#This Row],[Existing]]+tbl_IndustryAFUS[[#This Row],[Pipeline]] -> 0
D86: Energy: Electricity | E86: =SUMIFS(tbl_ExistingData[Total Commitment], tbl_ExistingData[Moodys Industry], tbl_IndustryAFUS[[#This Row],[Moody''s Industry]] & "*", tbl_ExistingData[Fund], Fund, tbl_ExistingData[Paid Off Date], "=") -> 0 | F86: =SUMIFS(tbl_HypoPipeline[Total Commitment], tbl_HypoPipeline[Moody''s Industry], tbl_IndustryAFUS[[#This Row],[Moody''s Industry]] & "*", tbl_HypoPipeline[Fund], Fund,tbl_HypoPipeline[Exclude?],"") + SUMIFS(tbl_HFS[Total Commitment],tbl_HFS[Moody''s Industry],tbl_IndustryAFUS[[#This Row],[Moody''s Industry]],tbl_HFS[Fund],Fund) -> 0 | G86: =tbl_IndustryAFUS[[#This Row],[Existing]]+tbl_IndustryAFUS[[#This Row],[Pipeline]] -> 0
A87: =INDEX(tbl_IndustryAFUS[],MATCH(B90,tbl_IndustryAFUS[Existing + Pipeline],0),1) -> Aerospace & Defense | D87: Energy: Oil & Gas | E87: =SUMIFS(tbl_ExistingData[Total Commitment], tbl_ExistingData[Moodys Industry], tbl_IndustryAFUS[[#This Row],[Moody''s Industry]] & "*", tbl_ExistingData[Fund], Fund, tbl_ExistingData[Paid Off Date], "=") -> 0 | F87: =SUMIFS(tbl_HypoPipeline[Total Commitment], tbl_HypoPipeline[Moody''s Industry], tbl_IndustryAFUS[[#This Row],[Moody''s Industry]] & "*", tbl_HypoPipeline[Fund], Fund,tbl_HypoPipeline[Exclude?],"") + SUMIFS(tbl_HFS[Total Commitment],tbl_HFS[Moody''s Industry],tbl_IndustryAFUS[[#This Row],[Moody''s Industry]],tbl_HFS[Fund],Fund) -> 0 | G87: =tbl_IndustryAFUS[[#This Row],[Existing]]+tbl_IndustryAFUS[[#This Row],[Pipeline]] -> 0
A88: Existing Portfolio | B88: =INDEX(tbl_IndustryAFUS[],MATCH(B90,tbl_IndustryAFUS[Existing + Pipeline],0),2) -> 0 | D88: Environmental Industries | E88: =SUMIFS(tbl_ExistingData[Total Commitment], tbl_ExistingData[Moodys Industry], tbl_IndustryAFUS[[#This Row],[Moody''s Industry]] & "*", tbl_ExistingData[Fund], Fund, tbl_ExistingData[Paid Off Date], "=") -> 0 | F88: =SUMIFS(tbl_HypoPipeline[Total Commitment], tbl_HypoPipeline[Moody''s Industry], tbl_IndustryAFUS[[#This Row],[Moody''s Industry]] & "*", tbl_HypoPipeline[Fund], Fund,tbl_HypoPipeline[Exclude?],"") + SUMIFS(tbl_HFS[Total Commitment],tbl_HFS[Moody''s Industry],tbl_IndustryAFUS[[#This Row],[Moody''s Industry]],tbl_HFS[Fund],Fund) -> 0 | G88: =tbl_IndustryAFUS[[#This Row],[Existing]]+tbl_IndustryAFUS[[#This Row],[Pipeline]] -> 0
A89: Hypo Pipeline | B89: =INDEX(tbl_IndustryAFUS[],MATCH(B90,tbl_IndustryAFUS[Existing + Pipeline],0),3) -> 0 | D89: Forest Products & Paper | E89: =SUMIFS(tbl_ExistingData[Total Commitment], tbl_ExistingData[Moodys Industry], tbl_IndustryAFUS[[#This Row],[Moody''s Industry]] & "*", tbl_ExistingData[Fund], Fund, tbl_ExistingData[Paid Off Date], "=") -> 0 | F89: =SUMIFS(tbl_HypoPipeline[Total Commitment], tbl_HypoPipeline[Moody''s Industry], tbl_IndustryAFUS[[#This Row],[Moody''s Industry]] & "*", tbl_HypoPipeline[Fund], Fund,tbl_HypoPipeline[Exclude?],"") + SUMIFS(tbl_HFS[Total Commitment],tbl_HFS[Moody''s Industry],tbl_IndustryAFUS[[#This Row],[Moody''s Industry]],tbl_HFS[Fund],Fund) -> 0 | G89: =tbl_IndustryAFUS[[#This Row],[Existing]]+tbl_IndustryAFUS[[#This Row],[Pipeline]] -> 0
A90: Aggregate Exposure | B90: =LARGE(tbl_IndustryAFUS[Existing + Pipeline],2) -> 0 | D90: Healthcare & Pharmaceuticals | E90: =SUMIFS(tbl_ExistingData[Total Commitment], tbl_ExistingData[Moodys Industry], tbl_IndustryAFUS[[#This Row],[Moody''s Industry]] & "*", tbl_ExistingData[Fund], Fund, tbl_ExistingData[Paid Off Date], "=") -> 0 | F90: =SUMIFS(tbl_HypoPipeline[Total Commitment], tbl_HypoPipeline[Moody''s Industry], tbl_IndustryAFUS[[#This Row],[Moody''s Industry]] & "*", tbl_HypoPipeline[Fund], Fund,tbl_HypoPipeline[Exclude?],"") + SUMIFS(tbl_HFS[Total Commitment],tbl_HFS[Moody''s Industry],tbl_IndustryAFUS[[#This Row],[Moody''s Industry]],tbl_HFS[Fund],Fund) -> 0 | G90: =tbl_IndustryAFUS[[#This Row],[Existing]]+tbl_IndustryAFUS[[#This Row],[Pipeline]] -> 0
D91: High Tech Industries | E91: =SUMIFS(tbl_ExistingData[Total Commitment], tbl_ExistingData[Moodys Industry], tbl_IndustryAFUS[[#This Row],[Moody''s Industry]] & "*", tbl_ExistingData[Fund], Fund, tbl_ExistingData[Paid Off Date], "=") -> 0 | F91: =SUMIFS(tbl_HypoPipeline[Total Commitment], tbl_HypoPipeline[Moody''s Industry], tbl_IndustryAFUS[[#This Row],[Moody''s Industry]] & "*", tbl_HypoPipeline[Fund], Fund,tbl_HypoPipeline[Exclude?],"") + SUMIFS(tbl_HFS[Total Commitment],tbl_HFS[Moody''s Industry],tbl_IndustryAFUS[[#This Row],[Moody''s Industry]],tbl_HFS[Fund],Fund) -> 0 | G91: =tbl_IndustryAFUS[[#This Row],[Existing]]+tbl_IndustryAFUS[[#This Row],[Pipeline]] -> 0
D92: Hotel, Gaming & Leisure | E92: =SUMIFS(tbl_ExistingData[Total Commitment], tbl_ExistingData[Moodys Industry], tbl_IndustryAFUS[[#This Row],[Moody''s Industry]] & "*", tbl_ExistingData[Fund], Fund, tbl_ExistingData[Paid Off Date], "=") -> 0 | F92: =SUMIFS(tbl_HypoPipeline[Total Commitment], tbl_HypoPipeline[Moody''s Industry], tbl_IndustryAFUS[[#This Row],[Moody''s Industry]] & "*", tbl_HypoPipeline[Fund], Fund,tbl_HypoPipeline[Exclude?],"") + SUMIFS(tbl_HFS[Total Commitment],tbl_HFS[Moody''s Industry],tbl_IndustryAFUS[[#This Row],[Moody''s Industry]],tbl_HFS[Fund],Fund) -> 0 | G92: =tbl_IndustryAFUS[[#This Row],[Existing]]+tbl_IndustryAFUS[[#This Row],[Pipeline]] -> 0
A93: Any Other Bucket | B93: =Commitment*0.15 -> 15000000 | D93: Media: Advertising, Printing & Publishing | E93: =SUMIFS(tbl_ExistingData[Total Commitment], tbl_ExistingData[Moodys Industry], tbl_IndustryAFUS[[#This Row],[Moody''s Industry]] & "*", tbl_ExistingData[Fund], Fund, tbl_ExistingData[Paid Off Date], "=") -> 0 | F93: =SUMIFS(tbl_HypoPipeline[Total Commitment], tbl_HypoPipeline[Moody''s Industry], tbl_IndustryAFUS[[#This Row],[Moody''s Industry]] & "*", tbl_HypoPipeline[Fund], Fund,tbl_HypoPipeline[Exclude?],"") + SUMIFS(tbl_HFS[Total Commitment],tbl_HFS[Moody''s Industry],tbl_IndustryAFUS[[#This Row],[Moody''s Industry]],tbl_HFS[Fund],Fund) -> 0 | G93: =tbl_IndustryAFUS[[#This Row],[Existing]]+tbl_IndustryAFUS[[#This Row],[Pipeline]] -> 0
A94: Available | B94: =B93-B99 -> 15000000 | D94: Media: Broadcasting & Subscription | E94: =SUMIFS(tbl_ExistingData[Total Commitment], tbl_ExistingData[Moodys Industry], tbl_IndustryAFUS[[#This Row],[Moody''s Industry]] & "*", tbl_ExistingData[Fund], Fund, tbl_ExistingData[Paid Off Date], "=") -> 0 | F94: =SUMIFS(tbl_HypoPipeline[Total Commitment], tbl_HypoPipeline[Moody''s Industry], tbl_IndustryAFUS[[#This Row],[Moody''s Industry]] & "*", tbl_HypoPipeline[Fund], Fund,tbl_HypoPipeline[Exclude?],"") + SUMIFS(tbl_HFS[Total Commitment],tbl_HFS[Moody''s Industry],tbl_IndustryAFUS[[#This Row],[Moody''s Industry]],tbl_HFS[Fund],Fund) -> 0 | G94: =tbl_IndustryAFUS[[#This Row],[Existing]]+tbl_IndustryAFUS[[#This Row],[Pipeline]] -> 0
D95: Media: Diversified & Production | E95: =SUMIFS(tbl_ExistingData[Total Commitment], tbl_ExistingData[Moodys Industry], tbl_IndustryAFUS[[#This Row],[Moody''s Industry]] & "*", tbl_ExistingData[Fund], Fund, tbl_ExistingData[Paid Off Date], "=") -> 0 | F95: =SUMIFS(tbl_HypoPipeline[Total Commitment], tbl_HypoPipeline[Moody''s Industry], tbl_IndustryAFUS[[#This Row],[Moody''s Industry]] & "*", tbl_HypoPipeline[Fund], Fund,tbl_HypoPipeline[Exclude?],"") + SUMIFS(tbl_HFS[Total Commitment],tbl_HFS[Moody''s Industry],tbl_IndustryAFUS[[#This Row],[Moody''s Industry]],tbl_HFS[Fund],Fund) -> 0 | G95: =tbl_IndustryAFUS[[#This Row],[Existing]]+tbl_IndustryAFUS[[#This Row],[Pipeline]] -> 0
A96: =INDEX(tbl_IndustryAFUS[],MATCH(B99,tbl_IndustryAFUS[Existing + Pipeline],0),1) -> Aerospace & Defense | D96: Metals & Mining | E96: =SUMIFS(tbl_ExistingData[Total Commitment], tbl_ExistingData[Moodys Industry], tbl_IndustryAFUS[[#This Row],[Moody''s Industry]] & "*", tbl_ExistingData[Fund], Fund, tbl_ExistingData[Paid Off Date], "=") -> 0 | F96: =SUMIFS(tbl_HypoPipeline[Total Commitment], tbl_HypoPipeline[Moody''s Industry], tbl_IndustryAFUS[[#This Row],[Moody''s Industry]] & "*", tbl_HypoPipeline[Fund], Fund,tbl_HypoPipeline[Exclude?],"") + SUMIFS(tbl_HFS[Total Commitment],tbl_HFS[Moody''s Industry],tbl_IndustryAFUS[[#This Row],[Moody''s Industry]],tbl_HFS[Fund],Fund) -> 0 | G96: =tbl_IndustryAFUS[[#This Row],[Existing]]+tbl_IndustryAFUS[[#This Row],[Pipeline]] -> 0
A97: Existing Portfolio | B97: =INDEX(tbl_IndustryAFUS[],MATCH(B99,tbl_IndustryAFUS[Existing + Pipeline],0),2) -> 0 | D97: Retail | E97: =SUMIFS(tbl_ExistingData[Total Commitment], tbl_ExistingData[Moodys Industry], tbl_IndustryAFUS[[#This Row],[Moody''s Industry]] & "*", tbl_ExistingData[Fund], Fund, tbl_ExistingData[Paid Off Date], "=") -> 0 | F97: =SUMIFS(tbl_HypoPipeline[Total Commitment], tbl_HypoPipeline[Moody''s Industry], tbl_IndustryAFUS[[#This Row],[Moody''s Industry]] & "*", tbl_HypoPipeline[Fund], Fund,tbl_HypoPipeline[Exclude?],"") + SUMIFS(tbl_HFS[Total Commitment],tbl_HFS[Moody''s Industry],tbl_IndustryAFUS[[#This Row],[Moody''s Industry]],tbl_HFS[Fund],Fund) -> 0 | G97: =tbl_IndustryAFUS[[#This Row],[Existing]]+tbl_IndustryAFUS[[#This Row],[Pipeline]] -> 0
A98: Hypo Pipeline | B98: =INDEX(tbl_IndustryAFUS[],MATCH(B99,tbl_IndustryAFUS[Existing + Pipeline],0),3) -> 0 | D98: Services: Business | E98: =SUMIFS(tbl_ExistingData[Total Commitment], tbl_ExistingData[Moodys Industry], tbl_IndustryAFUS[[#This Row],[Moody''s Industry]] & "*", tbl_ExistingData[Fund], Fund, tbl_ExistingData[Paid Off Date], "=") -> 0 | F98: =SUMIFS(tbl_HypoPipeline[Total Commitment], tbl_HypoPipeline[Moody''s Industry], tbl_IndustryAFUS[[#This Row],[Moody''s Industry]] & "*", tbl_HypoPipeline[Fund], Fund,tbl_HypoPipeline[Exclude?],"") + SUMIFS(tbl_HFS[Total Commitment],tbl_HFS[Moody''s Industry],tbl_IndustryAFUS[[#This Row],[Moody''s Industry]],tbl_HFS[Fund],Fund) -> 0 | G98: =tbl_IndustryAFUS[[#This Row],[Existing]]+tbl_IndustryAFUS[[#This Row],[Pipeline]] -> 0
A99: Aggregate Exposure | B99: =LARGE(tbl_IndustryAFUS[Existing + Pipeline],3) -> 0 | D99: Services: Consumer | E99: =SUMIFS(tbl_ExistingData[Total Commitment], tbl_ExistingData[Moodys Industry], tbl_IndustryAFUS[[#This Row],[Moody''s Industry]] & "*", tbl_ExistingData[Fund], Fund, tbl_ExistingData[Paid Off Date], "=") -> 0 | F99: =SUMIFS(tbl_HypoPipeline[Total Commitment], tbl_HypoPipeline[Moody''s Industry], tbl_IndustryAFUS[[#This Row],[Moody''s Industry]] & "*", tbl_HypoPipeline[Fund], Fund,tbl_HypoPipeline[Exclude?],"") + SUMIFS(tbl_HFS[Total Commitment],tbl_HFS[Moody''s Industry],tbl_IndustryAFUS[[#This Row],[Moody''s Industry]],tbl_HFS[Fund],Fund) -> 0 | G99: =tbl_IndustryAFUS[[#This Row],[Existing]]+tbl_IndustryAFUS[[#This Row],[Pipeline]] -> 0
D100: Sovereign & Public Finance | E100: =SUMIFS(tbl_ExistingData[Total Commitment], tbl_ExistingData[Moodys Industry], tbl_IndustryAFUS[[#This Row],[Moody''s Industry]] & "*", tbl_ExistingData[Fund], Fund, tbl_ExistingData[Paid Off Date], "=") -> 0 | F100: =SUMIFS(tbl_HypoPipeline[Total Commitment], tbl_HypoPipeline[Moody''s Industry], tbl_IndustryAFUS[[#This Row],[Moody''s Industry]] & "*", tbl_HypoPipeline[Fund], Fund,tbl_HypoPipeline[Exclude?],"") + SUMIFS(tbl_HFS[Total Commitment],tbl_HFS[Moody''s Industry],tbl_IndustryAFUS[[#This Row],[Moody''s Industry]],tbl_HFS[Fund],Fund) -> 0 | G100: =tbl_IndustryAFUS[[#This Row],[Existing]]+tbl_IndustryAFUS[[#This Row],[Pipeline]] -> 0
D101: Telecommunications | E101: =SUMIFS(tbl_ExistingData[Total Commitment], tbl_ExistingData[Moodys Industry], tbl_IndustryAFUS[[#This Row],[Moody''s Industry]] & "*", tbl_ExistingData[Fund], Fund, tbl_ExistingData[Paid Off Date], "=") -> 0 | F101: =SUMIFS(tbl_HypoPipeline[Total Commitment], tbl_HypoPipeline[Moody''s Industry], tbl_IndustryAFUS[[#This Row],[Moody''s Industry]] & "*", tbl_HypoPipeline[Fund], Fund,tbl_HypoPipeline[Exclude?],"") + SUMIFS(tbl_HFS[Total Commitment],tbl_HFS[Moody''s Industry],tbl_IndustryAFUS[[#This Row],[Moody''s Industry]],tbl_HFS[Fund],Fund) -> 0 | G101: =tbl_IndustryAFUS[[#This Row],[Existing]]+tbl_IndustryAFUS[[#This Row],[Pipeline]] -> 0
D102: Transportation: Cargo | E102: =SUMIFS(tbl_ExistingData[Total Commitment], tbl_ExistingData[Moodys Industry], tbl_IndustryAFUS[[#This Row],[Moody''s Industry]] & "*", tbl_ExistingData[Fund], Fund, tbl_ExistingData[Paid Off Date], "=") -> 0 | F102: =SUMIFS(tbl_HypoPipeline[Total Commitment], tbl_HypoPipeline[Moody''s Industry], tbl_IndustryAFUS[[#This Row],[Moody''s Industry]] & "*", tbl_HypoPipeline[Fund], Fund,tbl_HypoPipeline[Exclude?],"") + SUMIFS(tbl_HFS[Total Commitment],tbl_HFS[Moody''s Industry],tbl_IndustryAFUS[[#This Row],[Moody''s Industry]],tbl_HFS[Fund],Fund) -> 0 | G102: =tbl_IndustryAFUS[[#This Row],[Existing]]+tbl_IndustryAFUS[[#This Row],[Pipeline]] -> 0
D103: Transportation: Consumer | E103: =SUMIFS(tbl_ExistingData[Total Commitment], tbl_ExistingData[Moodys Industry], tbl_IndustryAFUS[[#This Row],[Moody''s Industry]] & "*", tbl_ExistingData[Fund], Fund, tbl_ExistingData[Paid Off Date], "=") -> 0 | F103: =SUMIFS(tbl_HypoPipeline[Total Commitment], tbl_HypoPipeline[Moody''s Industry], tbl_IndustryAFUS[[#This Row],[Moody''s Industry]] & "*", tbl_HypoPipeline[Fund], Fund,tbl_HypoPipeline[Exclude?],"") + SUMIFS(tbl_HFS[Total Commitment],tbl_HFS[Moody''s Industry],tbl_IndustryAFUS[[#This Row],[Moody''s Industry]],tbl_HFS[Fund],Fund) -> 0 | G103: =tbl_IndustryAFUS[[#This Row],[Existing]]+tbl_IndustryAFUS[[#This Row],[Pipeline]] -> 0
D104: Utilities: Electric | E104: =SUMIFS(tbl_ExistingData[Total Commitment], tbl_ExistingData[Moodys Industry], tbl_IndustryAFUS[[#This Row],[Moody''s Industry]] & "*", tbl_ExistingData[Fund], Fund, tbl_ExistingData[Paid Off Date], "=") -> 0 | F104: =SUMIFS(tbl_HypoPipeline[Total Commitment], tbl_HypoPipeline[Moody''s Industry], tbl_IndustryAFUS[[#This Row],[Moody''s Industry]] & "*", tbl_HypoPipeline[Fund], Fund,tbl_HypoPipeline[Exclude?],"") + SUMIFS(tbl_HFS[Total Commitment],tbl_HFS[Moody''s Industry],tbl_IndustryAFUS[[#This Row],[Moody''s Industry]],tbl_HFS[Fund],Fund) -> 0 | G104: =tbl_IndustryAFUS[[#This Row],[Existing]]+tbl_IndustryAFUS[[#This Row],[Pipeline]] -> 0
D105: Utilities: Oil & Gas | E105: =SUMIFS(tbl_ExistingData[Total Commitment], tbl_ExistingData[Moodys Industry], tbl_IndustryAFUS[[#This Row],[Moody''s Industry]] & "*", tbl_ExistingData[Fund], Fund, tbl_ExistingData[Paid Off Date], "=") -> 0 | F105: =SUMIFS(tbl_HypoPipeline[Total Commitment], tbl_HypoPipeline[Moody''s Industry], tbl_IndustryAFUS[[#This Row],[Moody''s Industry]] & "*", tbl_HypoPipeline[Fund], Fund,tbl_HypoPipeline[Exclude?],"") + SUMIFS(tbl_HFS[Total Commitment],tbl_HFS[Moody''s Industry],tbl_IndustryAFUS[[#This Row],[Moody''s Industry]],tbl_HFS[Fund],Fund) -> 0 | G105: =tbl_IndustryAFUS[[#This Row],[Existing]]+tbl_IndustryAFUS[[#This Row],[Pipeline]] -> 0
D106: Utilities: Water | E106: =SUMIFS(tbl_ExistingData[Total Commitment], tbl_ExistingData[Moodys Industry], tbl_IndustryAFUS[[#This Row],[Moody''s Industry]] & "*", tbl_ExistingData[Fund], Fund, tbl_ExistingData[Paid Off Date], "=") -> 0 | F106: =SUMIFS(tbl_HypoPipeline[Total Commitment], tbl_HypoPipeline[Moody''s Industry], tbl_IndustryAFUS[[#This Row],[Moody''s Industry]] & "*", tbl_HypoPipeline[Fund], Fund,tbl_HypoPipeline[Exclude?],"") + SUMIFS(tbl_HFS[Total Commitment],tbl_HFS[Moody''s Industry],tbl_IndustryAFUS[[#This Row],[Moody''s Industry]],tbl_HFS[Fund],Fund) -> 0 | G106: =tbl_IndustryAFUS[[#This Row],[Existing]]+tbl_IndustryAFUS[[#This Row],[Pipeline]] -> 0
D107: Wholesale | E107: =SUMIFS(tbl_ExistingData[Total Commitment], tbl_ExistingData[Moodys Industry], tbl_IndustryAFUS[[#This Row],[Moody''s Industry]] & "*", tbl_ExistingData[Fund], Fund, tbl_ExistingData[Paid Off Date], "=") -> 0 | F107: =SUMIFS(tbl_HypoPipeline[Total Commitment], tbl_HypoPipeline[Moody''s Industry], tbl_IndustryAFUS[[#This Row],[Moody''s Industry]] & "*", tbl_HypoPipeline[Fund], Fund,tbl_HypoPipeline[Exclude?],"") + SUMIFS(tbl_HFS[Total Commitment],tbl_HFS[Moody''s Industry],tbl_IndustryAFUS[[#This Row],[Moody''s Industry]],tbl_HFS[Fund],Fund) -> 0 | G107: =tbl_IndustryAFUS[[#This Row],[Existing]]+tbl_IndustryAFUS[[#This Row],[Pipeline]] -> 0
A109: Sponsor Concentration
A110: All Tranche Commitmentments per Sponsor < 10% * SMA Commitment
A112: Bucket | B112: =Commitment*0.1 -> 10000000 | D112: Sponsor | E112: Existing | F112: Pipeline | G112: Existing + Pipeline
A113: Available | B113: =B112-B118 -> 10000000 | D113: ABRY Partners | E113: =SUMIFS(tbl_ExistingData[Total Commitment], tbl_ExistingData[Sponsor], "*" & tbl_SponsorAFUS[[#This Row],[Sponsor]] & "*", tbl_ExistingData[Fund], Fund, tbl_ExistingData[Paid Off Date], "=") -> 0 | F113: =SUMIFS(tbl_HypoPipeline[Total Commitment], tbl_HypoPipeline[Sponsor], "*" & tbl_SponsorAFUS[[#This Row],[Sponsor]] & "*", tbl_HypoPipeline[Fund], Fund,tbl_HypoPipeline[Exclude?],"") -> 0 | G113: =tbl_SponsorAFUS[[#This Row],[Existing]]+tbl_SponsorAFUS[[#This Row],[Pipeline ]] -> 0
D114: A&M Capital Partners | E114: =SUMIFS(tbl_ExistingData[Total Commitment], tbl_ExistingData[Sponsor], "*" & tbl_SponsorAFUS[[#This Row],[Sponsor]] & "*", tbl_ExistingData[Fund], Fund, tbl_ExistingData[Paid Off Date], "=") -> 0 | F114: =SUMIFS(tbl_HypoPipeline[Total Commitment], tbl_HypoPipeline[Sponsor], "*" & tbl_SponsorAFUS[[#This Row],[Sponsor]] & "*", tbl_HypoPipeline[Fund], Fund,tbl_HypoPipeline[Exclude?],"") -> 0 | G114: =tbl_SponsorAFUS[[#This Row],[Existing]]+tbl_SponsorAFUS[[#This Row],[Pipeline ]] -> 0
A115: =INDEX(tbl_SponsorAFUS[],MATCH(B118,tbl_SponsorAFUS[Existing + Pipeline],0),1) -> ABRY Partners | D115: AMERICAN CAPITAL, LTD. | E115: =SUMIFS(tbl_ExistingData[Total Commitment], tbl_ExistingData[Sponsor], "*" & tbl_SponsorAFUS[[#This Row],[Sponsor]] & "*", tbl_ExistingData[Fund], Fund, tbl_ExistingData[Paid Off Date], "=") -> 0 | F115: =SUMIFS(tbl_HypoPipeline[Total Commitment], tbl_HypoPipeline[Sponsor], "*" & tbl_SponsorAFUS[[#This Row],[Sponsor]] & "*", tbl_HypoPipeline[Fund], Fund,tbl_HypoPipeline[Exclude?],"") -> 0 | G115: =tbl_SponsorAFUS[[#This Row],[Existing]]+tbl_SponsorAFUS[[#This Row],[Pipeline ]] -> 0
A116: Existing Portfolio | B116: =INDEX(tbl_SponsorAFUS[],MATCH(B118,tbl_SponsorAFUS[Existing + Pipeline],0),2) -> 0 | D116: AEA Investors LLC | E116: =SUMIFS(tbl_ExistingData[Total Commitment], tbl_ExistingData[Sponsor], "*" & tbl_SponsorAFUS[[#This Row],[Sponsor]] & "*", tbl_ExistingData[Fund], Fund, tbl_ExistingData[Paid Off Date], "=") -> 0 | F116: =SUMIFS(tbl_HypoPipeline[Total Commitment], tbl_HypoPipeline[Sponsor], "*" & tbl_SponsorAFUS[[#This Row],[Sponsor]] & "*", tbl_HypoPipeline[Fund], Fund,tbl_HypoPipeline[Exclude?],"") -> 0 | G116: =tbl_SponsorAFUS[[#This Row],[Existing]]+tbl_SponsorAFUS[[#This Row],[Pipeline ]] -> 0
A117: Hypo Pipeline | B117: =INDEX(tbl_SponsorAFUS[],MATCH(B118,tbl_SponsorAFUS[Existing + Pipeline],0),3) -> 0 | D117: AEPI | E117: =SUMIFS(tbl_ExistingData[Total Commitment], tbl_ExistingData[Sponsor], "*" & tbl_SponsorAFUS[[#This Row],[Sponsor]] & "*", tbl_ExistingData[Fund], Fund, tbl_ExistingData[Paid Off Date], "=") -> 0 | F117: =SUMIFS(tbl_HypoPipeline[Total Commitment], tbl_HypoPipeline[Sponsor], "*" & tbl_SponsorAFUS[[#This Row],[Sponsor]] & "*", tbl_HypoPipeline[Fund], Fund,tbl_HypoPipeline[Exclude?],"") -> 0 | G117: =tbl_SponsorAFUS[[#This Row],[Existing]]+tbl_SponsorAFUS[[#This Row],[Pipeline ]] -> 0
A118: Aggregate Exposure | B118: =LARGE(tbl_SponsorAFUS[Existing + Pipeline],3) -> 0 | D118: APAX PARTNERS | E118: =SUMIFS(tbl_ExistingData[Total Commitment], tbl_ExistingData[Sponsor], "*" & tbl_SponsorAFUS[[#This Row],[Sponsor]] & "*", tbl_ExistingData[Fund], Fund, tbl_ExistingData[Paid Off Date], "=") -> 0 | F118: =SUMIFS(tbl_HypoPipeline[Total Commitment], tbl_HypoPipeline[Sponsor], "*" & tbl_SponsorAFUS[[#This Row],[Sponsor]] & "*", tbl_HypoPipeline[Fund], Fund,tbl_HypoPipeline[Exclude?],"") -> 0 | G118: =tbl_SponsorAFUS[[#This Row],[Existing]]+tbl_SponsorAFUS[[#This Row],[Pipeline ]] -> 0
D119: Ardian | E119: =SUMIFS(tbl_ExistingData[Total Commitment], tbl_ExistingData[Sponsor], "*" & tbl_SponsorAFUS[[#This Row],[Sponsor]] & "*", tbl_ExistingData[Fund], Fund, tbl_ExistingData[Paid Off Date], "=") -> 0 | F119: =SUMIFS(tbl_HypoPipeline[Total Commitment], tbl_HypoPipeline[Sponsor], "*" & tbl_SponsorAFUS[[#This Row],[Sponsor]] & "*", tbl_HypoPipeline[Fund], Fund,tbl_HypoPipeline[Exclude?],"") -> 0 | G119: =tbl_SponsorAFUS[[#This Row],[Existing]]+tbl_SponsorAFUS[[#This Row],[Pipeline ]] -> 0
D120: ARLINGTON CAPITAL PARTNERS | E120: =SUMIFS(tbl_ExistingData[Total Commitment], tbl_ExistingData[Sponsor], "*" & tbl_SponsorAFUS[[#This Row],[Sponsor]] & "*", tbl_ExistingData[Fund], Fund, tbl_ExistingData[Paid Off Date], "=") -> 0 | F120: =SUMIFS(tbl_HypoPipeline[Total Commitment], tbl_HypoPipeline[Sponsor], "*" & tbl_SponsorAFUS[[#This Row],[Sponsor]] & "*", tbl_HypoPipeline[Fund], Fund,tbl_HypoPipeline[Exclude?],"") -> 0 | G120: =tbl_SponsorAFUS[[#This Row],[Existing]]+tbl_SponsorAFUS[[#This Row],[Pipeline ]] -> 0
D121: AUA PRIVATE EQUITY PARTNERS | E121: =SUMIFS(tbl_ExistingData[Total Commitment], tbl_ExistingData[Sponsor], "*" & tbl_SponsorAFUS[[#This Row],[Sponsor]] & "*", tbl_ExistingData[Fund], Fund, tbl_ExistingData[Paid Off Date], "=") -> 0 | F121: =SUMIFS(tbl_HypoPipeline[Total Commitment], tbl_HypoPipeline[Sponsor], "*" & tbl_SponsorAFUS[[#This Row],[Sponsor]] & "*", tbl_HypoPipeline[Fund], Fund,tbl_HypoPipeline[Exclude?],"") -> 0 | G121: =tbl_SponsorAFUS[[#This Row],[Existing]]+tbl_SponsorAFUS[[#This Row],[Pipeline ]] -> 0
D122: AUDAX PRIVATE EQUITY | E122: =SUMIFS(tbl_ExistingData[Total Commitment], tbl_ExistingData[Sponsor], "*" & tbl_SponsorAFUS[[#This Row],[Sponsor]] & "*", tbl_ExistingData[Fund], Fund, tbl_ExistingData[Paid Off Date], "=") -> 0 | F122: =SUMIFS(tbl_HypoPipeline[Total Commitment], tbl_HypoPipeline[Sponsor], "*" & tbl_SponsorAFUS[[#This Row],[Sponsor]] & "*", tbl_HypoPipeline[Fund], Fund,tbl_HypoPipeline[Exclude?],"") -> 0 | G122: =tbl_SponsorAFUS[[#This Row],[Existing]]+tbl_SponsorAFUS[[#This Row],[Pipeline ]] -> 0
D123: BAIN CAPITAL DOUBLE IMPACT | E123: =SUMIFS(tbl_ExistingData[Total Commitment], tbl_ExistingData[Sponsor], "*" & tbl_SponsorAFUS[[#This Row],[Sponsor]] & "*", tbl_ExistingData[Fund], Fund, tbl_ExistingData[Paid Off Date], "=") -> 0 | F123: =SUMIFS(tbl_HypoPipeline[Total Commitment], tbl_HypoPipeline[Sponsor], "*" & tbl_SponsorAFUS[[#This Row],[Sponsor]] & "*", tbl_HypoPipeline[Fund], Fund,tbl_HypoPipeline[Exclude?],"") -> 0 | G123: =tbl_SponsorAFUS[[#This Row],[Existing]]+tbl_SponsorAFUS[[#This Row],[Pipeline ]] -> 0
D124: Baird Capital Partners | E124: =SUMIFS(tbl_ExistingData[Total Commitment], tbl_ExistingData[Sponsor], "*" & tbl_SponsorAFUS[[#This Row],[Sponsor]] & "*", tbl_ExistingData[Fund], Fund, tbl_ExistingData[Paid Off Date], "=") -> 0 | F124: =SUMIFS(tbl_HypoPipeline[Total Commitment], tbl_HypoPipeline[Sponsor], "*" & tbl_SponsorAFUS[[#This Row],[Sponsor]] & "*", tbl_HypoPipeline[Fund], Fund,tbl_HypoPipeline[Exclude?],"") -> 0 | G124: =tbl_SponsorAFUS[[#This Row],[Existing]]+tbl_SponsorAFUS[[#This Row],[Pipeline ]] -> 0
D125: Beecken Petty | E125: =SUMIFS(tbl_ExistingData[Total Commitment], tbl_ExistingData[Sponsor], "*" & tbl_SponsorAFUS[[#This Row],[Sponsor]] & "*", tbl_ExistingData[Fund], Fund, tbl_ExistingData[Paid Off Date], "=") -> 0 | F125: =SUMIFS(tbl_HypoPipeline[Total Commitment], tbl_HypoPipeline[Sponsor], "*" & tbl_SponsorAFUS[[#This Row],[Sponsor]] & "*", tbl_HypoPipeline[Fund], Fund,tbl_HypoPipeline[Exclude?],"") -> 0 | G125: =tbl_SponsorAFUS[[#This Row],[Existing]]+tbl_SponsorAFUS[[#This Row],[Pipeline ]] -> 0
D126: BIOVENTUS LLC | E126: =SUMIFS(tbl_ExistingData[Total Commitment], tbl_ExistingData[Sponsor], "*" & tbl_SponsorAFUS[[#This Row],[Sponsor]] & "*", tbl_ExistingData[Fund], Fund, tbl_ExistingData[Paid Off Date], "=") -> 0 | F126: =SUMIFS(tbl_HypoPipeline[Total Commitment], tbl_HypoPipeline[Sponsor], "*" & tbl_SponsorAFUS[[#This Row],[Sponsor]] & "*", tbl_HypoPipeline[Fund], Fund,tbl_HypoPipeline[Exclude?],"") -> 0 | G126: =tbl_SponsorAFUS[[#This Row],[Existing]]+tbl_SponsorAFUS[[#This Row],[Pipeline ]] -> 0
D127: Blue Point Capital Partners | E127: =SUMIFS(tbl_ExistingData[Total Commitment], tbl_ExistingData[Sponsor], "*" & tbl_SponsorAFUS[[#This Row],[Sponsor]] & "*", tbl_ExistingData[Fund], Fund, tbl_ExistingData[Paid Off Date], "=") -> 0 | F127: =SUMIFS(tbl_HypoPipeline[Total Commitment], tbl_HypoPipeline[Sponsor], "*" & tbl_SponsorAFUS[[#This Row],[Sponsor]] & "*", tbl_HypoPipeline[Fund], Fund,tbl_HypoPipeline[Exclude?],"") -> 0 | G127: =tbl_SponsorAFUS[[#This Row],[Existing]]+tbl_SponsorAFUS[[#This Row],[Pipeline ]] -> 0
D128: BLUE SEA CAPITAL FUND I LP | E128: =SUMIFS(tbl_ExistingData[Total Commitment], tbl_ExistingData[Sponsor], "*" & tbl_SponsorAFUS[[#This Row],[Sponsor]] & "*", tbl_ExistingData[Fund], Fund, tbl_ExistingData[Paid Off Date], "=") -> 0 | F128: =SUMIFS(tbl_HypoPipeline[Total Commitment], tbl_HypoPipeline[Sponsor], "*" & tbl_SponsorAFUS[[#This Row],[Sponsor]] & "*", tbl_HypoPipeline[Fund], Fund,tbl_HypoPipeline[Exclude?],"") -> 0 | G128: =tbl_SponsorAFUS[[#This Row],[Existing]]+tbl_SponsorAFUS[[#This Row],[Pipeline ]] -> 0
D129: Brentwood Associates | E129: =SUMIFS(tbl_ExistingData[Total Commitment], tbl_ExistingData[Sponsor], "*" & tbl_SponsorAFUS[[#This Row],[Sponsor]] & "*", tbl_ExistingData[Fund], Fund, tbl_ExistingData[Paid Off Date], "=") -> 0 | F129: =SUMIFS(tbl_HypoPipeline[Total Commitment], tbl_HypoPipeline[Sponsor], "*" & tbl_SponsorAFUS[[#This Row],[Sponsor]] & "*", tbl_HypoPipeline[Fund], Fund,tbl_HypoPipeline[Exclude?],"") -> 0 | G129: =tbl_SponsorAFUS[[#This Row],[Existing]]+tbl_SponsorAFUS[[#This Row],[Pipeline ]] -> 0
D130: CapStreet | E130: =SUMIFS(tbl_ExistingData[Total Commitment], tbl_ExistingData[Sponsor], "*" & tbl_SponsorAFUS[[#This Row],[Sponsor]] & "*", tbl_ExistingData[Fund], Fund, tbl_ExistingData[Paid Off Date], "=") -> 0 | F130: =SUMIFS(tbl_HypoPipeline[Total Commitment], tbl_HypoPipeline[Sponsor], "*" & tbl_SponsorAFUS[[#This Row],[Sponsor]] & "*", tbl_HypoPipeline[Fund], Fund,tbl_HypoPipeline[Exclude?],"") -> 0 | G130: =tbl_SponsorAFUS[[#This Row],[Existing]]+tbl_SponsorAFUS[[#This Row],[Pipeline ]] -> 0
D131: CDPQ | E131: =SUMIFS(tbl_ExistingData[Total Commitment], tbl_ExistingData[Sponsor], "*" & tbl_SponsorAFUS[[#This Row],[Sponsor]] & "*", tbl_ExistingData[Fund], Fund, tbl_ExistingData[Paid Off Date], "=") -> 0 | F131: =SUMIFS(tbl_HypoPipeline[Total Commitment], tbl_HypoPipeline[Sponsor], "*" & tbl_SponsorAFUS[[#This Row],[Sponsor]] & "*", tbl_HypoPipeline[Fund], Fund,tbl_HypoPipeline[Exclude?],"") -> 0 | G131: =tbl_SponsorAFUS[[#This Row],[Existing]]+tbl_SponsorAFUS[[#This Row],[Pipeline ]] -> 0
D132: CENTEROAK PARTNERS | E132: =SUMIFS(tbl_ExistingData[Total Commitment], tbl_ExistingData[Sponsor], "*" & tbl_SponsorAFUS[[#This Row],[Sponsor]] & "*", tbl_ExistingData[Fund], Fund, tbl_ExistingData[Paid Off Date], "=") -> 0 | F132: =SUMIFS(tbl_HypoPipeline[Total Commitment], tbl_HypoPipeline[Sponsor], "*" & tbl_SponsorAFUS[[#This Row],[Sponsor]] & "*", tbl_HypoPipeline[Fund], Fund,tbl_HypoPipeline[Exclude?],"") -> 0 | G132: =tbl_SponsorAFUS[[#This Row],[Existing]]+tbl_SponsorAFUS[[#This Row],[Pipeline ]] -> 0
D133: Centre Lane Partners, LLC | E133: =SUMIFS(tbl_ExistingData[Total Commitment], tbl_ExistingData[Sponsor], "*" & tbl_SponsorAFUS[[#This Row],[Sponsor]] & "*", tbl_ExistingData[Fund], Fund, tbl_ExistingData[Paid Off Date], "=") -> 0 | F133: =SUMIFS(tbl_HypoPipeline[Total Commitment], tbl_HypoPipeline[Sponsor], "*" & tbl_SponsorAFUS[[#This Row],[Sponsor]] & "*", tbl_HypoPipeline[Fund], Fund,tbl_HypoPipeline[Exclude?],"") -> 0 | G133: =tbl_SponsorAFUS[[#This Row],[Existing]]+tbl_SponsorAFUS[[#This Row],[Pipeline ]] -> 0
D134: Centre Partners Management LLC | E134: =SUMIFS(tbl_ExistingData[Total Commitment], tbl_ExistingData[Sponsor], "*" & tbl_SponsorAFUS[[#This Row],[Sponsor]] & "*", tbl_ExistingData[Fund], Fund, tbl_ExistingData[Paid Off Date], "=") -> 0 | F134: =SUMIFS(tbl_HypoPipeline[Total Commitment], tbl_HypoPipeline[Sponsor], "*" & tbl_SponsorAFUS[[#This Row],[Sponsor]] & "*", tbl_HypoPipeline[Fund], Fund,tbl_HypoPipeline[Exclude?],"") -> 0 | G134: =tbl_SponsorAFUS[[#This Row],[Existing]]+tbl_SponsorAFUS[[#This Row],[Pipeline ]] -> 0
D135: CI CAPITAL PARTNERS | E135: =SUMIFS(tbl_ExistingData[Total Commitment], tbl_ExistingData[Sponsor], "*" & tbl_SponsorAFUS[[#This Row],[Sponsor]] & "*", tbl_ExistingData[Fund], Fund, tbl_ExistingData[Paid Off Date], "=") -> 0 | F135: =SUMIFS(tbl_HypoPipeline[Total Commitment], tbl_HypoPipeline[Sponsor], "*" & tbl_SponsorAFUS[[#This Row],[Sponsor]] & "*", tbl_HypoPipeline[Fund], Fund,tbl_HypoPipeline[Exclude?],"") -> 0 | G135: =tbl_SponsorAFUS[[#This Row],[Existing]]+tbl_SponsorAFUS[[#This Row],[Pipeline ]] -> 0
D136: CORTEC GROUP FUND VI, L.P. | E136: =SUMIFS(tbl_ExistingData[Total Commitment], tbl_ExistingData[Sponsor], "*" & tbl_SponsorAFUS[[#This Row],[Sponsor]] & "*", tbl_ExistingData[Fund], Fund, tbl_ExistingData[Paid Off Date], "=") -> 0 | F136: =SUMIFS(tbl_HypoPipeline[Total Commitment], tbl_HypoPipeline[Sponsor], "*" & tbl_SponsorAFUS[[#This Row],[Sponsor]] & "*", tbl_HypoPipeline[Fund], Fund,tbl_HypoPipeline[Exclude?],"") -> 0 | G136: =tbl_SponsorAFUS[[#This Row],[Existing]]+tbl_SponsorAFUS[[#This Row],[Pipeline ]] -> 0
D137: Corridor Capital, LLC | E137: =SUMIFS(tbl_ExistingData[Total Commitment], tbl_ExistingData[Sponsor], "*" & tbl_SponsorAFUS[[#This Row],[Sponsor]] & "*", tbl_ExistingData[Fund], Fund, tbl_ExistingData[Paid Off Date], "=") -> 0 | F137: =SUMIFS(tbl_HypoPipeline[Total Commitment], tbl_HypoPipeline[Sponsor], "*" & tbl_SponsorAFUS[[#This Row],[Sponsor]] & "*", tbl_HypoPipeline[Fund], Fund,tbl_HypoPipeline[Exclude?],"") -> 0 | G137: =tbl_SponsorAFUS[[#This Row],[Existing]]+tbl_SponsorAFUS[[#This Row],[Pipeline ]] -> 0
D138: COURT SQUARE CAPITAL PARTNERS | E138: =SUMIFS(tbl_ExistingData[Total Commitment], tbl_ExistingData[Sponsor], "*" & tbl_SponsorAFUS[[#This Row],[Sponsor]] & "*", tbl_ExistingData[Fund], Fund, tbl_ExistingData[Paid Off Date], "=") -> 0 | F138: =SUMIFS(tbl_HypoPipeline[Total Commitment], tbl_HypoPipeline[Sponsor], "*" & tbl_SponsorAFUS[[#This Row],[Sponsor]] & "*", tbl_HypoPipeline[Fund], Fund,tbl_HypoPipeline[Exclude?],"") -> 0 | G138: =tbl_SponsorAFUS[[#This Row],[Existing]]+tbl_SponsorAFUS[[#This Row],[Pipeline ]] -> 0
D139: Cressey & Company LP | E139: =SUMIFS(tbl_ExistingData[Total Commitment], tbl_ExistingData[Sponsor], "*" & tbl_SponsorAFUS[[#This Row],[Sponsor]] & "*", tbl_ExistingData[Fund], Fund, tbl_ExistingData[Paid Off Date], "=") -> 0 | F139: =SUMIFS(tbl_HypoPipeline[Total Commitment], tbl_HypoPipeline[Sponsor], "*" & tbl_SponsorAFUS[[#This Row],[Sponsor]] & "*", tbl_HypoPipeline[Fund], Fund,tbl_HypoPipeline[Exclude?],"") -> 0 | G139: =tbl_SponsorAFUS[[#This Row],[Existing]]+tbl_SponsorAFUS[[#This Row],[Pipeline ]] -> 0
D140: DFW Capital Partners | E140: =SUMIFS(tbl_ExistingData[Total Commitment], tbl_ExistingData[Sponsor], "*" & tbl_SponsorAFUS[[#This Row],[Sponsor]] & "*", tbl_ExistingData[Fund], Fund, tbl_ExistingData[Paid Off Date], "=") -> 0 | F140: =SUMIFS(tbl_HypoPipeline[Total Commitment], tbl_HypoPipeline[Sponsor], "*" & tbl_SponsorAFUS[[#This Row],[Sponsor]] & "*", tbl_HypoPipeline[Fund], Fund,tbl_HypoPipeline[Exclude?],"") -> 0 | G140: =tbl_SponsorAFUS[[#This Row],[Existing]]+tbl_SponsorAFUS[[#This Row],[Pipeline ]] -> 0
D141: Dominus Capital | E141: =SUMIFS(tbl_ExistingData[Total Commitment], tbl_ExistingData[Sponsor], "*" & tbl_SponsorAFUS[[#This Row],[Sponsor]] & "*", tbl_ExistingData[Fund], Fund, tbl_ExistingData[Paid Off Date], "=") -> 0 | F141: =SUMIFS(tbl_HypoPipeline[Total Commitment], tbl_HypoPipeline[Sponsor], "*" & tbl_SponsorAFUS[[#This Row],[Sponsor]] & "*", tbl_HypoPipeline[Fund], Fund,tbl_HypoPipeline[Exclude?],"") -> 0 | G141: =tbl_SponsorAFUS[[#This Row],[Existing]]+tbl_SponsorAFUS[[#This Row],[Pipeline ]] -> 0
D142: ENHANCED EQUITY FUNDS | E142: =SUMIFS(tbl_ExistingData[Total Commitment], tbl_ExistingData[Sponsor], "*" & tbl_SponsorAFUS[[#This Row],[Sponsor]] & "*", tbl_ExistingData[Fund], Fund, tbl_ExistingData[Paid Off Date], "=") -> 0 | F142: =SUMIFS(tbl_HypoPipeline[Total Commitment], tbl_HypoPipeline[Sponsor], "*" & tbl_SponsorAFUS[[#This Row],[Sponsor]] & "*", tbl_HypoPipeline[Fund], Fund,tbl_HypoPipeline[Exclude?],"") -> 0 | G142: =tbl_SponsorAFUS[[#This Row],[Existing]]+tbl_SponsorAFUS[[#This Row],[Pipeline ]] -> 0
D143: Eos Partners, LP | E143: =SUMIFS(tbl_ExistingData[Total Commitment], tbl_ExistingData[Sponsor], "*" & tbl_SponsorAFUS[[#This Row],[Sponsor]] & "*", tbl_ExistingData[Fund], Fund, tbl_ExistingData[Paid Off Date], "=") -> 0 | F143: =SUMIFS(tbl_HypoPipeline[Total Commitment], tbl_HypoPipeline[Sponsor], "*" & tbl_SponsorAFUS[[#This Row],[Sponsor]] & "*", tbl_HypoPipeline[Fund], Fund,tbl_HypoPipeline[Exclude?],"") -> 0 | G143: =tbl_SponsorAFUS[[#This Row],[Existing]]+tbl_SponsorAFUS[[#This Row],[Pipeline ]] -> 0
D144: Excellere Partners, LLC | E144: =SUMIFS(tbl_ExistingData[Total Commitment], tbl_ExistingData[Sponsor], "*" & tbl_SponsorAFUS[[#This Row],[Sponsor]] & "*", tbl_ExistingData[Fund], Fund, tbl_ExistingData[Paid Off Date], "=") -> 0 | F144: =SUMIFS(tbl_HypoPipeline[Total Commitment], tbl_HypoPipeline[Sponsor], "*" & tbl_SponsorAFUS[[#This Row],[Sponsor]] & "*", tbl_HypoPipeline[Fund], Fund,tbl_HypoPipeline[Exclude?],"") -> 0 | G144: =tbl_SponsorAFUS[[#This Row],[Existing]]+tbl_SponsorAFUS[[#This Row],[Pipeline ]] -> 0
D145: FIRST ATLANTIC CAPITAL, LTD. | E145: =SUMIFS(tbl_ExistingData[Total Commitment], tbl_ExistingData[Sponsor], "*" & tbl_SponsorAFUS[[#This Row],[Sponsor]] & "*", tbl_ExistingData[Fund], Fund, tbl_ExistingData[Paid Off Date], "=") -> 0 | F145: =SUMIFS(tbl_HypoPipeline[Total Commitment], tbl_HypoPipeline[Sponsor], "*" & tbl_SponsorAFUS[[#This Row],[Sponsor]] & "*", tbl_HypoPipeline[Fund], Fund,tbl_HypoPipeline[Exclude?],"") -> 0 | G145: =tbl_SponsorAFUS[[#This Row],[Existing]]+tbl_SponsorAFUS[[#This Row],[Pipeline ]] -> 0
D146: Flexpoint | E146: =SUMIFS(tbl_ExistingData[Total Commitment], tbl_ExistingData[Sponsor], "*" & tbl_SponsorAFUS[[#This Row],[Sponsor]] & "*", tbl_ExistingData[Fund], Fund, tbl_ExistingData[Paid Off Date], "=") -> 0 | F146: =SUMIFS(tbl_HypoPipeline[Total Commitment], tbl_HypoPipeline[Sponsor], "*" & tbl_SponsorAFUS[[#This Row],[Sponsor]] & "*", tbl_HypoPipeline[Fund], Fund,tbl_HypoPipeline[Exclude?],"") -> 0 | G146: =tbl_SponsorAFUS[[#This Row],[Existing]]+tbl_SponsorAFUS[[#This Row],[Pipeline ]] -> 0
D147: FRAZIER HEALTHCARE VENTURES | E147: =SUMIFS(tbl_ExistingData[Total Commitment], tbl_ExistingData[Sponsor], "*" & tbl_SponsorAFUS[[#This Row],[Sponsor]] & "*", tbl_ExistingData[Fund], Fund, tbl_ExistingData[Paid Off Date], "=") -> 0 | F147: =SUMIFS(tbl_HypoPipeline[Total Commitment], tbl_HypoPipeline[Sponsor], "*" & tbl_SponsorAFUS[[#This Row],[Sponsor]] & "*", tbl_HypoPipeline[Fund], Fund,tbl_HypoPipeline[Exclude?],"") -> 0 | G147: =tbl_SponsorAFUS[[#This Row],[Existing]]+tbl_SponsorAFUS[[#This Row],[Pipeline ]] -> 0
D148: Freeman Spogli & Co. | E148: =SUMIFS(tbl_ExistingData[Total Commitment], tbl_ExistingData[Sponsor], "*" & tbl_SponsorAFUS[[#This Row],[Sponsor]] & "*", tbl_ExistingData[Fund], Fund, tbl_ExistingData[Paid Off Date], "=") -> 0 | F148: =SUMIFS(tbl_HypoPipeline[Total Commitment], tbl_HypoPipeline[Sponsor], "*" & tbl_SponsorAFUS[[#This Row],[Sponsor]] & "*", tbl_HypoPipeline[Fund], Fund,tbl_HypoPipeline[Exclude?],"") -> 0 | G148: =tbl_SponsorAFUS[[#This Row],[Existing]]+tbl_SponsorAFUS[[#This Row],[Pipeline ]] -> 0
D149: Frontenac Company | E149: =SUMIFS(tbl_ExistingData[Total Commitment], tbl_ExistingData[Sponsor], "*" & tbl_SponsorAFUS[[#This Row],[Sponsor]] & "*", tbl_ExistingData[Fund], Fund, tbl_ExistingData[Paid Off Date], "=") -> 0 | F149: =SUMIFS(tbl_HypoPipeline[Total Commitment], tbl_HypoPipeline[Sponsor], "*" & tbl_SponsorAFUS[[#This Row],[Sponsor]] & "*", tbl_HypoPipeline[Fund], Fund,tbl_HypoPipeline[Exclude?],"") -> 0 | G149: =tbl_SponsorAFUS[[#This Row],[Existing]]+tbl_SponsorAFUS[[#This Row],[Pipeline ]] -> 0
D150: Geneva Glen Capital LLC | E150: =SUMIFS(tbl_ExistingData[Total Commitment], tbl_ExistingData[Sponsor], "*" & tbl_SponsorAFUS[[#This Row],[Sponsor]] & "*", tbl_ExistingData[Fund], Fund, tbl_ExistingData[Paid Off Date], "=") -> 0 | F150: =SUMIFS(tbl_HypoPipeline[Total Commitment], tbl_HypoPipeline[Sponsor], "*" & tbl_SponsorAFUS[[#This Row],[Sponsor]] & "*", tbl_HypoPipeline[Fund], Fund,tbl_HypoPipeline[Exclude?],"") -> 0 | G150: =tbl_SponsorAFUS[[#This Row],[Existing]]+tbl_SponsorAFUS[[#This Row],[Pipeline ]] -> 0
D151: GenNx360 Capital Partners | E151: =SUMIFS(tbl_ExistingData[Total Commitment], tbl_ExistingData[Sponsor], "*" & tbl_SponsorAFUS[[#This Row],[Sponsor]] & "*", tbl_ExistingData[Fund], Fund, tbl_ExistingData[Paid Off Date], "=") -> 0 | F151: =SUMIFS(tbl_HypoPipeline[Total Commitment], tbl_HypoPipeline[Sponsor], "*" & tbl_SponsorAFUS[[#This Row],[Sponsor]] & "*", tbl_HypoPipeline[Fund], Fund,tbl_HypoPipeline[Exclude?],"") -> 0 | G151: =tbl_SponsorAFUS[[#This Row],[Existing]]+tbl_SponsorAFUS[[#This Row],[Pipeline ]] -> 0
D152: GENSTAR CAPITAL LLC | E152: =SUMIFS(tbl_ExistingData[Total Commitment], tbl_ExistingData[Sponsor], "*" & tbl_SponsorAFUS[[#This Row],[Sponsor]] & "*", tbl_ExistingData[Fund], Fund, tbl_ExistingData[Paid Off Date], "=") -> 0 | F152: =SUMIFS(tbl_HypoPipeline[Total Commitment], tbl_HypoPipeline[Sponsor], "*" & tbl_SponsorAFUS[[#This Row],[Sponsor]] & "*", tbl_HypoPipeline[Fund], Fund,tbl_HypoPipeline[Exclude?],"") -> 0 | G152: =tbl_SponsorAFUS[[#This Row],[Existing]]+tbl_SponsorAFUS[[#This Row],[Pipeline ]] -> 0
D153: Graham Partners | E153: =SUMIFS(tbl_ExistingData[Total Commitment], tbl_ExistingData[Sponsor], "*" & tbl_SponsorAFUS[[#This Row],[Sponsor]] & "*", tbl_ExistingData[Fund], Fund, tbl_ExistingData[Paid Off Date], "=") -> 0 | F153: =SUMIFS(tbl_HypoPipeline[Total Commitment], tbl_HypoPipeline[Sponsor], "*" & tbl_SponsorAFUS[[#This Row],[Sponsor]] & "*", tbl_HypoPipeline[Fund], Fund,tbl_HypoPipeline[Exclude?],"") -> 0 | G153: =tbl_SponsorAFUS[[#This Row],[Existing]]+tbl_SponsorAFUS[[#This Row],[Pipeline ]] -> 0
D154: GRIDIRON CAPITAL, LLC | E154: =SUMIFS(tbl_ExistingData[Total Commitment], tbl_ExistingData[Sponsor], "*" & tbl_SponsorAFUS[[#This Row],[Sponsor]] & "*", tbl_ExistingData[Fund], Fund, tbl_ExistingData[Paid Off Date], "=") -> 0 | F154: =SUMIFS(tbl_HypoPipeline[Total Commitment], tbl_HypoPipeline[Sponsor], "*" & tbl_SponsorAFUS[[#This Row],[Sponsor]] & "*", tbl_HypoPipeline[Fund], Fund,tbl_HypoPipeline[Exclude?],"") -> 0 | G154: =tbl_SponsorAFUS[[#This Row],[Existing]]+tbl_SponsorAFUS[[#This Row],[Pipeline ]] -> 0
D155: GRYPHON INVESTORS, INC | E155: =SUMIFS(tbl_ExistingData[Total Commitment], tbl_ExistingData[Sponsor], "*" & tbl_SponsorAFUS[[#This Row],[Sponsor]] & "*", tbl_ExistingData[Fund], Fund, tbl_ExistingData[Paid Off Date], "=") -> 0 | F155: =SUMIFS(tbl_HypoPipeline[Total Commitment], tbl_HypoPipeline[Sponsor], "*" & tbl_SponsorAFUS[[#This Row],[Sponsor]] & "*", tbl_HypoPipeline[Fund], Fund,tbl_HypoPipeline[Exclude?],"") -> 0 | G155: =tbl_SponsorAFUS[[#This Row],[Existing]]+tbl_SponsorAFUS[[#This Row],[Pipeline ]] -> 0
D156: GTCR, LLC | E156: =SUMIFS(tbl_ExistingData[Total Commitment], tbl_ExistingData[Sponsor], "*" & tbl_SponsorAFUS[[#This Row],[Sponsor]] & "*", tbl_ExistingData[Fund], Fund, tbl_ExistingData[Paid Off Date], "=") -> 0 | F156: =SUMIFS(tbl_HypoPipeline[Total Commitment], tbl_HypoPipeline[Sponsor], "*" & tbl_SponsorAFUS[[#This Row],[Sponsor]] & "*", tbl_HypoPipeline[Fund], Fund,tbl_HypoPipeline[Exclude?],"") -> 0 | G156: =tbl_SponsorAFUS[[#This Row],[Existing]]+tbl_SponsorAFUS[[#This Row],[Pipeline ]] -> 0
D157: HGGC, LLC | E157: =SUMIFS(tbl_ExistingData[Total Commitment], tbl_ExistingData[Sponsor], "*" & tbl_SponsorAFUS[[#This Row],[Sponsor]] & "*", tbl_ExistingData[Fund], Fund, tbl_ExistingData[Paid Off Date], "=") -> 0 | F157: =SUMIFS(tbl_HypoPipeline[Total Commitment], tbl_HypoPipeline[Sponsor], "*" & tbl_SponsorAFUS[[#This Row],[Sponsor]] & "*", tbl_HypoPipeline[Fund], Fund,tbl_HypoPipeline[Exclude?],"") -> 0 | G157: =tbl_SponsorAFUS[[#This Row],[Existing]]+tbl_SponsorAFUS[[#This Row],[Pipeline ]] -> 0
D158: HARVEST PARTNERS, LP | E158: =SUMIFS(tbl_ExistingData[Total Commitment], tbl_ExistingData[Sponsor], "*" & tbl_SponsorAFUS[[#This Row],[Sponsor]] & "*", tbl_ExistingData[Fund], Fund, tbl_ExistingData[Paid Off Date], "=") -> 0 | F158: =SUMIFS(tbl_HypoPipeline[Total Commitment], tbl_HypoPipeline[Sponsor], "*" & tbl_SponsorAFUS[[#This Row],[Sponsor]] & "*", tbl_HypoPipeline[Fund], Fund,tbl_HypoPipeline[Exclude?],"") -> 0 | G158: =tbl_SponsorAFUS[[#This Row],[Existing]]+tbl_SponsorAFUS[[#This Row],[Pipeline ]] -> 0
D159: High Road Capital Partners | E159: =SUMIFS(tbl_ExistingData[Total Commitment], tbl_ExistingData[Sponsor], "*" & tbl_SponsorAFUS[[#This Row],[Sponsor]] & "*", tbl_ExistingData[Fund], Fund, tbl_ExistingData[Paid Off Date], "=") -> 0 | F159: =SUMIFS(tbl_HypoPipeline[Total Commitment], tbl_HypoPipeline[Sponsor], "*" & tbl_SponsorAFUS[[#This Row],[Sponsor]] & "*", tbl_HypoPipeline[Fund], Fund,tbl_HypoPipeline[Exclude?],"") -> 0 | G159: =tbl_SponsorAFUS[[#This Row],[Existing]]+tbl_SponsorAFUS[[#This Row],[Pipeline ]] -> 0
D160: Huntsman Gay Global Capital | E160: =SUMIFS(tbl_ExistingData[Total Commitment], tbl_ExistingData[Sponsor], "*" & tbl_SponsorAFUS[[#This Row],[Sponsor]] & "*", tbl_ExistingData[Fund], Fund, tbl_ExistingData[Paid Off Date], "=") -> 0 | F160: =SUMIFS(tbl_HypoPipeline[Total Commitment], tbl_HypoPipeline[Sponsor], "*" & tbl_SponsorAFUS[[#This Row],[Sponsor]] & "*", tbl_HypoPipeline[Fund], Fund,tbl_HypoPipeline[Exclude?],"") -> 0 | G160: =tbl_SponsorAFUS[[#This Row],[Existing]]+tbl_SponsorAFUS[[#This Row],[Pipeline ]] -> 0
D161: ICV Capital Partners, LLC | E161: =SUMIFS(tbl_ExistingData[Total Commitment], tbl_ExistingData[Sponsor], "*" & tbl_SponsorAFUS[[#This Row],[Sponsor]] & "*", tbl_ExistingData[Fund], Fund, tbl_ExistingData[Paid Off Date], "=") -> 0 | F161: =SUMIFS(tbl_HypoPipeline[Total Commitment], tbl_HypoPipeline[Sponsor], "*" & tbl_SponsorAFUS[[#This Row],[Sponsor]] & "*", tbl_HypoPipeline[Fund], Fund,tbl_HypoPipeline[Exclude?],"") -> 0 | G161: =tbl_SponsorAFUS[[#This Row],[Existing]]+tbl_SponsorAFUS[[#This Row],[Pipeline ]] -> 0
D162: Incline Equity Partners | E162: =SUMIFS(tbl_ExistingData[Total Commitment], tbl_ExistingData[Sponsor], "*" & tbl_SponsorAFUS[[#This Row],[Sponsor]] & "*", tbl_ExistingData[Fund], Fund, tbl_ExistingData[Paid Off Date], "=") -> 0 | F162: =SUMIFS(tbl_HypoPipeline[Total Commitment], tbl_HypoPipeline[Sponsor], "*" & tbl_SponsorAFUS[[#This Row],[Sponsor]] & "*", tbl_HypoPipeline[Fund], Fund,tbl_HypoPipeline[Exclude?],"") -> 0 | G162: =tbl_SponsorAFUS[[#This Row],[Existing]]+tbl_SponsorAFUS[[#This Row],[Pipeline ]] -> 0
D163: Industrial Growth Partners | E163: =SUMIFS(tbl_ExistingData[Total Commitment], tbl_ExistingData[Sponsor], "*" & tbl_SponsorAFUS[[#This Row],[Sponsor]] & "*", tbl_ExistingData[Fund], Fund, tbl_ExistingData[Paid Off Date], "=") -> 0 | F163: =SUMIFS(tbl_HypoPipeline[Total Commitment], tbl_HypoPipeline[Sponsor], "*" & tbl_SponsorAFUS[[#This Row],[Sponsor]] & "*", tbl_HypoPipeline[Fund], Fund,tbl_HypoPipeline[Exclude?],"") -> 0 | G163: =tbl_SponsorAFUS[[#This Row],[Existing]]+tbl_SponsorAFUS[[#This Row],[Pipeline ]] -> 0
D164: Insignia Capital Group | E164: =SUMIFS(tbl_ExistingData[Total Commitment], tbl_ExistingData[Sponsor], "*" & tbl_SponsorAFUS[[#This Row],[Sponsor]] & "*", tbl_ExistingData[Fund], Fund, tbl_ExistingData[Paid Off Date], "=") -> 0 | F164: =SUMIFS(tbl_HypoPipeline[Total Commitment], tbl_HypoPipeline[Sponsor], "*" & tbl_SponsorAFUS[[#This Row],[Sponsor]] & "*", tbl_HypoPipeline[Fund], Fund,tbl_HypoPipeline[Exclude?],"") -> 0 | G164: =tbl_SponsorAFUS[[#This Row],[Existing]]+tbl_SponsorAFUS[[#This Row],[Pipeline ]] -> 0
D165: INVERNESS GRAHAM | E165: =SUMIFS(tbl_ExistingData[Total Commitment], tbl_ExistingData[Sponsor], "*" & tbl_SponsorAFUS[[#This Row],[Sponsor]] & "*", tbl_ExistingData[Fund], Fund, tbl_ExistingData[Paid Off Date], "=") -> 0 | F165: =SUMIFS(tbl_HypoPipeline[Total Commitment], tbl_HypoPipeline[Sponsor], "*" & tbl_SponsorAFUS[[#This Row],[Sponsor]] & "*", tbl_HypoPipeline[Fund], Fund,tbl_HypoPipeline[Exclude?],"") -> 0 | G165: =tbl_SponsorAFUS[[#This Row],[Existing]]+tbl_SponsorAFUS[[#This Row],[Pipeline ]] -> 0
D166: JUGGERNAUT CAPITAL PARTNERS | E166: =SUMIFS(tbl_ExistingData[Total Commitment], tbl_ExistingData[Sponsor], "*" & tbl_SponsorAFUS[[#This Row],[Sponsor]] & "*", tbl_ExistingData[Fund], Fund, tbl_ExistingData[Paid Off Date], "=") -> 0 | F166: =SUMIFS(tbl_HypoPipeline[Total Commitment], tbl_HypoPipeline[Sponsor], "*" & tbl_SponsorAFUS[[#This Row],[Sponsor]] & "*", tbl_HypoPipeline[Fund], Fund,tbl_HypoPipeline[Exclude?],"") -> 0 | G166: =tbl_SponsorAFUS[[#This Row],[Existing]]+tbl_SponsorAFUS[[#This Row],[Pipeline ]] -> 0
D167: JZ PARTNERS | E167: =SUMIFS(tbl_ExistingData[Total Commitment], tbl_ExistingData[Sponsor], "*" & tbl_SponsorAFUS[[#This Row],[Sponsor]] & "*", tbl_ExistingData[Fund], Fund, tbl_ExistingData[Paid Off Date], "=") -> 0 | F167: =SUMIFS(tbl_HypoPipeline[Total Commitment], tbl_HypoPipeline[Sponsor], "*" & tbl_SponsorAFUS[[#This Row],[Sponsor]] & "*", tbl_HypoPipeline[Fund], Fund,tbl_HypoPipeline[Exclude?],"") -> 0 | G167: =tbl_SponsorAFUS[[#This Row],[Existing]]+tbl_SponsorAFUS[[#This Row],[Pipeline ]] -> 0
D168: L-SQUARED CAPITAL | E168: =SUMIFS(tbl_ExistingData[Total Commitment], tbl_ExistingData[Sponsor], "*" & tbl_SponsorAFUS[[#This Row],[Sponsor]] & "*", tbl_ExistingData[Fund], Fund, tbl_ExistingData[Paid Off Date], "=") -> 0 | F168: =SUMIFS(tbl_HypoPipeline[Total Commitment], tbl_HypoPipeline[Sponsor], "*" & tbl_SponsorAFUS[[#This Row],[Sponsor]] & "*", tbl_HypoPipeline[Fund], Fund,tbl_HypoPipeline[Exclude?],"") -> 0 | G168: =tbl_SponsorAFUS[[#This Row],[Existing]]+tbl_SponsorAFUS[[#This Row],[Pipeline ]] -> 0
D169: LaBaronBrown Industries | E169: =SUMIFS(tbl_ExistingData[Total Commitment], tbl_ExistingData[Sponsor], "*" & tbl_SponsorAFUS[[#This Row],[Sponsor]] & "*", tbl_ExistingData[Fund], Fund, tbl_ExistingData[Paid Off Date], "=") -> 0 | F169: =SUMIFS(tbl_HypoPipeline[Total Commitment], tbl_HypoPipeline[Sponsor], "*" & tbl_SponsorAFUS[[#This Row],[Sponsor]] & "*", tbl_HypoPipeline[Fund], Fund,tbl_HypoPipeline[Exclude?],"") -> 0 | G169: =tbl_SponsorAFUS[[#This Row],[Existing]]+tbl_SponsorAFUS[[#This Row],[Pipeline ]] -> 0
D170: Leeds Equity Partners | E170: =SUMIFS(tbl_ExistingData[Total Commitment], tbl_ExistingData[Sponsor], "*" & tbl_SponsorAFUS[[#This Row],[Sponsor]] & "*", tbl_ExistingData[Fund], Fund, tbl_ExistingData[Paid Off Date], "=") -> 0 | F170: =SUMIFS(tbl_HypoPipeline[Total Commitment], tbl_HypoPipeline[Sponsor], "*" & tbl_SponsorAFUS[[#This Row],[Sponsor]] & "*", tbl_HypoPipeline[Fund], Fund,tbl_HypoPipeline[Exclude?],"") -> 0 | G170: =tbl_SponsorAFUS[[#This Row],[Existing]]+tbl_SponsorAFUS[[#This Row],[Pipeline ]] -> 0
D171: Levine Leichtman | E171: =SUMIFS(tbl_ExistingData[Total Commitment], tbl_ExistingData[Sponsor], "*" & tbl_SponsorAFUS[[#This Row],[Sponsor]] & "*", tbl_ExistingData[Fund], Fund, tbl_ExistingData[Paid Off Date], "=") -> 0 | F171: =SUMIFS(tbl_HypoPipeline[Total Commitment], tbl_HypoPipeline[Sponsor], "*" & tbl_SponsorAFUS[[#This Row],[Sponsor]] & "*", tbl_HypoPipeline[Fund], Fund,tbl_HypoPipeline[Exclude?],"") -> 0 | G171: =tbl_SponsorAFUS[[#This Row],[Existing]]+tbl_SponsorAFUS[[#This Row],[Pipeline ]] -> 0
D172: Linden Capital, LLC | E172: =SUMIFS(tbl_ExistingData[Total Commitment], tbl_ExistingData[Sponsor], "*" & tbl_SponsorAFUS[[#This Row],[Sponsor]] & "*", tbl_ExistingData[Fund], Fund, tbl_ExistingData[Paid Off Date], "=") -> 0 | F172: =SUMIFS(tbl_HypoPipeline[Total Commitment], tbl_HypoPipeline[Sponsor], "*" & tbl_SponsorAFUS[[#This Row],[Sponsor]] & "*", tbl_HypoPipeline[Fund], Fund,tbl_HypoPipeline[Exclude?],"") -> 0 | G172: =tbl_SponsorAFUS[[#This Row],[Existing]]+tbl_SponsorAFUS[[#This Row],[Pipeline ]] -> 0
D173: LKCM HEADWATER INVESTMENTS II, L.P. | E173: =SUMIFS(tbl_ExistingData[Total Commitment], tbl_ExistingData[Sponsor], "*" & tbl_SponsorAFUS[[#This Row],[Sponsor]] & "*", tbl_ExistingData[Fund], Fund, tbl_ExistingData[Paid Off Date], "=") -> 0 | F173: =SUMIFS(tbl_HypoPipeline[Total Commitment], tbl_HypoPipeline[Sponsor], "*" & tbl_SponsorAFUS[[#This Row],[Sponsor]] & "*", tbl_HypoPipeline[Fund], Fund,tbl_HypoPipeline[Exclude?],"") -> 0 | G173: =tbl_SponsorAFUS[[#This Row],[Existing]]+tbl_SponsorAFUS[[#This Row],[Pipeline ]] -> 0
D174: Main Post Partners | E174: =SUMIFS(tbl_ExistingData[Total Commitment], tbl_ExistingData[Sponsor], "*" & tbl_SponsorAFUS[[#This Row],[Sponsor]] & "*", tbl_ExistingData[Fund], Fund, tbl_ExistingData[Paid Off Date], "=") -> 0 | F174: =SUMIFS(tbl_HypoPipeline[Total Commitment], tbl_HypoPipeline[Sponsor], "*" & tbl_SponsorAFUS[[#This Row],[Sponsor]] & "*", tbl_HypoPipeline[Fund], Fund,tbl_HypoPipeline[Exclude?],"") -> 0 | G174: =tbl_SponsorAFUS[[#This Row],[Existing]]+tbl_SponsorAFUS[[#This Row],[Pipeline ]] -> 0
D175: Marcol | E175: =SUMIFS(tbl_ExistingData[Total Commitment], tbl_ExistingData[Sponsor], "*" & tbl_SponsorAFUS[[#This Row],[Sponsor]] & "*", tbl_ExistingData[Fund], Fund, tbl_ExistingData[Paid Off Date], "=") -> 0 | F175: =SUMIFS(tbl_HypoPipeline[Total Commitment], tbl_HypoPipeline[Sponsor], "*" & tbl_SponsorAFUS[[#This Row],[Sponsor]] & "*", tbl_HypoPipeline[Fund], Fund,tbl_HypoPipeline[Exclude?],"") -> 0 | G175: =tbl_SponsorAFUS[[#This Row],[Existing]]+tbl_SponsorAFUS[[#This Row],[Pipeline ]] -> 0
D176: MAY RIVER CAPITAL | E176: =SUMIFS(tbl_ExistingData[Total Commitment], tbl_ExistingData[Sponsor], "*" & tbl_SponsorAFUS[[#This Row],[Sponsor]] & "*", tbl_ExistingData[Fund], Fund, tbl_ExistingData[Paid Off Date], "=") -> 0 | F176: =SUMIFS(tbl_HypoPipeline[Total Commitment], tbl_HypoPipeline[Sponsor], "*" & tbl_SponsorAFUS[[#This Row],[Sponsor]] & "*", tbl_HypoPipeline[Fund], Fund,tbl_HypoPipeline[Exclude?],"") -> 0 | G176: =tbl_SponsorAFUS[[#This Row],[Existing]]+tbl_SponsorAFUS[[#This Row],[Pipeline ]] -> 0
D177: NEW HARBOR CAPITAL, LLC | E177: =SUMIFS(tbl_ExistingData[Total Commitment], tbl_ExistingData[Sponsor], "*" & tbl_SponsorAFUS[[#This Row],[Sponsor]] & "*", tbl_ExistingData[Fund], Fund, tbl_ExistingData[Paid Off Date], "=") -> 0 | F177: =SUMIFS(tbl_HypoPipeline[Total Commitment], tbl_HypoPipeline[Sponsor], "*" & tbl_SponsorAFUS[[#This Row],[Sponsor]] & "*", tbl_HypoPipeline[Fund], Fund,tbl_HypoPipeline[Exclude?],"") -> 0 | G177: =tbl_SponsorAFUS[[#This Row],[Existing]]+tbl_SponsorAFUS[[#This Row],[Pipeline ]] -> 0
D178: New Mainstream | E178: =SUMIFS(tbl_ExistingData[Total Commitment], tbl_ExistingData[Sponsor], "*" & tbl_SponsorAFUS[[#This Row],[Sponsor]] & "*", tbl_ExistingData[Fund], Fund, tbl_ExistingData[Paid Off Date], "=") -> 0 | F178: =SUMIFS(tbl_HypoPipeline[Total Commitment], tbl_HypoPipeline[Sponsor], "*" & tbl_SponsorAFUS[[#This Row],[Sponsor]] & "*", tbl_HypoPipeline[Fund], Fund,tbl_HypoPipeline[Exclude?],"") -> 0 | G178: =tbl_SponsorAFUS[[#This Row],[Existing]]+tbl_SponsorAFUS[[#This Row],[Pipeline ]] -> 0
D179: New MainStream Capital | E179: =SUMIFS(tbl_ExistingData[Total Commitment], tbl_ExistingData[Sponsor], "*" & tbl_SponsorAFUS[[#This Row],[Sponsor]] & "*", tbl_ExistingData[Fund], Fund, tbl_ExistingData[Paid Off Date], "=") -> 0 | F179: =SUMIFS(tbl_HypoPipeline[Total Commitment], tbl_HypoPipeline[Sponsor], "*" & tbl_SponsorAFUS[[#This Row],[Sponsor]] & "*", tbl_HypoPipeline[Fund], Fund,tbl_HypoPipeline[Exclude?],"") -> 0 | G179: =tbl_SponsorAFUS[[#This Row],[Existing]]+tbl_SponsorAFUS[[#This Row],[Pipeline ]] -> 0
D180: NexPhase Capital | E180: =SUMIFS(tbl_ExistingData[Total Commitment], tbl_ExistingData[Sponsor], "*" & tbl_SponsorAFUS[[#This Row],[Sponsor]] & "*", tbl_ExistingData[Fund], Fund, tbl_ExistingData[Paid Off Date], "=") -> 0 | F180: =SUMIFS(tbl_HypoPipeline[Total Commitment], tbl_HypoPipeline[Sponsor], "*" & tbl_SponsorAFUS[[#This Row],[Sponsor]] & "*", tbl_HypoPipeline[Fund], Fund,tbl_HypoPipeline[Exclude?],"") -> 0 | G180: =tbl_SponsorAFUS[[#This Row],[Existing]]+tbl_SponsorAFUS[[#This Row],[Pipeline ]] -> 0
D181: Non-Sponsored | E181: =SUMIFS(tbl_ExistingData[Total Commitment], tbl_ExistingData[Sponsor], "*" & tbl_SponsorAFUS[[#This Row],[Sponsor]] & "*", tbl_ExistingData[Fund], Fund, tbl_ExistingData[Paid Off Date], "=") -> 0 | F181: =SUMIFS(tbl_HypoPipeline[Total Commitment], tbl_HypoPipeline[Sponsor], "*" & tbl_SponsorAFUS[[#This Row],[Sponsor]] & "*", tbl_HypoPipeline[Fund], Fund,tbl_HypoPipeline[Exclude?],"") -> 0 | G181: =tbl_SponsorAFUS[[#This Row],[Existing]]+tbl_SponsorAFUS[[#This Row],[Pipeline ]] -> 0
D182: Northlane Capital Partners LLC (fka American Capital Strategies, Ltd.) | E182: =SUMIFS(tbl_ExistingData[Total Commitment], tbl_ExistingData[Sponsor], "*" & tbl_SponsorAFUS[[#This Row],[Sponsor]] & "*", tbl_ExistingData[Fund], Fund, tbl_ExistingData[Paid Off Date], "=") -> 0 | F182: =SUMIFS(tbl_HypoPipeline[Total Commitment], tbl_HypoPipeline[Sponsor], "*" & tbl_SponsorAFUS[[#This Row],[Sponsor]] & "*", tbl_HypoPipeline[Fund], Fund,tbl_HypoPipeline[Exclude?],"") -> 0 | G182: =tbl_SponsorAFUS[[#This Row],[Existing]]+tbl_SponsorAFUS[[#This Row],[Pipeline ]] -> 0
D183: NORWEST EQUITY PARTNERS | E183: =SUMIFS(tbl_ExistingData[Total Commitment], tbl_ExistingData[Sponsor], "*" & tbl_SponsorAFUS[[#This Row],[Sponsor]] & "*", tbl_ExistingData[Fund], Fund, tbl_ExistingData[Paid Off Date], "=") -> 0 | F183: =SUMIFS(tbl_HypoPipeline[Total Commitment], tbl_HypoPipeline[Sponsor], "*" & tbl_SponsorAFUS[[#This Row],[Sponsor]] & "*", tbl_HypoPipeline[Fund], Fund,tbl_HypoPipeline[Exclude?],"") -> 0 | G183: =tbl_SponsorAFUS[[#This Row],[Existing]]+tbl_SponsorAFUS[[#This Row],[Pipeline ]] -> 0
D184: Novacap | E184: =SUMIFS(tbl_ExistingData[Total Commitment], tbl_ExistingData[Sponsor], "*" & tbl_SponsorAFUS[[#This Row],[Sponsor]] & "*", tbl_ExistingData[Fund], Fund, tbl_ExistingData[Paid Off Date], "=") -> 0 | F184: =SUMIFS(tbl_HypoPipeline[Total Commitment], tbl_HypoPipeline[Sponsor], "*" & tbl_SponsorAFUS[[#This Row],[Sponsor]] & "*", tbl_HypoPipeline[Fund], Fund,tbl_HypoPipeline[Exclude?],"") -> 0 | G184: =tbl_SponsorAFUS[[#This Row],[Existing]]+tbl_SponsorAFUS[[#This Row],[Pipeline ]] -> 0
D185: Oakley Capital | E185: =SUMIFS(tbl_ExistingData[Total Commitment], tbl_ExistingData[Sponsor], "*" & tbl_SponsorAFUS[[#This Row],[Sponsor]] & "*", tbl_ExistingData[Fund], Fund, tbl_ExistingData[Paid Off Date], "=") -> 0 | F185: =SUMIFS(tbl_HypoPipeline[Total Commitment], tbl_HypoPipeline[Sponsor], "*" & tbl_SponsorAFUS[[#This Row],[Sponsor]] & "*", tbl_HypoPipeline[Fund], Fund,tbl_HypoPipeline[Exclude?],"") -> 0 | G185: =tbl_SponsorAFUS[[#This Row],[Existing]]+tbl_SponsorAFUS[[#This Row],[Pipeline ]] -> 0
D186: Oak Hill Capital | E186: =SUMIFS(tbl_ExistingData[Total Commitment], tbl_ExistingData[Sponsor], "*" & tbl_SponsorAFUS[[#This Row],[Sponsor]] & "*", tbl_ExistingData[Fund], Fund, tbl_ExistingData[Paid Off Date], "=") -> 0 | F186: =SUMIFS(tbl_HypoPipeline[Total Commitment], tbl_HypoPipeline[Sponsor], "*" & tbl_SponsorAFUS[[#This Row],[Sponsor]] & "*", tbl_HypoPipeline[Fund], Fund,tbl_HypoPipeline[Exclude?],"") -> 0 | G186: =tbl_SponsorAFUS[[#This Row],[Existing]]+tbl_SponsorAFUS[[#This Row],[Pipeline ]] -> 0
D187: Olympus Partners | E187: =SUMIFS(tbl_ExistingData[Total Commitment], tbl_ExistingData[Sponsor], "*" & tbl_SponsorAFUS[[#This Row],[Sponsor]] & "*", tbl_ExistingData[Fund], Fund, tbl_ExistingData[Paid Off Date], "=") -> 0 | F187: =SUMIFS(tbl_HypoPipeline[Total Commitment], tbl_HypoPipeline[Sponsor], "*" & tbl_SponsorAFUS[[#This Row],[Sponsor]] & "*", tbl_HypoPipeline[Fund], Fund,tbl_HypoPipeline[Exclude?],"") -> 0 | G187: =tbl_SponsorAFUS[[#This Row],[Existing]]+tbl_SponsorAFUS[[#This Row],[Pipeline ]] -> 0
D188: PAMPLONA TMTI, L.P. | E188: =SUMIFS(tbl_ExistingData[Total Commitment], tbl_ExistingData[Sponsor], "*" & tbl_SponsorAFUS[[#This Row],[Sponsor]] & "*", tbl_ExistingData[Fund], Fund, tbl_ExistingData[Paid Off Date], "=") -> 0 | F188: =SUMIFS(tbl_HypoPipeline[Total Commitment], tbl_HypoPipeline[Sponsor], "*" & tbl_SponsorAFUS[[#This Row],[Sponsor]] & "*", tbl_HypoPipeline[Fund], Fund,tbl_HypoPipeline[Exclude?],"") -> 0 | G188: =tbl_SponsorAFUS[[#This Row],[Existing]]+tbl_SponsorAFUS[[#This Row],[Pipeline ]] -> 0
D189: Parthenon Capital LLC | E189: =SUMIFS(tbl_ExistingData[Total Commitment], tbl_ExistingData[Sponsor], "*" & tbl_SponsorAFUS[[#This Row],[Sponsor]] & "*", tbl_ExistingData[Fund], Fund, tbl_ExistingData[Paid Off Date], "=") -> 0 | F189: =SUMIFS(tbl_HypoPipeline[Total Commitment], tbl_HypoPipeline[Sponsor], "*" & tbl_SponsorAFUS[[#This Row],[Sponsor]] & "*", tbl_HypoPipeline[Fund], Fund,tbl_HypoPipeline[Exclude?],"") -> 0 | G189: =tbl_SponsorAFUS[[#This Row],[Existing]]+tbl_SponsorAFUS[[#This Row],[Pipeline ]] -> 0
D190: PFINGSTEN | E190: =SUMIFS(tbl_ExistingData[Total Commitment], tbl_ExistingData[Sponsor], "*" & tbl_SponsorAFUS[[#This Row],[Sponsor]] & "*", tbl_ExistingData[Fund], Fund, tbl_ExistingData[Paid Off Date], "=") -> 0 | F190: =SUMIFS(tbl_HypoPipeline[Total Commitment], tbl_HypoPipeline[Sponsor], "*" & tbl_SponsorAFUS[[#This Row],[Sponsor]] & "*", tbl_HypoPipeline[Fund], Fund,tbl_HypoPipeline[Exclude?],"") -> 0 | G190: =tbl_SponsorAFUS[[#This Row],[Existing]]+tbl_SponsorAFUS[[#This Row],[Pipeline ]] -> 0
D191: PNC RIVERARCH CAPITAL, A DIVISION OF PNC FINANCE, LLC | E191: =SUMIFS(tbl_ExistingData[Total Commitment], tbl_ExistingData[Sponsor], "*" & tbl_SponsorAFUS[[#This Row],[Sponsor]] & "*", tbl_ExistingData[Fund], Fund, tbl_ExistingData[Paid Off Date], "=") -> 0 | F191: =SUMIFS(tbl_HypoPipeline[Total Commitment], tbl_HypoPipeline[Sponsor], "*" & tbl_SponsorAFUS[[#This Row],[Sponsor]] & "*", tbl_HypoPipeline[Fund], Fund,tbl_HypoPipeline[Exclude?],"") -> 0 | G191: =tbl_SponsorAFUS[[#This Row],[Existing]]+tbl_SponsorAFUS[[#This Row],[Pipeline ]] -> 0
D192: PROVIDENCE EQUITY PARTNERS | E192: =SUMIFS(tbl_ExistingData[Total Commitment], tbl_ExistingData[Sponsor], "*" & tbl_SponsorAFUS[[#This Row],[Sponsor]] & "*", tbl_ExistingData[Fund], Fund, tbl_ExistingData[Paid Off Date], "=") -> 0 | F192: =SUMIFS(tbl_HypoPipeline[Total Commitment], tbl_HypoPipeline[Sponsor], "*" & tbl_SponsorAFUS[[#This Row],[Sponsor]] & "*", tbl_HypoPipeline[Fund], Fund,tbl_HypoPipeline[Exclude?],"") -> 0 | G192: =tbl_SponsorAFUS[[#This Row],[Existing]]+tbl_SponsorAFUS[[#This Row],[Pipeline ]] -> 0
D193: QUAD-C MANAGEMENT | E193: =SUMIFS(tbl_ExistingData[Total Commitment], tbl_ExistingData[Sponsor], "*" & tbl_SponsorAFUS[[#This Row],[Sponsor]] & "*", tbl_ExistingData[Fund], Fund, tbl_ExistingData[Paid Off Date], "=") -> 0 | F193: =SUMIFS(tbl_HypoPipeline[Total Commitment], tbl_HypoPipeline[Sponsor], "*" & tbl_SponsorAFUS[[#This Row],[Sponsor]] & "*", tbl_HypoPipeline[Fund], Fund,tbl_HypoPipeline[Exclude?],"") -> 0 | G193: =tbl_SponsorAFUS[[#This Row],[Existing]]+tbl_SponsorAFUS[[#This Row],[Pipeline ]] -> 0
D194: REVELSTOKE CAPITAL | E194: =SUMIFS(tbl_ExistingData[Total Commitment], tbl_ExistingData[Sponsor], "*" & tbl_SponsorAFUS[[#This Row],[Sponsor]] & "*", tbl_ExistingData[Fund], Fund, tbl_ExistingData[Paid Off Date], "=") -> 0 | F194: =SUMIFS(tbl_HypoPipeline[Total Commitment], tbl_HypoPipeline[Sponsor], "*" & tbl_SponsorAFUS[[#This Row],[Sponsor]] & "*", tbl_HypoPipeline[Fund], Fund,tbl_HypoPipeline[Exclude?],"") -> 0 | G194: =tbl_SponsorAFUS[[#This Row],[Existing]]+tbl_SponsorAFUS[[#This Row],[Pipeline ]] -> 0
D195: RIDGEMONT EQUITY PARTNERS | E195: =SUMIFS(tbl_ExistingData[Total Commitment], tbl_ExistingData[Sponsor], "*" & tbl_SponsorAFUS[[#This Row],[Sponsor]] & "*", tbl_ExistingData[Fund], Fund, tbl_ExistingData[Paid Off Date], "=") -> 0 | F195: =SUMIFS(tbl_HypoPipeline[Total Commitment], tbl_HypoPipeline[Sponsor], "*" & tbl_SponsorAFUS[[#This Row],[Sponsor]] & "*", tbl_HypoPipeline[Fund], Fund,tbl_HypoPipeline[Exclude?],"") -> 0 | G195: =tbl_SponsorAFUS[[#This Row],[Existing]]+tbl_SponsorAFUS[[#This Row],[Pipeline ]] -> 0
D196: RIVER ASSOCIATES INVESTMENTS, LLC | E196: =SUMIFS(tbl_ExistingData[Total Commitment], tbl_ExistingData[Sponsor], "*" & tbl_SponsorAFUS[[#This Row],[Sponsor]] & "*", tbl_ExistingData[Fund], Fund, tbl_ExistingData[Paid Off Date], "=") -> 0 | F196: =SUMIFS(tbl_HypoPipeline[Total Commitment], tbl_HypoPipeline[Sponsor], "*" & tbl_SponsorAFUS[[#This Row],[Sponsor]] & "*", tbl_HypoPipeline[Fund], Fund,tbl_HypoPipeline[Exclude?],"") -> 0 | G196: =tbl_SponsorAFUS[[#This Row],[Existing]]+tbl_SponsorAFUS[[#This Row],[Pipeline ]] -> 0
D197: Riverside Company, The | E197: =SUMIFS(tbl_ExistingData[Total Commitment], tbl_ExistingData[Sponsor], "*" & tbl_SponsorAFUS[[#This Row],[Sponsor]] & "*", tbl_ExistingData[Fund], Fund, tbl_ExistingData[Paid Off Date], "=") -> 0 | F197: =SUMIFS(tbl_HypoPipeline[Total Commitment], tbl_HypoPipeline[Sponsor], "*" & tbl_SponsorAFUS[[#This Row],[Sponsor]] & "*", tbl_HypoPipeline[Fund], Fund,tbl_HypoPipeline[Exclude?],"") -> 0 | G197: =tbl_SponsorAFUS[[#This Row],[Existing]]+tbl_SponsorAFUS[[#This Row],[Pipeline ]] -> 0
D198: ROARK CAPITAL GROUP | E198: =SUMIFS(tbl_ExistingData[Total Commitment], tbl_ExistingData[Sponsor], "*" & tbl_SponsorAFUS[[#This Row],[Sponsor]] & "*", tbl_ExistingData[Fund], Fund, tbl_ExistingData[Paid Off Date], "=") -> 0 | F198: =SUMIFS(tbl_HypoPipeline[Total Commitment], tbl_HypoPipeline[Sponsor], "*" & tbl_SponsorAFUS[[#This Row],[Sponsor]] & "*", tbl_HypoPipeline[Fund], Fund,tbl_HypoPipeline[Exclude?],"") -> 0 | G198: =tbl_SponsorAFUS[[#This Row],[Existing]]+tbl_SponsorAFUS[[#This Row],[Pipeline ]] -> 0
D199: Saw Mill Capital LLC | E199: =SUMIFS(tbl_ExistingData[Total Commitment], tbl_ExistingData[Sponsor], "*" & tbl_SponsorAFUS[[#This Row],[Sponsor]] & "*", tbl_ExistingData[Fund], Fund, tbl_ExistingData[Paid Off Date], "=") -> 0 | F199: =SUMIFS(tbl_HypoPipeline[Total Commitment], tbl_HypoPipeline[Sponsor], "*" & tbl_SponsorAFUS[[#This Row],[Sponsor]] & "*", tbl_HypoPipeline[Fund], Fund,tbl_HypoPipeline[Exclude?],"") -> 0 | G199: =tbl_SponsorAFUS[[#This Row],[Existing]]+tbl_SponsorAFUS[[#This Row],[Pipeline ]] -> 0
D200: SEIDLER EQUITY PARTNERS | E200: =SUMIFS(tbl_ExistingData[Total Commitment], tbl_ExistingData[Sponsor], "*" & tbl_SponsorAFUS[[#This Row],[Sponsor]] & "*", tbl_ExistingData[Fund], Fund, tbl_ExistingData[Paid Off Date], "=") -> 0 | F200: =SUMIFS(tbl_HypoPipeline[Total Commitment], tbl_HypoPipeline[Sponsor], "*" & tbl_SponsorAFUS[[#This Row],[Sponsor]] & "*", tbl_HypoPipeline[Fund], Fund,tbl_HypoPipeline[Exclude?],"") -> 0 | G200: =tbl_SponsorAFUS[[#This Row],[Existing]]+tbl_SponsorAFUS[[#This Row],[Pipeline ]] -> 0
D201: SENTINEL CAPITAL PARTNERS, LLC | E201: =SUMIFS(tbl_ExistingData[Total Commitment], tbl_ExistingData[Sponsor], "*" & tbl_SponsorAFUS[[#This Row],[Sponsor]] & "*", tbl_ExistingData[Fund], Fund, tbl_ExistingData[Paid Off Date], "=") -> 0 | F201: =SUMIFS(tbl_HypoPipeline[Total Commitment], tbl_HypoPipeline[Sponsor], "*" & tbl_SponsorAFUS[[#This Row],[Sponsor]] & "*", tbl_HypoPipeline[Fund], Fund,tbl_HypoPipeline[Exclude?],"") -> 0 | G201: =tbl_SponsorAFUS[[#This Row],[Existing]]+tbl_SponsorAFUS[[#This Row],[Pipeline ]] -> 0
D202: SEQUEL HOLDINGS | E202: =SUMIFS(tbl_ExistingData[Total Commitment], tbl_ExistingData[Sponsor], "*" & tbl_SponsorAFUS[[#This Row],[Sponsor]] & "*", tbl_ExistingData[Fund], Fund, tbl_ExistingData[Paid Off Date], "=") -> 0 | F202: =SUMIFS(tbl_HypoPipeline[Total Commitment], tbl_HypoPipeline[Sponsor], "*" & tbl_SponsorAFUS[[#This Row],[Sponsor]] & "*", tbl_HypoPipeline[Fund], Fund,tbl_HypoPipeline[Exclude?],"") -> 0 | G202: =tbl_SponsorAFUS[[#This Row],[Existing]]+tbl_SponsorAFUS[[#This Row],[Pipeline ]] -> 0
D203: Shamrock Capital Advisers | E203: =SUMIFS(tbl_ExistingData[Total Commitment], tbl_ExistingData[Sponsor], "*" & tbl_SponsorAFUS[[#This Row],[Sponsor]] & "*", tbl_ExistingData[Fund], Fund, tbl_ExistingData[Paid Off Date], "=") -> 0 | F203: =SUMIFS(tbl_HypoPipeline[Total Commitment], tbl_HypoPipeline[Sponsor], "*" & tbl_SponsorAFUS[[#This Row],[Sponsor]] & "*", tbl_HypoPipeline[Fund], Fund,tbl_HypoPipeline[Exclude?],"") -> 0 | G203: =tbl_SponsorAFUS[[#This Row],[Existing]]+tbl_SponsorAFUS[[#This Row],[Pipeline ]] -> 0
D204: Shorehill Capital LLC | E204: =SUMIFS(tbl_ExistingData[Total Commitment], tbl_ExistingData[Sponsor], "*" & tbl_SponsorAFUS[[#This Row],[Sponsor]] & "*", tbl_ExistingData[Fund], Fund, tbl_ExistingData[Paid Off Date], "=") -> 0 | F204: =SUMIFS(tbl_HypoPipeline[Total Commitment], tbl_HypoPipeline[Sponsor], "*" & tbl_SponsorAFUS[[#This Row],[Sponsor]] & "*", tbl_HypoPipeline[Fund], Fund,tbl_HypoPipeline[Exclude?],"") -> 0 | G204: =tbl_SponsorAFUS[[#This Row],[Existing]]+tbl_SponsorAFUS[[#This Row],[Pipeline ]] -> 0
D205: Shore Capital Partner | E205: =SUMIFS(tbl_ExistingData[Total Commitment], tbl_ExistingData[Sponsor], "*" & tbl_SponsorAFUS[[#This Row],[Sponsor]] & "*", tbl_ExistingData[Fund], Fund, tbl_ExistingData[Paid Off Date], "=") -> 0 | F205: =SUMIFS(tbl_HypoPipeline[Total Commitment], tbl_HypoPipeline[Sponsor], "*" & tbl_SponsorAFUS[[#This Row],[Sponsor]] & "*", tbl_HypoPipeline[Fund], Fund,tbl_HypoPipeline[Exclude?],"") -> 0 | G205: =tbl_SponsorAFUS[[#This Row],[Existing]]+tbl_SponsorAFUS[[#This Row],[Pipeline ]] -> 0
D206: SOUNDCORE CAPITAL PARTNERS | E206: =SUMIFS(tbl_ExistingData[Total Commitment], tbl_ExistingData[Sponsor], "*" & tbl_SponsorAFUS[[#This Row],[Sponsor]] & "*", tbl_ExistingData[Fund], Fund, tbl_ExistingData[Paid Off Date], "=") -> 0 | F206: =SUMIFS(tbl_HypoPipeline[Total Commitment], tbl_HypoPipeline[Sponsor], "*" & tbl_SponsorAFUS[[#This Row],[Sponsor]] & "*", tbl_HypoPipeline[Fund], Fund,tbl_HypoPipeline[Exclude?],"") -> 0 | G206: =tbl_SponsorAFUS[[#This Row],[Existing]]+tbl_SponsorAFUS[[#This Row],[Pipeline ]] -> 0
D207: Spire Capital Partners, L.P. | E207: =SUMIFS(tbl_ExistingData[Total Commitment], tbl_ExistingData[Sponsor], "*" & tbl_SponsorAFUS[[#This Row],[Sponsor]] & "*", tbl_ExistingData[Fund], Fund, tbl_ExistingData[Paid Off Date], "=") -> 0 | F207: =SUMIFS(tbl_HypoPipeline[Total Commitment], tbl_HypoPipeline[Sponsor], "*" & tbl_SponsorAFUS[[#This Row],[Sponsor]] & "*", tbl_HypoPipeline[Fund], Fund,tbl_HypoPipeline[Exclude?],"") -> 0 | G207: =tbl_SponsorAFUS[[#This Row],[Existing]]+tbl_SponsorAFUS[[#This Row],[Pipeline ]] -> 0
D208: Sterling Investment Partners | E208: =SUMIFS(tbl_ExistingData[Total Commitment], tbl_ExistingData[Sponsor], "*" & tbl_SponsorAFUS[[#This Row],[Sponsor]] & "*", tbl_ExistingData[Fund], Fund, tbl_ExistingData[Paid Off Date], "=") -> 0 | F208: =SUMIFS(tbl_HypoPipeline[Total Commitment], tbl_HypoPipeline[Sponsor], "*" & tbl_SponsorAFUS[[#This Row],[Sponsor]] & "*", tbl_HypoPipeline[Fund], Fund,tbl_HypoPipeline[Exclude?],"") -> 0 | G208: =tbl_SponsorAFUS[[#This Row],[Existing]]+tbl_SponsorAFUS[[#This Row],[Pipeline ]] -> 0
D209: Sterling Partners | E209: =SUMIFS(tbl_ExistingData[Total Commitment], tbl_ExistingData[Sponsor], "*" & tbl_SponsorAFUS[[#This Row],[Sponsor]] & "*", tbl_ExistingData[Fund], Fund, tbl_ExistingData[Paid Off Date], "=") -> 0 | F209: =SUMIFS(tbl_HypoPipeline[Total Commitment], tbl_HypoPipeline[Sponsor], "*" & tbl_SponsorAFUS[[#This Row],[Sponsor]] & "*", tbl_HypoPipeline[Fund], Fund,tbl_HypoPipeline[Exclude?],"") -> 0 | G209: =tbl_SponsorAFUS[[#This Row],[Existing]]+tbl_SponsorAFUS[[#This Row],[Pipeline ]] -> 0
D210: SUMMIT PARTNERS | E210: =SUMIFS(tbl_ExistingData[Total Commitment], tbl_ExistingData[Sponsor], "*" & tbl_SponsorAFUS[[#This Row],[Sponsor]] & "*", tbl_ExistingData[Fund], Fund, tbl_ExistingData[Paid Off Date], "=") -> 0 | F210: =SUMIFS(tbl_HypoPipeline[Total Commitment], tbl_HypoPipeline[Sponsor], "*" & tbl_SponsorAFUS[[#This Row],[Sponsor]] & "*", tbl_HypoPipeline[Fund], Fund,tbl_HypoPipeline[Exclude?],"") -> 0 | G210: =tbl_SponsorAFUS[[#This Row],[Existing]]+tbl_SponsorAFUS[[#This Row],[Pipeline ]] -> 0
D211: SWANDER PACE CAPITAL | E211: =SUMIFS(tbl_ExistingData[Total Commitment], tbl_ExistingData[Sponsor], "*" & tbl_SponsorAFUS[[#This Row],[Sponsor]] & "*", tbl_ExistingData[Fund], Fund, tbl_ExistingData[Paid Off Date], "=") -> 0 | F211: =SUMIFS(tbl_HypoPipeline[Total Commitment], tbl_HypoPipeline[Sponsor], "*" & tbl_SponsorAFUS[[#This Row],[Sponsor]] & "*", tbl_HypoPipeline[Fund], Fund,tbl_HypoPipeline[Exclude?],"") -> 0 | G211: =tbl_SponsorAFUS[[#This Row],[Existing]]+tbl_SponsorAFUS[[#This Row],[Pipeline ]] -> 0
D212: TA ASSOCIATES | E212: =SUMIFS(tbl_ExistingData[Total Commitment], tbl_ExistingData[Sponsor], "*" & tbl_SponsorAFUS[[#This Row],[Sponsor]] & "*", tbl_ExistingData[Fund], Fund, tbl_ExistingData[Paid Off Date], "=") -> 0 | F212: =SUMIFS(tbl_HypoPipeline[Total Commitment], tbl_HypoPipeline[Sponsor], "*" & tbl_SponsorAFUS[[#This Row],[Sponsor]] & "*", tbl_HypoPipeline[Fund], Fund,tbl_HypoPipeline[Exclude?],"") -> 0 | G212: =tbl_SponsorAFUS[[#This Row],[Existing]]+tbl_SponsorAFUS[[#This Row],[Pipeline ]] -> 0
D213: Tailwind Capital | E213: =SUMIFS(tbl_ExistingData[Total Commitment], tbl_ExistingData[Sponsor], "*" & tbl_SponsorAFUS[[#This Row],[Sponsor]] & "*", tbl_ExistingData[Fund], Fund, tbl_ExistingData[Paid Off Date], "=") -> 0 | F213: =SUMIFS(tbl_HypoPipeline[Total Commitment], tbl_HypoPipeline[Sponsor], "*" & tbl_SponsorAFUS[[#This Row],[Sponsor]] & "*", tbl_HypoPipeline[Fund], Fund,tbl_HypoPipeline[Exclude?],"") -> 0 | G213: =tbl_SponsorAFUS[[#This Row],[Existing]]+tbl_SponsorAFUS[[#This Row],[Pipeline ]] -> 0
D214: TDP | E214: =SUMIFS(tbl_ExistingData[Total Commitment], tbl_ExistingData[Sponsor], "*" & tbl_SponsorAFUS[[#This Row],[Sponsor]] & "*", tbl_ExistingData[Fund], Fund, tbl_ExistingData[Paid Off Date], "=") -> 0 | F214: =SUMIFS(tbl_HypoPipeline[Total Commitment], tbl_HypoPipeline[Sponsor], "*" & tbl_SponsorAFUS[[#This Row],[Sponsor]] & "*", tbl_HypoPipeline[Fund], Fund,tbl_HypoPipeline[Exclude?],"") -> 0 | G214: =tbl_SponsorAFUS[[#This Row],[Existing]]+tbl_SponsorAFUS[[#This Row],[Pipeline ]] -> 0
D215: Tenex Capital Management | E215: =SUMIFS(tbl_ExistingData[Total Commitment], tbl_ExistingData[Sponsor], "*" & tbl_SponsorAFUS[[#This Row],[Sponsor]] & "*", tbl_ExistingData[Fund], Fund, tbl_ExistingData[Paid Off Date], "=") -> 0 | F215: =SUMIFS(tbl_HypoPipeline[Total Commitment], tbl_HypoPipeline[Sponsor], "*" & tbl_SponsorAFUS[[#This Row],[Sponsor]] & "*", tbl_HypoPipeline[Fund], Fund,tbl_HypoPipeline[Exclude?],"") -> 0 | G215: =tbl_SponsorAFUS[[#This Row],[Existing]]+tbl_SponsorAFUS[[#This Row],[Pipeline ]] -> 0
D216: The CapStreet Group | E216: =SUMIFS(tbl_ExistingData[Total Commitment], tbl_ExistingData[Sponsor], "*" & tbl_SponsorAFUS[[#This Row],[Sponsor]] & "*", tbl_ExistingData[Fund], Fund, tbl_ExistingData[Paid Off Date], "=") -> 0 | F216: =SUMIFS(tbl_HypoPipeline[Total Commitment], tbl_HypoPipeline[Sponsor], "*" & tbl_SponsorAFUS[[#This Row],[Sponsor]] & "*", tbl_HypoPipeline[Fund], Fund,tbl_HypoPipeline[Exclude?],"") -> 0 | G216: =tbl_SponsorAFUS[[#This Row],[Existing]]+tbl_SponsorAFUS[[#This Row],[Pipeline ]] -> 0
D217: The Halifax Group | E217: =SUMIFS(tbl_ExistingData[Total Commitment], tbl_ExistingData[Sponsor], "*" & tbl_SponsorAFUS[[#This Row],[Sponsor]] & "*", tbl_ExistingData[Fund], Fund, tbl_ExistingData[Paid Off Date], "=") -> 0 | F217: =SUMIFS(tbl_HypoPipeline[Total Commitment], tbl_HypoPipeline[Sponsor], "*" & tbl_SponsorAFUS[[#This Row],[Sponsor]] & "*", tbl_HypoPipeline[Fund], Fund,tbl_HypoPipeline[Exclude?],"") -> 0 | G217: =tbl_SponsorAFUS[[#This Row],[Existing]]+tbl_SponsorAFUS[[#This Row],[Pipeline ]] -> 0
D218: The Pritzker Organization | E218: =SUMIFS(tbl_ExistingData[Total Commitment], tbl_ExistingData[Sponsor], "*" & tbl_SponsorAFUS[[#This Row],[Sponsor]] & "*", tbl_ExistingData[Fund], Fund, tbl_ExistingData[Paid Off Date], "=") -> 0 | F218: =SUMIFS(tbl_HypoPipeline[Total Commitment], tbl_HypoPipeline[Sponsor], "*" & tbl_SponsorAFUS[[#This Row],[Sponsor]] & "*", tbl_HypoPipeline[Fund], Fund,tbl_HypoPipeline[Exclude?],"") -> 0 | G218: =tbl_SponsorAFUS[[#This Row],[Existing]]+tbl_SponsorAFUS[[#This Row],[Pipeline ]] -> 0
D219: THE RIVERSIDE COMPANY | E219: =SUMIFS(tbl_ExistingData[Total Commitment], tbl_ExistingData[Sponsor], "*" & tbl_SponsorAFUS[[#This Row],[Sponsor]] & "*", tbl_ExistingData[Fund], Fund, tbl_ExistingData[Paid Off Date], "=") -> 0 | F219: =SUMIFS(tbl_HypoPipeline[Total Commitment], tbl_HypoPipeline[Sponsor], "*" & tbl_SponsorAFUS[[#This Row],[Sponsor]] & "*", tbl_HypoPipeline[Fund], Fund,tbl_HypoPipeline[Exclude?],"") -> 0 | G219: =tbl_SponsorAFUS[[#This Row],[Existing]]+tbl_SponsorAFUS[[#This Row],[Pipeline ]] -> 0
D220: TRINITY HUNT PARTNERS IV, L.P. | E220: =SUMIFS(tbl_ExistingData[Total Commitment], tbl_ExistingData[Sponsor], "*" & tbl_SponsorAFUS[[#This Row],[Sponsor]] & "*", tbl_ExistingData[Fund], Fund, tbl_ExistingData[Paid Off Date], "=") -> 0 | F220: =SUMIFS(tbl_HypoPipeline[Total Commitment], tbl_HypoPipeline[Sponsor], "*" & tbl_SponsorAFUS[[#This Row],[Sponsor]] & "*", tbl_HypoPipeline[Fund], Fund,tbl_HypoPipeline[Exclude?],"") -> 0 | G220: =tbl_SponsorAFUS[[#This Row],[Existing]]+tbl_SponsorAFUS[[#This Row],[Pipeline ]] -> 0
D221: Triple Tree | E221: =SUMIFS(tbl_ExistingData[Total Commitment], tbl_ExistingData[Sponsor], "*" & tbl_SponsorAFUS[[#This Row],[Sponsor]] & "*", tbl_ExistingData[Fund], Fund, tbl_ExistingData[Paid Off Date], "=") -> 0 | F221: =SUMIFS(tbl_HypoPipeline[Total Commitment], tbl_HypoPipeline[Sponsor], "*" & tbl_SponsorAFUS[[#This Row],[Sponsor]] & "*", tbl_HypoPipeline[Fund], Fund,tbl_HypoPipeline[Exclude?],"") -> 0 | G221: =tbl_SponsorAFUS[[#This Row],[Existing]]+tbl_SponsorAFUS[[#This Row],[Pipeline ]] -> 0
D222: Trive Capital | E222: =SUMIFS(tbl_ExistingData[Total Commitment], tbl_ExistingData[Sponsor], "*" & tbl_SponsorAFUS[[#This Row],[Sponsor]] & "*", tbl_ExistingData[Fund], Fund, tbl_ExistingData[Paid Off Date], "=") -> 0 | F222: =SUMIFS(tbl_HypoPipeline[Total Commitment], tbl_HypoPipeline[Sponsor], "*" & tbl_SponsorAFUS[[#This Row],[Sponsor]] & "*", tbl_HypoPipeline[Fund], Fund,tbl_HypoPipeline[Exclude?],"") -> 0 | G222: =tbl_SponsorAFUS[[#This Row],[Existing]]+tbl_SponsorAFUS[[#This Row],[Pipeline ]] -> 0
D223: TRUE WIND CAPITAL | E223: =SUMIFS(tbl_ExistingData[Total Commitment], tbl_ExistingData[Sponsor], "*" & tbl_SponsorAFUS[[#This Row],[Sponsor]] & "*", tbl_ExistingData[Fund], Fund, tbl_ExistingData[Paid Off Date], "=") -> 0 | F223: =SUMIFS(tbl_HypoPipeline[Total Commitment], tbl_HypoPipeline[Sponsor], "*" & tbl_SponsorAFUS[[#This Row],[Sponsor]] & "*", tbl_HypoPipeline[Fund], Fund,tbl_HypoPipeline[Exclude?],"") -> 0 | G223: =tbl_SponsorAFUS[[#This Row],[Existing]]+tbl_SponsorAFUS[[#This Row],[Pipeline ]] -> 0
D224: TYREE & D'ANGELO PARTNERS LLC | E224: =SUMIFS(tbl_ExistingData[Total Commitment], tbl_ExistingData[Sponsor], "*" & tbl_SponsorAFUS[[#This Row],[Sponsor]] & "*", tbl_ExistingData[Fund], Fund, tbl_ExistingData[Paid Off Date], "=") -> 0 | F224: =SUMIFS(tbl_HypoPipeline[Total Commitment], tbl_HypoPipeline[Sponsor], "*" & tbl_SponsorAFUS[[#This Row],[Sponsor]] & "*", tbl_HypoPipeline[Fund], Fund,tbl_HypoPipeline[Exclude?],"") -> 0 | G224: =tbl_SponsorAFUS[[#This Row],[Existing]]+tbl_SponsorAFUS[[#This Row],[Pipeline ]] -> 0
... 7 more rows

Sheet Tests (AF-JAP)
A1: Tests: | B1: SMA-AF JAP
A3: SMA Commitment | B3: =VLOOKUP(Fund,tbl_Funds[[Fund]:[Principal Balance]],2,0) -> 900000000
A5: Max Commitment
A7: Bucket
A8: Commitment | B8: =Commitment -> 900000000
A9: Protective Advances Holdback | B9: =_xlfn.XLOOKUP(Fund,tbl_Funds[Fund],tbl_Funds[Protective Advances]) -> 45000000
A10: Bucket Subtotal | B10: =B8-B9 -> 855000000
A11: Available | B11: =B10-B15 -> 855000000
A13: Existing Portfolio | B13: =SUMIFS(tbl_ExistingData[Total Commitment],tbl_ExistingData[Fund],Fund, tbl_ExistingData[Paid Off Date], "=") -> 0
A14: Hypo Pipeline | B14: =SUMIFS(tbl_HypoPipeline[Total Commitment],tbl_HypoPipeline[Fund],Fund,tbl_HypoPipeline[Exclude?],"") -> 0
A15: Final Test Total | B15: =B14+B13 -> 0
A17: Protective Advances
A18: Portfolio | B18: =SUMIF(tbl_ProtectiveAdvances[SMA],Fund,tbl_ProtectiveAdvances[Commitment Amount]) -> 0
A19: Hypo | B19: =SUMIFS(tbl_HypoPipeline[Total Commitment],tbl_HypoPipeline[Fund],Fund,tbl_HypoPipeline[Protective Advances],"Y") -> 0
A22: Unfunded Commitment
A23: The sum of Portfolio and Pipeline values (Revolver Commitments + DDTL Commitments - DDTL Principal) must be < 15% of total SMA Commitment.
A25: Bucket | B25: =Commitment*0.15 -> 135000000
A26: Available | B26: =B25-B40 -> 135000000
A28: Existing Portfolio
A29: Total Revolver Commitment in Program | B29: =SUMIFS(tbl_ExistingData[Total Commitment],tbl_ExistingData[Tranche],"*evolv*",tbl_ExistingData[Fund],Fund, tbl_ExistingData[Paid Off Date], "=") -> 0
A30: Total DDTL Commitment in Program | B30: =SUM(SUMIFS(tbl_ExistingData[Total Commitment],tbl_ExistingData[Tranche],{"*Delayed Draw*","*DDTL*"},tbl_ExistingData[Fund],Fund, tbl_ExistingData[Paid Off Date], "=")) -> 0
A31: Total DDTL Principal in Program | B31: =SUM(SUMIFS(tbl_ExistingData[Principal Balance],tbl_ExistingData[Tranche],{"*Delayed Draw*","*DDTL*"},tbl_ExistingData[Fund],Fund, tbl_ExistingData[Paid Off Date], "=")) -> 0
A32: Existing Portfolio Subtotal | B32: =B29+B30-B31 -> 0
A34: Hypo Pipeline
A35: Total Revolver Commitment in Pipeline | B35: =SUMIFS(tbl_HypoPipeline[Total Commitment], tbl_HypoPipeline[Tranche], "*evolv*", tbl_HypoPipeline[Fund], Fund,tbl_HypoPipeline[Exclude?],"") -> 0
A36: Total DDTL Commitment in Pipeline | B36: =SUM(SUMIFS(tbl_HypoPipeline[Total Commitment],tbl_HypoPipeline[Tranche],{"*Delayed Draw*","*DDTL*"},tbl_HypoPipeline[Fund],Fund,tbl_HypoPipeline[Exclude?],"")) -> 0
A37: Total DDTL Principal in Pipeline | B37: =SUM(SUMIFS(tbl_HypoPipeline[Principal Balance],tbl_HypoPipeline[Tranche],{"*Delayed Draw*","*DDTL*"},tbl_HypoPipeline[Fund],Fund,tbl_HypoPipeline[Exclude?],"")) -> 0
A38: Hypo Pipeline Subtotal | B38: =B35+B36-B37 -> 0
A40: Final Test Total | B40: =B38+B32 -> 0
A42: Net Senior Leverage 4.75x
A43: (Original Net Senior Leverage > 4.75) < 30% * SMA Commitment Amount
A45: Bucket | B45: =Commitment*0.3 -> 270000000
A46: Available | B46: =B45-B50 -> 270000000
A48: Existing Portfolio | B48: =SUMIFS(tbl_ExistingData[Total Commitment], tbl_ExistingData[Net Senior Leverage], ">4.75", tbl_ExistingData[Fund], Fund, tbl_ExistingData[Paid Off Date], "=") -> 0 | D48: =IF(COUNTIFS(tbl_ExistingData[Fund],Fund,tbl_ExistingData[Net Senior Leverage],0)>0,"There exist [" & COUNTIFS(tbl_ExistingData[Fund],Fund,tbl_ExistingData[Net Senior Leverage],0) & "] " & Fund & " deals in the Active Portfolio with a Net Senior Leverage of 0.","") -> 
A49: Hypo Pipeline | B49: =SUMIFS(tbl_HypoPipeline[Total Commitment], tbl_HypoPipeline[Net Senior Leverage], ">4.75", tbl_HypoPipeline[Fund], Fund,tbl_HypoPipeline[Exclude?],"") -> 0
A50: Final Test Total | B50: =B49+B48 -> 0
A52: Net Senior Leverage 5.50x
A53: (Original Net Senior Leverage > 5.50) < 10% * SMA Commitment Amount
A55: Bucket | B55: =Commitment*0.1 -> 90000000
A56: Available | B56: =B55-B60 -> 90000000
A58: Existing Portfolio | B58: =SUMIFS(tbl_ExistingData[Total Commitment], tbl_ExistingData[Net Senior Leverage], ">5.5", tbl_ExistingData[Fund], Fund, tbl_ExistingData[Paid Off Date], "=") -> 0 | D58: =IF(COUNTIFS(tbl_ExistingData[Fund],Fund,tbl_ExistingData[Net Senior Leverage],0)>0,"There exist [" & COUNTIFS(tbl_ExistingData[Fund],Fund,tbl_ExistingData[Net Senior Leverage],0) & "] " & Fund & " deals in the Active Portfolio with a Net Senior Leverage of 0.","") -> 
A59: Hypo Pipeline | B59: =SUMIFS(tbl_HypoPipeline[Total Commitment], tbl_HypoPipeline[Net Senior Leverage], ">5.5", tbl_HypoPipeline[Fund], Fund,tbl_HypoPipeline[Exclude?],"") -> 0
A60: Final Test Total | B60: =B59+B58 -> 0
A62: Open Market
A63: All Commitments Secondary Market < 5% * SMA Commitment Amount
A65: Bucket | B65: =Commitment*0.05 -> 45000000
A66: Available | B66: =B65-B70 -> 45000000
A68: Existing Portfolio | B68: =SUMIFS(tbl_ExistingData[Total Commitment],tbl_ExistingData[Open Market Purchase (Y)], "Y",tbl_ExistingData[Fund],Fund, tbl_ExistingData[Paid Off Date], "=") -> 0
A69: Hypo Pipeline | B69: =SUMIFS(tbl_HypoPipeline[Total Commitment],tbl_HypoPipeline[Open Market Purchase (Y)], "Y",tbl_HypoPipeline[Fund],Fund,tbl_HypoPipeline[Exclude?],"") -> 0
A70: Final Test Total | B70: =B69+B68 -> 0
A72: Industry Tests
A73: Maximum aggregate exposure of 25%, 20% and 15% of SMA Commitment for largest three industries.
A75: Largest Bucket | B75: =Commitment*0.25 -> 225000000 | D75: Moody's Industry | E75: Existing | F75: Pipeline | G75: Existing + Pipeline
A76: Available | B76: =B75-B81 -> 225000000 | D76: Aerospace & Defense | E76: =SUMIFS(tbl_ExistingData[Total Commitment], tbl_ExistingData[Moodys Industry], tbl_IndustryAFJAP[[#This Row],[Moody''s Industry]] & "*", tbl_ExistingData[Fund], Fund, tbl_ExistingData[Paid Off Date], "=") -> 0 | F76: =SUMIFS(tbl_HypoPipeline[Total Commitment], tbl_HypoPipeline[Moody''s Industry], tbl_IndustryAFJAP[[#This Row],[Moody''s Industry]] & "*", tbl_HypoPipeline[Fund], Fund,tbl_HypoPipeline[Exclude?],"") + SUMIFS(tbl_HFS[Total Commitment],tbl_HFS[Moody''s Industry],tbl_IndustryAFJAP[[#This Row],[Moody''s Industry]],tbl_HFS[Fund],Fund) -> 0 | G76: =tbl_IndustryAFJAP[[#This Row],[Existing]]+tbl_IndustryAFJAP[[#This Row],[Pipeline]] -> 0
D77: Automotive | E77: =SUMIFS(tbl_ExistingData[Total Commitment], tbl_ExistingData[Moodys Industry], tbl_IndustryAFJAP[[#This Row],[Moody''s Industry]] & "*", tbl_ExistingData[Fund], Fund, tbl_ExistingData[Paid Off Date], "=") -> 0 | F77: =SUMIFS(tbl_HypoPipeline[Total Commitment], tbl_HypoPipeline[Moody''s Industry], tbl_IndustryAFJAP[[#This Row],[Moody''s Industry]] & "*", tbl_HypoPipeline[Fund], Fund,tbl_HypoPipeline[Exclude?],"") + SUMIFS(tbl_HFS[Total Commitment],tbl_HFS[Moody''s Industry],tbl_IndustryAFJAP[[#This Row],[Moody''s Industry]],tbl_HFS[Fund],Fund) -> 0 | G77: =tbl_IndustryAFJAP[[#This Row],[Existing]]+tbl_IndustryAFJAP[[#This Row],[Pipeline]] -> 0
A78: =INDEX(tbl_IndustryAFJAP[],MATCH(B81,tbl_IndustryAFJAP[Existing + Pipeline],0),1) -> Aerospace & Defense | D78: Banking, Finance, Insurance & Real Estate | E78: =SUMIFS(tbl_ExistingData[Total Commitment], tbl_ExistingData[Moodys Industry], tbl_IndustryAFJAP[[#This Row],[Moody''s Industry]] & "*", tbl_ExistingData[Fund], Fund, tbl_ExistingData[Paid Off Date], "=") -> 0 | F78: =SUMIFS(tbl_HypoPipeline[Total Commitment], tbl_HypoPipeline[Moody''s Industry], tbl_IndustryAFJAP[[#This Row],[Moody''s Industry]] & "*", tbl_HypoPipeline[Fund], Fund,tbl_HypoPipeline[Exclude?],"") + SUMIFS(tbl_HFS[Total Commitment],tbl_HFS[Moody''s Industry],tbl_IndustryAFJAP[[#This Row],[Moody''s Industry]],tbl_HFS[Fund],Fund) -> 0 | G78: =tbl_IndustryAFJAP[[#This Row],[Existing]]+tbl_IndustryAFJAP[[#This Row],[Pipeline]] -> 0
A79: Existing Portfolio Component | B79: =INDEX(tbl_IndustryAFJAP[],MATCH(B81,tbl_IndustryAFJAP[Existing + Pipeline],0),2) -> 0 | D79: Beverage, Food & Tobacco | E79: =SUMIFS(tbl_ExistingData[Total Commitment], tbl_ExistingData[Moodys Industry], tbl_IndustryAFJAP[[#This Row],[Moody''s Industry]] & "*", tbl_ExistingData[Fund], Fund, tbl_ExistingData[Paid Off Date], "=") -> 0 | F79: =SUMIFS(tbl_HypoPipeline[Total Commitment], tbl_HypoPipeline[Moody''s Industry], tbl_IndustryAFJAP[[#This Row],[Moody''s Industry]] & "*", tbl_HypoPipeline[Fund], Fund,tbl_HypoPipeline[Exclude?],"") + SUMIFS(tbl_HFS[Total Commitment],tbl_HFS[Moody''s Industry],tbl_IndustryAFJAP[[#This Row],[Moody''s Industry]],tbl_HFS[Fund],Fund) -> 0 | G79: =tbl_IndustryAFJAP[[#This Row],[Existing]]+tbl_IndustryAFJAP[[#This Row],[Pipeline]] -> 0
A80: Hypo Pipeline Component | B80: =INDEX(tbl_IndustryAFJAP[],MATCH(B81,tbl_IndustryAFJAP[Existing + Pipeline],0),3) -> 0 | D80: Capital Equipment | E80: =SUMIFS(tbl_ExistingData[Total Commitment], tbl_ExistingData[Moodys Industry], tbl_IndustryAFJAP[[#This Row],[Moody''s Industry]] & "*", tbl_ExistingData[Fund], Fund, tbl_ExistingData[Paid Off Date], "=") -> 0 | F80: =SUMIFS(tbl_HypoPipeline[Total Commitment], tbl_HypoPipeline[Moody''s Industry], tbl_IndustryAFJAP[[#This Row],[Moody''s Industry]] & "*", tbl_HypoPipeline[Fund], Fund,tbl_HypoPipeline[Exclude?],"") + SUMIFS(tbl_HFS[Total Commitment],tbl_HFS[Moody''s Industry],tbl_IndustryAFJAP[[#This Row],[Moody''s Industry]],tbl_HFS[Fund],Fund) -> 0 | G80: =tbl_IndustryAFJAP[[#This Row],[Existing]]+tbl_IndustryAFJAP[[#This Row],[Pipeline]] -> 0
A81: Aggregate Exposure | B81: =LARGE(tbl_IndustryAFJAP[Existing + Pipeline],1) -> 0 | D81: Chemicals, Plastics & Rubber | E81: =SUMIFS(tbl_ExistingData[Total Commitment], tbl_ExistingData[Moodys Industry], tbl_IndustryAFJAP[[#This Row],[Moody''s Industry]] & "*", tbl_ExistingData[Fund], Fund, tbl_ExistingData[Paid Off Date], "=") -> 0 | F81: =SUMIFS(tbl_HypoPipeline[Total Commitment], tbl_HypoPipeline[Moody''s Industry], tbl_IndustryAFJAP[[#This Row],[Moody''s Industry]] & "*", tbl_HypoPipeline[Fund], Fund,tbl_HypoPipeline[Exclude?],"") + SUMIFS(tbl_HFS[Total Commitment],tbl_HFS[Moody''s Industry],tbl_IndustryAFJAP[[#This Row],[Moody''s Industry]],tbl_HFS[Fund],Fund) -> 0 | G81: =tbl_IndustryAFJAP[[#This Row],[Existing]]+tbl_IndustryAFJAP[[#This Row],[Pipeline]] -> 0
D82: Construction & Building | E82: =SUMIFS(tbl_ExistingData[Total Commitment], tbl_ExistingData[Moodys Industry], tbl_IndustryAFJAP[[#This Row],[Moody''s Industry]] & "*", tbl_ExistingData[Fund], Fund, tbl_ExistingData[Paid Off Date], "=") -> 0 | F82: =SUMIFS(tbl_HypoPipeline[Total Commitment], tbl_HypoPipeline[Moody''s Industry], tbl_IndustryAFJAP[[#This Row],[Moody''s Industry]] & "*", tbl_HypoPipeline[Fund], Fund,tbl_HypoPipeline[Exclude?],"") + SUMIFS(tbl_HFS[Total Commitment],tbl_HFS[Moody''s Industry],tbl_IndustryAFJAP[[#This Row],[Moody''s Industry]],tbl_HFS[Fund],Fund) -> 0 | G82: =tbl_IndustryAFJAP[[#This Row],[Existing]]+tbl_IndustryAFJAP[[#This Row],[Pipeline]] -> 0
D83: Consumer goods: Durable | E83: =SUMIFS(tbl_ExistingData[Total Commitment], tbl_ExistingData[Moodys Industry], tbl_IndustryAFJAP[[#This Row],[Moody''s Industry]] & "*", tbl_ExistingData[Fund], Fund, tbl_ExistingData[Paid Off Date], "=") -> 0 | F83: =SUMIFS(tbl_HypoPipeline[Total Commitment], tbl_HypoPipeline[Moody''s Industry], tbl_IndustryAFJAP[[#This Row],[Moody''s Industry]] & "*", tbl_HypoPipeline[Fund], Fund,tbl_HypoPipeline[Exclude?],"") + SUMIFS(tbl_HFS[Total Commitment],tbl_HFS[Moody''s Industry],tbl_IndustryAFJAP[[#This Row],[Moody''s Industry]],tbl_HFS[Fund],Fund) -> 0 | G83: =tbl_IndustryAFJAP[[#This Row],[Existing]]+tbl_IndustryAFJAP[[#This Row],[Pipeline]] -> 0
A84: 2nd Largest Bucket | B84: =Commitment*0.2 -> 180000000 | D84: Consumer goods: Non-durable | E84: =SUMIFS(tbl_ExistingData[Total Commitment], tbl_ExistingData[Moodys Industry], tbl_IndustryAFJAP[[#This Row],[Moody''s Industry]] & "*", tbl_ExistingData[Fund], Fund, tbl_ExistingData[Paid Off Date], "=") -> 0 | F84: =SUMIFS(tbl_HypoPipeline[Total Commitment], tbl_HypoPipeline[Moody''s Industry], tbl_IndustryAFJAP[[#This Row],[Moody''s Industry]] & "*", tbl_HypoPipeline[Fund], Fund,tbl_HypoPipeline[Exclude?],"") + SUMIFS(tbl_HFS[Total Commitment],tbl_HFS[Moody''s Industry],tbl_IndustryAFJAP[[#This Row],[Moody''s Industry]],tbl_HFS[Fund],Fund) -> 0 | G84: =tbl_IndustryAFJAP[[#This Row],[Existing]]+tbl_IndustryAFJAP[[#This Row],[Pipeline]] -> 0
A85: Available | B85: =B84-B90 -> 180000000 | D85: Containers, Packaging & Glass | E85: =SUMIFS(tbl_ExistingData[Total Commitment], tbl_ExistingData[Moodys Industry], tbl_IndustryAFJAP[[#This Row],[Moody''s Industry]] & "*", tbl_ExistingData[Fund], Fund, tbl_ExistingData[Paid Off Date], "=") -> 0 | F85: =SUMIFS(tbl_HypoPipeline[Total Commitment], tbl_HypoPipeline[Moody''s Industry], tbl_IndustryAFJAP[[#This Row],[Moody''s Industry]] & "*", tbl_HypoPipeline[Fund], Fund,tbl_HypoPipeline[Exclude?],"") + SUMIFS(tbl_HFS[Total Commitment],tbl_HFS[Moody''s Industry],tbl_IndustryAFJAP[[#This Row],[Moody''s Industry]],tbl_HFS[Fund],Fund) -> 0 | G85: =tbl_IndustryAFJAP[[#This Row],[Existing]]+tbl_IndustryAFJAP[[#This Row],[Pipeline]] -> 0
D86: Energy: Electricity | E86: =SUMIFS(tbl_ExistingData[Total Commitment], tbl_ExistingData[Moodys Industry], tbl_IndustryAFJAP[[#This Row],[Moody''s Industry]] & "*", tbl_ExistingData[Fund], Fund, tbl_ExistingData[Paid Off Date], "=") -> 0 | F86: =SUMIFS(tbl_HypoPipeline[Total Commitment], tbl_HypoPipeline[Moody''s Industry], tbl_IndustryAFJAP[[#This Row],[Moody''s Industry]] & "*", tbl_HypoPipeline[Fund], Fund,tbl_HypoPipeline[Exclude?],"") + SUMIFS(tbl_HFS[Total Commitment],tbl_HFS[Moody''s Industry],tbl_IndustryAFJAP[[#This Row],[Moody''s Industry]],tbl_HFS[Fund],Fund) -> 0 | G86: =tbl_IndustryAFJAP[[#This Row],[Existing]]+tbl_IndustryAFJAP[[#This Row],[Pipeline]] -> 0
A87: =INDEX(tbl_IndustryAFJAP[],MATCH(B90,tbl_IndustryAFJAP[Existing + Pipeline],0),1) -> Aerospace & Defense | D87: Energy: Oil & Gas | E87: =SUMIFS(tbl_ExistingData[Total Commitment], tbl_ExistingData[Moodys Industry], tbl_IndustryAFJAP[[#This Row],[Moody''s Industry]] & "*", tbl_ExistingData[Fund], Fund, tbl_ExistingData[Paid Off Date], "=") -> 0 | F87: =SUMIFS(tbl_HypoPipeline[Total Commitment], tbl_HypoPipeline[Moody''s Industry], tbl_IndustryAFJAP[[#This Row],[Moody''s Industry]] & "*", tbl_HypoPipeline[Fund], Fund,tbl_HypoPipeline[Exclude?],"") + SUMIFS(tbl_HFS[Total Commitment],tbl_HFS[Moody''s Industry],tbl_IndustryAFJAP[[#This Row],[Moody''s Industry]],tbl_HFS[Fund],Fund) -> 0 | G87: =tbl_IndustryAFJAP[[#This Row],[Existing]]+tbl_IndustryAFJAP[[#This Row],[Pipeline]] -> 0
A88: Existing Portfolio | B88: =INDEX(tbl_IndustryAFJAP[],MATCH(B90,tbl_IndustryAFJAP[Existing + Pipeline],0),2) -> 0 | D88: Environmental Industries | E88: =SUMIFS(tbl_ExistingData[Total Commitment], tbl_ExistingData[Moodys Industry], tbl_IndustryAFJAP[[#This Row],[Moody''s Industry]] & "*", tbl_ExistingData[Fund], Fund, tbl_ExistingData[Paid Off Date], "=") -> 0 | F88: =SUMIFS(tbl_HypoPipeline[Total Commitment], tbl_HypoPipeline[Moody''s Industry], tbl_IndustryAFJAP[[#This Row],[Moody''s Industry]] & "*", tbl_HypoPipeline[Fund], Fund,tbl_HypoPipeline[Exclude?],"") + SUMIFS(tbl_HFS[Total Commitment],tbl_HFS[Moody''s Industry],tbl_IndustryAFJAP[[#This Row],[Moody''s Industry]],tbl_HFS[Fund],Fund) -> 0 | G88: =tbl_IndustryAFJAP[[#This Row],[Existing]]+tbl_IndustryAFJAP[[#This Row],[Pipeline]] -> 0
A89: Hypo Pipeline | B89: =INDEX(tbl_IndustryAFJAP[],MATCH(B90,tbl_IndustryAFJAP[Existing + Pipeline],0),3) -> 0 | D89: Forest Products & Paper | E89: =SUMIFS(tbl_ExistingData[Total Commitment], tbl_ExistingData[Moodys Industry], tbl_IndustryAFJAP[[#This Row],[Moody''s Industry]] & "*", tbl_ExistingData[Fund], Fund, tbl_ExistingData[Paid Off Date], "=") -> 0 | F89: =SUMIFS(tbl_HypoPipeline[Total Commitment], tbl_HypoPipeline[Moody''s Industry], tbl_IndustryAFJAP[[#This Row],[Moody''s Industry]] & "*", tbl_HypoPipeline[Fund], Fund,tbl_HypoPipeline[Exclude?],"") + SUMIFS(tbl_HFS[Total Commitment],tbl_HFS[Moody''s Industry],tbl_IndustryAFJAP[[#This Row],[Moody''s Industry]],tbl_HFS[Fund],Fund) -> 0 | G89: =tbl_IndustryAFJAP[[#This Row],[Existing]]+tbl_IndustryAFJAP[[#This Row],[Pipeline]] -> 0
A90: Aggregate Exposure | B90: =LARGE(tbl_IndustryAFJAP[Existing + Pipeline],2) -> 0 | D90: Healthcare & Pharmaceuticals | E90: =SUMIFS(tbl_ExistingData[Total Commitment], tbl_ExistingData[Moodys Industry], tbl_IndustryAFJAP[[#This Row],[Moody''s Industry]] & "*", tbl_ExistingData[Fund], Fund, tbl_ExistingData[Paid Off Date], "=") -> 0 | F90: =SUMIFS(tbl_HypoPipeline[Total Commitment], tbl_HypoPipeline[Moody''s Industry], tbl_IndustryAFJAP[[#This Row],[Moody''s Industry]] & "*", tbl_HypoPipeline[Fund], Fund,tbl_HypoPipeline[Exclude?],"") + SUMIFS(tbl_HFS[Total Commitment],tbl_HFS[Moody''s Industry],tbl_IndustryAFJAP[[#This Row],[Moody''s Industry]],tbl_HFS[Fund],Fund) -> 0 | G90: =tbl_IndustryAFJAP[[#This Row],[Existing]]+tbl_IndustryAFJAP[[#This Row],[Pipeline]] -> 0
D91: High Tech Industries | E91: =SUMIFS(tbl_ExistingData[Total Commitment], tbl_ExistingData[Moodys Industry], tbl_IndustryAFJAP[[#This Row],[Moody''s Industry]] & "*", tbl_ExistingData[Fund], Fund, tbl_ExistingData[Paid Off Date], "=") -> 0 | F91: =SUMIFS(tbl_HypoPipeline[Total Commitment], tbl_HypoPipeline[Moody''s Industry], tbl_IndustryAFJAP[[#This Row],[Moody''s Industry]] & "*", tbl_HypoPipeline[Fund], Fund,tbl_HypoPipeline[Exclude?],"") + SUMIFS(tbl_HFS[Total Commitment],tbl_HFS[Moody''s Industry],tbl_IndustryAFJAP[[#This Row],[Moody''s Industry]],tbl_HFS[Fund],Fund) -> 0 | G91: =tbl_IndustryAFJAP[[#This Row],[Existing]]+tbl_IndustryAFJAP[[#This Row],[Pipeline]] -> 0
D92: Hotel, Gaming & Leisure | E92: =SUMIFS(tbl_ExistingData[Total Commitment], tbl_ExistingData[Moodys Industry], tbl_IndustryAFJAP[[#This Row],[Moody''s Industry]] & "*", tbl_ExistingData[Fund], Fund, tbl_ExistingData[Paid Off Date], "=") -> 0 | F92: =SUMIFS(tbl_HypoPipeline[Total Commitment], tbl_HypoPipeline[Moody''s Industry], tbl_IndustryAFJAP[[#This Row],[Moody''s Industry]] & "*", tbl_HypoPipeline[Fund], Fund,tbl_HypoPipeline[Exclude?],"") + SUMIFS(tbl_HFS[Total Commitment],tbl_HFS[Moody''s Industry],tbl_IndustryAFJAP[[#This Row],[Moody''s Industry]],tbl_HFS[Fund],Fund) -> 0 | G92: =tbl_IndustryAFJAP[[#This Row],[Existing]]+tbl_IndustryAFJAP[[#This Row],[Pipeline]] -> 0
A93: Any Other Bucket | B93: =Commitment*0.15 -> 135000000 | D93: Media: Advertising, Printing & Publishing | E93: =SUMIFS(tbl_ExistingData[Total Commitment], tbl_ExistingData[Moodys Industry], tbl_IndustryAFJAP[[#This Row],[Moody''s Industry]] & "*", tbl_ExistingData[Fund], Fund, tbl_ExistingData[Paid Off Date], "=") -> 0 | F93: =SUMIFS(tbl_HypoPipeline[Total Commitment], tbl_HypoPipeline[Moody''s Industry], tbl_IndustryAFJAP[[#This Row],[Moody''s Industry]] & "*", tbl_HypoPipeline[Fund], Fund,tbl_HypoPipeline[Exclude?],"") + SUMIFS(tbl_HFS[Total Commitment],tbl_HFS[Moody''s Industry],tbl_IndustryAFJAP[[#This Row],[Moody''s Industry]],tbl_HFS[Fund],Fund) -> 0 | G93: =tbl_IndustryAFJAP[[#This Row],[Existing]]+tbl_IndustryAFJAP[[#This Row],[Pipeline]] -> 0
A94: Available | B94: =B93-B99 -> 135000000 | D94: Media: Broadcasting & Subscription | E94: =SUMIFS(tbl_ExistingData[Total Commitment], tbl_ExistingData[Moodys Industry], tbl_IndustryAFJAP[[#This Row],[Moody''s Industry]] & "*", tbl_ExistingData[Fund], Fund, tbl_ExistingData[Paid Off Date], "=") -> 0 | F94: =SUMIFS(tbl_HypoPipeline[Total Commitment], tbl_HypoPipeline[Moody''s Industry], tbl_IndustryAFJAP[[#This Row],[Moody''s Industry]] & "*", tbl_HypoPipeline[Fund], Fund,tbl_HypoPipeline[Exclude?],"") + SUMIFS(tbl_HFS[Total Commitment],tbl_HFS[Moody''s Industry],tbl_IndustryAFJAP[[#This Row],[Moody''s Industry]],tbl_HFS[Fund],Fund) -> 0 | G94: =tbl_IndustryAFJAP[[#This Row],[Existing]]+tbl_IndustryAFJAP[[#This Row],[Pipeline]] -> 0
D95: Media: Diversified & Production | E95: =SUMIFS(tbl_ExistingData[Total Commitment], tbl_ExistingData[Moodys Industry], tbl_IndustryAFJAP[[#This Row],[Moody''s Industry]] & "*", tbl_ExistingData[Fund], Fund, tbl_ExistingData[Paid Off Date], "=") -> 0 | F95: =SUMIFS(tbl_HypoPipeline[Total Commitment], tbl_HypoPipeline[Moody''s Industry], tbl_IndustryAFJAP[[#This Row],[Moody''s Industry]] & "*", tbl_HypoPipeline[Fund], Fund,tbl_HypoPipeline[Exclude?],"") + SUMIFS(tbl_HFS[Total Commitment],tbl_HFS[Moody''s Industry],tbl_IndustryAFJAP[[#This Row],[Moody''s Industry]],tbl_HFS[Fund],Fund) -> 0 | G95: =tbl_IndustryAFJAP[[#This Row],[Existing]]+tbl_IndustryAFJAP[[#This Row],[Pipeline]] -> 0
A96: =INDEX(tbl_IndustryAFJAP[],MATCH(B99,tbl_IndustryAFJAP[Existing + Pipeline],0),1) -> Aerospace & Defense | D96: Metals & Mining | E96: =SUMIFS(tbl_ExistingData[Total Commitment], tbl_ExistingData[Moodys Industry], tbl_IndustryAFJAP[[#This Row],[Moody''s Industry]] & "*", tbl_ExistingData[Fund], Fund, tbl_ExistingData[Paid Off Date], "=") -> 0 | F96: =SUMIFS(tbl_HypoPipeline[Total Commitment], tbl_HypoPipeline[Moody''s Industry], tbl_IndustryAFJAP[[#This Row],[Moody''s Industry]] & "*", tbl_HypoPipeline[Fund], Fund,tbl_HypoPipeline[Exclude?],"") + SUMIFS(tbl_HFS[Total Commitment],tbl_HFS[Moody''s Industry],tbl_IndustryAFJAP[[#This Row],[Moody''s Industry]],tbl_HFS[Fund],Fund) -> 0 | G96: =tbl_IndustryAFJAP[[#This Row],[Existing]]+tbl_IndustryAFJAP[[#This Row],[Pipeline]] -> 0
A97: Existing Portfolio | B97: =INDEX(tbl_IndustryAFJAP[],MATCH(B99,tbl_IndustryAFJAP[Existing + Pipeline],0),2) -> 0 | D97: Retail | E97: =SUMIFS(tbl_ExistingData[Total Commitment], tbl_ExistingData[Moodys Industry], tbl_IndustryAFJAP[[#This Row],[Moody''s Industry]] & "*", tbl_ExistingData[Fund], Fund, tbl_ExistingData[Paid Off Date], "=") -> 0 | F97: =SUMIFS(tbl_HypoPipeline[Total Commitment], tbl_HypoPipeline[Moody''s Industry], tbl_IndustryAFJAP[[#This Row],[Moody''s Industry]] & "*", tbl_HypoPipeline[Fund], Fund,tbl_HypoPipeline[Exclude?],"") + SUMIFS(tbl_HFS[Total Commitment],tbl_HFS[Moody''s Industry],tbl_IndustryAFJAP[[#This Row],[Moody''s Industry]],tbl_HFS[Fund],Fund) -> 0 | G97: =tbl_IndustryAFJAP[[#This Row],[Existing]]+tbl_IndustryAFJAP[[#This Row],[Pipeline]] -> 0
A98: Hypo Pipeline | B98: =INDEX(tbl_IndustryAFJAP[],MATCH(B99,tbl_IndustryAFJAP[Existing + Pipeline],0),3) -> 0 | D98: Services: Business | E98: =SUMIFS(tbl_ExistingData[Total Commitment], tbl_ExistingData[Moodys Industry], tbl_IndustryAFJAP[[#This Row],[Moody''s Industry]] & "*", tbl_ExistingData[Fund], Fund, tbl_ExistingData[Paid Off Date], "=") -> 0 | F98: =SUMIFS(tbl_HypoPipeline[Total Commitment], tbl_HypoPipeline[Moody''s Industry], tbl_IndustryAFJAP[[#This Row],[Moody''s Industry]] & "*", tbl_HypoPipeline[Fund], Fund,tbl_HypoPipeline[Exclude?],"") + SUMIFS(tbl_HFS[Total Commitment],tbl_HFS[Moody''s Industry],tbl_IndustryAFJAP[[#This Row],[Moody''s Industry]],tbl_HFS[Fund],Fund) -> 0 | G98: =tbl_IndustryAFJAP[[#This Row],[Existing]]+tbl_IndustryAFJAP[[#This Row],[Pipeline]] -> 0
A99: Aggregate Exposure | B99: =LARGE(tbl_IndustryAFJAP[Existing + Pipeline],3) -> 0 | D99: Services: Consumer | E99: =SUMIFS(tbl_ExistingData[Total Commitment], tbl_ExistingData[Moodys Industry], tbl_IndustryAFJAP[[#This Row],[Moody''s Industry]] & "*", tbl_ExistingData[Fund], Fund, tbl_ExistingData[Paid Off Date], "=") -> 0 | F99: =SUMIFS(tbl_HypoPipeline[Total Commitment], tbl_HypoPipeline[Moody''s Industry], tbl_IndustryAFJAP[[#This Row],[Moody''s Industry]] & "*", tbl_HypoPipeline[Fund], Fund,tbl_HypoPipeline[Exclude?],"") + SUMIFS(tbl_HFS[Total Commitment],tbl_HFS[Moody''s Industry],tbl_IndustryAFJAP[[#This Row],[Moody''s Industry]],tbl_HFS[Fund],Fund) -> 0 | G99: =tbl_IndustryAFJAP[[#This Row],[Existing]]+tbl_IndustryAFJAP[[#This Row],[Pipeline]] -> 0
D100: Sovereign & Public Finance | E100: =SUMIFS(tbl_ExistingData[Total Commitment], tbl_ExistingData[Moodys Industry], tbl_IndustryAFJAP[[#This Row],[Moody''s Industry]] & "*", tbl_ExistingData[Fund], Fund, tbl_ExistingData[Paid Off Date], "=") -> 0 | F100: =SUMIFS(tbl_HypoPipeline[Total Commitment], tbl_HypoPipeline[Moody''s Industry], tbl_IndustryAFJAP[[#This Row],[Moody''s Industry]] & "*", tbl_HypoPipeline[Fund], Fund,tbl_HypoPipeline[Exclude?],"") + SUMIFS(tbl_HFS[Total Commitment],tbl_HFS[Moody''s Industry],tbl_IndustryAFJAP[[#This Row],[Moody''s Industry]],tbl_HFS[Fund],Fund) -> 0 | G100: =tbl_IndustryAFJAP[[#This Row],[Existing]]+tbl_IndustryAFJAP[[#This Row],[Pipeline]] -> 0
D101: Telecommunications | E101: =SUMIFS(tbl_ExistingData[Total Commitment], tbl_ExistingData[Moodys Industry], tbl_IndustryAFJAP[[#This Row],[Moody''s Industry]] & "*", tbl_ExistingData[Fund], Fund, tbl_ExistingData[Paid Off Date], "=") -> 0 | F101: =SUMIFS(tbl_HypoPipeline[Total Commitment], tbl_HypoPipeline[Moody''s Industry], tbl_IndustryAFJAP[[#This Row],[Moody''s Industry]] & "*", tbl_HypoPipeline[Fund], Fund,tbl_HypoPipeline[Exclude?],"") + SUMIFS(tbl_HFS[Total Commitment],tbl_HFS[Moody''s Industry],tbl_IndustryAFJAP[[#This Row],[Moody''s Industry]],tbl_HFS[Fund],Fund) -> 0 | G101: =tbl_IndustryAFJAP[[#This Row],[Existing]]+tbl_IndustryAFJAP[[#This Row],[Pipeline]] -> 0
D102: Transportation: Cargo | E102: =SUMIFS(tbl_ExistingData[Total Commitment], tbl_ExistingData[Moodys Industry], tbl_IndustryAFJAP[[#This Row],[Moody''s Industry]] & "*", tbl_ExistingData[Fund], Fund, tbl_ExistingData[Paid Off Date], "=") -> 0 | F102: =SUMIFS(tbl_HypoPipeline[Total Commitment], tbl_HypoPipeline[Moody''s Industry], tbl_IndustryAFJAP[[#This Row],[Moody''s Industry]] & "*", tbl_HypoPipeline[Fund], Fund,tbl_HypoPipeline[Exclude?],"") + SUMIFS(tbl_HFS[Total Commitment],tbl_HFS[Moody''s Industry],tbl_IndustryAFJAP[[#This Row],[Moody''s Industry]],tbl_HFS[Fund],Fund) -> 0 | G102: =tbl_IndustryAFJAP[[#This Row],[Existing]]+tbl_IndustryAFJAP[[#This Row],[Pipeline]] -> 0
D103: Transportation: Consumer | E103: =SUMIFS(tbl_ExistingData[Total Commitment], tbl_ExistingData[Moodys Industry], tbl_IndustryAFJAP[[#This Row],[Moody''s Industry]] & "*", tbl_ExistingData[Fund], Fund, tbl_ExistingData[Paid Off Date], "=") -> 0 | F103: =SUMIFS(tbl_HypoPipeline[Total Commitment], tbl_HypoPipeline[Moody''s Industry], tbl_IndustryAFJAP[[#This Row],[Moody''s Industry]] & "*", tbl_HypoPipeline[Fund], Fund,tbl_HypoPipeline[Exclude?],"") + SUMIFS(tbl_HFS[Total Commitment],tbl_HFS[Moody''s Industry],tbl_IndustryAFJAP[[#This Row],[Moody''s Industry]],tbl_HFS[Fund],Fund) -> 0 | G103: =tbl_IndustryAFJAP[[#This Row],[Existing]]+tbl_IndustryAFJAP[[#This Row],[Pipeline]] -> 0
D104: Utilities: Electric | E104: =SUMIFS(tbl_ExistingData[Total Commitment], tbl_ExistingData[Moodys Industry], tbl_IndustryAFJAP[[#This Row],[Moody''s Industry]] & "*", tbl_ExistingData[Fund], Fund, tbl_ExistingData[Paid Off Date], "=") -> 0 | F104: =SUMIFS(tbl_HypoPipeline[Total Commitment], tbl_HypoPipeline[Moody''s Industry], tbl_IndustryAFJAP[[#This Row],[Moody''s Industry]] & "*", tbl_HypoPipeline[Fund], Fund,tbl_HypoPipeline[Exclude?],"") + SUMIFS(tbl_HFS[Total Commitment],tbl_HFS[Moody''s Industry],tbl_IndustryAFJAP[[#This Row],[Moody''s Industry]],tbl_HFS[Fund],Fund) -> 0 | G104: =tbl_IndustryAFJAP[[#This Row],[Existing]]+tbl_IndustryAFJAP[[#This Row],[Pipeline]] -> 0
D105: Utilities: Oil & Gas | E105: =SUMIFS(tbl_ExistingData[Total Commitment], tbl_ExistingData[Moodys Industry], tbl_IndustryAFJAP[[#This Row],[Moody''s Industry]] & "*", tbl_ExistingData[Fund], Fund, tbl_ExistingData[Paid Off Date], "=") -> 0 | F105: =SUMIFS(tbl_HypoPipeline[Total Commitment], tbl_HypoPipeline[Moody''s Industry], tbl_IndustryAFJAP[[#This Row],[Moody''s Industry]] & "*", tbl_HypoPipeline[Fund], Fund,tbl_HypoPipeline[Exclude?],"") + SUMIFS(tbl_HFS[Total Commitment],tbl_HFS[Moody''s Industry],tbl_IndustryAFJAP[[#This Row],[Moody''s Industry]],tbl_HFS[Fund],Fund) -> 0 | G105: =tbl_IndustryAFJAP[[#This Row],[Existing]]+tbl_IndustryAFJAP[[#This Row],[Pipeline]] -> 0
D106: Utilities: Water | E106: =SUMIFS(tbl_ExistingData[Total Commitment], tbl_ExistingData[Moodys Industry], tbl_IndustryAFJAP[[#This Row],[Moody''s Industry]] & "*", tbl_ExistingData[Fund], Fund, tbl_ExistingData[Paid Off Date], "=") -> 0 | F106: =SUMIFS(tbl_HypoPipeline[Total Commitment], tbl_HypoPipeline[Moody''s Industry], tbl_IndustryAFJAP[[#This Row],[Moody''s Industry]] & "*", tbl_HypoPipeline[Fund], Fund,tbl_HypoPipeline[Exclude?],"") + SUMIFS(tbl_HFS[Total Commitment],tbl_HFS[Moody''s Industry],tbl_IndustryAFJAP[[#This Row],[Moody''s Industry]],tbl_HFS[Fund],Fund) -> 0 | G106: =tbl_IndustryAFJAP[[#This Row],[Existing]]+tbl_IndustryAFJAP[[#This Row],[Pipeline]] -> 0
D107: Wholesale | E107: =SUMIFS(tbl_ExistingData[Total Commitment], tbl_ExistingData[Moodys Industry], tbl_IndustryAFJAP[[#This Row],[Moody''s Industry]] & "*", tbl_ExistingData[Fund], Fund, tbl_ExistingData[Paid Off Date], "=") -> 0 | F107: =SUMIFS(tbl_HypoPipeline[Total Commitment], tbl_HypoPipeline[Moody''s Industry], tbl_IndustryAFJAP[[#This Row],[Moody''s Industry]] & "*", tbl_HypoPipeline[Fund], Fund,tbl_HypoPipeline[Exclude?],"") + SUMIFS(tbl_HFS[Total Commitment],tbl_HFS[Moody''s Industry],tbl_IndustryAFJAP[[#This Row],[Moody''s Industry]],tbl_HFS[Fund],Fund) -> 0 | G107: =tbl_IndustryAFJAP[[#This Row],[Existing]]+tbl_IndustryAFJAP[[#This Row],[Pipeline]] -> 0
A109: Sponsor Concentration
A110: All Tranche Commitmentments per Sponsor < 10% * SMA Commitment
A112: Bucket | B112: =Commitment*0.1 -> 90000000 | D112: Sponsor | E112: Existing | F112: Pipeline | G112: Existing + Pipeline
A113: Available | B113: =B112-B118 -> 90000000 | D113: ABRY Partners | E113: =SUMIFS(tbl_ExistingData[Total Commitment], tbl_ExistingData[Sponsor], "*" & tbl_SponsorAFJAP[[#This Row],[Sponsor]] & "*", tbl_ExistingData[Fund], Fund, tbl_ExistingData[Paid Off Date], "=") -> 0 | F113: =SUMIFS(tbl_HypoPipeline[Total Commitment], tbl_HypoPipeline[Sponsor], "*" & tbl_SponsorAFJAP[[#This Row],[Sponsor]] & "*", tbl_HypoPipeline[Fund], Fund,tbl_HypoPipeline[Exclude?],"") -> 0 | G113: =tbl_SponsorAFJAP[[#This Row],[Existing]]+tbl_SponsorAFJAP[[#This Row],[Pipeline ]] -> 0
D114: A&M Capital Partners | E114: =SUMIFS(tbl_ExistingData[Total Commitment], tbl_ExistingData[Sponsor], "*" & tbl_SponsorAFJAP[[#This Row],[Sponsor]] & "*", tbl_ExistingData[Fund], Fund, tbl_ExistingData[Paid Off Date], "=") -> 0 | F114: =SUMIFS(tbl_HypoPipeline[Total Commitment], tbl_HypoPipeline[Sponsor], "*" & tbl_SponsorAFJAP[[#This Row],[Sponsor]] & "*", tbl_HypoPipeline[Fund], Fund,tbl_HypoPipeline[Exclude?],"") -> 0 | G114: =tbl_SponsorAFJAP[[#This Row],[Existing]]+tbl_SponsorAFJAP[[#This Row],[Pipeline ]] -> 0
A115: =INDEX(tbl_SponsorAFJAP[],MATCH(B118,tbl_SponsorAFJAP[Existing + Pipeline],0),1) -> ABRY Partners | D115: AMERICAN CAPITAL, LTD. | E115: =SUMIFS(tbl_ExistingData[Total Commitment], tbl_ExistingData[Sponsor], "*" & tbl_SponsorAFJAP[[#This Row],[Sponsor]] & "*", tbl_ExistingData[Fund], Fund, tbl_ExistingData[Paid Off Date], "=") -> 0 | F115: =SUMIFS(tbl_HypoPipeline[Total Commitment], tbl_HypoPipeline[Sponsor], "*" & tbl_SponsorAFJAP[[#This Row],[Sponsor]] & "*", tbl_HypoPipeline[Fund], Fund,tbl_HypoPipeline[Exclude?],"") -> 0 | G115: =tbl_SponsorAFJAP[[#This Row],[Existing]]+tbl_SponsorAFJAP[[#This Row],[Pipeline ]] -> 0
A116: Existing Portfolio | B116: =INDEX(tbl_SponsorAFJAP[],MATCH(B118,tbl_SponsorAFJAP[Existing + Pipeline],0),2) -> 0 | D116: AEA Investors LLC | E116: =SUMIFS(tbl_ExistingData[Total Commitment], tbl_ExistingData[Sponsor], "*" & tbl_SponsorAFJAP[[#This Row],[Sponsor]] & "*", tbl_ExistingData[Fund], Fund, tbl_ExistingData[Paid Off Date], "=") -> 0 | F116: =SUMIFS(tbl_HypoPipeline[Total Commitment], tbl_HypoPipeline[Sponsor], "*" & tbl_SponsorAFJAP[[#This Row],[Sponsor]] & "*", tbl_HypoPipeline[Fund], Fund,tbl_HypoPipeline[Exclude?],"") -> 0 | G116: =tbl_SponsorAFJAP[[#This Row],[Existing]]+tbl_SponsorAFJAP[[#This Row],[Pipeline ]] -> 0
A117: Hypo Pipeline | B117: =INDEX(tbl_SponsorAFJAP[],MATCH(B118,tbl_SponsorAFJAP[Existing + Pipeline],0),3) -> 0 | D117: AEPI | E117: =SUMIFS(tbl_ExistingData[Total Commitment], tbl_ExistingData[Sponsor], "*" & tbl_SponsorAFJAP[[#This Row],[Sponsor]] & "*", tbl_ExistingData[Fund], Fund, tbl_ExistingData[Paid Off Date], "=") -> 0 | F117: =SUMIFS(tbl_HypoPipeline[Total Commitment], tbl_HypoPipeline[Sponsor], "*" & tbl_SponsorAFJAP[[#This Row],[Sponsor]] & "*", tbl_HypoPipeline[Fund], Fund,tbl_HypoPipeline[Exclude?],"") -> 0 | G117: =tbl_SponsorAFJAP[[#This Row],[Existing]]+tbl_SponsorAFJAP[[#This Row],[Pipeline ]] -> 0
A118: Aggregate Exposure | B118: =LARGE(tbl_SponsorAFJAP[Existing + Pipeline],3) -> 0 | D118: APAX PARTNERS | E118: =SUMIFS(tbl_ExistingData[Total Commitment], tbl_ExistingData[Sponsor], "*" & tbl_SponsorAFJAP[[#This Row],[Sponsor]] & "*", tbl_ExistingData[Fund], Fund, tbl_ExistingData[Paid Off Date], "=") -> 0 | F118: =SUMIFS(tbl_HypoPipeline[Total Commitment], tbl_HypoPipeline[Sponsor], "*" & tbl_SponsorAFJAP[[#This Row],[Sponsor]] & "*", tbl_HypoPipeline[Fund], Fund,tbl_HypoPipeline[Exclude?],"") -> 0 | G118: =tbl_SponsorAFJAP[[#This Row],[Existing]]+tbl_SponsorAFJAP[[#This Row],[Pipeline ]] -> 0
D119: Ardian | E119: =SUMIFS(tbl_ExistingData[Total Commitment], tbl_ExistingData[Sponsor], "*" & tbl_SponsorAFJAP[[#This Row],[Sponsor]] & "*", tbl_ExistingData[Fund], Fund, tbl_ExistingData[Paid Off Date], "=") -> 0 | F119: =SUMIFS(tbl_HypoPipeline[Total Commitment], tbl_HypoPipeline[Sponsor], "*" & tbl_SponsorAFJAP[[#This Row],[Sponsor]] & "*", tbl_HypoPipeline[Fund], Fund,tbl_HypoPipeline[Exclude?],"") -> 0 | G119: =tbl_SponsorAFJAP[[#This Row],[Existing]]+tbl_SponsorAFJAP[[#This Row],[Pipeline ]] -> 0
D120: ARLINGTON CAPITAL PARTNERS | E120: =SUMIFS(tbl_ExistingData[Total Commitment], tbl_ExistingData[Sponsor], "*" & tbl_SponsorAFJAP[[#This Row],[Sponsor]] & "*", tbl_ExistingData[Fund], Fund, tbl_ExistingData[Paid Off Date], "=") -> 0 | F120: =SUMIFS(tbl_HypoPipeline[Total Commitment], tbl_HypoPipeline[Sponsor], "*" & tbl_SponsorAFJAP[[#This Row],[Sponsor]] & "*", tbl_HypoPipeline[Fund], Fund,tbl_HypoPipeline[Exclude?],"") -> 0 | G120: =tbl_SponsorAFJAP[[#This Row],[Existing]]+tbl_SponsorAFJAP[[#This Row],[Pipeline ]] -> 0
D121: AUA PRIVATE EQUITY PARTNERS | E121: =SUMIFS(tbl_ExistingData[Total Commitment], tbl_ExistingData[Sponsor], "*" & tbl_SponsorAFJAP[[#This Row],[Sponsor]] & "*", tbl_ExistingData[Fund], Fund, tbl_ExistingData[Paid Off Date], "=") -> 0 | F121: =SUMIFS(tbl_HypoPipeline[Total Commitment], tbl_HypoPipeline[Sponsor], "*" & tbl_SponsorAFJAP[[#This Row],[Sponsor]] & "*", tbl_HypoPipeline[Fund], Fund,tbl_HypoPipeline[Exclude?],"") -> 0 | G121: =tbl_SponsorAFJAP[[#This Row],[Existing]]+tbl_SponsorAFJAP[[#This Row],[Pipeline ]] -> 0
D122: AUDAX PRIVATE EQUITY | E122: =SUMIFS(tbl_ExistingData[Total Commitment], tbl_ExistingData[Sponsor], "*" & tbl_SponsorAFJAP[[#This Row],[Sponsor]] & "*", tbl_ExistingData[Fund], Fund, tbl_ExistingData[Paid Off Date], "=") -> 0 | F122: =SUMIFS(tbl_HypoPipeline[Total Commitment], tbl_HypoPipeline[Sponsor], "*" & tbl_SponsorAFJAP[[#This Row],[Sponsor]] & "*", tbl_HypoPipeline[Fund], Fund,tbl_HypoPipeline[Exclude?],"") -> 0 | G122: =tbl_SponsorAFJAP[[#This Row],[Existing]]+tbl_SponsorAFJAP[[#This Row],[Pipeline ]] -> 0
D123: BAIN CAPITAL DOUBLE IMPACT | E123: =SUMIFS(tbl_ExistingData[Total Commitment], tbl_ExistingData[Sponsor], "*" & tbl_SponsorAFJAP[[#This Row],[Sponsor]] & "*", tbl_ExistingData[Fund], Fund, tbl_ExistingData[Paid Off Date], "=") -> 0 | F123: =SUMIFS(tbl_HypoPipeline[Total Commitment], tbl_HypoPipeline[Sponsor], "*" & tbl_SponsorAFJAP[[#This Row],[Sponsor]] & "*", tbl_HypoPipeline[Fund], Fund,tbl_HypoPipeline[Exclude?],"") -> 0 | G123: =tbl_SponsorAFJAP[[#This Row],[Existing]]+tbl_SponsorAFJAP[[#This Row],[Pipeline ]] -> 0
D124: Baird Capital Partners | E124: =SUMIFS(tbl_ExistingData[Total Commitment], tbl_ExistingData[Sponsor], "*" & tbl_SponsorAFJAP[[#This Row],[Sponsor]] & "*", tbl_ExistingData[Fund], Fund, tbl_ExistingData[Paid Off Date], "=") -> 0 | F124: =SUMIFS(tbl_HypoPipeline[Total Commitment], tbl_HypoPipeline[Sponsor], "*" & tbl_SponsorAFJAP[[#This Row],[Sponsor]] & "*", tbl_HypoPipeline[Fund], Fund,tbl_HypoPipeline[Exclude?],"") -> 0 | G124: =tbl_SponsorAFJAP[[#This Row],[Existing]]+tbl_SponsorAFJAP[[#This Row],[Pipeline ]] -> 0
D125: Beecken Petty | E125: =SUMIFS(tbl_ExistingData[Total Commitment], tbl_ExistingData[Sponsor], "*" & tbl_SponsorAFJAP[[#This Row],[Sponsor]] & "*", tbl_ExistingData[Fund], Fund, tbl_ExistingData[Paid Off Date], "=") -> 0 | F125: =SUMIFS(tbl_HypoPipeline[Total Commitment], tbl_HypoPipeline[Sponsor], "*" & tbl_SponsorAFJAP[[#This Row],[Sponsor]] & "*", tbl_HypoPipeline[Fund], Fund,tbl_HypoPipeline[Exclude?],"") -> 0 | G125: =tbl_SponsorAFJAP[[#This Row],[Existing]]+tbl_SponsorAFJAP[[#This Row],[Pipeline ]] -> 0
D126: BIOVENTUS LLC | E126: =SUMIFS(tbl_ExistingData[Total Commitment], tbl_ExistingData[Sponsor], "*" & tbl_SponsorAFJAP[[#This Row],[Sponsor]] & "*", tbl_ExistingData[Fund], Fund, tbl_ExistingData[Paid Off Date], "=") -> 0 | F126: =SUMIFS(tbl_HypoPipeline[Total Commitment], tbl_HypoPipeline[Sponsor], "*" & tbl_SponsorAFJAP[[#This Row],[Sponsor]] & "*", tbl_HypoPipeline[Fund], Fund,tbl_HypoPipeline[Exclude?],"") -> 0 | G126: =tbl_SponsorAFJAP[[#This Row],[Existing]]+tbl_SponsorAFJAP[[#This Row],[Pipeline ]] -> 0
D127: Blue Point Capital Partners | E127: =SUMIFS(tbl_ExistingData[Total Commitment], tbl_ExistingData[Sponsor], "*" & tbl_SponsorAFJAP[[#This Row],[Sponsor]] & "*", tbl_ExistingData[Fund], Fund, tbl_ExistingData[Paid Off Date], "=") -> 0 | F127: =SUMIFS(tbl_HypoPipeline[Total Commitment], tbl_HypoPipeline[Sponsor], "*" & tbl_SponsorAFJAP[[#This Row],[Sponsor]] & "*", tbl_HypoPipeline[Fund], Fund,tbl_HypoPipeline[Exclude?],"") -> 0 | G127: =tbl_SponsorAFJAP[[#This Row],[Existing]]+tbl_SponsorAFJAP[[#This Row],[Pipeline ]] -> 0
D128: BLUE SEA CAPITAL FUND I LP | E128: =SUMIFS(tbl_ExistingData[Total Commitment], tbl_ExistingData[Sponsor], "*" & tbl_SponsorAFJAP[[#This Row],[Sponsor]] & "*", tbl_ExistingData[Fund], Fund, tbl_ExistingData[Paid Off Date], "=") -> 0 | F128: =SUMIFS(tbl_HypoPipeline[Total Commitment], tbl_HypoPipeline[Sponsor], "*" & tbl_SponsorAFJAP[[#This Row],[Sponsor]] & "*", tbl_HypoPipeline[Fund], Fund,tbl_HypoPipeline[Exclude?],"") -> 0 | G128: =tbl_SponsorAFJAP[[#This Row],[Existing]]+tbl_SponsorAFJAP[[#This Row],[Pipeline ]] -> 0
D129: Brentwood Associates | E129: =SUMIFS(tbl_ExistingData[Total Commitment], tbl_ExistingData[Sponsor], "*" & tbl_SponsorAFJAP[[#This Row],[Sponsor]] & "*", tbl_ExistingData[Fund], Fund, tbl_ExistingData[Paid Off Date], "=") -> 0 | F129: =SUMIFS(tbl_HypoPipeline[Total Commitment], tbl_HypoPipeline[Sponsor], "*" & tbl_SponsorAFJAP[[#This Row],[Sponsor]] & "*", tbl_HypoPipeline[Fund], Fund,tbl_HypoPipeline[Exclude?],"") -> 0 | G129: =tbl_SponsorAFJAP[[#This Row],[Existing]]+tbl_SponsorAFJAP[[#This Row],[Pipeline ]] -> 0
D130: CapStreet | E130: =SUMIFS(tbl_ExistingData[Total Commitment], tbl_ExistingData[Sponsor], "*" & tbl_SponsorAFJAP[[#This Row],[Sponsor]] & "*", tbl_ExistingData[Fund], Fund, tbl_ExistingData[Paid Off Date], "=") -> 0 | F130: =SUMIFS(tbl_HypoPipeline[Total Commitment], tbl_HypoPipeline[Sponsor], "*" & tbl_SponsorAFJAP[[#This Row],[Sponsor]] & "*", tbl_HypoPipeline[Fund], Fund,tbl_HypoPipeline[Exclude?],"") -> 0 | G130: =tbl_SponsorAFJAP[[#This Row],[Existing]]+tbl_SponsorAFJAP[[#This Row],[Pipeline ]] -> 0
D131: CDPQ | E131: =SUMIFS(tbl_ExistingData[Total Commitment], tbl_ExistingData[Sponsor], "*" & tbl_SponsorAFJAP[[#This Row],[Sponsor]] & "*", tbl_ExistingData[Fund], Fund, tbl_ExistingData[Paid Off Date], "=") -> 0 | F131: =SUMIFS(tbl_HypoPipeline[Total Commitment], tbl_HypoPipeline[Sponsor], "*" & tbl_SponsorAFJAP[[#This Row],[Sponsor]] & "*", tbl_HypoPipeline[Fund], Fund,tbl_HypoPipeline[Exclude?],"") -> 0 | G131: =tbl_SponsorAFJAP[[#This Row],[Existing]]+tbl_SponsorAFJAP[[#This Row],[Pipeline ]] -> 0
D132: CENTEROAK PARTNERS | E132: =SUMIFS(tbl_ExistingData[Total Commitment], tbl_ExistingData[Sponsor], "*" & tbl_SponsorAFJAP[[#This Row],[Sponsor]] & "*", tbl_ExistingData[Fund], Fund, tbl_ExistingData[Paid Off Date], "=") -> 0 | F132: =SUMIFS(tbl_HypoPipeline[Total Commitment], tbl_HypoPipeline[Sponsor], "*" & tbl_SponsorAFJAP[[#This Row],[Sponsor]] & "*", tbl_HypoPipeline[Fund], Fund,tbl_HypoPipeline[Exclude?],"") -> 0 | G132: =tbl_SponsorAFJAP[[#This Row],[Existing]]+tbl_SponsorAFJAP[[#This Row],[Pipeline ]] -> 0
D133: Centre Lane Partners, LLC | E133: =SUMIFS(tbl_ExistingData[Total Commitment], tbl_ExistingData[Sponsor], "*" & tbl_SponsorAFJAP[[#This Row],[Sponsor]] & "*", tbl_ExistingData[Fund], Fund, tbl_ExistingData[Paid Off Date], "=") -> 0 | F133: =SUMIFS(tbl_HypoPipeline[Total Commitment], tbl_HypoPipeline[Sponsor], "*" & tbl_SponsorAFJAP[[#This Row],[Sponsor]] & "*", tbl_HypoPipeline[Fund], Fund,tbl_HypoPipeline[Exclude?],"") -> 0 | G133: =tbl_SponsorAFJAP[[#This Row],[Existing]]+tbl_SponsorAFJAP[[#This Row],[Pipeline ]] -> 0
D134: Centre Partners Management LLC | E134: =SUMIFS(tbl_ExistingData[Total Commitment], tbl_ExistingData[Sponsor], "*" & tbl_SponsorAFJAP[[#This Row],[Sponsor]] & "*", tbl_ExistingData[Fund], Fund, tbl_ExistingData[Paid Off Date], "=") -> 0 | F134: =SUMIFS(tbl_HypoPipeline[Total Commitment], tbl_HypoPipeline[Sponsor], "*" & tbl_SponsorAFJAP[[#This Row],[Sponsor]] & "*", tbl_HypoPipeline[Fund], Fund,tbl_HypoPipeline[Exclude?],"") -> 0 | G134: =tbl_SponsorAFJAP[[#This Row],[Existing]]+tbl_SponsorAFJAP[[#This Row],[Pipeline ]] -> 0
D135: CI CAPITAL PARTNERS | E135: =SUMIFS(tbl_ExistingData[Total Commitment], tbl_ExistingData[Sponsor], "*" & tbl_SponsorAFJAP[[#This Row],[Sponsor]] & "*", tbl_ExistingData[Fund], Fund, tbl_ExistingData[Paid Off Date], "=") -> 0 | F135: =SUMIFS(tbl_HypoPipeline[Total Commitment], tbl_HypoPipeline[Sponsor], "*" & tbl_SponsorAFJAP[[#This Row],[Sponsor]] & "*", tbl_HypoPipeline[Fund], Fund,tbl_HypoPipeline[Exclude?],"") -> 0 | G135: =tbl_SponsorAFJAP[[#This Row],[Existing]]+tbl_SponsorAFJAP[[#This Row],[Pipeline ]] -> 0
D136: CORTEC GROUP FUND VI, L.P. | E136: =SUMIFS(tbl_ExistingData[Total Commitment], tbl_ExistingData[Sponsor], "*" & tbl_SponsorAFJAP[[#This Row],[Sponsor]] & "*", tbl_ExistingData[Fund], Fund, tbl_ExistingData[Paid Off Date], "=") -> 0 | F136: =SUMIFS(tbl_HypoPipeline[Total Commitment], tbl_HypoPipeline[Sponsor], "*" & tbl_SponsorAFJAP[[#This Row],[Sponsor]] & "*", tbl_HypoPipeline[Fund], Fund,tbl_HypoPipeline[Exclude?],"") -> 0 | G136: =tbl_SponsorAFJAP[[#This Row],[Existing]]+tbl_SponsorAFJAP[[#This Row],[Pipeline ]] -> 0
D137: Corridor Capital, LLC | E137: =SUMIFS(tbl_ExistingData[Total Commitment], tbl_ExistingData[Sponsor], "*" & tbl_SponsorAFJAP[[#This Row],[Sponsor]] & "*", tbl_ExistingData[Fund], Fund, tbl_ExistingData[Paid Off Date], "=") -> 0 | F137: =SUMIFS(tbl_HypoPipeline[Total Commitment], tbl_HypoPipeline[Sponsor], "*" & tbl_SponsorAFJAP[[#This Row],[Sponsor]] & "*", tbl_HypoPipeline[Fund], Fund,tbl_HypoPipeline[Exclude?],"") -> 0 | G137: =tbl_SponsorAFJAP[[#This Row],[Existing]]+tbl_SponsorAFJAP[[#This Row],[Pipeline ]] -> 0
D138: COURT SQUARE CAPITAL PARTNERS | E138: =SUMIFS(tbl_ExistingData[Total Commitment], tbl_ExistingData[Sponsor], "*" & tbl_SponsorAFJAP[[#This Row],[Sponsor]] & "*", tbl_ExistingData[Fund], Fund, tbl_ExistingData[Paid Off Date], "=") -> 0 | F138: =SUMIFS(tbl_HypoPipeline[Total Commitment], tbl_HypoPipeline[Sponsor], "*" & tbl_SponsorAFJAP[[#This Row],[Sponsor]] & "*", tbl_HypoPipeline[Fund], Fund,tbl_HypoPipeline[Exclude?],"") -> 0 | G138: =tbl_SponsorAFJAP[[#This Row],[Existing]]+tbl_SponsorAFJAP[[#This Row],[Pipeline ]] -> 0
D139: Cressey & Company LP | E139: =SUMIFS(tbl_ExistingData[Total Commitment], tbl_ExistingData[Sponsor], "*" & tbl_SponsorAFJAP[[#This Row],[Sponsor]] & "*", tbl_ExistingData[Fund], Fund, tbl_ExistingData[Paid Off Date], "=") -> 0 | F139: =SUMIFS(tbl_HypoPipeline[Total Commitment], tbl_HypoPipeline[Sponsor], "*" & tbl_SponsorAFJAP[[#This Row],[Sponsor]] & "*", tbl_HypoPipeline[Fund], Fund,tbl_HypoPipeline[Exclude?],"") -> 0 | G139: =tbl_SponsorAFJAP[[#This Row],[Existing]]+tbl_SponsorAFJAP[[#This Row],[Pipeline ]] -> 0
D140: DFW Capital Partners | E140: =SUMIFS(tbl_ExistingData[Total Commitment], tbl_ExistingData[Sponsor], "*" & tbl_SponsorAFJAP[[#This Row],[Sponsor]] & "*", tbl_ExistingData[Fund], Fund, tbl_ExistingData[Paid Off Date], "=") -> 0 | F140: =SUMIFS(tbl_HypoPipeline[Total Commitment], tbl_HypoPipeline[Sponsor], "*" & tbl_SponsorAFJAP[[#This Row],[Sponsor]] & "*", tbl_HypoPipeline[Fund], Fund,tbl_HypoPipeline[Exclude?],"") -> 0 | G140: =tbl_SponsorAFJAP[[#This Row],[Existing]]+tbl_SponsorAFJAP[[#This Row],[Pipeline ]] -> 0
D141: Dominus Capital | E141: =SUMIFS(tbl_ExistingData[Total Commitment], tbl_ExistingData[Sponsor], "*" & tbl_SponsorAFJAP[[#This Row],[Sponsor]] & "*", tbl_ExistingData[Fund], Fund, tbl_ExistingData[Paid Off Date], "=") -> 0 | F141: =SUMIFS(tbl_HypoPipeline[Total Commitment], tbl_HypoPipeline[Sponsor], "*" & tbl_SponsorAFJAP[[#This Row],[Sponsor]] & "*", tbl_HypoPipeline[Fund], Fund,tbl_HypoPipeline[Exclude?],"") -> 0 | G141: =tbl_SponsorAFJAP[[#This Row],[Existing]]+tbl_SponsorAFJAP[[#This Row],[Pipeline ]] -> 0
D142: ENHANCED EQUITY FUNDS | E142: =SUMIFS(tbl_ExistingData[Total Commitment], tbl_ExistingData[Sponsor], "*" & tbl_SponsorAFJAP[[#This Row],[Sponsor]] & "*", tbl_ExistingData[Fund], Fund, tbl_ExistingData[Paid Off Date], "=") -> 0 | F142: =SUMIFS(tbl_HypoPipeline[Total Commitment], tbl_HypoPipeline[Sponsor], "*" & tbl_SponsorAFJAP[[#This Row],[Sponsor]] & "*", tbl_HypoPipeline[Fund], Fund,tbl_HypoPipeline[Exclude?],"") -> 0 | G142: =tbl_SponsorAFJAP[[#This Row],[Existing]]+tbl_SponsorAFJAP[[#This Row],[Pipeline ]] -> 0
D143: Eos Partners, LP | E143: =SUMIFS(tbl_ExistingData[Total Commitment], tbl_ExistingData[Sponsor], "*" & tbl_SponsorAFJAP[[#This Row],[Sponsor]] & "*", tbl_ExistingData[Fund], Fund, tbl_ExistingData[Paid Off Date], "=") -> 0 | F143: =SUMIFS(tbl_HypoPipeline[Total Commitment], tbl_HypoPipeline[Sponsor], "*" & tbl_SponsorAFJAP[[#This Row],[Sponsor]] & "*", tbl_HypoPipeline[Fund], Fund,tbl_HypoPipeline[Exclude?],"") -> 0 | G143: =tbl_SponsorAFJAP[[#This Row],[Existing]]+tbl_SponsorAFJAP[[#This Row],[Pipeline ]] -> 0
D144: Excellere Partners, LLC | E144: =SUMIFS(tbl_ExistingData[Total Commitment], tbl_ExistingData[Sponsor], "*" & tbl_SponsorAFJAP[[#This Row],[Sponsor]] & "*", tbl_ExistingData[Fund], Fund, tbl_ExistingData[Paid Off Date], "=") -> 0 | F144: =SUMIFS(tbl_HypoPipeline[Total Commitment], tbl_HypoPipeline[Sponsor], "*" & tbl_SponsorAFJAP[[#This Row],[Sponsor]] & "*", tbl_HypoPipeline[Fund], Fund,tbl_HypoPipeline[Exclude?],"") -> 0 | G144: =tbl_SponsorAFJAP[[#This Row],[Existing]]+tbl_SponsorAFJAP[[#This Row],[Pipeline ]] -> 0
D145: FIRST ATLANTIC CAPITAL, LTD. | E145: =SUMIFS(tbl_ExistingData[Total Commitment], tbl_ExistingData[Sponsor], "*" & tbl_SponsorAFJAP[[#This Row],[Sponsor]] & "*", tbl_ExistingData[Fund], Fund, tbl_ExistingData[Paid Off Date], "=") -> 0 | F145: =SUMIFS(tbl_HypoPipeline[Total Commitment], tbl_HypoPipeline[Sponsor], "*" & tbl_SponsorAFJAP[[#This Row],[Sponsor]] & "*", tbl_HypoPipeline[Fund], Fund,tbl_HypoPipeline[Exclude?],"") -> 0 | G145: =tbl_SponsorAFJAP[[#This Row],[Existing]]+tbl_SponsorAFJAP[[#This Row],[Pipeline ]] -> 0
D146: Flexpoint | E146: =SUMIFS(tbl_ExistingData[Total Commitment], tbl_ExistingData[Sponsor], "*" & tbl_SponsorAFJAP[[#This Row],[Sponsor]] & "*", tbl_ExistingData[Fund], Fund, tbl_ExistingData[Paid Off Date], "=") -> 0 | F146: =SUMIFS(tbl_HypoPipeline[Total Commitment], tbl_HypoPipeline[Sponsor], "*" & tbl_SponsorAFJAP[[#This Row],[Sponsor]] & "*", tbl_HypoPipeline[Fund], Fund,tbl_HypoPipeline[Exclude?],"") -> 0 | G146: =tbl_SponsorAFJAP[[#This Row],[Existing]]+tbl_SponsorAFJAP[[#This Row],[Pipeline ]] -> 0
D147: FRAZIER HEALTHCARE VENTURES | E147: =SUMIFS(tbl_ExistingData[Total Commitment], tbl_ExistingData[Sponsor], "*" & tbl_SponsorAFJAP[[#This Row],[Sponsor]] & "*", tbl_ExistingData[Fund], Fund, tbl_ExistingData[Paid Off Date], "=") -> 0 | F147: =SUMIFS(tbl_HypoPipeline[Total Commitment], tbl_HypoPipeline[Sponsor], "*" & tbl_SponsorAFJAP[[#This Row],[Sponsor]] & "*", tbl_HypoPipeline[Fund], Fund,tbl_HypoPipeline[Exclude?],"") -> 0 | G147: =tbl_SponsorAFJAP[[#This Row],[Existing]]+tbl_SponsorAFJAP[[#This Row],[Pipeline ]] -> 0
D148: Freeman Spogli & Co. | E148: =SUMIFS(tbl_ExistingData[Total Commitment], tbl_ExistingData[Sponsor], "*" & tbl_SponsorAFJAP[[#This Row],[Sponsor]] & "*", tbl_ExistingData[Fund], Fund, tbl_ExistingData[Paid Off Date], "=") -> 0 | F148: =SUMIFS(tbl_HypoPipeline[Total Commitment], tbl_HypoPipeline[Sponsor], "*" & tbl_SponsorAFJAP[[#This Row],[Sponsor]] & "*", tbl_HypoPipeline[Fund], Fund,tbl_HypoPipeline[Exclude?],"") -> 0 | G148: =tbl_SponsorAFJAP[[#This Row],[Existing]]+tbl_SponsorAFJAP[[#This Row],[Pipeline ]] -> 0
D149: Frontenac Company | E149: =SUMIFS(tbl_ExistingData[Total Commitment], tbl_ExistingData[Sponsor], "*" & tbl_SponsorAFJAP[[#This Row],[Sponsor]] & "*", tbl_ExistingData[Fund], Fund, tbl_ExistingData[Paid Off Date], "=") -> 0 | F149: =SUMIFS(tbl_HypoPipeline[Total Commitment], tbl_HypoPipeline[Sponsor], "*" & tbl_SponsorAFJAP[[#This Row],[Sponsor]] & "*", tbl_HypoPipeline[Fund], Fund,tbl_HypoPipeline[Exclude?],"") -> 0 | G149: =tbl_SponsorAFJAP[[#This Row],[Existing]]+tbl_SponsorAFJAP[[#This Row],[Pipeline ]] -> 0
D150: Geneva Glen Capital LLC | E150: =SUMIFS(tbl_ExistingData[Total Commitment], tbl_ExistingData[Sponsor], "*" & tbl_SponsorAFJAP[[#This Row],[Sponsor]] & "*", tbl_ExistingData[Fund], Fund, tbl_ExistingData[Paid Off Date], "=") -> 0 | F150: =SUMIFS(tbl_HypoPipeline[Total Commitment], tbl_HypoPipeline[Sponsor], "*" & tbl_SponsorAFJAP[[#This Row],[Sponsor]] & "*", tbl_HypoPipeline[Fund], Fund,tbl_HypoPipeline[Exclude?],"") -> 0 | G150: =tbl_SponsorAFJAP[[#This Row],[Existing]]+tbl_SponsorAFJAP[[#This Row],[Pipeline ]] -> 0
D151: GenNx360 Capital Partners | E151: =SUMIFS(tbl_ExistingData[Total Commitment], tbl_ExistingData[Sponsor], "*" & tbl_SponsorAFJAP[[#This Row],[Sponsor]] & "*", tbl_ExistingData[Fund], Fund, tbl_ExistingData[Paid Off Date], "=") -> 0 | F151: =SUMIFS(tbl_HypoPipeline[Total Commitment], tbl_HypoPipeline[Sponsor], "*" & tbl_SponsorAFJAP[[#This Row],[Sponsor]] & "*", tbl_HypoPipeline[Fund], Fund,tbl_HypoPipeline[Exclude?],"") -> 0 | G151: =tbl_SponsorAFJAP[[#This Row],[Existing]]+tbl_SponsorAFJAP[[#This Row],[Pipeline ]] -> 0
D152: GENSTAR CAPITAL LLC | E152: =SUMIFS(tbl_ExistingData[Total Commitment], tbl_ExistingData[Sponsor], "*" & tbl_SponsorAFJAP[[#This Row],[Sponsor]] & "*", tbl_ExistingData[Fund], Fund, tbl_ExistingData[Paid Off Date], "=") -> 0 | F152: =SUMIFS(tbl_HypoPipeline[Total Commitment], tbl_HypoPipeline[Sponsor], "*" & tbl_SponsorAFJAP[[#This Row],[Sponsor]] & "*", tbl_HypoPipeline[Fund], Fund,tbl_HypoPipeline[Exclude?],"") -> 0 | G152: =tbl_SponsorAFJAP[[#This Row],[Existing]]+tbl_SponsorAFJAP[[#This Row],[Pipeline ]] -> 0
D153: Graham Partners | E153: =SUMIFS(tbl_ExistingData[Total Commitment], tbl_ExistingData[Sponsor], "*" & tbl_SponsorAFJAP[[#This Row],[Sponsor]] & "*", tbl_ExistingData[Fund], Fund, tbl_ExistingData[Paid Off Date], "=") -> 0 | F153: =SUMIFS(tbl_HypoPipeline[Total Commitment], tbl_HypoPipeline[Sponsor], "*" & tbl_SponsorAFJAP[[#This Row],[Sponsor]] & "*", tbl_HypoPipeline[Fund], Fund,tbl_HypoPipeline[Exclude?],"") -> 0 | G153: =tbl_SponsorAFJAP[[#This Row],[Existing]]+tbl_SponsorAFJAP[[#This Row],[Pipeline ]] -> 0
D154: GRIDIRON CAPITAL, LLC | E154: =SUMIFS(tbl_ExistingData[Total Commitment], tbl_ExistingData[Sponsor], "*" & tbl_SponsorAFJAP[[#This Row],[Sponsor]] & "*", tbl_ExistingData[Fund], Fund, tbl_ExistingData[Paid Off Date], "=") -> 0 | F154: =SUMIFS(tbl_HypoPipeline[Total Commitment], tbl_HypoPipeline[Sponsor], "*" & tbl_SponsorAFJAP[[#This Row],[Sponsor]] & "*", tbl_HypoPipeline[Fund], Fund,tbl_HypoPipeline[Exclude?],"") -> 0 | G154: =tbl_SponsorAFJAP[[#This Row],[Existing]]+tbl_SponsorAFJAP[[#This Row],[Pipeline ]] -> 0
D155: GRYPHON INVESTORS, INC | E155: =SUMIFS(tbl_ExistingData[Total Commitment], tbl_ExistingData[Sponsor], "*" & tbl_SponsorAFJAP[[#This Row],[Sponsor]] & "*", tbl_ExistingData[Fund], Fund, tbl_ExistingData[Paid Off Date], "=") -> 0 | F155: =SUMIFS(tbl_HypoPipeline[Total Commitment], tbl_HypoPipeline[Sponsor], "*" & tbl_SponsorAFJAP[[#This Row],[Sponsor]] & "*", tbl_HypoPipeline[Fund], Fund,tbl_HypoPipeline[Exclude?],"") -> 0 | G155: =tbl_SponsorAFJAP[[#This Row],[Existing]]+tbl_SponsorAFJAP[[#This Row],[Pipeline ]] -> 0
D156: GTCR, LLC | E156: =SUMIFS(tbl_ExistingData[Total Commitment], tbl_ExistingData[Sponsor], "*" & tbl_SponsorAFJAP[[#This Row],[Sponsor]] & "*", tbl_ExistingData[Fund], Fund, tbl_ExistingData[Paid Off Date], "=") -> 0 | F156: =SUMIFS(tbl_HypoPipeline[Total Commitment], tbl_HypoPipeline[Sponsor], "*" & tbl_SponsorAFJAP[[#This Row],[Sponsor]] & "*", tbl_HypoPipeline[Fund], Fund,tbl_HypoPipeline[Exclude?],"") -> 0 | G156: =tbl_SponsorAFJAP[[#This Row],[Existing]]+tbl_SponsorAFJAP[[#This Row],[Pipeline ]] -> 0
D157: HGGC, LLC | E157: =SUMIFS(tbl_ExistingData[Total Commitment], tbl_ExistingData[Sponsor], "*" & tbl_SponsorAFJAP[[#This Row],[Sponsor]] & "*", tbl_ExistingData[Fund], Fund, tbl_ExistingData[Paid Off Date], "=") -> 0 | F157: =SUMIFS(tbl_HypoPipeline[Total Commitment], tbl_HypoPipeline[Sponsor], "*" & tbl_SponsorAFJAP[[#This Row],[Sponsor]] & "*", tbl_HypoPipeline[Fund], Fund,tbl_HypoPipeline[Exclude?],"") -> 0 | G157: =tbl_SponsorAFJAP[[#This Row],[Existing]]+tbl_SponsorAFJAP[[#This Row],[Pipeline ]] -> 0
D158: HARVEST PARTNERS, LP | E158: =SUMIFS(tbl_ExistingData[Total Commitment], tbl_ExistingData[Sponsor], "*" & tbl_SponsorAFJAP[[#This Row],[Sponsor]] & "*", tbl_ExistingData[Fund], Fund, tbl_ExistingData[Paid Off Date], "=") -> 0 | F158: =SUMIFS(tbl_HypoPipeline[Total Commitment], tbl_HypoPipeline[Sponsor], "*" & tbl_SponsorAFJAP[[#This Row],[Sponsor]] & "*", tbl_HypoPipeline[Fund], Fund,tbl_HypoPipeline[Exclude?],"") -> 0 | G158: =tbl_SponsorAFJAP[[#This Row],[Existing]]+tbl_SponsorAFJAP[[#This Row],[Pipeline ]] -> 0
D159: High Road Capital Partners | E159: =SUMIFS(tbl_ExistingData[Total Commitment], tbl_ExistingData[Sponsor], "*" & tbl_SponsorAFJAP[[#This Row],[Sponsor]] & "*", tbl_ExistingData[Fund], Fund, tbl_ExistingData[Paid Off Date], "=") -> 0 | F159: =SUMIFS(tbl_HypoPipeline[Total Commitment], tbl_HypoPipeline[Sponsor], "*" & tbl_SponsorAFJAP[[#This Row],[Sponsor]] & "*", tbl_HypoPipeline[Fund], Fund,tbl_HypoPipeline[Exclude?],"") -> 0 | G159: =tbl_SponsorAFJAP[[#This Row],[Existing]]+tbl_SponsorAFJAP[[#This Row],[Pipeline ]] -> 0
D160: Huntsman Gay Global Capital | E160: =SUMIFS(tbl_ExistingData[Total Commitment], tbl_ExistingData[Sponsor], "*" & tbl_SponsorAFJAP[[#This Row],[Sponsor]] & "*", tbl_ExistingData[Fund], Fund, tbl_ExistingData[Paid Off Date], "=") -> 0 | F160: =SUMIFS(tbl_HypoPipeline[Total Commitment], tbl_HypoPipeline[Sponsor], "*" & tbl_SponsorAFJAP[[#This Row],[Sponsor]] & "*", tbl_HypoPipeline[Fund], Fund,tbl_HypoPipeline[Exclude?],"") -> 0 | G160: =tbl_SponsorAFJAP[[#This Row],[Existing]]+tbl_SponsorAFJAP[[#This Row],[Pipeline ]] -> 0
D161: ICV Capital Partners, LLC | E161: =SUMIFS(tbl_ExistingData[Total Commitment], tbl_ExistingData[Sponsor], "*" & tbl_SponsorAFJAP[[#This Row],[Sponsor]] & "*", tbl_ExistingData[Fund], Fund, tbl_ExistingData[Paid Off Date], "=") -> 0 | F161: =SUMIFS(tbl_HypoPipeline[Total Commitment], tbl_HypoPipeline[Sponsor], "*" & tbl_SponsorAFJAP[[#This Row],[Sponsor]] & "*", tbl_HypoPipeline[Fund], Fund,tbl_HypoPipeline[Exclude?],"") -> 0 | G161: =tbl_SponsorAFJAP[[#This Row],[Existing]]+tbl_SponsorAFJAP[[#This Row],[Pipeline ]] -> 0
D162: Incline Equity Partners | E162: =SUMIFS(tbl_ExistingData[Total Commitment], tbl_ExistingData[Sponsor], "*" & tbl_SponsorAFJAP[[#This Row],[Sponsor]] & "*", tbl_ExistingData[Fund], Fund, tbl_ExistingData[Paid Off Date], "=") -> 0 | F162: =SUMIFS(tbl_HypoPipeline[Total Commitment], tbl_HypoPipeline[Sponsor], "*" & tbl_SponsorAFJAP[[#This Row],[Sponsor]] & "*", tbl_HypoPipeline[Fund], Fund,tbl_HypoPipeline[Exclude?],"") -> 0 | G162: =tbl_SponsorAFJAP[[#This Row],[Existing]]+tbl_SponsorAFJAP[[#This Row],[Pipeline ]] -> 0
D163: Industrial Growth Partners | E163: =SUMIFS(tbl_ExistingData[Total Commitment], tbl_ExistingData[Sponsor], "*" & tbl_SponsorAFJAP[[#This Row],[Sponsor]] & "*", tbl_ExistingData[Fund], Fund, tbl_ExistingData[Paid Off Date], "=") -> 0 | F163: =SUMIFS(tbl_HypoPipeline[Total Commitment], tbl_HypoPipeline[Sponsor], "*" & tbl_SponsorAFJAP[[#This Row],[Sponsor]] & "*", tbl_HypoPipeline[Fund], Fund,tbl_HypoPipeline[Exclude?],"") -> 0 | G163: =tbl_SponsorAFJAP[[#This Row],[Existing]]+tbl_SponsorAFJAP[[#This Row],[Pipeline ]] -> 0
D164: Insignia Capital Group | E164: =SUMIFS(tbl_ExistingData[Total Commitment], tbl_ExistingData[Sponsor], "*" & tbl_SponsorAFJAP[[#This Row],[Sponsor]] & "*", tbl_ExistingData[Fund], Fund, tbl_ExistingData[Paid Off Date], "=") -> 0 | F164: =SUMIFS(tbl_HypoPipeline[Total Commitment], tbl_HypoPipeline[Sponsor], "*" & tbl_SponsorAFJAP[[#This Row],[Sponsor]] & "*", tbl_HypoPipeline[Fund], Fund,tbl_HypoPipeline[Exclude?],"") -> 0 | G164: =tbl_SponsorAFJAP[[#This Row],[Existing]]+tbl_SponsorAFJAP[[#This Row],[Pipeline ]] -> 0
D165: INVERNESS GRAHAM | E165: =SUMIFS(tbl_ExistingData[Total Commitment], tbl_ExistingData[Sponsor], "*" & tbl_SponsorAFJAP[[#This Row],[Sponsor]] & "*", tbl_ExistingData[Fund], Fund, tbl_ExistingData[Paid Off Date], "=") -> 0 | F165: =SUMIFS(tbl_HypoPipeline[Total Commitment], tbl_HypoPipeline[Sponsor], "*" & tbl_SponsorAFJAP[[#This Row],[Sponsor]] & "*", tbl_HypoPipeline[Fund], Fund,tbl_HypoPipeline[Exclude?],"") -> 0 | G165: =tbl_SponsorAFJAP[[#This Row],[Existing]]+tbl_SponsorAFJAP[[#This Row],[Pipeline ]] -> 0
D166: JUGGERNAUT CAPITAL PARTNERS | E166: =SUMIFS(tbl_ExistingData[Total Commitment], tbl_ExistingData[Sponsor], "*" & tbl_SponsorAFJAP[[#This Row],[Sponsor]] & "*", tbl_ExistingData[Fund], Fund, tbl_ExistingData[Paid Off Date], "=") -> 0 | F166: =SUMIFS(tbl_HypoPipeline[Total Commitment], tbl_HypoPipeline[Sponsor], "*" & tbl_SponsorAFJAP[[#This Row],[Sponsor]] & "*", tbl_HypoPipeline[Fund], Fund,tbl_HypoPipeline[Exclude?],"") -> 0 | G166: =tbl_SponsorAFJAP[[#This Row],[Existing]]+tbl_SponsorAFJAP[[#This Row],[Pipeline ]] -> 0
D167: JZ PARTNERS | E167: =SUMIFS(tbl_ExistingData[Total Commitment], tbl_ExistingData[Sponsor], "*" & tbl_SponsorAFJAP[[#This Row],[Sponsor]] & "*", tbl_ExistingData[Fund], Fund, tbl_ExistingData[Paid Off Date], "=") -> 0 | F167: =SUMIFS(tbl_HypoPipeline[Total Commitment], tbl_HypoPipeline[Sponsor], "*" & tbl_SponsorAFJAP[[#This Row],[Sponsor]] & "*", tbl_HypoPipeline[Fund], Fund,tbl_HypoPipeline[Exclude?],"") -> 0 | G167: =tbl_SponsorAFJAP[[#This Row],[Existing]]+tbl_SponsorAFJAP[[#This Row],[Pipeline ]] -> 0
D168: L-SQUARED CAPITAL | E168: =SUMIFS(tbl_ExistingData[Total Commitment], tbl_ExistingData[Sponsor], "*" & tbl_SponsorAFJAP[[#This Row],[Sponsor]] & "*", tbl_ExistingData[Fund], Fund, tbl_ExistingData[Paid Off Date], "=") -> 0 | F168: =SUMIFS(tbl_HypoPipeline[Total Commitment], tbl_HypoPipeline[Sponsor], "*" & tbl_SponsorAFJAP[[#This Row],[Sponsor]] & "*", tbl_HypoPipeline[Fund], Fund,tbl_HypoPipeline[Exclude?],"") -> 0 | G168: =tbl_SponsorAFJAP[[#This Row],[Existing]]+tbl_SponsorAFJAP[[#This Row],[Pipeline ]] -> 0
D169: LaBaronBrown Industries | E169: =SUMIFS(tbl_ExistingData[Total Commitment], tbl_ExistingData[Sponsor], "*" & tbl_SponsorAFJAP[[#This Row],[Sponsor]] & "*", tbl_ExistingData[Fund], Fund, tbl_ExistingData[Paid Off Date], "=") -> 0 | F169: =SUMIFS(tbl_HypoPipeline[Total Commitment], tbl_HypoPipeline[Sponsor], "*" & tbl_SponsorAFJAP[[#This Row],[Sponsor]] & "*", tbl_HypoPipeline[Fund], Fund,tbl_HypoPipeline[Exclude?],"") -> 0 | G169: =tbl_SponsorAFJAP[[#This Row],[Existing]]+tbl_SponsorAFJAP[[#This Row],[Pipeline ]] -> 0
D170: Leeds Equity Partners | E170: =SUMIFS(tbl_ExistingData[Total Commitment], tbl_ExistingData[Sponsor], "*" & tbl_SponsorAFJAP[[#This Row],[Sponsor]] & "*", tbl_ExistingData[Fund], Fund, tbl_ExistingData[Paid Off Date], "=") -> 0 | F170: =SUMIFS(tbl_HypoPipeline[Total Commitment], tbl_HypoPipeline[Sponsor], "*" & tbl_SponsorAFJAP[[#This Row],[Sponsor]] & "*", tbl_HypoPipeline[Fund], Fund,tbl_HypoPipeline[Exclude?],"") -> 0 | G170: =tbl_SponsorAFJAP[[#This Row],[Existing]]+tbl_SponsorAFJAP[[#This Row],[Pipeline ]] -> 0
D171: Levine Leichtman | E171: =SUMIFS(tbl_ExistingData[Total Commitment], tbl_ExistingData[Sponsor], "*" & tbl_SponsorAFJAP[[#This Row],[Sponsor]] & "*", tbl_ExistingData[Fund], Fund, tbl_ExistingData[Paid Off Date], "=") -> 0 | F171: =SUMIFS(tbl_HypoPipeline[Total Commitment], tbl_HypoPipeline[Sponsor], "*" & tbl_SponsorAFJAP[[#This Row],[Sponsor]] & "*", tbl_HypoPipeline[Fund], Fund,tbl_HypoPipeline[Exclude?],"") -> 0 | G171: =tbl_SponsorAFJAP[[#This Row],[Existing]]+tbl_SponsorAFJAP[[#This Row],[Pipeline ]] -> 0
D172: Linden Capital, LLC | E172: =SUMIFS(tbl_ExistingData[Total Commitment], tbl_ExistingData[Sponsor], "*" & tbl_SponsorAFJAP[[#This Row],[Sponsor]] & "*", tbl_ExistingData[Fund], Fund, tbl_ExistingData[Paid Off Date], "=") -> 0 | F172: =SUMIFS(tbl_HypoPipeline[Total Commitment], tbl_HypoPipeline[Sponsor], "*" & tbl_SponsorAFJAP[[#This Row],[Sponsor]] & "*", tbl_HypoPipeline[Fund], Fund,tbl_HypoPipeline[Exclude?],"") -> 0 | G172: =tbl_SponsorAFJAP[[#This Row],[Existing]]+tbl_SponsorAFJAP[[#This Row],[Pipeline ]] -> 0
D173: LKCM HEADWATER INVESTMENTS II, L.P. | E173: =SUMIFS(tbl_ExistingData[Total Commitment], tbl_ExistingData[Sponsor], "*" & tbl_SponsorAFJAP[[#This Row],[Sponsor]] & "*", tbl_ExistingData[Fund], Fund, tbl_ExistingData[Paid Off Date], "=") -> 0 | F173: =SUMIFS(tbl_HypoPipeline[Total Commitment], tbl_HypoPipeline[Sponsor], "*" & tbl_SponsorAFJAP[[#This Row],[Sponsor]] & "*", tbl_HypoPipeline[Fund], Fund,tbl_HypoPipeline[Exclude?],"") -> 0 | G173: =tbl_SponsorAFJAP[[#This Row],[Existing]]+tbl_SponsorAFJAP[[#This Row],[Pipeline ]] -> 0
D174: Main Post Partners | E174: =SUMIFS(tbl_ExistingData[Total Commitment], tbl_ExistingData[Sponsor], "*" & tbl_SponsorAFJAP[[#This Row],[Sponsor]] & "*", tbl_ExistingData[Fund], Fund, tbl_ExistingData[Paid Off Date], "=") -> 0 | F174: =SUMIFS(tbl_HypoPipeline[Total Commitment], tbl_HypoPipeline[Sponsor], "*" & tbl_SponsorAFJAP[[#This Row],[Sponsor]] & "*", tbl_HypoPipeline[Fund], Fund,tbl_HypoPipeline[Exclude?],"") -> 0 | G174: =tbl_SponsorAFJAP[[#This Row],[Existing]]+tbl_SponsorAFJAP[[#This Row],[Pipeline ]] -> 0
D175: Marcol | E175: =SUMIFS(tbl_ExistingData[Total Commitment], tbl_ExistingData[Sponsor], "*" & tbl_SponsorAFJAP[[#This Row],[Sponsor]] & "*", tbl_ExistingData[Fund], Fund, tbl_ExistingData[Paid Off Date], "=") -> 0 | F175: =SUMIFS(tbl_HypoPipeline[Total Commitment], tbl_HypoPipeline[Sponsor], "*" & tbl_SponsorAFJAP[[#This Row],[Sponsor]] & "*", tbl_HypoPipeline[Fund], Fund,tbl_HypoPipeline[Exclude?],"") -> 0 | G175: =tbl_SponsorAFJAP[[#This Row],[Existing]]+tbl_SponsorAFJAP[[#This Row],[Pipeline ]] -> 0
D176: MAY RIVER CAPITAL | E176: =SUMIFS(tbl_ExistingData[Total Commitment], tbl_ExistingData[Sponsor], "*" & tbl_SponsorAFJAP[[#This Row],[Sponsor]] & "*", tbl_ExistingData[Fund], Fund, tbl_ExistingData[Paid Off Date], "=") -> 0 | F176: =SUMIFS(tbl_HypoPipeline[Total Commitment], tbl_HypoPipeline[Sponsor], "*" & tbl_SponsorAFJAP[[#This Row],[Sponsor]] & "*", tbl_HypoPipeline[Fund], Fund,tbl_HypoPipeline[Exclude?],"") -> 0 | G176: =tbl_SponsorAFJAP[[#This Row],[Existing]]+tbl_SponsorAFJAP[[#This Row],[Pipeline ]] -> 0
D177: NEW HARBOR CAPITAL, LLC | E177: =SUMIFS(tbl_ExistingData[Total Commitment], tbl_ExistingData[Sponsor], "*" & tbl_SponsorAFJAP[[#This Row],[Sponsor]] & "*", tbl_ExistingData[Fund], Fund, tbl_ExistingData[Paid Off Date], "=") -> 0 | F177: =SUMIFS(tbl_HypoPipeline[Total Commitment], tbl_HypoPipeline[Sponsor], "*" & tbl_SponsorAFJAP[[#This Row],[Sponsor]] & "*", tbl_HypoPipeline[Fund], Fund,tbl_HypoPipeline[Exclude?],"") -> 0 | G177: =tbl_SponsorAFJAP[[#This Row],[Existing]]+tbl_SponsorAFJAP[[#This Row],[Pipeline ]] -> 0
D178: New Mainstream | E178: =SUMIFS(tbl_ExistingData[Total Commitment], tbl_ExistingData[Sponsor], "*" & tbl_SponsorAFJAP[[#This Row],[Sponsor]] & "*", tbl_ExistingData[Fund], Fund, tbl_ExistingData[Paid Off Date], "=") -> 0 | F178: =SUMIFS(tbl_HypoPipeline[Total Commitment], tbl_HypoPipeline[Sponsor], "*" & tbl_SponsorAFJAP[[#This Row],[Sponsor]] & "*", tbl_HypoPipeline[Fund], Fund,tbl_HypoPipeline[Exclude?],"") -> 0 | G178: =tbl_SponsorAFJAP[[#This Row],[Existing]]+tbl_SponsorAFJAP[[#This Row],[Pipeline ]] -> 0
D179: New MainStream Capital | E179: =SUMIFS(tbl_ExistingData[Total Commitment], tbl_ExistingData[Sponsor], "*" & tbl_SponsorAFJAP[[#This Row],[Sponsor]] & "*", tbl_ExistingData[Fund], Fund, tbl_ExistingData[Paid Off Date], "=") -> 0 | F179: =SUMIFS(tbl_HypoPipeline[Total Commitment], tbl_HypoPipeline[Sponsor], "*" & tbl_SponsorAFJAP[[#This Row],[Sponsor]] & "*", tbl_HypoPipeline[Fund], Fund,tbl_HypoPipeline[Exclude?],"") -> 0 | G179: =tbl_SponsorAFJAP[[#This Row],[Existing]]+tbl_SponsorAFJAP[[#This Row],[Pipeline ]] -> 0
D180: NexPhase Capital | E180: =SUMIFS(tbl_ExistingData[Total Commitment], tbl_ExistingData[Sponsor], "*" & tbl_SponsorAFJAP[[#This Row],[Sponsor]] & "*", tbl_ExistingData[Fund], Fund, tbl_ExistingData[Paid Off Date], "=") -> 0 | F180: =SUMIFS(tbl_HypoPipeline[Total Commitment], tbl_HypoPipeline[Sponsor], "*" & tbl_SponsorAFJAP[[#This Row],[Sponsor]] & "*", tbl_HypoPipeline[Fund], Fund,tbl_HypoPipeline[Exclude?],"") -> 0 | G180: =tbl_SponsorAFJAP[[#This Row],[Existing]]+tbl_SponsorAFJAP[[#This Row],[Pipeline ]] -> 0
D181: Non-Sponsored | E181: =SUMIFS(tbl_ExistingData[Total Commitment], tbl_ExistingData[Sponsor], "*" & tbl_SponsorAFJAP[[#This Row],[Sponsor]] & "*", tbl_ExistingData[Fund], Fund, tbl_ExistingData[Paid Off Date], "=") -> 0 | F181: =SUMIFS(tbl_HypoPipeline[Total Commitment], tbl_HypoPipeline[Sponsor], "*" & tbl_SponsorAFJAP[[#This Row],[Sponsor]] & "*", tbl_HypoPipeline[Fund], Fund,tbl_HypoPipeline[Exclude?],"") -> 0 | G181: =tbl_SponsorAFJAP[[#This Row],[Existing]]+tbl_SponsorAFJAP[[#This Row],[Pipeline ]] -> 0
D182: Northlane Capital Partners LLC (fka American Capital Strategies, Ltd.) | E182: =SUMIFS(tbl_ExistingData[Total Commitment], tbl_ExistingData[Sponsor], "*" & tbl_SponsorAFJAP[[#This Row],[Sponsor]] & "*", tbl_ExistingData[Fund], Fund, tbl_ExistingData[Paid Off Date], "=") -> 0 | F182: =SUMIFS(tbl_HypoPipeline[Total Commitment], tbl_HypoPipeline[Sponsor], "*" & tbl_SponsorAFJAP[[#This Row],[Sponsor]] & "*", tbl_HypoPipeline[Fund], Fund,tbl_HypoPipeline[Exclude?],"") -> 0 | G182: =tbl_SponsorAFJAP[[#This Row],[Existing]]+tbl_SponsorAFJAP[[#This Row],[Pipeline ]] -> 0
D183: NORWEST EQUITY PARTNERS | E183: =SUMIFS(tbl_ExistingData[Total Commitment], tbl_ExistingData[Sponsor], "*" & tbl_SponsorAFJAP[[#This Row],[Sponsor]] & "*", tbl_ExistingData[Fund], Fund, tbl_ExistingData[Paid Off Date], "=") -> 0 | F183: =SUMIFS(tbl_HypoPipeline[Total Commitment], tbl_HypoPipeline[Sponsor], "*" & tbl_SponsorAFJAP[[#This Row],[Sponsor]] & "*", tbl_HypoPipeline[Fund], Fund,tbl_HypoPipeline[Exclude?],"") -> 0 | G183: =tbl_SponsorAFJAP[[#This Row],[Existing]]+tbl_SponsorAFJAP[[#This Row],[Pipeline ]] -> 0
D184: Novacap | E184: =SUMIFS(tbl_ExistingData[Total Commitment], tbl_ExistingData[Sponsor], "*" & tbl_SponsorAFJAP[[#This Row],[Sponsor]] & "*", tbl_ExistingData[Fund], Fund, tbl_ExistingData[Paid Off Date], "=") -> 0 | F184: =SUMIFS(tbl_HypoPipeline[Total Commitment], tbl_HypoPipeline[Sponsor], "*" & tbl_SponsorAFJAP[[#This Row],[Sponsor]] & "*", tbl_HypoPipeline[Fund], Fund,tbl_HypoPipeline[Exclude?],"") -> 0 | G184: =tbl_SponsorAFJAP[[#This Row],[Existing]]+tbl_SponsorAFJAP[[#This Row],[Pipeline ]] -> 0
D185: Oakley Capital | E185: =SUMIFS(tbl_ExistingData[Total Commitment], tbl_ExistingData[Sponsor], "*" & tbl_SponsorAFJAP[[#This Row],[Sponsor]] & "*", tbl_ExistingData[Fund], Fund, tbl_ExistingData[Paid Off Date], "=") -> 0 | F185: =SUMIFS(tbl_HypoPipeline[Total Commitment], tbl_HypoPipeline[Sponsor], "*" & tbl_SponsorAFJAP[[#This Row],[Sponsor]] & "*", tbl_HypoPipeline[Fund], Fund,tbl_HypoPipeline[Exclude?],"") -> 0 | G185: =tbl_SponsorAFJAP[[#This Row],[Existing]]+tbl_SponsorAFJAP[[#This Row],[Pipeline ]] -> 0
D186: Oak Hill Capital | E186: =SUMIFS(tbl_ExistingData[Total Commitment], tbl_ExistingData[Sponsor], "*" & tbl_SponsorAFJAP[[#This Row],[Sponsor]] & "*", tbl_ExistingData[Fund], Fund, tbl_ExistingData[Paid Off Date], "=") -> 0 | F186: =SUMIFS(tbl_HypoPipeline[Total Commitment], tbl_HypoPipeline[Sponsor], "*" & tbl_SponsorAFJAP[[#This Row],[Sponsor]] & "*", tbl_HypoPipeline[Fund], Fund,tbl_HypoPipeline[Exclude?],"") -> 0 | G186: =tbl_SponsorAFJAP[[#This Row],[Existing]]+tbl_SponsorAFJAP[[#This Row],[Pipeline ]] -> 0
D187: Olympus Partners | E187: =SUMIFS(tbl_ExistingData[Total Commitment], tbl_ExistingData[Sponsor], "*" & tbl_SponsorAFJAP[[#This Row],[Sponsor]] & "*", tbl_ExistingData[Fund], Fund, tbl_ExistingData[Paid Off Date], "=") -> 0 | F187: =SUMIFS(tbl_HypoPipeline[Total Commitment], tbl_HypoPipeline[Sponsor], "*" & tbl_SponsorAFJAP[[#This Row],[Sponsor]] & "*", tbl_HypoPipeline[Fund], Fund,tbl_HypoPipeline[Exclude?],"") -> 0 | G187: =tbl_SponsorAFJAP[[#This Row],[Existing]]+tbl_SponsorAFJAP[[#This Row],[Pipeline ]] -> 0
D188: PAMPLONA TMTI, L.P. | E188: =SUMIFS(tbl_ExistingData[Total Commitment], tbl_ExistingData[Sponsor], "*" & tbl_SponsorAFJAP[[#This Row],[Sponsor]] & "*", tbl_ExistingData[Fund], Fund, tbl_ExistingData[Paid Off Date], "=") -> 0 | F188: =SUMIFS(tbl_HypoPipeline[Total Commitment], tbl_HypoPipeline[Sponsor], "*" & tbl_SponsorAFJAP[[#This Row],[Sponsor]] & "*", tbl_HypoPipeline[Fund], Fund,tbl_HypoPipeline[Exclude?],"") -> 0 | G188: =tbl_SponsorAFJAP[[#This Row],[Existing]]+tbl_SponsorAFJAP[[#This Row],[Pipeline ]] -> 0
D189: Parthenon Capital LLC | E189: =SUMIFS(tbl_ExistingData[Total Commitment], tbl_ExistingData[Sponsor], "*" & tbl_SponsorAFJAP[[#This Row],[Sponsor]] & "*", tbl_ExistingData[Fund], Fund, tbl_ExistingData[Paid Off Date], "=") -> 0 | F189: =SUMIFS(tbl_HypoPipeline[Total Commitment], tbl_HypoPipeline[Sponsor], "*" & tbl_SponsorAFJAP[[#This Row],[Sponsor]] & "*", tbl_HypoPipeline[Fund], Fund,tbl_HypoPipeline[Exclude?],"") -> 0 | G189: =tbl_SponsorAFJAP[[#This Row],[Existing]]+tbl_SponsorAFJAP[[#This Row],[Pipeline ]] -> 0
D190: PFINGSTEN | E190: =SUMIFS(tbl_ExistingData[Total Commitment], tbl_ExistingData[Sponsor], "*" & tbl_SponsorAFJAP[[#This Row],[Sponsor]] & "*", tbl_ExistingData[Fund], Fund, tbl_ExistingData[Paid Off Date], "=") -> 0 | F190: =SUMIFS(tbl_HypoPipeline[Total Commitment], tbl_HypoPipeline[Sponsor], "*" & tbl_SponsorAFJAP[[#This Row],[Sponsor]] & "*", tbl_HypoPipeline[Fund], Fund,tbl_HypoPipeline[Exclude?],"") -> 0 | G190: =tbl_SponsorAFJAP[[#This Row],[Existing]]+tbl_SponsorAFJAP[[#This Row],[Pipeline ]] -> 0
D191: PNC RIVERARCH CAPITAL, A DIVISION OF PNC FINANCE, LLC | E191: =SUMIFS(tbl_ExistingData[Total Commitment], tbl_ExistingData[Sponsor], "*" & tbl_SponsorAFJAP[[#This Row],[Sponsor]] & "*", tbl_ExistingData[Fund], Fund, tbl_ExistingData[Paid Off Date], "=") -> 0 | F191: =SUMIFS(tbl_HypoPipeline[Total Commitment], tbl_HypoPipeline[Sponsor], "*" & tbl_SponsorAFJAP[[#This Row],[Sponsor]] & "*", tbl_HypoPipeline[Fund], Fund,tbl_HypoPipeline[Exclude?],"") -> 0 | G191: =tbl_SponsorAFJAP[[#This Row],[Existing]]+tbl_SponsorAFJAP[[#This Row],[Pipeline ]] -> 0
D192: PROVIDENCE EQUITY PARTNERS | E192: =SUMIFS(tbl_ExistingData[Total Commitment], tbl_ExistingData[Sponsor], "*" & tbl_SponsorAFJAP[[#This Row],[Sponsor]] & "*", tbl_ExistingData[Fund], Fund, tbl_ExistingData[Paid Off Date], "=") -> 0 | F192: =SUMIFS(tbl_HypoPipeline[Total Commitment], tbl_HypoPipeline[Sponsor], "*" & tbl_SponsorAFJAP[[#This Row],[Sponsor]] & "*", tbl_HypoPipeline[Fund], Fund,tbl_HypoPipeline[Exclude?],"") -> 0 | G192: =tbl_SponsorAFJAP[[#This Row],[Existing]]+tbl_SponsorAFJAP[[#This Row],[Pipeline ]] -> 0
D193: QUAD-C MANAGEMENT | E193: =SUMIFS(tbl_ExistingData[Total Commitment], tbl_ExistingData[Sponsor], "*" & tbl_SponsorAFJAP[[#This Row],[Sponsor]] & "*", tbl_ExistingData[Fund], Fund, tbl_ExistingData[Paid Off Date], "=") -> 0 | F193: =SUMIFS(tbl_HypoPipeline[Total Commitment], tbl_HypoPipeline[Sponsor], "*" & tbl_SponsorAFJAP[[#This Row],[Sponsor]] & "*", tbl_HypoPipeline[Fund], Fund,tbl_HypoPipeline[Exclude?],"") -> 0 | G193: =tbl_SponsorAFJAP[[#This Row],[Existing]]+tbl_SponsorAFJAP[[#This Row],[Pipeline ]] -> 0
D194: REVELSTOKE CAPITAL | E194: =SUMIFS(tbl_ExistingData[Total Commitment], tbl_ExistingData[Sponsor], "*" & tbl_SponsorAFJAP[[#This Row],[Sponsor]] & "*", tbl_ExistingData[Fund], Fund, tbl_ExistingData[Paid Off Date], "=") -> 0 | F194: =SUMIFS(tbl_HypoPipeline[Total Commitment], tbl_HypoPipeline[Sponsor], "*" & tbl_SponsorAFJAP[[#This Row],[Sponsor]] & "*", tbl_HypoPipeline[Fund], Fund,tbl_HypoPipeline[Exclude?],"") -> 0 | G194: =tbl_SponsorAFJAP[[#This Row],[Existing]]+tbl_SponsorAFJAP[[#This Row],[Pipeline ]] -> 0
D195: RIDGEMONT EQUITY PARTNERS | E195: =SUMIFS(tbl_ExistingData[Total Commitment], tbl_ExistingData[Sponsor], "*" & tbl_SponsorAFJAP[[#This Row],[Sponsor]] & "*", tbl_ExistingData[Fund], Fund, tbl_ExistingData[Paid Off Date], "=") -> 0 | F195: =SUMIFS(tbl_HypoPipeline[Total Commitment], tbl_HypoPipeline[Sponsor], "*" & tbl_SponsorAFJAP[[#This Row],[Sponsor]] & "*", tbl_HypoPipeline[Fund], Fund,tbl_HypoPipeline[Exclude?],"") -> 0 | G195: =tbl_SponsorAFJAP[[#This Row],[Existing]]+tbl_SponsorAFJAP[[#This Row],[Pipeline ]] -> 0
D196: RIVER ASSOCIATES INVESTMENTS, LLC | E196: =SUMIFS(tbl_ExistingData[Total Commitment], tbl_ExistingData[Sponsor], "*" & tbl_SponsorAFJAP[[#This Row],[Sponsor]] & "*", tbl_ExistingData[Fund], Fund, tbl_ExistingData[Paid Off Date], "=") -> 0 | F196: =SUMIFS(tbl_HypoPipeline[Total Commitment], tbl_HypoPipeline[Sponsor], "*" & tbl_SponsorAFJAP[[#This Row],[Sponsor]] & "*", tbl_HypoPipeline[Fund], Fund,tbl_HypoPipeline[Exclude?],"") -> 0 | G196: =tbl_SponsorAFJAP[[#This Row],[Existing]]+tbl_SponsorAFJAP[[#This Row],[Pipeline ]] -> 0
D197: Riverside Company, The | E197: =SUMIFS(tbl_ExistingData[Total Commitment], tbl_ExistingData[Sponsor], "*" & tbl_SponsorAFJAP[[#This Row],[Sponsor]] & "*", tbl_ExistingData[Fund], Fund, tbl_ExistingData[Paid Off Date], "=") -> 0 | F197: =SUMIFS(tbl_HypoPipeline[Total Commitment], tbl_HypoPipeline[Sponsor], "*" & tbl_SponsorAFJAP[[#This Row],[Sponsor]] & "*", tbl_HypoPipeline[Fund], Fund,tbl_HypoPipeline[Exclude?],"") -> 0 | G197: =tbl_SponsorAFJAP[[#This Row],[Existing]]+tbl_SponsorAFJAP[[#This Row],[Pipeline ]] -> 0
D198: ROARK CAPITAL GROUP | E198: =SUMIFS(tbl_ExistingData[Total Commitment], tbl_ExistingData[Sponsor], "*" & tbl_SponsorAFJAP[[#This Row],[Sponsor]] & "*", tbl_ExistingData[Fund], Fund, tbl_ExistingData[Paid Off Date], "=") -> 0 | F198: =SUMIFS(tbl_HypoPipeline[Total Commitment], tbl_HypoPipeline[Sponsor], "*" & tbl_SponsorAFJAP[[#This Row],[Sponsor]] & "*", tbl_HypoPipeline[Fund], Fund,tbl_HypoPipeline[Exclude?],"") -> 0 | G198: =tbl_SponsorAFJAP[[#This Row],[Existing]]+tbl_SponsorAFJAP[[#This Row],[Pipeline ]] -> 0
D199: Saw Mill Capital LLC | E199: =SUMIFS(tbl_ExistingData[Total Commitment], tbl_ExistingData[Sponsor], "*" & tbl_SponsorAFJAP[[#This Row],[Sponsor]] & "*", tbl_ExistingData[Fund], Fund, tbl_ExistingData[Paid Off Date], "=") -> 0 | F199: =SUMIFS(tbl_HypoPipeline[Total Commitment], tbl_HypoPipeline[Sponsor], "*" & tbl_SponsorAFJAP[[#This Row],[Sponsor]] & "*", tbl_HypoPipeline[Fund], Fund,tbl_HypoPipeline[Exclude?],"") -> 0 | G199: =tbl_SponsorAFJAP[[#This Row],[Existing]]+tbl_SponsorAFJAP[[#This Row],[Pipeline ]] -> 0
D200: SEIDLER EQUITY PARTNERS | E200: =SUMIFS(tbl_ExistingData[Total Commitment], tbl_ExistingData[Sponsor], "*" & tbl_SponsorAFJAP[[#This Row],[Sponsor]] & "*", tbl_ExistingData[Fund], Fund, tbl_ExistingData[Paid Off Date], "=") -> 0 | F200: =SUMIFS(tbl_HypoPipeline[Total Commitment], tbl_HypoPipeline[Sponsor], "*" & tbl_SponsorAFJAP[[#This Row],[Sponsor]] & "*", tbl_HypoPipeline[Fund], Fund,tbl_HypoPipeline[Exclude?],"") -> 0 | G200: =tbl_SponsorAFJAP[[#This Row],[Existing]]+tbl_SponsorAFJAP[[#This Row],[Pipeline ]] -> 0
D201: SENTINEL CAPITAL PARTNERS, LLC | E201: =SUMIFS(tbl_ExistingData[Total Commitment], tbl_ExistingData[Sponsor], "*" & tbl_SponsorAFJAP[[#This Row],[Sponsor]] & "*", tbl_ExistingData[Fund], Fund, tbl_ExistingData[Paid Off Date], "=") -> 0 | F201: =SUMIFS(tbl_HypoPipeline[Total Commitment], tbl_HypoPipeline[Sponsor], "*" & tbl_SponsorAFJAP[[#This Row],[Sponsor]] & "*", tbl_HypoPipeline[Fund], Fund,tbl_HypoPipeline[Exclude?],"") -> 0 | G201: =tbl_SponsorAFJAP[[#This Row],[Existing]]+tbl_SponsorAFJAP[[#This Row],[Pipeline ]] -> 0
D202: SEQUEL HOLDINGS | E202: =SUMIFS(tbl_ExistingData[Total Commitment], tbl_ExistingData[Sponsor], "*" & tbl_SponsorAFJAP[[#This Row],[Sponsor]] & "*", tbl_ExistingData[Fund], Fund, tbl_ExistingData[Paid Off Date], "=") -> 0 | F202: =SUMIFS(tbl_HypoPipeline[Total Commitment], tbl_HypoPipeline[Sponsor], "*" & tbl_SponsorAFJAP[[#This Row],[Sponsor]] & "*", tbl_HypoPipeline[Fund], Fund,tbl_HypoPipeline[Exclude?],"") -> 0 | G202: =tbl_SponsorAFJAP[[#This Row],[Existing]]+tbl_SponsorAFJAP[[#This Row],[Pipeline ]] -> 0
D203: Shamrock Capital Advisers | E203: =SUMIFS(tbl_ExistingData[Total Commitment], tbl_ExistingData[Sponsor], "*" & tbl_SponsorAFJAP[[#This Row],[Sponsor]] & "*", tbl_ExistingData[Fund], Fund, tbl_ExistingData[Paid Off Date], "=") -> 0 | F203: =SUMIFS(tbl_HypoPipeline[Total Commitment], tbl_HypoPipeline[Sponsor], "*" & tbl_SponsorAFJAP[[#This Row],[Sponsor]] & "*", tbl_HypoPipeline[Fund], Fund,tbl_HypoPipeline[Exclude?],"") -> 0 | G203: =tbl_SponsorAFJAP[[#This Row],[Existing]]+tbl_SponsorAFJAP[[#This Row],[Pipeline ]] -> 0
D204: Shorehill Capital LLC | E204: =SUMIFS(tbl_ExistingData[Total Commitment], tbl_ExistingData[Sponsor], "*" & tbl_SponsorAFJAP[[#This Row],[Sponsor]] & "*", tbl_ExistingData[Fund], Fund, tbl_ExistingData[Paid Off Date], "=") -> 0 | F204: =SUMIFS(tbl_HypoPipeline[Total Commitment], tbl_HypoPipeline[Sponsor], "*" & tbl_SponsorAFJAP[[#This Row],[Sponsor]] & "*", tbl_HypoPipeline[Fund], Fund,tbl_HypoPipeline[Exclude?],"") -> 0 | G204: =tbl_SponsorAFJAP[[#This Row],[Existing]]+tbl_SponsorAFJAP[[#This Row],[Pipeline ]] -> 0
D205: Shore Capital Partner | E205: =SUMIFS(tbl_ExistingData[Total Commitment], tbl_ExistingData[Sponsor], "*" & tbl_SponsorAFJAP[[#This Row],[Sponsor]] & "*", tbl_ExistingData[Fund], Fund, tbl_ExistingData[Paid Off Date], "=") -> 0 | F205: =SUMIFS(tbl_HypoPipeline[Total Commitment], tbl_HypoPipeline[Sponsor], "*" & tbl_SponsorAFJAP[[#This Row],[Sponsor]] & "*", tbl_HypoPipeline[Fund], Fund,tbl_HypoPipeline[Exclude?],"") -> 0 | G205: =tbl_SponsorAFJAP[[#This Row],[Existing]]+tbl_SponsorAFJAP[[#This Row],[Pipeline ]] -> 0
D206: SOUNDCORE CAPITAL PARTNERS | E206: =SUMIFS(tbl_ExistingData[Total Commitment], tbl_ExistingData[Sponsor], "*" & tbl_SponsorAFJAP[[#This Row],[Sponsor]] & "*", tbl_ExistingData[Fund], Fund, tbl_ExistingData[Paid Off Date], "=") -> 0 | F206: =SUMIFS(tbl_HypoPipeline[Total Commitment], tbl_HypoPipeline[Sponsor], "*" & tbl_SponsorAFJAP[[#This Row],[Sponsor]] & "*", tbl_HypoPipeline[Fund], Fund,tbl_HypoPipeline[Exclude?],"") -> 0 | G206: =tbl_SponsorAFJAP[[#This Row],[Existing]]+tbl_SponsorAFJAP[[#This Row],[Pipeline ]] -> 0
D207: Spire Capital Partners, L.P. | E207: =SUMIFS(tbl_ExistingData[Total Commitment], tbl_ExistingData[Sponsor], "*" & tbl_SponsorAFJAP[[#This Row],[Sponsor]] & "*", tbl_ExistingData[Fund], Fund, tbl_ExistingData[Paid Off Date], "=") -> 0 | F207: =SUMIFS(tbl_HypoPipeline[Total Commitment], tbl_HypoPipeline[Sponsor], "*" & tbl_SponsorAFJAP[[#This Row],[Sponsor]] & "*", tbl_HypoPipeline[Fund], Fund,tbl_HypoPipeline[Exclude?],"") -> 0 | G207: =tbl_SponsorAFJAP[[#This Row],[Existing]]+tbl_SponsorAFJAP[[#This Row],[Pipeline ]] -> 0
D208: Sterling Investment Partners | E208: =SUMIFS(tbl_ExistingData[Total Commitment], tbl_ExistingData[Sponsor], "*" & tbl_SponsorAFJAP[[#This Row],[Sponsor]] & "*", tbl_ExistingData[Fund], Fund, tbl_ExistingData[Paid Off Date], "=") -> 0 | F208: =SUMIFS(tbl_HypoPipeline[Total Commitment], tbl_HypoPipeline[Sponsor], "*" & tbl_SponsorAFJAP[[#This Row],[Sponsor]] & "*", tbl_HypoPipeline[Fund], Fund,tbl_HypoPipeline[Exclude?],"") -> 0 | G208: =tbl_SponsorAFJAP[[#This Row],[Existing]]+tbl_SponsorAFJAP[[#This Row],[Pipeline ]] -> 0
D209: Sterling Partners | E209: =SUMIFS(tbl_ExistingData[Total Commitment], tbl_ExistingData[Sponsor], "*" & tbl_SponsorAFJAP[[#This Row],[Sponsor]] & "*", tbl_ExistingData[Fund], Fund, tbl_ExistingData[Paid Off Date], "=") -> 0 | F209: =SUMIFS(tbl_HypoPipeline[Total Commitment], tbl_HypoPipeline[Sponsor], "*" & tbl_SponsorAFJAP[[#This Row],[Sponsor]] & "*", tbl_HypoPipeline[Fund], Fund,tbl_HypoPipeline[Exclude?],"") -> 0 | G209: =tbl_SponsorAFJAP[[#This Row],[Existing]]+tbl_SponsorAFJAP[[#This Row],[Pipeline ]] -> 0
D210: SUMMIT PARTNERS | E210: =SUMIFS(tbl_ExistingData[Total Commitment], tbl_ExistingData[Sponsor], "*" & tbl_SponsorAFJAP[[#This Row],[Sponsor]] & "*", tbl_ExistingData[Fund], Fund, tbl_ExistingData[Paid Off Date], "=") -> 0 | F210: =SUMIFS(tbl_HypoPipeline[Total Commitment], tbl_HypoPipeline[Sponsor], "*" & tbl_SponsorAFJAP[[#This Row],[Sponsor]] & "*", tbl_HypoPipeline[Fund], Fund,tbl_HypoPipeline[Exclude?],"") -> 0 | G210: =tbl_SponsorAFJAP[[#This Row],[Existing]]+tbl_SponsorAFJAP[[#This Row],[Pipeline ]] -> 0
D211: SWANDER PACE CAPITAL | E211: =SUMIFS(tbl_ExistingData[Total Commitment], tbl_ExistingData[Sponsor], "*" & tbl_SponsorAFJAP[[#This Row],[Sponsor]] & "*", tbl_ExistingData[Fund], Fund, tbl_ExistingData[Paid Off Date], "=") -> 0 | F211: =SUMIFS(tbl_HypoPipeline[Total Commitment], tbl_HypoPipeline[Sponsor], "*" & tbl_SponsorAFJAP[[#This Row],[Sponsor]] & "*", tbl_HypoPipeline[Fund], Fund,tbl_HypoPipeline[Exclude?],"") -> 0 | G211: =tbl_SponsorAFJAP[[#This Row],[Existing]]+tbl_SponsorAFJAP[[#This Row],[Pipeline ]] -> 0
D212: TA ASSOCIATES | E212: =SUMIFS(tbl_ExistingData[Total Commitment], tbl_ExistingData[Sponsor], "*" & tbl_SponsorAFJAP[[#This Row],[Sponsor]] & "*", tbl_ExistingData[Fund], Fund, tbl_ExistingData[Paid Off Date], "=") -> 0 | F212: =SUMIFS(tbl_HypoPipeline[Total Commitment], tbl_HypoPipeline[Sponsor], "*" & tbl_SponsorAFJAP[[#This Row],[Sponsor]] & "*", tbl_HypoPipeline[Fund], Fund,tbl_HypoPipeline[Exclude?],"") -> 0 | G212: =tbl_SponsorAFJAP[[#This Row],[Existing]]+tbl_SponsorAFJAP[[#This Row],[Pipeline ]] -> 0
D213: Tailwind Capital | E213: =SUMIFS(tbl_ExistingData[Total Commitment], tbl_ExistingData[Sponsor], "*" & tbl_SponsorAFJAP[[#This Row],[Sponsor]] & "*", tbl_ExistingData[Fund], Fund, tbl_ExistingData[Paid Off Date], "=") -> 0 | F213: =SUMIFS(tbl_HypoPipeline[Total Commitment], tbl_HypoPipeline[Sponsor], "*" & tbl_SponsorAFJAP[[#This Row],[Sponsor]] & "*", tbl_HypoPipeline[Fund], Fund,tbl_HypoPipeline[Exclude?],"") -> 0 | G213: =tbl_SponsorAFJAP[[#This Row],[Existing]]+tbl_SponsorAFJAP[[#This Row],[Pipeline ]] -> 0
D214: TDP | E214: =SUMIFS(tbl_ExistingData[Total Commitment], tbl_ExistingData[Sponsor], "*" & tbl_SponsorAFJAP[[#This Row],[Sponsor]] & "*", tbl_ExistingData[Fund], Fund, tbl_ExistingData[Paid Off Date], "=") -> 0 | F214: =SUMIFS(tbl_HypoPipeline[Total Commitment], tbl_HypoPipeline[Sponsor], "*" & tbl_SponsorAFJAP[[#This Row],[Sponsor]] & "*", tbl_HypoPipeline[Fund], Fund,tbl_HypoPipeline[Exclude?],"") -> 0 | G214: =tbl_SponsorAFJAP[[#This Row],[Existing]]+tbl_SponsorAFJAP[[#This Row],[Pipeline ]] -> 0
D215: Tenex Capital Management | E215: =SUMIFS(tbl_ExistingData[Total Commitment], tbl_ExistingData[Sponsor], "*" & tbl_SponsorAFJAP[[#This Row],[Sponsor]] & "*", tbl_ExistingData[Fund], Fund, tbl_ExistingData[Paid Off Date], "=") -> 0 | F215: =SUMIFS(tbl_HypoPipeline[Total Commitment], tbl_HypoPipeline[Sponsor], "*" & tbl_SponsorAFJAP[[#This Row],[Sponsor]] & "*", tbl_HypoPipeline[Fund], Fund,tbl_HypoPipeline[Exclude?],"") -> 0 | G215: =tbl_SponsorAFJAP[[#This Row],[Existing]]+tbl_SponsorAFJAP[[#This Row],[Pipeline ]] -> 0
D216: The CapStreet Group | E216: =SUMIFS(tbl_ExistingData[Total Commitment], tbl_ExistingData[Sponsor], "*" & tbl_SponsorAFJAP[[#This Row],[Sponsor]] & "*", tbl_ExistingData[Fund], Fund, tbl_ExistingData[Paid Off Date], "=") -> 0 | F216: =SUMIFS(tbl_HypoPipeline[Total Commitment], tbl_HypoPipeline[Sponsor], "*" & tbl_SponsorAFJAP[[#This Row],[Sponsor]] & "*", tbl_HypoPipeline[Fund], Fund,tbl_HypoPipeline[Exclude?],"") -> 0 | G216: =tbl_SponsorAFJAP[[#This Row],[Existing]]+tbl_SponsorAFJAP[[#This Row],[Pipeline ]] -> 0
D217: The Halifax Group | E217: =SUMIFS(tbl_ExistingData[Total Commitment], tbl_ExistingData[Sponsor], "*" & tbl_SponsorAFJAP[[#This Row],[Sponsor]] & "*", tbl_ExistingData[Fund], Fund, tbl_ExistingData[Paid Off Date], "=") -> 0 | F217: =SUMIFS(tbl_HypoPipeline[Total Commitment], tbl_HypoPipeline[Sponsor], "*" & tbl_SponsorAFJAP[[#This Row],[Sponsor]] & "*", tbl_HypoPipeline[Fund], Fund,tbl_HypoPipeline[Exclude?],"") -> 0 | G217: =tbl_SponsorAFJAP[[#This Row],[Existing]]+tbl_SponsorAFJAP[[#This Row],[Pipeline ]] -> 0
D218: The Pritzker Organization | E218: =SUMIFS(tbl_ExistingData[Total Commitment], tbl_ExistingData[Sponsor], "*" & tbl_SponsorAFJAP[[#This Row],[Sponsor]] & "*", tbl_ExistingData[Fund], Fund, tbl_ExistingData[Paid Off Date], "=") -> 0 | F218: =SUMIFS(tbl_HypoPipeline[Total Commitment], tbl_HypoPipeline[Sponsor], "*" & tbl_SponsorAFJAP[[#This Row],[Sponsor]] & "*", tbl_HypoPipeline[Fund], Fund,tbl_HypoPipeline[Exclude?],"") -> 0 | G218: =tbl_SponsorAFJAP[[#This Row],[Existing]]+tbl_SponsorAFJAP[[#This Row],[Pipeline ]] -> 0
D219: THE RIVERSIDE COMPANY | E219: =SUMIFS(tbl_ExistingData[Total Commitment], tbl_ExistingData[Sponsor], "*" & tbl_SponsorAFJAP[[#This Row],[Sponsor]] & "*", tbl_ExistingData[Fund], Fund, tbl_ExistingData[Paid Off Date], "=") -> 0 | F219: =SUMIFS(tbl_HypoPipeline[Total Commitment], tbl_HypoPipeline[Sponsor], "*" & tbl_SponsorAFJAP[[#This Row],[Sponsor]] & "*", tbl_HypoPipeline[Fund], Fund,tbl_HypoPipeline[Exclude?],"") -> 0 | G219: =tbl_SponsorAFJAP[[#This Row],[Existing]]+tbl_SponsorAFJAP[[#This Row],[Pipeline ]] -> 0
D220: TRINITY HUNT PARTNERS IV, L.P. | E220: =SUMIFS(tbl_ExistingData[Total Commitment], tbl_ExistingData[Sponsor], "*" & tbl_SponsorAFJAP[[#This Row],[Sponsor]] & "*", tbl_ExistingData[Fund], Fund, tbl_ExistingData[Paid Off Date], "=") -> 0 | F220: =SUMIFS(tbl_HypoPipeline[Total Commitment], tbl_HypoPipeline[Sponsor], "*" & tbl_SponsorAFJAP[[#This Row],[Sponsor]] & "*", tbl_HypoPipeline[Fund], Fund,tbl_HypoPipeline[Exclude?],"") -> 0 | G220: =tbl_SponsorAFJAP[[#This Row],[Existing]]+tbl_SponsorAFJAP[[#This Row],[Pipeline ]] -> 0
D221: Triple Tree | E221: =SUMIFS(tbl_ExistingData[Total Commitment], tbl_ExistingData[Sponsor], "*" & tbl_SponsorAFJAP[[#This Row],[Sponsor]] & "*", tbl_ExistingData[Fund], Fund, tbl_ExistingData[Paid Off Date], "=") -> 0 | F221: =SUMIFS(tbl_HypoPipeline[Total Commitment], tbl_HypoPipeline[Sponsor], "*" & tbl_SponsorAFJAP[[#This Row],[Sponsor]] & "*", tbl_HypoPipeline[Fund], Fund,tbl_HypoPipeline[Exclude?],"") -> 0 | G221: =tbl_SponsorAFJAP[[#This Row],[Existing]]+tbl_SponsorAFJAP[[#This Row],[Pipeline ]] -> 0
D222: Trive Capital | E222: =SUMIFS(tbl_ExistingData[Total Commitment], tbl_ExistingData[Sponsor], "*" & tbl_SponsorAFJAP[[#This Row],[Sponsor]] & "*", tbl_ExistingData[Fund], Fund, tbl_ExistingData[Paid Off Date], "=") -> 0 | F222: =SUMIFS(tbl_HypoPipeline[Total Commitment], tbl_HypoPipeline[Sponsor], "*" & tbl_SponsorAFJAP[[#This Row],[Sponsor]] & "*", tbl_HypoPipeline[Fund], Fund,tbl_HypoPipeline[Exclude?],"") -> 0 | G222: =tbl_SponsorAFJAP[[#This Row],[Existing]]+tbl_SponsorAFJAP[[#This Row],[Pipeline ]] -> 0
D223: TRUE WIND CAPITAL | E223: =SUMIFS(tbl_ExistingData[Total Commitment], tbl_ExistingData[Sponsor], "*" & tbl_SponsorAFJAP[[#This Row],[Sponsor]] & "*", tbl_ExistingData[Fund], Fund, tbl_ExistingData[Paid Off Date], "=") -> 0 | F223: =SUMIFS(tbl_HypoPipeline[Total Commitment], tbl_HypoPipeline[Sponsor], "*" & tbl_SponsorAFJAP[[#This Row],[Sponsor]] & "*", tbl_HypoPipeline[Fund], Fund,tbl_HypoPipeline[Exclude?],"") -> 0 | G223: =tbl_SponsorAFJAP[[#This Row],[Existing]]+tbl_SponsorAFJAP[[#This Row],[Pipeline ]] -> 0
D224: TYREE & D'ANGELO PARTNERS LLC | E224: =SUMIFS(tbl_ExistingData[Total Commitment], tbl_ExistingData[Sponsor], "*" & tbl_SponsorAFJAP[[#This Row],[Sponsor]] & "*", tbl_ExistingData[Fund], Fund, tbl_ExistingData[Paid Off Date], "=") -> 0 | F224: =SUMIFS(tbl_HypoPipeline[Total Commitment], tbl_HypoPipeline[Sponsor], "*" & tbl_SponsorAFJAP[[#This Row],[Sponsor]] & "*", tbl_HypoPipeline[Fund], Fund,tbl_HypoPipeline[Exclude?],"") -> 0 | G224: =tbl_SponsorAFJAP[[#This Row],[Existing]]+tbl_SponsorAFJAP[[#This Row],[Pipeline ]] -> 0
... 7 more rows

Sheet Tests (Kaiser)
A1: Tests: | B1: SLF I
A3: SMA Commitment | B3: =VLOOKUP(Fund,tbl_Funds[[Fund]:[Principal Balance]],2,0) -> 500000000
A5: Max Commitment
A7: Bucket
A8: Commitment | B8: =Commitment -> 500000000
A9: Protective Advances Holdback | B9: =_xlfn.XLOOKUP(Fund,tbl_Funds[Fund],tbl_Funds[Protective Advances]) -> 0
A10: Bucket Subtotal | B10: =B8-B9 -> 500000000
A11: Available | B11: =B10-B15 -> 500000000
A13: Existing Portfolio | B13: =SUMIFS(tbl_ExistingData[Total Commitment],tbl_ExistingData[Fund],Fund,tbl_ExistingData[Fund],"*B*", tbl_ExistingData[Paid Off Date], "=") -> 0
A14: Hypo Pipeline | B14: =SUMIFS(tbl_HypoPipeline[Total Commitment],tbl_HypoPipeline[Fund],Fund,tbl_HypoPipeline[Exclude?],"") -> 0
A15: Final Test Total | B15: =B14+B13 -> 0
A17: Protective Advances
A18: Portfolio | B18: =SUMIF(tbl_ProtectiveAdvances[SMA],Fund,tbl_ProtectiveAdvances[Commitment Amount]) -> 0
A19: Hypo | B19: =SUMIFS(tbl_HypoPipeline[Total Commitment],tbl_HypoPipeline[Fund],Fund,tbl_HypoPipeline[Protective Advances],"Y") -> 0
A22: Unfunded Commitment
A23: The sum of Portfolio and Pipeline values (Revolver Commitments + DDTL Commitments - DDTL Principal) must be < 14% of total SMA Commitment.
A25: Bucket | B25: =Commitment*0.14 -> 70000000
A26: Available | B26: =B25-B40 -> 70000000
A28: Existing Portfolio
A29: Total Revolver Commitment in Program | B29: =SUMIFS(tbl_ExistingData[Total Commitment],tbl_ExistingData[Tranche],"*evolv*",tbl_ExistingData[Fund],Fund, tbl_ExistingData[Paid Off Date], "=") -> 0
A30: Total DDTL Commitment in Program | B30: =SUM(SUMIFS(tbl_ExistingData[Total Commitment],tbl_ExistingData[Tranche],{"*Delayed Draw*","*DDTL*"},tbl_ExistingData[Fund],Fund, tbl_ExistingData[Paid Off Date], "=")) -> 0
A31: Total DDTL Principal in Program | B31: =SUM(SUMIFS(tbl_ExistingData[Principal Balance],tbl_ExistingData[Tranche],{"*Delayed Draw*","*DDTL*"},tbl_ExistingData[Fund],Fund, tbl_ExistingData[Paid Off Date], "=")) -> 0
A32: Existing Portfolio Subtotal | B32: =B29+B30-B31 -> 0
A34: Hypo Pipeline
A35: Total Revolver Commitment in Pipeline | B35: =SUMIFS(tbl_HypoPipeline[Total Commitment], tbl_HypoPipeline[Tranche], "*evolv*", tbl_HypoPipeline[Fund], Fund,tbl_HypoPipeline[Exclude?],"") -> 0
A36: Total DDTL Commitment in Pipeline | B36: =SUM(SUMIFS(tbl_HypoPipeline[Total Commitment],tbl_HypoPipeline[Tranche],{"*Delayed Draw*","*DDTL*"},tbl_HypoPipeline[Fund],Fund,tbl_HypoPipeline[Exclude?],"")) -> 0
A37: Total DDTL Principal in Pipeline | B37: =SUM(SUMIFS(tbl_HypoPipeline[Principal Balance],tbl_HypoPipeline[Tranche],{"*Delayed Draw*","*DDTL*"},tbl_HypoPipeline[Fund],Fund,tbl_HypoPipeline[Exclude?],"")) -> 0
A38: Hypo Pipeline Subtotal | B38: =B35+B36-B37 -> 0
A40: Final Test Total | B40: =B38+B32 -> 0
A46: Secondary Purchases
A47: The aggregate principal amount of Purchased Participations in Loans acquired by Seller in secondary market transactions shall not exceed 20% of the aggregate principal amount of all Purchased Participations.
A49: Bucket | B49: =Commitment*0.2 -> 100000000
A50: Available | B50: =B49-B64 -> 0
A60: Industry Tests
A61: Maximum aggregate exposure of 20% of SMA Commitment for any industry.
A63: Largest Bucket | B63: =Commitment*0.2 -> 100000000 | D63: Moody's Industry | E63: Existing | F63: Pipeline | G63: Existing + Pipeline
A64: Available | B64: =B63-B69 -> 100000000 | D64: Aerospace & Defense | E64: =SUMIFS(tbl_ExistingData[Total Commitment], tbl_ExistingData[Moodys Industry], tbl_IndustryKaiser[[#This Row],[Moody''s Industry]] & "*", tbl_ExistingData[Fund], Fund, tbl_ExistingData[Paid Off Date], "=") -> 0 | F64: =SUMIFS(tbl_HypoPipeline[Total Commitment], tbl_HypoPipeline[Moody''s Industry], tbl_IndustryKaiser[[#This Row],[Moody''s Industry]] & "*", tbl_HypoPipeline[Fund], Fund,tbl_HypoPipeline[Exclude?],"") + SUMIFS(tbl_HFS[Total Commitment],tbl_HFS[Moody''s Industry],tbl_IndustryKaiser[[#This Row],[Moody''s Industry]],tbl_HFS[Fund],Fund) -> 0 | G64: =tbl_IndustryKaiser[[#This Row],[Existing]]+tbl_IndustryKaiser[[#This Row],[Pipeline]] -> 0
D65: Automotive | E65: =SUMIFS(tbl_ExistingData[Total Commitment], tbl_ExistingData[Moodys Industry], tbl_IndustryKaiser[[#This Row],[Moody''s Industry]] & "*", tbl_ExistingData[Fund], Fund, tbl_ExistingData[Paid Off Date], "=") -> 0 | F65: =SUMIFS(tbl_HypoPipeline[Total Commitment], tbl_HypoPipeline[Moody''s Industry], tbl_IndustryKaiser[[#This Row],[Moody''s Industry]] & "*", tbl_HypoPipeline[Fund], Fund,tbl_HypoPipeline[Exclude?],"") + SUMIFS(tbl_HFS[Total Commitment],tbl_HFS[Moody''s Industry],tbl_IndustryKaiser[[#This Row],[Moody''s Industry]],tbl_HFS[Fund],Fund) -> 0 | G65: =tbl_IndustryKaiser[[#This Row],[Existing]]+tbl_IndustryKaiser[[#This Row],[Pipeline]] -> 0
A66: =INDEX(tbl_IndustryKaiser[],MATCH(B69,tbl_IndustryKaiser[Existing + Pipeline],0),1) -> Aerospace & Defense | D66: Banking, Finance, Insurance & Real Estate | E66: =SUMIFS(tbl_ExistingData[Total Commitment], tbl_ExistingData[Moodys Industry], tbl_IndustryKaiser[[#This Row],[Moody''s Industry]] & "*", tbl_ExistingData[Fund], Fund, tbl_ExistingData[Paid Off Date], "=") -> 0 | F66: =SUMIFS(tbl_HypoPipeline[Total Commitment], tbl_HypoPipeline[Moody''s Industry], tbl_IndustryKaiser[[#This Row],[Moody''s Industry]] & "*", tbl_HypoPipeline[Fund], Fund,tbl_HypoPipeline[Exclude?],"") + SUMIFS(tbl_HFS[Total Commitment],tbl_HFS[Moody''s Industry],tbl_IndustryKaiser[[#This Row],[Moody''s Industry]],tbl_HFS[Fund],Fund) -> 0 | G66: =tbl_IndustryKaiser[[#This Row],[Existing]]+tbl_IndustryKaiser[[#This Row],[Pipeline]] -> 0
A67: Existing Portfolio Component | B67: =INDEX(tbl_IndustryKaiser[],MATCH(B69,tbl_IndustryKaiser[Existing + Pipeline],0),2) -> 0 | D67: Beverage, Food & Tobacco | E67: =SUMIFS(tbl_ExistingData[Total Commitment], tbl_ExistingData[Moodys Industry], tbl_IndustryKaiser[[#This Row],[Moody''s Industry]] & "*", tbl_ExistingData[Fund], Fund, tbl_ExistingData[Paid Off Date], "=") -> 0 | F67: =SUMIFS(tbl_HypoPipeline[Total Commitment], tbl_HypoPipeline[Moody''s Industry], tbl_IndustryKaiser[[#This Row],[Moody''s Industry]] & "*", tbl_HypoPipeline[Fund], Fund,tbl_HypoPipeline[Exclude?],"") + SUMIFS(tbl_HFS[Total Commitment],tbl_HFS[Moody''s Industry],tbl_IndustryKaiser[[#This Row],[Moody''s Industry]],tbl_HFS[Fund],Fund) -> 0 | G67: =tbl_IndustryKaiser[[#This Row],[Existing]]+tbl_IndustryKaiser[[#This Row],[Pipeline]] -> 0
A68: Hypo Pipeline Component | B68: =INDEX(tbl_IndustryKaiser[],MATCH(B69,tbl_IndustryKaiser[Existing + Pipeline],0),3) -> 0 | D68: Capital Equipment | E68: =SUMIFS(tbl_ExistingData[Total Commitment], tbl_ExistingData[Moodys Industry], tbl_IndustryKaiser[[#This Row],[Moody''s Industry]] & "*", tbl_ExistingData[Fund], Fund, tbl_ExistingData[Paid Off Date], "=") -> 0 | F68: =SUMIFS(tbl_HypoPipeline[Total Commitment], tbl_HypoPipeline[Moody''s Industry], tbl_IndustryKaiser[[#This Row],[Moody''s Industry]] & "*", tbl_HypoPipeline[Fund], Fund,tbl_HypoPipeline[Exclude?],"") + SUMIFS(tbl_HFS[Total Commitment],tbl_HFS[Moody''s Industry],tbl_IndustryKaiser[[#This Row],[Moody''s Industry]],tbl_HFS[Fund],Fund) -> 0 | G68: =tbl_IndustryKaiser[[#This Row],[Existing]]+tbl_IndustryKaiser[[#This Row],[Pipeline]] -> 0
A69: Aggregate Exposure | B69: =LARGE(tbl_IndustryKaiser[Existing + Pipeline],1) -> 0 | D69: Chemicals, Plastics & Rubber | E69: =SUMIFS(tbl_ExistingData[Total Commitment], tbl_ExistingData[Moodys Industry], tbl_IndustryKaiser[[#This Row],[Moody''s Industry]] & "*", tbl_ExistingData[Fund], Fund, tbl_ExistingData[Paid Off Date], "=") -> 0 | F69: =SUMIFS(tbl_HypoPipeline[Total Commitment], tbl_HypoPipeline[Moody''s Industry], tbl_IndustryKaiser[[#This Row],[Moody''s Industry]] & "*", tbl_HypoPipeline[Fund], Fund,tbl_HypoPipeline[Exclude?],"") + SUMIFS(tbl_HFS[Total Commitment],tbl_HFS[Moody''s Industry],tbl_IndustryKaiser[[#This Row],[Moody''s Industry]],tbl_HFS[Fund],Fund) -> 0 | G69: =tbl_IndustryKaiser[[#This Row],[Existing]]+tbl_IndustryKaiser[[#This Row],[Pipeline]] -> 0
D70: Construction & Building | E70: =SUMIFS(tbl_ExistingData[Total Commitment], tbl_ExistingData[Moodys Industry], tbl_IndustryKaiser[[#This Row],[Moody''s Industry]] & "*", tbl_ExistingData[Fund], Fund, tbl_ExistingData[Paid Off Date], "=") -> 0 | F70: =SUMIFS(tbl_HypoPipeline[Total Commitment], tbl_HypoPipeline[Moody''s Industry], tbl_IndustryKaiser[[#This Row],[Moody''s Industry]] & "*", tbl_HypoPipeline[Fund], Fund,tbl_HypoPipeline[Exclude?],"") + SUMIFS(tbl_HFS[Total Commitment],tbl_HFS[Moody''s Industry],tbl_IndustryKaiser[[#This Row],[Moody''s Industry]],tbl_HFS[Fund],Fund) -> 0 | G70: =tbl_IndustryKaiser[[#This Row],[Existing]]+tbl_IndustryKaiser[[#This Row],[Pipeline]] -> 0
D71: Consumer goods: Durable | E71: =SUMIFS(tbl_ExistingData[Total Commitment], tbl_ExistingData[Moodys Industry], tbl_IndustryKaiser[[#This Row],[Moody''s Industry]] & "*", tbl_ExistingData[Fund], Fund, tbl_ExistingData[Paid Off Date], "=") -> 0 | F71: =SUMIFS(tbl_HypoPipeline[Total Commitment], tbl_HypoPipeline[Moody''s Industry], tbl_IndustryKaiser[[#This Row],[Moody''s Industry]] & "*", tbl_HypoPipeline[Fund], Fund,tbl_HypoPipeline[Exclude?],"") + SUMIFS(tbl_HFS[Total Commitment],tbl_HFS[Moody''s Industry],tbl_IndustryKaiser[[#This Row],[Moody''s Industry]],tbl_HFS[Fund],Fund) -> 0 | G71: =tbl_IndustryKaiser[[#This Row],[Existing]]+tbl_IndustryKaiser[[#This Row],[Pipeline]] -> 0
D72: Consumer goods: Non-durable | E72: =SUMIFS(tbl_ExistingData[Total Commitment], tbl_ExistingData[Moodys Industry], tbl_IndustryKaiser[[#This Row],[Moody''s Industry]] & "*", tbl_ExistingData[Fund], Fund, tbl_ExistingData[Paid Off Date], "=") -> 0 | F72: =SUMIFS(tbl_HypoPipeline[Total Commitment], tbl_HypoPipeline[Moody''s Industry], tbl_IndustryKaiser[[#This Row],[Moody''s Industry]] & "*", tbl_HypoPipeline[Fund], Fund,tbl_HypoPipeline[Exclude?],"") + SUMIFS(tbl_HFS[Total Commitment],tbl_HFS[Moody''s Industry],tbl_IndustryKaiser[[#This Row],[Moody''s Industry]],tbl_HFS[Fund],Fund) -> 0 | G72: =tbl_IndustryKaiser[[#This Row],[Existing]]+tbl_IndustryKaiser[[#This Row],[Pipeline]] -> 0
D73: Containers, Packaging & Glass | E73: =SUMIFS(tbl_ExistingData[Total Commitment], tbl_ExistingData[Moodys Industry], tbl_IndustryKaiser[[#This Row],[Moody''s Industry]] & "*", tbl_ExistingData[Fund], Fund, tbl_ExistingData[Paid Off Date], "=") -> 0 | F73: =SUMIFS(tbl_HypoPipeline[Total Commitment], tbl_HypoPipeline[Moody''s Industry], tbl_IndustryKaiser[[#This Row],[Moody''s Industry]] & "*", tbl_HypoPipeline[Fund], Fund,tbl_HypoPipeline[Exclude?],"") + SUMIFS(tbl_HFS[Total Commitment],tbl_HFS[Moody''s Industry],tbl_IndustryKaiser[[#This Row],[Moody''s Industry]],tbl_HFS[Fund],Fund) -> 0 | G73: =tbl_IndustryKaiser[[#This Row],[Existing]]+tbl_IndustryKaiser[[#This Row],[Pipeline]] -> 0
D74: Energy: Electricity | E74: =SUMIFS(tbl_ExistingData[Total Commitment], tbl_ExistingData[Moodys Industry], tbl_IndustryKaiser[[#This Row],[Moody''s Industry]] & "*", tbl_ExistingData[Fund], Fund, tbl_ExistingData[Paid Off Date], "=") -> 0 | F74: =SUMIFS(tbl_HypoPipeline[Total Commitment], tbl_HypoPipeline[Moody''s Industry], tbl_IndustryKaiser[[#This Row],[Moody''s Industry]] & "*", tbl_HypoPipeline[Fund], Fund,tbl_HypoPipeline[Exclude?],"") + SUMIFS(tbl_HFS[Total Commitment],tbl_HFS[Moody''s Industry],tbl_IndustryKaiser[[#This Row],[Moody''s Industry]],tbl_HFS[Fund],Fund) -> 0 | G74: =tbl_IndustryKaiser[[#This Row],[Existing]]+tbl_IndustryKaiser[[#This Row],[Pipeline]] -> 0
D75: Energy: Oil & Gas | E75: =SUMIFS(tbl_ExistingData[Total Commitment], tbl_ExistingData[Moodys Industry], tbl_IndustryKaiser[[#This Row],[Moody''s Industry]] & "*", tbl_ExistingData[Fund], Fund, tbl_ExistingData[Paid Off Date], "=") -> 0 | F75: =SUMIFS(tbl_HypoPipeline[Total Commitment], tbl_HypoPipeline[Moody''s Industry], tbl_IndustryKaiser[[#This Row],[Moody''s Industry]] & "*", tbl_HypoPipeline[Fund], Fund,tbl_HypoPipeline[Exclude?],"") + SUMIFS(tbl_HFS[Total Commitment],tbl_HFS[Moody''s Industry],tbl_IndustryKaiser[[#This Row],[Moody''s Industry]],tbl_HFS[Fund],Fund) -> 0 | G75: =tbl_IndustryKaiser[[#This Row],[Existing]]+tbl_IndustryKaiser[[#This Row],[Pipeline]] -> 0
D76: Environmental Industries | E76: =SUMIFS(tbl_ExistingData[Total Commitment], tbl_ExistingData[Moodys Industry], tbl_IndustryKaiser[[#This Row],[Moody''s Industry]] & "*", tbl_ExistingData[Fund], Fund, tbl_ExistingData[Paid Off Date], "=") -> 0 | F76: =SUMIFS(tbl_HypoPipeline[Total Commitment], tbl_HypoPipeline[Moody''s Industry], tbl_IndustryKaiser[[#This Row],[Moody''s Industry]] & "*", tbl_HypoPipeline[Fund], Fund,tbl_HypoPipeline[Exclude?],"") + SUMIFS(tbl_HFS[Total Commitment],tbl_HFS[Moody''s Industry],tbl_IndustryKaiser[[#This Row],[Moody''s Industry]],tbl_HFS[Fund],Fund) -> 0 | G76: =tbl_IndustryKaiser[[#This Row],[Existing]]+tbl_IndustryKaiser[[#This Row],[Pipeline]] -> 0
D77: Forest Products & Paper | E77: =SUMIFS(tbl_ExistingData[Total Commitment], tbl_ExistingData[Moodys Industry], tbl_IndustryKaiser[[#This Row],[Moody''s Industry]] & "*", tbl_ExistingData[Fund], Fund, tbl_ExistingData[Paid Off Date], "=") -> 0 | F77: =SUMIFS(tbl_HypoPipeline[Total Commitment], tbl_HypoPipeline[Moody''s Industry], tbl_IndustryKaiser[[#This Row],[Moody''s Industry]] & "*", tbl_HypoPipeline[Fund], Fund,tbl_HypoPipeline[Exclude?],"") + SUMIFS(tbl_HFS[Total Commitment],tbl_HFS[Moody''s Industry],tbl_IndustryKaiser[[#This Row],[Moody''s Industry]],tbl_HFS[Fund],Fund) -> 0 | G77: =tbl_IndustryKaiser[[#This Row],[Existing]]+tbl_IndustryKaiser[[#This Row],[Pipeline]] -> 0
D78: Healthcare & Pharmaceuticals | E78: =SUMIFS(tbl_ExistingData[Total Commitment], tbl_ExistingData[Moodys Industry], tbl_IndustryKaiser[[#This Row],[Moody''s Industry]] & "*", tbl_ExistingData[Fund], Fund, tbl_ExistingData[Paid Off Date], "=") -> 0 | F78: =SUMIFS(tbl_HypoPipeline[Total Commitment], tbl_HypoPipeline[Moody''s Industry], tbl_IndustryKaiser[[#This Row],[Moody''s Industry]] & "*", tbl_HypoPipeline[Fund], Fund,tbl_HypoPipeline[Exclude?],"") + SUMIFS(tbl_HFS[Total Commitment],tbl_HFS[Moody''s Industry],tbl_IndustryKaiser[[#This Row],[Moody''s Industry]],tbl_HFS[Fund],Fund) -> 0 | G78: =tbl_IndustryKaiser[[#This Row],[Existing]]+tbl_IndustryKaiser[[#This Row],[Pipeline]] -> 0
D79: High Tech Industries | E79: =SUMIFS(tbl_ExistingData[Total Commitment], tbl_ExistingData[Moodys Industry], tbl_IndustryKaiser[[#This Row],[Moody''s Industry]] & "*", tbl_ExistingData[Fund], Fund, tbl_ExistingData[Paid Off Date], "=") -> 0 | F79: =SUMIFS(tbl_HypoPipeline[Total Commitment], tbl_HypoPipeline[Moody''s Industry], tbl_IndustryKaiser[[#This Row],[Moody''s Industry]] & "*", tbl_HypoPipeline[Fund], Fund,tbl_HypoPipeline[Exclude?],"") + SUMIFS(tbl_HFS[Total Commitment],tbl_HFS[Moody''s Industry],tbl_IndustryKaiser[[#This Row],[Moody''s Industry]],tbl_HFS[Fund],Fund) -> 0 | G79: =tbl_IndustryKaiser[[#This Row],[Existing]]+tbl_IndustryKaiser[[#This Row],[Pipeline]] -> 0
D80: Hotel, Gaming & Leisure | E80: =SUMIFS(tbl_ExistingData[Total Commitment], tbl_ExistingData[Moodys Industry], tbl_IndustryKaiser[[#This Row],[Moody''s Industry]] & "*", tbl_ExistingData[Fund], Fund, tbl_ExistingData[Paid Off Date], "=") -> 0 | F80: =SUMIFS(tbl_HypoPipeline[Total Commitment], tbl_HypoPipeline[Moody''s Industry], tbl_IndustryKaiser[[#This Row],[Moody''s Industry]] & "*", tbl_HypoPipeline[Fund], Fund,tbl_HypoPipeline[Exclude?],"") + SUMIFS(tbl_HFS[Total Commitment],tbl_HFS[Moody''s Industry],tbl_IndustryKaiser[[#This Row],[Moody''s Industry]],tbl_HFS[Fund],Fund) -> 0 | G80: =tbl_IndustryKaiser[[#This Row],[Existing]]+tbl_IndustryKaiser[[#This Row],[Pipeline]] -> 0
D81: Media: Advertising, Printing & Publishing | E81: =SUMIFS(tbl_ExistingData[Total Commitment], tbl_ExistingData[Moodys Industry], tbl_IndustryKaiser[[#This Row],[Moody''s Industry]] & "*", tbl_ExistingData[Fund], Fund, tbl_ExistingData[Paid Off Date], "=") -> 0 | F81: =SUMIFS(tbl_HypoPipeline[Total Commitment], tbl_HypoPipeline[Moody''s Industry], tbl_IndustryKaiser[[#This Row],[Moody''s Industry]] & "*", tbl_HypoPipeline[Fund], Fund,tbl_HypoPipeline[Exclude?],"") + SUMIFS(tbl_HFS[Total Commitment],tbl_HFS[Moody''s Industry],tbl_IndustryKaiser[[#This Row],[Moody''s Industry]],tbl_HFS[Fund],Fund) -> 0 | G81: =tbl_IndustryKaiser[[#This Row],[Existing]]+tbl_IndustryKaiser[[#This Row],[Pipeline]] -> 0
D82: Media: Broadcasting & Subscription | E82: =SUMIFS(tbl_ExistingData[Total Commitment], tbl_ExistingData[Moodys Industry], tbl_IndustryKaiser[[#This Row],[Moody''s Industry]] & "*", tbl_ExistingData[Fund], Fund, tbl_ExistingData[Paid Off Date], "=") -> 0 | F82: =SUMIFS(tbl_HypoPipeline[Total Commitment], tbl_HypoPipeline[Moody''s Industry], tbl_IndustryKaiser[[#This Row],[Moody''s Industry]] & "*", tbl_HypoPipeline[Fund], Fund,tbl_HypoPipeline[Exclude?],"") + SUMIFS(tbl_HFS[Total Commitment],tbl_HFS[Moody''s Industry],tbl_IndustryKaiser[[#This Row],[Moody''s Industry]],tbl_HFS[Fund],Fund) -> 0 | G82: =tbl_IndustryKaiser[[#This Row],[Existing]]+tbl_IndustryKaiser[[#This Row],[Pipeline]] -> 0
D83: Media: Diversified & Production | E83: =SUMIFS(tbl_ExistingData[Total Commitment], tbl_ExistingData[Moodys Industry], tbl_IndustryKaiser[[#This Row],[Moody''s Industry]] & "*", tbl_ExistingData[Fund], Fund, tbl_ExistingData[Paid Off Date], "=") -> 0 | F83: =SUMIFS(tbl_HypoPipeline[Total Commitment], tbl_HypoPipeline[Moody''s Industry], tbl_IndustryKaiser[[#This Row],[Moody''s Industry]] & "*", tbl_HypoPipeline[Fund], Fund,tbl_HypoPipeline[Exclude?],"") + SUMIFS(tbl_HFS[Total Commitment],tbl_HFS[Moody''s Industry],tbl_IndustryKaiser[[#This Row],[Moody''s Industry]],tbl_HFS[Fund],Fund) -> 0 | G83: =tbl_IndustryKaiser[[#This Row],[Existing]]+tbl_IndustryKaiser[[#This Row],[Pipeline]] -> 0
D84: Metals & Mining | E84: =SUMIFS(tbl_ExistingData[Total Commitment], tbl_ExistingData[Moodys Industry], tbl_IndustryKaiser[[#This Row],[Moody''s Industry]] & "*", tbl_ExistingData[Fund], Fund, tbl_ExistingData[Paid Off Date], "=") -> 0 | F84: =SUMIFS(tbl_HypoPipeline[Total Commitment], tbl_HypoPipeline[Moody''s Industry], tbl_IndustryKaiser[[#This Row],[Moody''s Industry]] & "*", tbl_HypoPipeline[Fund], Fund,tbl_HypoPipeline[Exclude?],"") + SUMIFS(tbl_HFS[Total Commitment],tbl_HFS[Moody''s Industry],tbl_IndustryKaiser[[#This Row],[Moody''s Industry]],tbl_HFS[Fund],Fund) -> 0 | G84: =tbl_IndustryKaiser[[#This Row],[Existing]]+tbl_IndustryKaiser[[#This Row],[Pipeline]] -> 0
D85: Retail | E85: =SUMIFS(tbl_ExistingData[Total Commitment], tbl_ExistingData[Moodys Industry], tbl_IndustryKaiser[[#This Row],[Moody''s Industry]] & "*", tbl_ExistingData[Fund], Fund, tbl_ExistingData[Paid Off Date], "=") -> 0 | F85: =SUMIFS(tbl_HypoPipeline[Total Commitment], tbl_HypoPipeline[Moody''s Industry], tbl_IndustryKaiser[[#This Row],[Moody''s Industry]] & "*", tbl_HypoPipeline[Fund], Fund,tbl_HypoPipeline[Exclude?],"") + SUMIFS(tbl_HFS[Total Commitment],tbl_HFS[Moody''s Industry],tbl_IndustryKaiser[[#This Row],[Moody''s Industry]],tbl_HFS[Fund],Fund) -> 0 | G85: =tbl_IndustryKaiser[[#This Row],[Existing]]+tbl_IndustryKaiser[[#This Row],[Pipeline]] -> 0
D86: Services: Business | E86: =SUMIFS(tbl_ExistingData[Total Commitment], tbl_ExistingData[Moodys Industry], tbl_IndustryKaiser[[#This Row],[Moody''s Industry]] & "*", tbl_ExistingData[Fund], Fund, tbl_ExistingData[Paid Off Date], "=") -> 0 | F86: =SUMIFS(tbl_HypoPipeline[Total Commitment], tbl_HypoPipeline[Moody''s Industry], tbl_IndustryKaiser[[#This Row],[Moody''s Industry]] & "*", tbl_HypoPipeline[Fund], Fund,tbl_HypoPipeline[Exclude?],"") + SUMIFS(tbl_HFS[Total Commitment],tbl_HFS[Moody''s Industry],tbl_IndustryKaiser[[#This Row],[Moody''s Industry]],tbl_HFS[Fund],Fund) -> 0 | G86: =tbl_IndustryKaiser[[#This Row],[Existing]]+tbl_IndustryKaiser[[#This Row],[Pipeline]] -> 0
D87: Services: Consumer | E87: =SUMIFS(tbl_ExistingData[Total Commitment], tbl_ExistingData[Moodys Industry], tbl_IndustryKaiser[[#This Row],[Moody''s Industry]] & "*", tbl_ExistingData[Fund], Fund, tbl_ExistingData[Paid Off Date], "=") -> 0 | F87: =SUMIFS(tbl_HypoPipeline[Total Commitment], tbl_HypoPipeline[Moody''s Industry], tbl_IndustryKaiser[[#This Row],[Moody''s Industry]] & "*", tbl_HypoPipeline[Fund], Fund,tbl_HypoPipeline[Exclude?],"") + SUMIFS(tbl_HFS[Total Commitment],tbl_HFS[Moody''s Industry],tbl_IndustryKaiser[[#This Row],[Moody''s Industry]],tbl_HFS[Fund],Fund) -> 0 | G87: =tbl_IndustryKaiser[[#This Row],[Existing]]+tbl_IndustryKaiser[[#This Row],[Pipeline]] -> 0
D88: Sovereign & Public Finance | E88: =SUMIFS(tbl_ExistingData[Total Commitment], tbl_ExistingData[Moodys Industry], tbl_IndustryKaiser[[#This Row],[Moody''s Industry]] & "*", tbl_ExistingData[Fund], Fund, tbl_ExistingData[Paid Off Date], "=") -> 0 | F88: =SUMIFS(tbl_HypoPipeline[Total Commitment], tbl_HypoPipeline[Moody''s Industry], tbl_IndustryKaiser[[#This Row],[Moody''s Industry]] & "*", tbl_HypoPipeline[Fund], Fund,tbl_HypoPipeline[Exclude?],"") + SUMIFS(tbl_HFS[Total Commitment],tbl_HFS[Moody''s Industry],tbl_IndustryKaiser[[#This Row],[Moody''s Industry]],tbl_HFS[Fund],Fund) -> 0 | G88: =tbl_IndustryKaiser[[#This Row],[Existing]]+tbl_IndustryKaiser[[#This Row],[Pipeline]] -> 0
D89: Telecommunications | E89: =SUMIFS(tbl_ExistingData[Total Commitment], tbl_ExistingData[Moodys Industry], tbl_IndustryKaiser[[#This Row],[Moody''s Industry]] & "*", tbl_ExistingData[Fund], Fund, tbl_ExistingData[Paid Off Date], "=") -> 0 | F89: =SUMIFS(tbl_HypoPipeline[Total Commitment], tbl_HypoPipeline[Moody''s Industry], tbl_IndustryKaiser[[#This Row],[Moody''s Industry]] & "*", tbl_HypoPipeline[Fund], Fund,tbl_HypoPipeline[Exclude?],"") + SUMIFS(tbl_HFS[Total Commitment],tbl_HFS[Moody''s Industry],tbl_IndustryKaiser[[#This Row],[Moody''s Industry]],tbl_HFS[Fund],Fund) -> 0 | G89: =tbl_IndustryKaiser[[#This Row],[Existing]]+tbl_IndustryKaiser[[#This Row],[Pipeline]] -> 0
D90: Transportation: Cargo | E90: =SUMIFS(tbl_ExistingData[Total Commitment], tbl_ExistingData[Moodys Industry], tbl_IndustryKaiser[[#This Row],[Moody''s Industry]] & "*", tbl_ExistingData[Fund], Fund, tbl_ExistingData[Paid Off Date], "=") -> 0 | F90: =SUMIFS(tbl_HypoPipeline[Total Commitment], tbl_HypoPipeline[Moody''s Industry], tbl_IndustryKaiser[[#This Row],[Moody''s Industry]] & "*", tbl_HypoPipeline[Fund], Fund,tbl_HypoPipeline[Exclude?],"") + SUMIFS(tbl_HFS[Total Commitment],tbl_HFS[Moody''s Industry],tbl_IndustryKaiser[[#This Row],[Moody''s Industry]],tbl_HFS[Fund],Fund) -> 0 | G90: =tbl_IndustryKaiser[[#This Row],[Existing]]+tbl_IndustryKaiser[[#This Row],[Pipeline]] -> 0
D91: Transportation: Consumer | E91: =SUMIFS(tbl_ExistingData[Total Commitment], tbl_ExistingData[Moodys Industry], tbl_IndustryKaiser[[#This Row],[Moody''s Industry]] & "*", tbl_ExistingData[Fund], Fund, tbl_ExistingData[Paid Off Date], "=") -> 0 | F91: =SUMIFS(tbl_HypoPipeline[Total Commitment], tbl_HypoPipeline[Moody''s Industry], tbl_IndustryKaiser[[#This Row],[Moody''s Industry]] & "*", tbl_HypoPipeline[Fund], Fund,tbl_HypoPipeline[Exclude?],"") + SUMIFS(tbl_HFS[Total Commitment],tbl_HFS[Moody''s Industry],tbl_IndustryKaiser[[#This Row],[Moody''s Industry]],tbl_HFS[Fund],Fund) -> 0 | G91: =tbl_IndustryKaiser[[#This Row],[Existing]]+tbl_IndustryKaiser[[#This Row],[Pipeline]] -> 0
D92: Utilities: Electric | E92: =SUMIFS(tbl_ExistingData[Total Commitment], tbl_ExistingData[Moodys Industry], tbl_IndustryKaiser[[#This Row],[Moody''s Industry]] & "*", tbl_ExistingData[Fund], Fund, tbl_ExistingData[Paid Off Date], "=") -> 0 | F92: =SUMIFS(tbl_HypoPipeline[Total Commitment], tbl_HypoPipeline[Moody''s Industry], tbl_IndustryKaiser[[#This Row],[Moody''s Industry]] & "*", tbl_HypoPipeline[Fund], Fund,tbl_HypoPipeline[Exclude?],"") + SUMIFS(tbl_HFS[Total Commitment],tbl_HFS[Moody''s Industry],tbl_IndustryKaiser[[#This Row],[Moody''s Industry]],tbl_HFS[Fund],Fund) -> 0 | G92: =tbl_IndustryKaiser[[#This Row],[Existing]]+tbl_IndustryKaiser[[#This Row],[Pipeline]] -> 0
D93: Utilities: Oil & Gas | E93: =SUMIFS(tbl_ExistingData[Total Commitment], tbl_ExistingData[Moodys Industry], tbl_IndustryKaiser[[#This Row],[Moody''s Industry]] & "*", tbl_ExistingData[Fund], Fund, tbl_ExistingData[Paid Off Date], "=") -> 0 | F93: =SUMIFS(tbl_HypoPipeline[Total Commitment], tbl_HypoPipeline[Moody''s Industry], tbl_IndustryKaiser[[#This Row],[Moody''s Industry]] & "*", tbl_HypoPipeline[Fund], Fund,tbl_HypoPipeline[Exclude?],"") + SUMIFS(tbl_HFS[Total Commitment],tbl_HFS[Moody''s Industry],tbl_IndustryKaiser[[#This Row],[Moody''s Industry]],tbl_HFS[Fund],Fund) -> 0 | G93: =tbl_IndustryKaiser[[#This Row],[Existing]]+tbl_IndustryKaiser[[#This Row],[Pipeline]] -> 0
D94: Utilities: Water | E94: =SUMIFS(tbl_ExistingData[Total Commitment], tbl_ExistingData[Moodys Industry], tbl_IndustryKaiser[[#This Row],[Moody''s Industry]] & "*", tbl_ExistingData[Fund], Fund, tbl_ExistingData[Paid Off Date], "=") -> 0 | F94: =SUMIFS(tbl_HypoPipeline[Total Commitment], tbl_HypoPipeline[Moody''s Industry], tbl_IndustryKaiser[[#This Row],[Moody''s Industry]] & "*", tbl_HypoPipeline[Fund], Fund,tbl_HypoPipeline[Exclude?],"") + SUMIFS(tbl_HFS[Total Commitment],tbl_HFS[Moody''s Industry],tbl_IndustryKaiser[[#This Row],[Moody''s Industry]],tbl_HFS[Fund],Fund) -> 0 | G94: =tbl_IndustryKaiser[[#This Row],[Existing]]+tbl_IndustryKaiser[[#This Row],[Pipeline]] -> 0
D95: Wholesale | E95: =SUMIFS(tbl_ExistingData[Total Commitment], tbl_ExistingData[Moodys Industry], tbl_IndustryKaiser[[#This Row],[Moody''s Industry]] & "*", tbl_ExistingData[Fund], Fund, tbl_ExistingData[Paid Off Date], "=") -> 0 | F95: =SUMIFS(tbl_HypoPipeline[Total Commitment], tbl_HypoPipeline[Moody''s Industry], tbl_IndustryKaiser[[#This Row],[Moody''s Industry]] & "*", tbl_HypoPipeline[Fund], Fund,tbl_HypoPipeline[Exclude?],"") + SUMIFS(tbl_HFS[Total Commitment],tbl_HFS[Moody''s Industry],tbl_IndustryKaiser[[#This Row],[Moody''s Industry]],tbl_HFS[Fund],Fund) -> 0 | G95: =tbl_IndustryKaiser[[#This Row],[Existing]]+tbl_IndustryKaiser[[#This Row],[Pipeline]] -> 0

Sheet Tests (Swiss)
A1: Tests: | B1: SMA-SC
A3: SMA Commitment | B3: =VLOOKUP(Fund,tbl_Funds[[Fund]:[Principal Balance]],2,0) -> 360000000
A5: Max Commitment
A6: The sum of Existing Portfolio and Hypo Pipeline commitments must not exceed the Limit for the selected test type minus Protective Advances Holdback.
A7: "Available" denotes capacity remaining following the stated calculation.
A9: Test Type | B9: Specific Limit
A10: Specific Limit Start Date | B10: 2020-01-01
A11: Specific Limit End Date | B11: 2020-12-31
A13: Bucket
A14: Commitment (Standard or Specific) | B14: =_xlfn.SWITCH(Test_Type,"Specific Limit", VLOOKUP(Fund,tbl_Funds[[Fund]:[Principal Balance]],MATCH("Specific Commitment",tbl_Funds[#Headers],0),0), VLOOKUP(Fund,tbl_Funds[[Fund]:[Principal Balance]],MATCH("Standard Commitment",tbl_Funds[#Headers],0),0)) -> 99566495.46
A15: Protective Advances Holdback | B15: =_xlfn.XLOOKUP(Fund,tbl_Funds[Fund],tbl_Funds[Protective Advances]) -> 14464458.23
A16: Bucket Subtotal | B16: =B14-B15 -> 85102037.23
A17: Available | B17: =B16-B21 -> -65331467.31
A19: Existing Portfolio | B19: =_xlfn.SWITCH(Test_Type,"Specific Limit", SUMIFS(tbl_OC_Swiss[Commitment Amount],tbl_OC_Swiss[Date Closed],">=" & Standard_Limit_Start,tbl_OC_Swiss[Date Closed],"<=" & Standard_Limit_End), SUMIFS(tbl_ExistingData[Total Commitment],tbl_ExistingData[Fund],Fund, tbl_ExistingData[Paid Off Date], "=")) -> 150433504.5
